Workbook

Sheet evolutions (hidden)
E1: Informations sur le GHM | F1: Evolution | O1: 2012 | Y1: 2011
B2: CMD | C2: sous CMD | D2: racine | E2: GHM V11 | F2: Evo_couttot | G2: evo_coutclin | H2: evo_coutsc | I2: evo_coutsi | J2: evo_coutmt | K2: evo_coutlgg | L2: evo_coutlm | M2: evo_coutcd | N2: evo_couthono | O2: Coût complet hors structure | P2: Dépenses cliniques | Q2: Dépenses SC | R2: Dépenses SI | S2: REA | T2: TOTAL Dépenses MT | U2: TOTAL Dépenses LGG | V2: TOTAL Dépenses LM | W2: TOTAL Charges directes hors honoraires | X2: TOTAL Honoraires | Y2: Coût complet hors structure | Z2: Dépenses cliniques | AA2: Dépenses SC | AB2: Dépenses SI | AC2: TOTAL Dépenses MT | AD2: TOTAL Dépenses LGG | AE2: TOTAL Dépenses LM | AF2: TOTAL Charges directes hors honoraires | AG2: TOTAL Honoraires
A3: 0101C01C0401C041 | B3: 01 | C3: 01C | D3: 01C04 | E3: 01C041 | F3: NC | G3: NC | H3: NC | I3: NC | J3: NC | K3: NC | L3: NC | M3: NC | N3: NC | O3: 4512.482263 | P3: 708.6820645 | Q3: 355.8820378 | R3: 0 | S3: 0 | T3: 606.8472422 | U3: 718.0275096 | V3: 122.5841196 | W3: 631.7249728 | X3: 1368.734316
A4: 0101C01C04TOTAL | B4: 01 | C4: 01C | D4: 01C04 | F4: NC | G4: NC | H4: NC | I4: NC | J4: NC | K4: NC | L4: NC | M4: NC | N4: NC | O4: 4512.482263 | P4: 708.6820645 | Q4: 355.8820378 | R4: 0 | S4: 0 | T4: 606.8472422 | U4: 718.0275096 | V4: 122.5841196 | W4: 631.7249728 | X4: 1368.734316
A5: 0101C01C0501C051 | B5: 01 | C5: 01C | D5: 01C05 | E5: 01C051 | F5: =O5/Y5-1 -> -0.1508707924 | G5: =P5/Z5-1 -> -0.1220965326 | H5: =Q5/AA5-1 -> 0.02580954421 | I5: =R5/AB5-1 -> -0.4764485344 | J5: =T5/AC5-1 -> -0.2525468062 | K5: =U5/AD5-1 -> 0.05339952813 | L5: =V5/AE5-1 -> -0.04727260005 | M5: =W5/AF5-1 -> -0.3758316053 | N5: =X5/AG5-1 -> 0.01949557851 | O5: 3200.914564 | P5: 543.2783371 | Q5: 11.0475561 | R5: 5.178342593 | S5: 0 | T5: 393.8367378 | U5: 465.3268116 | V5: 125.9204698 | W5: 651.3964098 | X5: 1004.929899 | Y5: 3769.643695 | Z5: 618.8360762 | AA5: 10.76959769 | AB5: 9.890799537 | AC5: 526.9048832 | AD5: 441.7382001 | AE5: 132.1684144 | AF5: 1043.622867 | AG5: 985.7128569
A6: 0101C01C0501C052 | B6: 01 | C6: 01C | D6: 01C05 | E6: 01C052 | F6: -0.1231879354 | G6: -0.1447529286 | H6: -0.1606569727 | I6: 0.2906841624 | J6: -0.1352373809 | K6: 0.02353844715 | L6: 0.04869192432 | M6: -0.3289410619 | N6: -0.01651485318 | O6: 4049.861419 | P6: 761.3742154 | Q6: 33.67741943 | R6: 27.28574478 | S6: 0 | T6: 468.3580943 | U6: 646.5893882 | V6: 144.8397422 | W6: 750.1806163 | X6: 1217.556198 | Y6: 4618.847735 | Z6: 890.2389039 | AA6: 40.12354703 | AB6: 21.14052809 | AC6: 541.6030758 | AD6: 631.7196877 | AE6: 138.114673 | AF6: 1117.905706 | AG6: 1238.001613
A7: 0101C01C0501C053 | B7: 01 | C7: 01C | D7: 01C05 | E7: 01C053 | F7: NC | G7: NC | H7: NC | I7: NC | J7: NC | K7: NC | L7: NC | M7: NC | N7: NC | O7: 6080.959852 | P7: 1329.012161 | Q7: 143.0294235 | R7: 115.6596088 | S7: 0 | T7: 429.7881478 | U7: 1107.381718 | V7: 163.1615371 | W7: 1057.819969 | X7: 1735.107287
A8: 0101C01C05TOTAL | B8: 01 | C8: 01C | D8: 01C05 | F8: -0.09927647288 | G8: -0.05882630449 | H8: 0.3759275348 | I8: 0.3488606093 | J8: -0.219494605 | K8: 0.1249222209 | L8: -0.006878702326 | M8: -0.3415141956 | N8: 0.05234909603 | O8: 3569.569007 | P8: 640.5936026 | Q8: 24.01447372 | R8: 16.79640147 | S8: 0 | T8: 413.8642069 | U8: 545.5824754 | V8: 132.6038778 | W8: 698.3482829 | X8: 1097.765686 | Y8: 3963.001853 | Z8: 680.6327096 | AA8: 17.45329831 | AB8: 12.45228851 | AC8: 530.2515647 | AD8: 484.9957315 | AE8: 133.5223382 | AF8: 1060.53658 | AG8: 1043.157342
A9: 0101C01C0601C061 | B9: 01 | C9: 01C | D9: 01C06 | E9: 01C061 | F9: -0.08641056221 | G9: 0.1071369166 | H9: -0.3267498119 | I9: 0.04919175202 | J9: -0.3318273021 | K9: 0.08452722949 | L9: -0.2513974584 | M9: -0.08288521814 | N9: 0.0009473781387 | O9: 4131.770271 | P9: 493.8665635 | Q9: 207.6405274 | R9: 79.28900429 | S9: 0 | T9: 534.5850515 | U9: 499.1110298 | V9: 172.3023106 | W9: 647.3113667 | X9: 1497.664417 | Y9: 4522.567906 | Z9: 446.0754186 | AA9: 308.4151049 | AB9: 75.57150934 | AC9: 800.0701813 | AD9: 460.2106948 | AE9: 230.165276 | AF9: 705.8128159 | AG9: 1496.246905
A10: 0101C01C0601C062 | B10: 01 | C10: 01C | D10: 01C06 | E10: 01C062 | F10: -0.1349264209 | G10: 0.07900826586 | H10: -0.3946478741 | I10: 0.0926515503 | J10: -0.3535823967 | K10: -0.07770609632 | L10: -0.1684983957 | M10: -0.1990054885 | N10: -0.04768118308 | O10: 5142.436445 | P10: 687.9661852 | Q10: 272.5521679 | R10: 180.8720204 | S10: 0 | T10: 550.5655278 | U10: 659.8638798 | V10: 208.6826215 | W10: 815.5485817 | X10: 1766.385461 | Y10: 5944.507577 | Z10: 637.5912094 | AA10: 450.237401 | AB10: 165.5349506 | AC10: 851.7180303 | AD10: 715.45944 | AE10: 250.9707984 | AF10: 1018.17 | AG10: 1854.825747
A11: 0101C01C0601C063 | B11: 01 | C11: 01C | D11: 01C06 | E11: 01C063 | F11: NC | G11: NC | H11: NC | I11: NC | J11: NC | K11: NC | L11: NC | M11: NC | N11: NC | O11: 7813.482549 | P11: 1054.358877 | Q11: 547.6651852 | R11: 505.0725705 | S11: 74.72843001 | T11: 642.5079073 | U11: 1011.395363 | V11: 255.706982 | W11: 1143.375635 | X11: 2578.671598
A12: 0101C01C06TOTAL | B12: 01 | C12: 01C | D12: 01C06 | F12: -0.07321286834 | G12: 0.1383040679 | H12: -0.3112616172 | I12: 0.2235754631 | J12: -0.3321797212 | K12: 0.06807729301 | L12: -0.2193452125 | M12: -0.09536570927 | N12: 0.01221884859 | O12: 4490.543074 | P12: 557.2457199 | Q12: 234.5856391 | R12: 117.4496499 | S12: 2.815901616 | T12: 542.131001 | U12: 553.4134619 | V12: 183.3657628 | W12: 702.6320715 | X12: 1596.903866 | Y12: 4845.279914 | Z12: 489.5403044 | AA12: 340.6019542 | AB12: 95.98888947 | AC12: 811.7917623 | AD12: 518.1399001 | AE12: 234.8871303 | AF12: 776.7028938 | AG12: 1577.62708
A13: 0101C01C0801C081 | B13: 01 | C13: 01C | D13: 01C08 | E13: 01C081 | F13: 0.0143330121 | G13: 0.07584047279 | H13: -0.9383907547 | J13: -0.1600471554 | K13: 0.02558561873 | L13: -0.1828458794 | M13: -0.09931659781 | N13: 0.2017518246 | O13: 1947.664871 | P13: 258.3815375 | Q13: 1.198343382 | R13: 1.43854354 | S13: 0 | T13: 336.4887961 | U13: 235.2792958 | V13: 86.72972947 | W13: 247.4698421 | X13: 780.6787829 | Y13: 1920.143432 | Z13: 240.1671475 | AA13: 19.45070703 | AB13: 0 | AC13: 400.604389 | AD13: 229.4097065 | AE13: 106.1363178 | AF13: 274.7578578 | AG13: 649.6173061
A14: 0101C01C0801C08J | B14: 01 | C14: 01C | D14: 01C08 | E14: 01C08J | F14: 0.3549369276 | G14: 0.07395906936 | J14: 0.6091355288 | K14: 0.4882503658 | L14: 0.3683013111 | M14: 0.7580236035 | N14: 0.1923927378 | O14: 1517.121102 | P14: 78.6688342 | Q14: 0 | R14: 0 | S14: 0 | T14: 256.1886405 | U14: 298.1646846 | V14: 65.22492477 | W14: 176.1273514 | X14: 642.7466663 | Y14: 1119.698689 | Z14: 73.25124061 | AA14: 0 | AB14: 0 | AC14: 159.2088646 | AD14: 200.3457828 | AE14: 47.66853926 | AF14: 100.1848616 | AG14: 539.0394003
A15: 0101C01C08TOTAL | B15: 01 | C15: 01C | D15: 01C08 | F15: 0.1844261845 | G15: 0.02886612741 | H15: -0.9444464827 | J15: 0.162921265 | K15: 0.3261232455 | L15: 0.06257043334 | M15: 0.2400900726 | N15: 0.1879711583 | O15: 1649.515469 | P15: 133.9313913 | Q15: 0.368496597 | R15: 0.4423593499 | S15: 0 | T15: 280.8813409 | U15: 278.8271123 | V15: 71.83776002 | W15: 198.0655249 | X15: 685.1614836 | Y15: 1392.670553 | Z15: 130.1737785 | AA15: 6.633182111 | AB15: 0 | AC15: 241.5308322 | AD15: 210.2573145 | AE15: 67.60752771 | AF15: 159.7186602 | AG15: 576.7492576
A16: 0101C01C1001C101 | B16: 01 | C16: 01C | D16: 01C10 | E16: 01C101 | F16: -0.1567189926 | G16: -0.149418355 | J16: 0.4640550621 | K16: -0.08810173794 | L16: 0.5360258597 | M16: -0.2256823164 | N16: 0.3965939322 | O16: 5420.594204 | P16: 322.0970726 | Q16: 32.77407144 | R16: 0 | S16: 0 | T16: 211.3424263 | U16: 265.8872666 | V16: 73.10725744 | W16: 4053.713333 | X16: 461.6727766 | Y16: 6427.980894 | Z16: 378.6786072 | AA16: 0 | AB16: 0 | AC16: 144.3541516 | AD16: 291.5755821 | AE16: 47.59506943 | AF16: 5235.206968 | AG16: 330.5705159
A17: 0101C01C10TOTAL | B17: 01 | C17: 01C | D17: 01C10 | F17: -0.1567189926 | G17: -0.149418355 | J17: 0.4640550621 | K17: -0.08810173794 | L17: 0.5360258597 | M17: -0.2256823164 | N17: 0.3965939322 | O17: 5420.594204 | P17: 322.0970726 | Q17: 32.77407144 | R17: 0 | S17: 0 | T17: 211.3424263 | U17: 265.8872666 | V17: 73.10725744 | W17: 4053.713333 | X17: 461.6727766 | Y17: 6427.980894 | Z17: 378.6786072 | AA17: 0 | AB17: 0 | AC17: 144.3541516 | AD17: 291.5755821 | AE17: 47.59506943 | AF17: 5235.206968 | AG17: 330.5705159
A18: 0101C01C1401C141 | B18: 01 | C18: 01C | D18: 01C14 | E18: 01C141 | F18: -0.02497962048 | G18: 8.490824848e-05 | J18: -0.1076878888 | K18: 0.01978135137 | L18: -0.2720526234 | M18: 0.05794594189 | N18: -0.001929499516 | O18: 1046.024846 | P18: 197.1705662 | Q18: 1.330167928 | R18: 0 | S18: 0 | T18: 169.6016253 | U18: 175.1105463 | V18: 49.7057561 | W18: 147.7485116 | X18: 305.357673 | Y18: 1072.823572 | Z18: 197.1538262 | AA18: 0 | AB18: 0 | AC18: 190.0698457 | AD18: 171.713815 | AE18: 68.28207326 | AF18: 139.6560125 | AG18: 305.9479995
A19: 0101C01C1401C14J | B19: 01 | C19: 01C | D19: 01C14 | E19: 01C14J | F19: 0.02115147807 | G19: 0.1403858515 | J19: 0.03732842153 | K19: 0.02228157754 | L19: -0.1996879081 | M19: 0.07897287779 | N19: 0.004059333004 | O19: 850.4496265 | P19: 75.33613164 | Q19: 0 | R19: 0 | S19: 0 | T19: 158.6047436 | U19: 186.4661256 | V19: 42.87001135 | W19: 111.3696811 | X19: 275.8029333 | Y19: 832.8339574 | Z19: 66.06196625 | AA19: 0 | AB19: 0 | AC19: 152.8973277 | AD19: 182.401923 | AE19: 53.56661705 | AF19: 103.2182397 | AG19: 274.6878837
A20: 0101C01C14TOTAL | B20: 01 | C20: 01C | D20: 01C14 | F20: 0.002287795241 | G20: 0.04243795903 | J20: -0.006912625831 | K20: 0.02310422167 | L20: -0.2240708549 | M20: 0.06511133487 | N20: 7.274233071e-05 | O20: 895.2170222 | P20: 103.2241757 | Q20: 0.3044769883 | R20: 0 | S20: 0 | T20: 161.1219426 | U20: 183.8668202 | V20: 44.43472129 | W20: 119.6968378 | X20: 282.5680476 | Y20: 893.1736239 | Z20: 99.02188879 | AA20: 0 | AB20: 0 | AC20: 162.243471 | AD20: 179.7146531 | AE20: 57.26646765 | AF20: 112.3796489 | AG20: 282.5474945
A21: 0101C01C1501C151 | B21: 01 | C21: 01C | D21: 01C15 | E21: 01C151 | F21: -0.04355491662 | G21: 0.03761248581 | J21: -0.2232091764 | K21: -0.005068668211 | L21: -0.3017951805 | M21: -0.08100685444 | N21: 0.03652383471 | O21: 804.086622 | P21: 173.066193 | Q21: 0 | R21: 0 | S21: 0 | T21: 102.389026 | U21: 156.3989429 | V21: 32.90170311 | W21: 84.35097555 | X21: 254.9797813 | Y21: 840.7033879 | Z21: 166.7927048 | AA21: 0 | AB21: 0 | AC21: 131.810293 | AD21: 157.1957158 | AE21: 47.12328272 | AF21: 91.78629456 | AG21: 245.9950971
A22: 0101C01C1501C15J | B22: 01 | C22: 01C | D22: 01C15 | E22: 01C15J | F22: 0.06054272293 | G22: 0.1215832312 | J22: 0.1480650494 | K22: 0.08487352671 | L22: -0.1498347702 | M22: 0.1410133738 | N22: 0.001899082243 | O22: 600.6077244 | P22: 73.12448281 | Q22: 0 | R22: 0 | S22: 0 | T22: 87.59796949 | U22: 140.1722405 | V22: 26.86336164 | W22: 68.31542942 | X22: 204.5342405 | Y22: 566.3211028 | Z22: 65.19755358 | AA22: 0 | AB22: 0 | AC22: 76.30052804 | AD22: 129.206066 | AE22: 31.59781264 | AF22: 59.87259307 | AG22: 204.1465494
A23: 0101C01C15TOTAL | B23: 01 | C23: 01C | D23: 01C15 | F23: 0.05123967106 | G23: 0.106695691 | J23: 0.1134419568 | K23: 0.078545738 | L23: -0.1625580406 | M23: 0.1219995535 | N23: 0.003497139128 | O23: 611.2924596 | P23: 78.37245063 | Q23: 0 | R23: 0 | S23: 0 | T23: 88.37465211 | U23: 141.0243093 | V23: 27.18043668 | W23: 69.15746054 | X23: 207.1831503 | Y23: 581.496757 | Z23: 70.81662219 | AA23: 0 | AB23: 0 | AC23: 79.37068616 | AD23: 130.7541297 | AE23: 32.45650206 | AF23: 61.63768989 | AG23: 206.461127
A24: 0101CTOTAL | B24: 01 | C24: 01C | F24: -0.001436823187 | G24: 0.06292819333 | H24: -0.1722826552 | I24: 0.2782237119 | J24: -0.07311523558 | K24: 0.09966295282 | L24: -0.1362060454 | M24: -0.1125416769 | N24: 0.04887527927 | O24: 1182.973874 | P24: 151.8697622 | Q24: 18.70343953 | R24: 8.606618629 | S24: 0.1838139434 | T24: 158.7169945 | U24: 206.6033096 | V24: 48.56565238 | W24: 201.1624235 | X24: 388.5618599 | Y24: 1184.676044 | Z24: 142.8786659 | AA24: 22.59640884 | AB24: 6.733264724 | AC24: 171.2370303 | AD24: 187.8787578 | AE24: 56.22365394 | AF24: 226.6725301 | AG24: 370.4557325
A25: 0101K01K0401K04J | B25: 01 | C25: 01K | D25: 01K04 | E25: 01K04J | F25: -0.06940752512 | G25: -0.1975092411 | J25: -0.06034454001 | K25: -0.08712838454 | L25: 0.1382019253 | M25: 0.05540420556 | N25: -0.0566313186 | O25: 288.0619475 | P25: 58.57587772 | Q25: 0 | R25: 0 | S25: 0 | T25: 15.10711138 | U25: 77.76722511 | V25: 7.027712036 | W25: 73.317587 | X25: 56.26643429 | Y25: 309.5468267 | Z25: 72.99258848 | AA25: 0 | AB25: 0 | AC25: 16.07728793 | AD25: 85.18966281 | AE25: 6.174398303 | AF25: 69.46872735 | AG25: 59.64416182
A26: 0101K01K04TOTAL | B26: 01 | C26: 01K | D26: 01K04 | F26: -0.06940752512 | G26: -0.1975092411 | J26: -0.06034454001 | K26: -0.08712838454 | L26: 0.1382019253 | M26: 0.05540420556 | N26: -0.0566313186 | O26: 288.0619475 | P26: 58.57587772 | Q26: 0 | R26: 0 | S26: 0 | T26: 15.10711138 | U26: 77.76722511 | V26: 7.027712036 | W26: 73.317587 | X26: 56.26643429 | Y26: 309.5468267 | Z26: 72.99258848 | AA26: 0 | AB26: 0 | AC26: 16.07728793 | AD26: 85.18966281 | AE26: 6.174398303 | AF26: 69.46872735 | AG26: 59.64416182
A27: 0101K01K0501K05J | B27: 01 | C27: 01K | D27: 01K05 | E27: 01K05J | F27: 0.10734632 | G27: 0.1723746514 | J27: 0.1345824533 | K27: 0.1119058384 | L27: 0.04618069966 | M27: -0.1992857266 | N27: 0.2184981292 | O27: 489.7363474 | P27: 151.6320888 | Q27: 0 | R27: 0 | S27: 0 | T27: 61.55820979 | U27: 168.941484 | V27: 19.63993138 | W27: 36.81604208 | X27: 51.14859134 | Y27: 442.2612316 | Z27: 129.3375702 | AA27: 0 | AB27: 0 | AC27: 54.25626812 | AD27: 151.9386608 | AE27: 18.77298194 | AF27: 45.97900064 | AG27: 41.97675
A28: 0101K01K05TOTAL | B28: 01 | C28: 01K | D28: 01K05 | F28: 0.10734632 | G28: 0.1723746514 | J28: 0.1345824533 | K28: 0.1119058384 | L28: 0.04618069966 | M28: -0.1992857266 | N28: 0.2184981292 | O28: 489.7363474 | P28: 151.6320888 | Q28: 0 | R28: 0 | S28: 0 | T28: 61.55820979 | U28: 168.941484 | V28: 19.63993138 | W28: 36.81604208 | X28: 51.14859134 | Y28: 442.2612316 | Z28: 129.3375702 | AA28: 0 | AB28: 0 | AC28: 54.25626812 | AD28: 151.9386608 | AE28: 18.77298194 | AF28: 45.97900064 | AG28: 41.97675
A29: 0101K01K0601K06J | B29: 01 | C29: 01K | D29: 01K06 | E29: 01K06J | F29: -0.04241538889 | G29: 0.0867533203 | J29: -0.05106136749 | K29: 0.1200420068 | L29: 0.1356426716 | M29: 0.1853209266 | N29: -0.166685859 | O29: 809.9787109 | P29: 77.75873395 | Q29: 0 | R29: 0 | S29: 0 | T29: 80.13161195 | U29: 145.6070175 | V29: 26.51577983 | W29: 110.7286251 | X29: 369.2369427 | Y29: 845.8560231 | Z29: 71.55141144 | AA29: 0 | AB29: 0 | AC29: 84.44340783 | AD29: 130.0013897 | AE29: 23.34869981 | AF29: 93.41657823 | AG29: 443.094536
A30: 0101K01K06TOTAL | B30: 01 | C30: 01K | D30: 01K06 | F30: -0.04241538889 | G30: 0.0867533203 | J30: -0.05106136749 | K30: 0.1200420068 | L30: 0.1356426716 | M30: 0.1853209266 | N30: -0.166685859 | O30: 809.9787109 | P30: 77.75873395 | Q30: 0 | R30: 0 | S30: 0 | T30: 80.13161195 | U30: 145.6070175 | V30: 26.51577983 | W30: 110.7286251 | X30: 369.2369427 | Y30: 845.8560231 | Z30: 71.55141144 | AA30: 0 | AB30: 0 | AC30: 84.44340783 | AD30: 130.0013897 | AE30: 23.34869981 | AF30: 93.41657823 | AG30: 443.094536
A31: 0101KTOTAL | B31: 01 | C31: 01K | F31: -0.08258703346 | G31: -0.03985631854 | J31: -0.07844439431 | K31: 0.01353439067 | L31: 0.08304583849 | M31: 0.05741812748 | N31: -0.2243839815 | O31: 454.4139803 | P31: 73.35587798 | Q31: 0 | R31: 0 | S31: 0 | T31: 37.99030188 | U31: 105.9629444 | V31: 13.75339934 | W31: 80.08561286 | X31: 143.2658438 | Y31: 495.3210788 | Z31: 76.40093811 | AA31: 0 | AB31: 0 | AC31: 41.22410156 | AD31: 104.5479516 | AE31: 12.69881555 | AF31: 75.73693961 | AG31: 184.7123324
A32: 0101M01M0801M081 | B32: 01 | C32: 01M | D32: 01M08 | E32: 01M081 | F32: 0.1840676897 | G32: -0.03016596473 | J32: -0.5122308926 | K32: 0.01989951606 | L32: 0.02923865362 | M32: 2.70415004 | N32: -0.2851181528 | O32: 2019.759517 | P32: 496.4088571 | Q32: 1.095144542 | R32: 0 | S32: 0 | T32: 21.30546801 | U32: 405.1339701 | V32: 24.79201471 | W32: 681.4353643 | X32: 389.5886978 | Y32: 1705.78045 | Z32: 511.8492846 | AA32: 0 | AB32: 0 | AC32: 43.67941242 | AD32: 397.2292993 | AE32: 24.08772214 | AF32: 183.9653785 | AG32: 544.9693531
A33: 0101M01M08TOTAL | B33: 01 | C33: 01M | D33: 01M08 | F33: 0.1840676897 | G33: -0.03016596473 | J33: -0.5122308926 | K33: 0.01989951606 | L33: 0.02923865362 | M33: 2.70415004 | N33: -0.2851181528 | O33: 2019.759517 | P33: 496.4088571 | Q33: 1.095144542 | R33: 0 | S33: 0 | T33: 21.30546801 | U33: 405.1339701 | V33: 24.79201471 | W33: 681.4353643 | X33: 389.5886978 | Y33: 1705.78045 | Z33: 511.8492846 | AA33: 0 | AB33: 0 | AC33: 43.67941242 | AD33: 397.2292993 | AE33: 24.08772214 | AF33: 183.9653785 | AG33: 544.9693531
A34: 0101M01M1101M111 | B34: 01 | C34: 01M | D34: 01M11 | E34: 01M111 | F34: 0.05479365198 | G34: 0.005551742852 | J34: 0.1084706377 | K34: 0.0105090648 | L34: 0.4309438481 | M34: 0.1180288062 | N34: -0.09647548513 | O34: 3241.32421 | P34: 481.2971121 | Q34: 0 | R34: 2.782536648 | S34: 0 | T34: 53.80307265 | U34: 392.0938741 | V34: 30.12106778 | W34: 1827.711697 | X34: 453.5148494 | Y34: 3072.946262 | Z34: 478.6398269 | AA34: 0 | AB34: 0 | AC34: 48.53811262 | AD34: 388.0161869 | AE34: 21.0497902 | AF34: 1634.762617 | AG34: 501.9397282
A35: 0101M01M1101M11T | B35: 01 | C35: 01M | D35: 01M11 | E35: 01M11T | F35: -0.09048092497 | G35: -0.1520086508 | J35: -0.0588800994 | K35: -0.05232217801 | L35: -0.1403748296 | M35: 0.04308470444 | N35: -0.1153983616 | O35: 507.5174519 | P35: 101.1008833 | Q35: 0.7142265036 | R35: 0 | S35: 0 | T35: 49.97333558 | U35: 100.0553367 | V35: 13.43118333 | W35: 54.52438721 | X35: 187.7180993 | Y35: 558.0063858 | Z35: 119.223956 | AA35: 0 | AB35: 0 | AC35: 53.09986066 | AD35: 105.5794853 | AE35: 15.62446493 | AF35: 52.27225265 | AG35: 212.2063663
A36: 0101M01M11TOTAL | B36: 01 | C36: 01M | D36: 01M11 | F36: -0.03294972062 | G36: -0.08351103944 | J36: 0.005045443412 | K36: -0.05170576898 | L36: 0.1090485362 | M36: 0.02931315824 | N36: -0.1309637544 | O36: 1558.932062 | P36: 247.3233142 | Q36: 0.4395369416 | R36: 1.070155993 | S36: 0 | T36: 51.446242 | U36: 212.3725603 | V36: 19.85006729 | W36: 736.4873823 | X36: 289.9428032 | Y36: 1612.048614 | Z36: 269.8595672 | AA36: 0 | AB36: 0 | AC36: 51.18797596 | AD36: 223.95218 | AE36: 17.89828546 | AF36: 715.5134241 | AG36: 333.6371811
A37: 0101M01M1501M15T | B37: 01 | C37: 01M | D37: 01M15 | E37: 01M15T | F37: -0.1185986504 | G37: -0.08840925356 | J37: -0.5135609 | K37: 0.01314575705 | L37: -0.02825408228 | M37: -0.1906612123 | N37: -0.08043424132 | O37: 1117.540749 | P37: 209.1445818 | Q37: 12.36841313 | R37: 0 | S37: 0 | T37: 50.16895759 | U37: 184.7558951 | V37: 18.74813333 | W37: 99.42360458 | X37: 542.9311639 | Y37: 1267.91359 | Z37: 229.4281536 | AA37: 0 | AB37: 20.43169198 | AC37: 103.1351254 | AD37: 182.3586525 | AE37: 19.2932463 | AF37: 122.845471 | AG37: 590.4212491
A38: 0101M01M15TOTAL | B38: 01 | C38: 01M | D38: 01M15 | F38: -0.1185986504 | G38: -0.08840925356 | J38: -0.5135609 | K38: 0.01314575705 | L38: -0.02825408228 | M38: -0.1906612123 | N38: -0.08043424132 | O38: 1117.540749 | P38: 209.1445818 | Q38: 12.36841313 | R38: 0 | S38: 0 | T38: 50.16895759 | U38: 184.7558951 | V38: 18.74813333 | W38: 99.42360458 | X38: 542.9311639 | Y38: 1267.91359 | Z38: 229.4281536 | AA38: 0 | AB38: 20.43169198 | AC38: 103.1351254 | AD38: 182.3586525 | AE38: 19.2932463 | AF38: 122.845471 | AG38: 590.4212491
A39: 0101M01M1601M16T | B39: 01 | C39: 01M | D39: 01M16 | E39: 01M16T | F39: -0.2500315155 | G39: 0.03397132309 | J39: -0.7046098428 | K39: -0.05457308835 | L39: -0.2614913762 | M39: -0.3772016346 | N39: -0.2828062541 | O39: 1007.205854 | P39: 198.7574217 | Q39: 13.47515718 | R39: 0 | S39: 0 | T39: 38.95711202 | U39: 176.7748092 | V39: 14.83670511 | W39: 99.81771659 | X39: 464.5869327 | Y39: 1342.997573 | Z39: 192.2272091 | AA39: 0 | AB39: 3.76052683 | AC39: 131.883582 | AD39: 186.9788209 | AE39: 20.09009053 | AF39: 160.2729264 | AG39: 647.7844171
A40: 0101M01M16TOTAL | B40: 01 | C40: 01M | D40: 01M16 | F40: -0.398475471 | G40: -0.4546461728 | H40: 0.1242048612 | J40: -0.6156205401 | K40: -0.3941145407 | L40: -0.4218308295 | M40: -0.4014465828 | N40: -0.345703403 | O40: 1007.205854 | P40: 198.7574217 | Q40: 13.47515718 | R40: 0 | S40: 0 | T40: 38.95711202 | U40: 176.7748092 | V40: 14.83670511 | W40: 99.81771659 | X40: 464.5869327 | Y40: 1674.421916 | Z40: 364.4559033 | AA40: 11.98638935 | AB40: 2.384201303 | AC40: 101.3506602 | AD40: 291.7627523 | AE40: 25.6615293 | AF40: 166.7649264 | AG40: 710.0555541
A41: 0101M01M1701M171 | B41: 01 | C41: 01M | D41: 01M17 | E41: 01M171 | F41: -0.06111136321 | G41: 0.002536214329 | J41: -0.2704045084 | K41: -0.001497274214 | L41: 0.5873691057 | M41: -0.7305983961 | N41: 0.1029986191 | O41: 1024.162611 | P41: 338.9226843 | Q41: 0 | R41: 0 | S41: 0 | T41: 6.1796344 | U41: 285.3681712 | V41: 13.68863278 | W41: 37.5541401 | X41: 342.4493479 | Y41: 1090.824375 | Z41: 338.0652783 | AA41: 0 | AB41: 0 | AC41: 8.469945978 | AD41: 285.7960863 | AE41: 8.623471837 | AF41: 139.3983538 | AG41: 310.471239
A42: 0101M01M17TOTAL | B42: 01 | C42: 01M | D42: 01M17 | F42: -0.06111136321 | G42: 0.002536214329 | J42: -0.2704045084 | K42: -0.001497274214 | L42: 0.5873691057 | M42: -0.7305983961 | N42: 0.1029986191 | O42: 1024.162611 | P42: 338.9226843 | Q42: 0 | R42: 0 | S42: 0 | T42: 6.1796344 | U42: 285.3681712 | V42: 13.68863278 | W42: 37.5541401 | X42: 342.4493479 | Y42: 1090.824375 | Z42: 338.0652783 | AA42: 0 | AB42: 0 | AC42: 8.469945978 | AD42: 285.7960863 | AE42: 8.623471837 | AF42: 139.3983538 | AG42: 310.471239
A43: 0101M01M2001M201 | B43: 01 | C43: 01M | D43: 01M20 | E43: 01M201 | F43: NC | G43: NC | H43: NC | I43: NC | J43: NC | K43: NC | L43: NC | M43: NC | N43: NC | O43: 507.1067022 | P43: 166.3009625 | Q43: 5.161237046 | R43: 0 | S43: 0 | T43: 45.48997348 | U43: 130.7343383 | V43: 7.727844567 | W43: 19.85613073 | X43: 131.8362156
A44: 0101M01M20TOTAL | B44: 01 | C44: 01M | D44: 01M20 | F44: NC | G44: NC | H44: NC | I44: NC | J44: NC | K44: NC | L44: NC | M44: NC | N44: NC | O44: 507.1067022 | P44: 166.3009625 | Q44: 5.161237046 | R44: 0 | S44: 0 | T44: 45.48997348 | U44: 130.7343383 | V44: 7.727844567 | W44: 19.85613073 | X44: 131.8362156
A45: 0101M01M2101M211 | B45: 01 | C45: 01M | D45: 01M21 | E45: 01M211 | F45: 0.03909525733 | G45: -0.2208390277 | H45: 0.09312954978 | J45: 0.591905929 | K45: 0.01159531465 | L45: 0.01224563372 | M45: -0.2071538757 | N45: 0.4075763665 | O45: 1479.224071 | P45: 281.3698024 | Q45: 306.7664525 | R45: 0 | S45: 0 | T45: 38.16798321 | U45: 379.5396515 | V45: 18.73240408 | W45: 74.699317 | X45: 379.9484605 | Y45: 1423.569265 | Z45: 361.1189631 | AA45: 280.6313785 | AB45: 0 | AC45: 23.97628058 | AD45: 375.1892145 | AE45: 18.50578896 | AF45: 94.21666413 | AG45: 269.9309747
A46: 0101M01M2101M21T | B46: 01 | C46: 01M | D46: 01M21 | E46: 01M21T | F46: 0.01478173244 | G46: -0.01358755086 | J46: -0.05906260541 | K46: 0.2330635076 | L46: -0.1391957987 | M46: -0.1950389236 | N46: -0.1036900905 | O46: 546.3376807 | P46: 106.6841902 | Q46: 0 | R46: 0 | S46: 0 | T46: 74.92380195 | U46: 211.7062404 | V46: 24.2194757 | W46: 55.81784132 | X46: 72.98613116 | Y46: 538.379499 | Z46: 108.1537346 | AA46: 0 | AB46: 0 | AC46: 79.62676622 | AD46: 171.6912706 | AE46: 28.13587069 | AF46: 69.34228618 | AG46: 81.42957072
A47: 0101M01M21TOTAL | B47: 01 | C47: 01M | D47: 01M21 | F47: 0.01399567685 | G47: -0.1883653575 | H47: 0.05077580519 | J47: 0.1081047958 | K47: 0.06811680371 | L47: -0.07369870757 | M47: -0.2065961492 | N47: 0.2570416456 | O47: 999.5969281 | P47: 191.5582648 | Q47: 149.047872 | R47: 0 | S47: 0 | T47: 57.06534147 | U47: 293.2510527 | V47: 21.55348552 | W47: 64.9917381 | X47: 222.1291734 | Y47: 985.79999 | Z47: 236.0153877 | AA47: 141.84555 | AB47: 0 | AC47: 51.49814502 | AD47: 274.5496107 | AE47: 23.26833148 | AF47: 81.91507772 | AG47: 176.7078873
A48: 0101M01M2201M221 | B48: 01 | C48: 01M | D48: 01M22 | E48: 01M221 | F48: -0.06143843567 | G48: -0.09990443574 | H48: -0.328999386 | J48: -0.05497944834 | K48: -0.04828169074 | L48: -0.07818229488 | M48: -0.005553645957 | N48: -0.02204196708 | O48: 868.7934043 | P48: 286.2426836 | Q48: 10.27015183 | R48: 0 | S48: 0 | T48: 33.77599492 | U48: 212.7187517 | V48: 12.5458414 | W48: 48.11339348 | X48: 265.1265874 | Y48: 925.6648017 | Z48: 318.0136588 | AA48: 15.30572642 | AB48: 0 | AC48: 35.74101628 | AD48: 223.5102021 | AE48: 13.60989416 | AF48: 48.38209048 | AG48: 271.1022135
A49: 0101M01M2201M22T | B49: 01 | C49: 01M | D49: 01M22 | E49: 01M22T | F49: 0.0300553125 | G49: 0.2005611257 | J49: 0.2355517806 | K49: 0.08638520354 | L49: 0.05659106581 | M49: -0.3345123094 | N49: -0.1852383402 | O49: 416.1762241 | P49: 170.2130778 | Q49: 0 | R49: 0 | S49: 0 | T49: 26.70416412 | U49: 114.9826639 | V49: 7.383129556 | W49: 17.19229083 | X49: 79.70089795 | Y49: 404.0328894 | Z49: 141.7779354 | AA49: 4.159192368 | AB49: 0 | AC49: 21.61314851 | AD49: 105.8396815 | AE49: 6.987688799 | AF49: 25.83412296 | AG49: 97.82111982
A50: 0101M01M22TOTAL | B50: 01 | C50: 01M | D50: 01M22 | F50: -0.04201145262 | G50: -0.01936569519 | H50: -0.4684748306 | J50: 0.04412276109 | K50: -0.01380529784 | L50: -0.04055277094 | M50: -0.1186450284 | N50: -0.0704966483 | O50: 652.0815548 | P50: 230.6880304 | Q50: 5.352831639 | R50: 0 | S50: 0 | T50: 30.39002197 | U50: 165.9229841 | V50: 10.0739493 | W50: 33.30845536 | X50: 176.345282 | Y50: 680.6778187 | Z50: 235.243688 | AA50: 10.0707021 | AB50: 0 | AC50: 29.10579397 | AD50: 168.2456657 | AE50: 10.49974297 | AF50: 37.79232708 | AG50: 189.719899
A51: 0101M01M2501M25T | B51: 01 | C51: 01M | D51: 01M25 | E51: 01M25T | F51: -0.007378492799 | G51: -0.2587430519 | J51: 0.3081887975 | K51: 0.01465139985 | L51: -0.224050837 | M51: -0.5655108521 | N51: 0.4175869776 | O51: 619.534333 | P51: 170.035886 | Q51: 11.33780562 | R51: 0 | S51: 0 | T51: 43.43073444 | U51: 114.1710481 | V51: 8.537571936 | W51: 28.90509275 | X51: 243.1161942 | Y51: 624.1395421 | Z51: 229.3885898 | AA51: 0 | AB51: 0 | AC51: 33.19913343 | AD51: 112.5224369 | AE51: 11.0027465 | AF51: 66.52661613 | AG51: 171.5000195
A52: 0101M01M25TOTAL | B52: 01 | C52: 01M | D52: 01M25 | F52: -0.007378492799 | G52: -0.2587430519 | J52: 0.3081887975 | K52: 0.01465139985 | L52: -0.224050837 | M52: -0.5655108521 | N52: 0.4175869776 | O52: 619.534333 | P52: 170.035886 | Q52: 11.33780562 | R52: 0 | S52: 0 | T52: 43.43073444 | U52: 114.1710481 | V52: 8.537571936 | W52: 28.90509275 | X52: 243.1161942 | Y52: 624.1395421 | Z52: 229.3885898 | AA52: 0 | AB52: 0 | AC52: 33.19913343 | AD52: 112.5224369 | AE52: 11.0027465 | AF52: 66.52661613 | AG52: 171.5000195
A53: 0101M01M3001M301 | B53: 01 | C53: 01M | D53: 01M30 | E53: 01M301 | F53: 0.002840006169 | G53: 0.02737591691 | I53: 1.238513246 | J53: 0.05231695976 | K53: 0.003583645941 | L53: -0.08141504519 | M53: 0.03326508866 | N53: -0.03970246181 | O53: 2633.28791 | P53: 931.2351522 | Q53: 2.892235571 | R53: 13.88385747 | S53: 0 | T53: 48.2954697 | U53: 697.5810832 | V53: 24.51592612 | W53: 97.57116041 | X53: 817.3130255 | Y53: 2625.830535 | Z53: 906.421045 | AA53: 0 | AB53: 6.202267286 | AC53: 45.89441351 | AD53: 695.0901263 | AE53: 26.68879562 | AF53: 94.42994008 | AG53: 851.1039475
A54: 0101M01M3001M302 | B54: 01 | C54: 01M | D54: 01M30 | E54: 01M302 | F54: 0.1024180938 | G54: 0.04933797345 | H54: -0.8877488955 | I54: 1.38893112 | J54: -0.08664487863 | K54: 0.07214311781 | L54: -0.1343413419 | M54: 0.1217657811 | N54: 0.2697619045 | O54: 3862.862893 | P54: 1365.337849 | Q54: 6.561511198 | R54: 44.8333108 | S54: 0 | T54: 50.97236747 | U54: 1059.821227 | V54: 35.47380797 | W54: 160.0321532 | X54: 1139.830667 | Y54: 3503.990832 | Z54: 1301.142133 | AA54: 58.45386755 | AB54: 18.76710066 | AC54: 55.80783014 | AD54: 988.5072333 | AE54: 40.97897899 | AF54: 142.6609332 | AG54: 897.6727547
A55: 0101M01M30TOTAL | B55: 01 | C55: 01M | D55: 01M30 | F55: 0.04112460925 | G55: 0.02619513252 | H55: -0.8304335957 | I55: 1.260406648 | J55: -0.01791144455 | K55: 0.02593949621 | L55: -0.1212649842 | M55: 0.0643335714 | N55: 0.08999047632 | O55: 3140.108368 | P55: 1110.16863 | Q55: 4.404680096 | R55: 26.6409616 | S55: 0 | T55: 49.39886443 | U55: 846.8934212 | V55: 29.03267277 | W55: 123.3170558 | X55: 950.2520822 | Y55: 3016.073523 | Z55: 1081.829951 | AA55: 25.97613669 | AB55: 11.78591543 | AC55: 50.29980662 | AD55: 825.4808635 | AE55: 33.03916681 | AF55: 115.8631646 | AG55: 871.7985183
A56: 0101M01M3401M34Z | B56: 01 | C56: 01M | D56: 01M34 | E56: 01M34Z | F56: 0.06208771622 | G56: 0.0428568503 | J56: 0.1503296937 | K56: 0.01230107864 | L56: -0.02892065102 | M56: 1.014709114 | N56: -0.01085763536 | O56: 2835.948 | P56: 1094.55311 | Q56: 0 | R56: 0 | S56: 0 | T56: 35.18418047 | U56: 798.9334102 | V56: 28.54965693 | W56: 227.3346206 | X56: 651.3930221 | Y56: 2670.163638 | Z56: 1049.57177 | AA56: 0 | AB56: 0 | AC56: 30.58617078 | AD56: 789.2250903 | AE56: 29.3999218 | AF56: 112.8374409 | AG56: 658.5432445
A57: 0101M01M34TOTAL | B57: 01 | C57: 01M | D57: 01M34 | F57: 0.06208771622 | G57: 0.0428568503 | J57: 0.1503296937 | K57: 0.01230107864 | L57: -0.02892065102 | M57: 1.014709114 | N57: -0.01085763536 | O57: 2835.948 | P57: 1094.55311 | Q57: 0 | R57: 0 | S57: 0 | T57: 35.18418047 | U57: 798.9334102 | V57: 28.54965693 | W57: 227.3346206 | X57: 651.3930221 | Y57: 2670.163638 | Z57: 1049.57177 | AA57: 0 | AB57: 0 | AC57: 30.58617078 | AD57: 789.2250903 | AE57: 29.3999218 | AF57: 112.8374409 | AG57: 658.5432445
A58: 0101M01M3501M35T | B58: 01 | C58: 01M | D58: 01M35 | E58: 01M35T | F58: NC | G58: NC | H58: NC | I58: NC | J58: NC | K58: NC | L58: NC | M58: NC | N58: NC | O58: 571.3506501 | P58: 163.8846469 | Q58: 0 | R58: 0 | S58: 0 | T58: 32.90928316 | U58: 106.442511 | V58: 7.804526429 | W58: 21.97115078 | X58: 238.3385318
A59: 0101M01M35TOTAL | B59: 01 | C59: 01M | D59: 01M35 | F59: NC | G59: NC | H59: NC | I59: NC | J59: NC | K59: NC | L59: NC | M59: NC | N59: NC | O59: 571.3506501 | P59: 163.8846469 | Q59: 0 | R59: 0 | S59: 0 | T59: 32.90928316 | U59: 106.442511 | V59: 7.804526429 | W59: 21.97115078 | X59: 238.3385318
A60: 0101MTOTAL | B60: 01 | C60: 01M | F60: -0.06535594954 | G60: -0.1012391423 | H60: -0.003479738717 | I60: 0.5569254822 | J60: -0.08206398861 | K60: -0.03842367923 | L60: -0.1034873215 | M60: -0.02524914311 | N60: -0.08133657005 | O60: 1360.907175 | P60: 359.8455651 | Q60: 51.67226812 | R60: 2.568875241 | S60: 0 | T60: 46.32707047 | U60: 325.8845077 | V60: 19.19910699 | W60: 210.5465807 | X60: 344.8632003 | Y60: 1456.070013 | Z60: 400.3796583 | AA60: 51.85270197 | AB60: 1.649966727 | AC60: 50.46873627 | AD60: 338.9065441 | AE60: 21.41532122 | AF60: 216.0004058 | AG60: 375.3966785
A61: 01TOTAL | B61: 01 | F61: -0.01746460321 | G61: 0.01899103327 | H61: -0.1243391664 | I61: 0.2643351258 | J61: -0.08814332812 | K61: 0.06900068836 | L61: -0.1443285895 | M61: -0.1043868715 | N61: 0.01847441902 | O61: 1170.764934 | P61: 176.2088435 | Q61: 22.24922005 | R61: 7.356345249 | S61: 0.1496564019 | T61: 137.4155742 | U61: 217.7852278 | V61: 42.83658443 | W61: 196.3905361 | X61: 370.3729465 | Y61: 1191.575324 | Z61: 172.9248224 | AA61: 25.40849059 | AB61: 5.818350767 | AC61: 150.6986552 | AD61: 203.7278649 | AE61: 50.06195591 | AF61: 219.2805463 | AG61: 363.6546383
A62: 0202C02C0202C021 | B62: 02 | C62: 02C | D62: 02C02 | E62: 02C021 | F62: 0.03592276491 | G62: 0.05155689437 | H62: -0.5989524636 | I62: 0.2913533367 | J62: 0.05326170519 | K62: -0.05363567883 | L62: -0.2695019738 | M62: 0.1507360699 | N62: 0.05318349076 | O62: 1921.850745 | P62: 228.6208105 | Q62: 0.1673567703 | R62: 0.5072036369 | S62: 0 | T62: 375.0607648 | U62: 155.9938416 | V62: 105.8041647 | W62: 387.2285189 | X62: 668.4680845 | Y62: 1855.206595 | Z62: 217.4117366 | AA62: 0.4172990858 | AB62: 0.3927690606 | AC62: 356.0945613 | AD62: 164.8348718 | AE62: 144.8383992 | AF62: 336.5050676 | AG62: 634.7118905
A63: 0202C02C0202C02J | B63: 02 | C63: 02C | D63: 02C02 | E63: 02C02J | F63: 0.05581050658 | G63: 0.03420360757 | J63: 0.03588484052 | K63: 0.00874676883 | L63: -0.2025381603 | M63: 0.04461476873 | N63: 0.1593725898 | O63: 1505.40578 | P63: 66.37686796 | Q63: 0 | R63: 0 | S63: 0 | T63: 274.8483885 | U63: 265.1683768 | V63: 83.65113944 | W63: 266.7617735 | X63: 548.5992339 | Y63: 1425.829513 | Z63: 64.18162485 | AA63: 0 | AB63: 0 | AC63: 265.3271655 | AD63: 262.8691214 | AE63: 104.8967302 | AF63: 255.368564 | AG63: 473.1863067
A64: 0202C02C02TOTAL | B64: 02 | C64: 02C | D64: 02C02 | F64: 0.02800536254 | G64: 0.01846869938 | H64: -0.6169890012 | I64: 0.2332765728 | J64: 0.04027204982 | K64: -0.01929134787 | L64: -0.2713048248 | M64: 0.1281730476 | N64: 0.05278841953 | O64: 1866.336251 | P64: 206.9927655 | Q64: 0.1450471561 | R64: 0.4395904926 | S64: 0 | T64: 361.7018822 | U64: 170.5474312 | V64: 102.8510398 | W64: 371.1696131 | X64: 652.4888814 | Y64: 1815.492719 | Z64: 203.2392018 | AA64: 0.378702326 | AB64: 0.3564411279 | AC64: 347.6993179 | AD64: 173.9022398 | AE64: 141.1441208 | AF64: 329.0006031 | AG64: 619.7720922
A65: 0202C02C0502C051 | B65: 02 | C65: 02C | D65: 02C05 | E65: 02C051 | F65: 0.0331966467 | G65: 0.00864924567 | J65: 0.0129626034 | K65: 0.002357970869 | L65: -0.3238447445 | M65: 0.1114131618 | N65: 0.0596515221 | O65: 1226.501162 | P65: 156.8797906 | Q65: 0 | R65: 0 | S65: 0 | T65: 148.7575785 | U65: 140.9597971 | V65: 39.83049427 | W65: 306.4233856 | X65: 433.6501156 | Y65: 1187.093634 | Z65: 155.5345342 | AA65: 0.1835934097 | AB65: 0.04149860774 | AC65: 146.8539688 | AD65: 140.6281999 | AE65: 58.9073204 | AF65: 275.7060975 | AG65: 409.2384209
A66: 0202C02C0502C05J | B66: 02 | C66: 02C | D66: 02C05 | E66: 02C05J | F66: 0.03948372566 | G66: 0.006615416034 | J66: 0.02045998225 | K66: 0.0360391119 | L66: -0.3473696826 | M66: 0.1615188825 | N66: 0.02331089441 | O66: 1147.079467 | P66: 66.10413521 | Q66: 0.05388084316 | R66: 0 | S66: 0 | T66: 138.5972981 | U66: 173.1981663 | V66: 35.86640413 | W66: 315.3243535 | X66: 417.9352289 | Y66: 1103.508827 | Z66: 65.6697028 | AA66: 0 | AB66: 0 | AC66: 135.8184549 | AD66: 167.1733859 | AE66: 54.95669321 | AF66: 271.4758738 | AG66: 408.4147165
A67: 0202C02C05TOTAL | B67: 02 | C67: 02C | D67: 02C05 | F67: 0.03704749812 | G67: -0.01535289207 | H67: 0.6505005437 | J67: 0.01776615684 | K67: 0.03547731154 | L67: -0.3449409996 | M67: 0.1543503444 | N67: 0.02815447636 | O67: 1157.736015 | P67: 78.28412112 | Q67: 0.04665128467 | R67: 0 | S67: 0 | T67: 139.9605719 | U67: 168.8725254 | V67: 36.39829302 | W67: 314.1300502 | X67: 420.0438019 | Y67: 1116.377039 | Z67: 79.50474895 | AA67: 0.02826493141 | AB67: 0.006388874762 | AC67: 137.5174159 | AD67: 163.0866496 | AE67: 55.56490789 | AF67: 272.1271334 | AG67: 408.5415291
A68: 0202C02C0702C07J | B68: 02 | C68: 02C | D68: 02C07 | E68: 02C07J | F68: =O68/Y68-1 -> 0.07305775958 | G68: =P68/Z68-1 -> 0.03988085252 | J68: =T68/AC68-1 -> 0.01546498998 | K68: =U68/AD68-1 -> 0.06082257645 | L68: =V68/AE68-1 -> -0.4243417604 | M68: =W68/AF68-1 -> 0.4615701056 | N68: =X68/AG68-1 -> 0.08569370806 | O68: 457.4061214 | P68: 70.37572695 | Q68: 0 | R68: 0 | S68: 0 | T68: 55.56685387 | U68: 111.9598559 | V68: 15.22377747 | W68: 68.71020122 | X68: 135.569706 | Y68: 426.264213 | Z68: 67.67672159 | AA68: 0 | AB68: 0 | AC68: 54.72060034 | AD68: 105.5406044 | AE68: 26.44586044 | AF68: 47.01122509 | AG68: 124.8692011
A69: 0202C02C07TOTAL | B69: 02 | C69: 02C | D69: 02C07 | F69: 0.07305775958 | G69: 0.03988085252 | J69: 0.01546498998 | K69: 0.06082257645 | L69: -0.4243417604 | M69: 0.4615701056 | N69: 0.08569370806 | O69: 457.4061214 | P69: 70.37572695 | Q69: 0 | R69: 0 | S69: 0 | T69: 55.56685387 | U69: 111.9598559 | V69: 15.22377747 | W69: 68.71020122 | X69: 135.569706 | Y69: 426.264213 | Z69: 67.67672159 | AA69: 0 | AB69: 0 | AC69: 54.72060034 | AD69: 105.5406044 | AE69: 26.44586044 | AF69: 47.01122509 | AG69: 124.8692011
A70: 0202C02C0802C081 | B70: 02 | C70: 02C | D70: 02C08 | E70: 02C081 | F70: -0.01724906305 | G70: 0.06333536763 | H70: =Q70/AA70-1 -> -0.2581560332 | J70: -0.1056076797 | K70: -0.008536403354 | L70: -0.286670796 | M70: -0.02393473399 | N70: 0.03908016994 | O70: 1075.066363 | P70: 184.0980385 | Q70: 0.8446286245 | R70: 0 | S70: 0 | T70: 164.8700753 | U70: 156.5818875 | V70: 45.36303125 | W70: 163.7915771 | X70: 359.5171242 | Y70: 1093.935729 | Z70: 173.1326204 | AA70: 1.138552933 | AB70: 0 | AC70: 184.3375346 | AD70: 157.9300421 | AE70: 63.59340259 | AF70: 167.8080174 | AG70: 345.995559
A71: 0202C02C0802C08J | B71: 02 | C71: 02C | D71: 02C08 | E71: 02C08J | F71: -0.02444825121 | G71: 0.04456012568 | J71: -0.06741590614 | K71: -0.0517901912 | L71: -0.348871087 | M71: 0.07339518881 | N71: 0.03210077232 | O71: 729.2189371 | P71: 69.94622229 | Q71: 0 | R71: 0 | S71: 0 | T71: 115.0548094 | U71: 158.1137415 | V71: 35.76055788 | W71: 106.192596 | X71: 244.1510101 | Y71: 747.4938546 | Z71: 66.96237064 | AA71: 0 | AB71: 0 | AC71: 123.3720478 | AD71: 166.7497426 | AE71: 54.92085694 | AF71: 98.93149984 | AG71: 236.5573368
A72: 0202C02C08TOTAL | B72: 02 | C72: 02C | D72: 02C08 | F72: -0.02915701205 | G72: 0.03171012253 | H72: -0.3155619173 | J72: -0.08377963039 | K72: -0.04319640964 | L72: -0.337312336 | M72: 0.03586103742 | N72: 0.0269694748 | O72: 794.3044292 | P72: 91.42860611 | Q72: 0.1589517967 | R72: 0 | S72: 0 | T72: 124.4296113 | U72: 157.8254599 | V72: 37.56766026 | W72: 117.0322257 | X72: 265.8619142 | Y72: 818.1595161 | Z72: 88.61850253 | AA72: 0.2322369266 | AB72: 0 | AC72: 135.8075147 | AD72: 164.9507396 | AE72: 56.68984395 | AF72: 112.9806233 | AG72: 258.8800551
A73: 0202C02C0902C091 | B73: 02 | C73: 02C | D73: 02C09 | E73: 02C091 | F73: -0.4378587418 | G73: 0.2052545361 | J73: -0.08680117775 | K73: -0.04233459929 | L73: -0.1406094476 | M73: -0.8428538886 | N73: 0.02074553225 | O73: 1426.141882 | P73: 329.7204441 | Q73: 0 | R73: 0 | S73: 0 | T73: 144.6313689 | U73: 179.6958544 | V73: 52.02408709 | W73: 211.4410103 | X73: 508.6291176 | Y73: 2536.98134 | Z73: 273.5691377 | AA73: 13.06021488 | AB73: 0 | AC73: 158.3788386 | AD73: 187.6394974 | AE73: 60.53602398 | AF73: 1345.505838 | AG73: 498.2917892
A74: 0202C02C0902C09J | B74: 02 | C74: 02C | D74: 02C09 | E74: 02C09J | F74: NC | G74: NC | H74: NC | I74: NC | J74: NC | K74: NC | L74: NC | M74: NC | N74: NC | O74: 917.3443129 | P74: 71.39302656 | Q74: 0 | R74: 0 | S74: 0 | T74: 130.6177163 | U74: 159.5297572 | V74: 49.55457705 | W74: 142.5165736 | X74: 363.7326622
A75: 0202C02C09TOTAL | B75: 02 | C75: 02C | D75: 02C09 | F75: -0.5370072796 | G75: -0.2615789062 | J75: -0.1305445996 | K75: -0.0954665981 | L75: -0.1607771053 | M75: -0.8681786987 | N75: -0.1230126555 | O75: 1174.603892 | P75: 202.0092219 | Q75: 0 | R75: 0 | S75: 0 | T75: 137.7033365 | U75: 169.7261929 | V75: 50.80321728 | W75: 177.3663304 | X75: 436.995593 | Y75: 2536.98134 | Z75: 273.5691377 | AA75: 13.06021488 | AB75: 0 | AC75: 158.3788386 | AD75: 187.6394974 | AE75: 60.53602398 | AF75: 1345.505838 | AG75: 498.2917892
A76: 0202C02C1102C111 | B76: 02 | C76: 02C | D76: 02C11 | E76: 02C111 | F76: -0.01956177355 | G76: -0.03570451229 | J76: -0.1640519625 | K76: 0.04001183804 | L76: -0.6907980665 | M76: 1.0842547 | N76: -0.04114838037 | O76: 914.4399909 | P76: 171.9798485 | Q76: 0 | R76: 0 | S76: 0 | T76: 104.4265911 | U76: 153.2955118 | V76: 27.7288188 | W76: 149.6655081 | X76: 307.3437126 | Y76: 932.6849629 | Z76: 178.3476649 | AA76: 0 | AB76: 0 | AC76: 124.9199548 | AD76: 147.3978528 | AE76: 89.67867209 | AF76: 71.80768651 | AG76: 320.5331319
A77: 0202C02C1102C11J | B77: 02 | C77: 02C | D77: 02C11 | E77: 02C11J | F77: -0.07586403363 | G77: -0.07125568778 | J77: -0.129297944 | K77: 0.001664685175 | L77: -0.3047873334 | M77: -0.2012669423 | N77: 0.004167610637 | O77: 726.5881041 | P77: 66.31605382 | Q77: 0 | R77: 0 | S77: 0 | T77: 109.3332978 | U77: 157.9610846 | V77: 33.86330528 | W77: 98.50418859 | X77: 260.6101741 | Y77: 786.2350677 | Z77: 71.40399457 | AA77: 0 | AB77: 0 | AC77: 125.5691278 | AD77: 157.6985661 | AE77: 48.70927546 | AF77: 123.3255437 | AG77: 259.5285601
A78: 0202C02C11TOTAL | B78: 02 | C78: 02C | D78: 02C11 | F78: -0.05241710147 | G78: -0.02517201818 | J78: -0.1397318237 | K78: 0.01069582715 | L78: -0.4641009102 | M78: 0.03963003207 | N78: -0.005392747792 | O78: 782.5257126 | P78: 97.78009753 | Q78: 0 | R78: 0 | S78: 0 | T78: 107.8722028 | U78: 156.5717933 | V78: 32.03660815 | W78: 113.738754 | X78: 274.5262567 | Y78: 825.8124052 | Z78: 100.3049762 | AA78: 0 | AB78: 0 | AC78: 125.3936921 | AD78: 154.9148509 | AE78: 59.78104602 | AF78: 109.4031054 | AG78: 276.0147346
A79: 0202C02C1202C121 | B79: 02 | C79: 02C | D79: 02C12 | E79: 02C121 | F79: -0.06352163881 | G79: -0.08295515407 | J79: -0.1338653144 | K79: 0.08535829485 | L79: -0.4268648432 | M79: -0.09649838344 | N79: 0.009897983685 | O79: 1421.373037 | P79: 160.3620849 | Q79: 0 | R79: 0 | S79: 0 | T79: 202.2663023 | U79: 154.3885841 | V79: 49.42120726 | W79: 294.6463332 | X79: 560.2885255 | Y79: 1517.785243 | Z79: 174.8683127 | AA79: 0 | AB79: 0 | AC79: 233.5275399 | AD79: 142.2466524 | AE79: 86.22958594 | AF79: 326.1160001 | AG79: 554.7971523
A80: 0202C02C1202C12J | B80: 02 | C80: 02C | D80: 02C12 | E80: 02C12J | F80: -0.03876782946 | G80: -0.1232892651 | J80: -0.1211894081 | K80: -0.03351731498 | L80: -0.196817615 | M80: 0.01439480061 | N80: -0.008634212615 | O80: 1391.260968 | P80: 47.5414395 | Q80: 0 | R80: 0 | S80: 0 | T80: 204.5766221 | U80: 229.1765247 | V80: 53.50529559 | W80: 318.9501215 | X80: 537.5109649 | Y80: 1447.372457 | Z80: 54.22705302 | AA80: 0 | AB80: 0 | AC80: 232.7880706 | AD80: 237.1242943 | AE80: 66.61661982 | AF80: 314.42405 | AG80: 542.1923691
A81: 0202C02C12TOTAL | B81: 02 | C81: 02C | D81: 02C12 | F81: -0.04997339713 | G81: -0.1357613743 | J81: -0.126035015 | K81: 0.01552733239 | L81: -0.3038525506 | M81: -0.02928675084 | N81: -0.002468070054 | O81: 1402.504909 | P81: 89.66902291 | Q81: 0 | R81: 0 | S81: 0 | T81: 203.7139414 | U81: 201.2504727 | V81: 51.98028418 | W81: 309.8750106 | X81: 546.0161776 | Y81: 1476.279617 | Z81: 103.7549356 | AA81: 0 | AB81: 0 | AC81: 233.0916512 | AD81: 198.173369 | AE81: 74.66849763 | AF81: 319.2240457 | AG81: 547.367118
A82: 0202C02C1302C131 | B82: 02 | C82: 02C | D82: 02C13 | E82: 02C131 | F82: -0.02363281947 | G82: -0.04141982315 | J82: -0.1018629785 | K82: 0.01957474424 | L82: -0.321497941 | M82: 0.295520618 | N82: -0.03717376436 | O82: 943.6101778 | P82: 158.8447343 | Q82: 0 | R82: 0 | S82: 0 | T82: 145.8800176 | U82: 145.8890188 | V82: 36.55808936 | W82: 122.6498522 | X82: 333.7884655 | Y82: 966.450119 | Z82: 165.7083447 | AA82: 0 | AB82: 0 | AC82: 162.4251246 | AD82: 143.0881057 | AE82: 53.88058721 | AF82: 94.67225031 | AG82: 346.6757065
A83: 0202C02C1302C13J | B83: 02 | C83: 02C | D83: 02C13 | E83: 02C13J | F83: NC | G83: NC | H83: NC | I83: NC | J83: NC | K83: NC | L83: NC | M83: NC | N83: NC | O83: 830.9571667 | P83: 72.88282027 | Q83: 0 | R83: 0 | S83: 0 | T83: 119.7610441 | U83: 189.0026578 | V83: 26.36095642 | W83: 108.4817336 | X83: 314.4679545
A84: 0202C02C13TOTAL | B84: 02 | C84: 02C | D84: 02C13 | F84: -0.09244053317 | G84: -0.3476411719 | J84: -0.1967871169 | K84: 0.1974374577 | L84: -0.4332150088 | M84: 0.2071794267 | N84: -0.07007172412 | O84: 877.1109547 | P84: 108.1013015 | Q84: 0 | R84: 0 | S84: 0 | T84: 130.4619526 | U84: 171.3390575 | V84: 30.53870815 | W84: 114.2863929 | X84: 322.383542 | Y84: 966.450119 | Z84: 165.7083447 | AA84: 0 | AB84: 0 | AC84: 162.4251246 | AD84: 143.0881057 | AE84: 53.88058721 | AF84: 94.67225031 | AG84: 346.6757065
A85: 0202CTOTAL | B85: 02 | C85: 02C | F85: 0.02808296052 | G85: -0.01245097885 | H85: -0.3016070858 | I85: =R85/AB85-1 -> -0.1327412166 | J85: 0.006991503144 | K85: 0.02805576206 | L85: -0.3403568279 | M85: 0.1363045774 | N85: 0.02834327638 | O85: 1150.018792 | P85: 85.10089221 | Q85: 0.05578447679 | R85: 0.01679719906 | S85: 0 | T85: 146.7250969 | U85: 167.8916558 | V85: 38.92312846 | W85: 296.4646578 | X85: 414.8407788 | Y85: 1118.60505 | Z85: 86.17384088 | AA85: 0.0798754908 | AB85: 0.01936815098 | AC85: 145.7063902 | AD85: 163.3098729 | AE85: 59.00633874 | AF85: 260.9024585 | AG85: 403.4069054
A86: 0202M02M0802M081 | B86: 02 | C86: 02M | D86: 02M08 | E86: 02M081 | F86: -0.01790977876 | G86: 0.03055638649 | H86: 0.200465796 | J86: -0.2952930359 | K86: 0.1485471558 | L86: -0.2948429357 | M86: 0.07521997081 | N86: -0.1002273437 | O86: 939.4940528 | P86: 274.6803893 | Q86: 11.71917285 | R86: 0 | S86: 0 | T86: 54.80308155 | U86: 228.5434227 | V86: 23.0258015 | W86: 79.5193666 | X86: 267.2028183 | Y86: 956.6270313 | Z86: 266.536012 | AA86: 9.762188047 | AB86: 0 | AC86: 77.76719167 | AD86: 198.984797 | AE86: 32.65343662 | AF86: 73.95637057 | AG86: 296.9670355
A87: 0202M02M0802M08T | B87: 02 | C87: 02M | D87: 02M08 | E87: 02M08T | F87: 0.1204423201 | G87: -0.1469015041 | J87: 0.4037498157 | K87: 0.08471162591 | L87: 0.09779800558 | M87: 0.440438314 | N87: 0.1237947807 | O87: 526.0934433 | P87: 76.14514509 | Q87: 0 | R87: 0 | S87: 0 | T87: 67.92981076 | U87: 120.3295803 | V87: 22.3683019 | W87: 63.25618166 | X87: 176.0644236 | Y87: 469.5408535 | Z87: 89.25715548 | AA87: 0 | AB87: 0 | AC87: 48.3916792 | AD87: 110.9323229 | AE87: 20.37560807 | AF87: 43.91453701 | AG87: 156.6695509
A88: 0202M02M08TOTAL | B88: 02 | C88: 02M | D88: 02M08 | F88: 0.01948862801 | G88: -0.07958591386 | H88: 0.08171795559 | J88: 0.06367637875 | K88: 0.08999158392 | L88: -0.09860816399 | M88: 0.2430458235 | N88: -0.01346304891 | O88: 668.4116859 | P88: 144.4933439 | Q88: 4.03446934 | R88: 0 | S88: 0 | T88: 63.41077283 | U88: 157.583526 | V88: 22.59465423 | W88: 68.85498303 | X88: 207.4399366 | Y88: 655.6342735 | Z88: 156.9873235 | AA88: 3.729686948 | AB88: 0 | AC88: 59.61472314 | AD88: 144.5731585 | AE88: 25.06640655 | AF88: 55.39215186 | AG88: 210.2708229
A89: 0202MTOTAL | B89: 02 | C89: 02M | F89: 0.01948862801 | G89: -0.07958591386 | H89: 0.08171795559 | J89: 0.06367637875 | K89: 0.08999158392 | L89: -0.09860816399 | M89: 0.2430458235 | N89: -0.01346304891 | O89: 668.4116859 | P89: 144.4933439 | Q89: 4.03446934 | R89: 0 | S89: 0 | T89: 63.41077283 | U89: 157.583526 | V89: 22.59465423 | W89: 68.85498303 | X89: 207.4399366 | Y89: 655.6342735 | Z89: 156.9873235 | AA89: 3.729686948 | AB89: 0 | AC89: 59.61472314 | AD89: 144.5731585 | AE89: 25.06640655 | AF89: 55.39215186 | AG89: 210.2708229
A90: 02TOTAL | B90: 02 | F90: 0.02813141787 | G90: -0.01304878585 | H90: -0.2476948223 | I90: -0.1326025587 | J90: 0.007175915248 | K90: 0.0282856023 | L90: -0.3399002408 | M90: 0.1365350239 | N90: 0.02833782615 | O90: 1148.165858 | P90: 85.32939856 | Q90: 0.07109205738 | R90: 0.01673257357 | S90: 0 | T90: 146.4045536 | U90: 167.8519963 | V90: 38.86030634 | W90: 295.588953 | X90: 414.0428254 | Y90: 1116.750094 | Z90: 86.45756481 | AA90: 0.09449896064 | AB90: 0.01929054983 | AC90: 145.3614522 | AD90: 163.2348016 | AE90: 58.87035375 | AF90: 260.0790532 | AG90: 402.6330792
A91: 0303C03C0603C061 | B91: 03 | C91: 03C | D91: 03C06 | E91: 03C061 | F91: NC | G91: NC | H91: NC | I91: NC | J91: NC | K91: NC | L91: NC | M91: NC | N91: NC | O91: 1316.208662 | P91: 222.2468048 | Q91: 0 | R91: 0 | S91: 0 | T91: 169.1834423 | U91: 213.8331674 | V91: 47.54631594 | W91: 138.9027869 | X91: 524.4961448
A92: 0303C03C06TOTAL | B92: 03 | C92: 03C | D92: 03C06 | F92: NC | G92: NC | H92: NC | I92: NC | J92: NC | K92: NC | L92: NC | M92: NC | N92: NC | O92: 1316.208662 | P92: 222.2468048 | Q92: 0 | R92: 0 | S92: 0 | T92: 169.1834423 | U92: 213.8331674 | V92: 47.54631594 | W92: 138.9027869 | X92: 524.4961448
A93: 0303C03C0703C071 | B93: 03 | C93: 03C | D93: 03C07 | E93: 03C071 | F93: 0.01852858734 | G93: 0.01345889009 | H93: 0.2311514993 | J93: -0.01713138225 | K93: 0.00395114037 | L93: -0.0325349142 | M93: 0.03741468402 | N93: 0.04201625679 | O93: 1372.038896 | P93: 226.6191973 | Q93: 2.761356921 | R93: 0 | S93: 0 | T93: 179.3038267 | U93: 220.5017878 | V93: 48.63985777 | W93: 138.0042012 | X93: 556.2086678 | Y93: 1347.079417 | Z93: 223.6096595 | AA93: 2.242905867 | AB93: 2.079992865 | AC93: 182.4290891 | AD93: 219.6339831 | AE93: 50.2755691 | AF93: 133.0270367 | AG93: 533.7811807
A94: 0303C03C0703C072 | B94: 03 | C94: 03C | D94: 03C07 | E94: 03C072 | F94: 0.1232111511 | G94: 0.006038286122 | H94: 1.012866159 | J94: 0.1921696328 | K94: 0.1009772086 | L94: 0.0907026785 | M94: 0.5367121005 | N94: 0.0757842054 | O94: 2384.21987 | P94: 493.2085938 | Q94: 42.22446173 | R94: 0 | S94: 0 | T94: 223.0390291 | U94: 506.908636 | V94: 66.73928804 | W94: 269.7881884 | X94: 782.3116726 | Y94: 2122.681802 | Z94: 490.2483341 | AA94: 20.97728234 | AB94: 0 | AC94: 187.0866552 | AD94: 460.4170114 | AE94: 61.18925841 | AF94: 175.5619601 | AG94: 727.2013
A95: 0303C03C0703C07J | B95: 03 | C95: 03C | D95: 03C07 | E95: 03C07J | F95: 0.05768760737 | G95: 0.1075031238 | J95: 0.01532143438 | K95: 0.07876344852 | L95: 0.06289431931 | M95: 0.05597693093 | N95: 0.05052648327 | O95: 801.8989414 | P95: 84.04434656 | Q95: 0.6414558799 | R95: 0 | S95: 0 | T95: 108.1518902 | U95: 133.7365085 | V95: 26.6861206 | W95: 78.08038173 | X95: 370.5582379 | Y95: 758.1623683 | Z95: 75.88632912 | AA95: 0 | AB95: 0 | AC95: 106.5198533 | AD95: 123.9720428 | AE95: 25.10703098 | AF95: 73.94137073 | AG95: 352.7357414
A96: 0303C03C07TOTAL | B96: 03 | C96: 03C | D96: 03C07 | F96: 0.01043151802 | G96: -0.004766217498 | H96: 0.3774963031 | J96: -0.02317833718 | K96: 0.002213811598 | L96: -0.03389312018 | M96: 0.03346927113 | N96: 0.03095070248 | O96: 1228.316253 | P96: 190.8747264 | Q96: 2.746926244 | R96: 0 | S96: 0 | T96: 160.1648255 | U96: 200.5576917 | V96: 42.80164286 | W96: 123.2683679 | X96: 507.9020727 | Y96: 1215.635331 | Z96: 191.7888337 | AA96: 1.994144186 | AB96: 1.538832588 | AC96: 163.9652677 | AD96: 200.1146755 | AE96: 44.30321713 | AF96: 119.2762778 | AG96: 492.6540827
A97: 0303C03C0903C091 | B97: 03 | C97: 03C | D97: 03C09 | E97: 03C091 | F97: -0.01891412775 | G97: 0.02025853906 | I97: -0.4501491981 | J97: -0.1555261818 | K97: -0.02230409186 | L97: -0.09325992019 | M97: -0.00427096628 | N97: 0.03283052971 | O97: 1050.233788 | P97: 221.5129347 | Q97: 0 | R97: 0.475862351 | S97: 0 | T97: 130.9019109 | U97: 213.0796061 | V97: 37.61443946 | W97: 116.5944708 | X97: 330.0545637 | Y97: 1070.481002 | Z97: 217.1145119 | AA97: 1.409580408 | AB97: 0.8654390416 | AC97: 155.0100288 | AD97: 217.9405726 | AE97: 41.4831552 | AF97: 117.0945778 | AG97: 319.5631367
A98: 0303C03C0903C09J | B98: 03 | C98: 03C | D98: 03C09 | E98: 03C09J | F98: 0.08411892346 | G98: 0.05945703629 | J98: 0.1272567739 | K98: 0.09366208035 | L98: 0.2109949319 | M98: 0.03875503231 | N98: 0.07268336888 | O98: 817.1546589 | P98: 83.09965535 | Q98: 0 | R98: 0 | S98: 0 | T98: 126.7480882 | U98: 155.0712311 | V98: 31.70516463 | W98: 94.14362071 | X98: 326.3868989 | Y98: 753.7500188 | Z98: 78.43607858 | AA98: 0 | AB98: 0 | AC98: 112.4394114 | AD98: 141.7908089 | AE98: 26.1810878 | AF98: 90.63120541 | AG98: 304.2714266
A99: 0303C03C09TOTAL | B99: 03 | C99: 03C | D99: 03C09 | F99: -0.01064066158 | G99: 0.006358411814 | I99: -0.4657182738 | J99: -0.1178162241 | K99: -0.01459884308 | L99: -0.06024848731 | M99: -0.002748394326 | N99: 0.03936962084 | O99: 1003.343264 | P99: 193.6671504 | Q99: 0 | R99: 0.3801290482 | S99: 0 | T99: 130.0662508 | U99: 201.4095647 | V99: 36.42562005 | W99: 112.0778411 | X99: 329.3167082 | Y99: 1014.134324 | Z99: 192.4435153 | AA99: 1.158815003 | AB99: 0.7114767913 | AC99: 147.4366843 | AD99: 204.3934729 | AE99: 38.76090601 | AF99: 112.3867241 | AG99: 316.84273
A100: 0303C03C1003C101 | B100: 03 | C100: 03C | D100: 03C10 | E100: 03C101 | F100: 0.01567695719 | G100: 0.01854927185 | J100: -0.0692338528 | K100: 0.02531510225 | L100: -0.3061181597 | M100: 0.3049344521 | N100: 0.005309949751 | O100: 691.0524822 | P100: 171.6009549 | Q100: 0.4010128002 | R100: 0 | S100: 0 | T100: 58.87076637 | U100: 154.3528638 | V100: 18.35477921 | W100: 62.5555556 | X100: 224.9165496 | Y100: 680.3860985 | Z100: 168.4758506 | AA100: 0 | AB100: 0 | AC100: 63.24979325 | AD100: 150.5418807 | AE100: 26.4523124 | AF100: 47.93769948 | AG100: 223.7285621
A101: 0303C03C10TOTAL | B101: 03 | C101: 03C | D101: 03C10 | F101: 0.01567695719 | G101: 0.01854927185 | J101: -0.0692338528 | K101: 0.02531510225 | L101: -0.3061181597 | M101: 0.3049344521 | N101: 0.005309949751 | O101: 691.0524822 | P101: 171.6009549 | Q101: 0.4010128002 | R101: 0 | S101: 0 | T101: 58.87076637 | U101: 154.3528638 | V101: 18.35477921 | W101: 62.5555556 | X101: 224.9165496 | Y101: 680.3860985 | Z101: 168.4758506 | AA101: 0 | AB101: 0 | AC101: 63.24979325 | AD101: 150.5418807 | AE101: 26.4523124 | AF101: 47.93769948 | AG101: 223.7285621
A102: 0303C03C1103C111 | B102: 03 | C102: 03C | D102: 03C11 | E102: 03C111 | F102: 0.03849249253 | G102: 0.003377384022 | H102: 8.468896038 | J102: -0.01282049061 | K102: 0.04673106509 | L102: -0.1857836775 | M102: 0.3294642271 | N102: 0.01873889853 | O102: 844.4327253 | P102: 232.0243026 | Q102: 4.639956789 | R102: 0.3184653622 | S102: 0 | T102: 62.32721274 | U102: 213.7603901 | V102: 22.24391228 | W102: 72.816541 | X102: 236.3019444 | Y102: 813.1332016 | Z102: 231.2433052 | AA102: 0.4900208821 | AB102: 0 | AC102: 63.13665564 | AD102: 204.2171072 | AE102: 27.31941336 | AF102: 54.77134286 | AG102: 231.9553565
A103: 0303C03C11TOTAL | B103: 03 | C103: 03C | D103: 03C11 | F103: 0.03849249253 | G103: 0.003377384022 | H103: 8.468896038 | J103: -0.01282049061 | K103: 0.04673106509 | L103: -0.1857836775 | M103: 0.3294642271 | N103: 0.01873889853 | O103: 844.4327253 | P103: 232.0243026 | Q103: 4.639956789 | R103: 0.3184653622 | S103: 0 | T103: 62.32721274 | U103: 213.7603901 | V103: 22.24391228 | W103: 72.816541 | X103: 236.3019444 | Y103: 813.1332016 | Z103: 231.2433052 | AA103: 0.4900208821 | AB103: 0 | AC103: 63.13665564 | AD103: 204.2171072 | AE103: 27.31941336 | AF103: 54.77134286 | AG103: 231.9553565
A104: 0303C03C1203C121 | B104: 03 | C104: 03C | D104: 03C12 | E104: 03C121 | F104: -0.04275841556 | G104: 0.009115652334 | H104: -0.8623581236 | J104: -0.1486415086 | K104: -0.03329689781 | L104: -0.4252056568 | M104: 0.1564364212 | N104: -0.01415061372 | O104: 770.5473603 | P104: 164.7445063 | Q104: 1.223018821 | R104: 0 | S104: 0 | T104: 72.66005928 | U104: 149.7435362 | V104: 21.52184488 | W104: 71.48707198 | X104: 289.1673228 | Y104: 804.9664503 | Z104: 163.2563185 | AA104: 8.885514006 | AB104: 0 | AC104: 85.34602052 | AD104: 154.9012679 | AE104: 37.44268735 | AF104: 61.8166902 | AG104: 293.3179519
A105: 0303C03C12TOTAL | B105: 03 | C105: 03C | D105: 03C12 | F105: -0.04275841556 | G105: 0.009115652334 | H105: -0.8623581236 | J105: -0.1486415086 | K105: -0.03329689781 | L105: -0.4252056568 | M105: 0.1564364212 | N105: -0.01415061372 | O105: 770.5473603 | P105: 164.7445063 | Q105: 1.223018821 | R105: 0 | S105: 0 | T105: 72.66005928 | U105: 149.7435362 | V105: 21.52184488 | W105: 71.48707198 | X105: 289.1673228 | Y105: 804.9664503 | Z105: 163.2563185 | AA105: 8.885514006 | AB105: 0 | AC105: 85.34602052 | AD105: 154.9012679 | AE105: 37.44268735 | AF105: 61.8166902 | AG105: 293.3179519
A106: 0303C03C1303C131 | B106: 03 | C106: 03C | D106: 03C13 | E106: 03C131 | F106: -0.02935533623 | G106: -0.05642239751 | H106: 1.518860128 | I106: -0.6510948375 | J106: -0.0928996697 | K106: -0.04432021718 | L106: -0.1681909728 | M106: 0.2075624061 | N106: -0.05210170696 | O106: 1061.071881 | P106: 230.8844176 | Q106: 31.56185105 | R106: 4.93969099 | S106: 0 | T106: 94.28830244 | U106: 210.6548665 | V106: 28.01718487 | W106: 98.37727319 | X106: 362.3482941 | Y106: 1093.162019 | Z106: 244.6904388 | AA106: 12.53021186 | AB106: 14.1576896 | AC106: 103.9447339 | AD106: 220.424111 | AE106: 33.68223228 | AF106: 81.46765144 | AG106: 382.2649506
A107: 0303C03C13TOTAL | B107: 03 | C107: 03C | D107: 03C13 | F107: -0.02935533623 | G107: -0.05642239751 | H107: 1.518860128 | I107: -0.6510948375 | J107: -0.0928996697 | K107: -0.04432021718 | L107: -0.1681909728 | M107: 0.2075624061 | N107: -0.05210170696 | O107: 1061.071881 | P107: 230.8844176 | Q107: 31.56185105 | R107: 4.93969099 | S107: 0 | T107: 94.28830244 | U107: 210.6548665 | V107: 28.01718487 | W107: 98.37727319 | X107: 362.3482941 | Y107: 1093.162019 | Z107: 244.6904388 | AA107: 12.53021186 | AB107: 14.1576896 | AC107: 103.9447339 | AD107: 220.424111 | AE107: 33.68223228 | AF107: 81.46765144 | AG107: 382.2649506
A108: 0303C03C1403C14J | B108: 03 | C108: 03C | D108: 03C14 | E108: 03C14J | F108: 0.01428200491 | G108: 0.05194557997 | J108: -0.08690275261 | K108: 0.06827996942 | L108: -0.5122687143 | M108: 0.3693564646 | N108: -0.002880246367 | O108: 418.131551 | P108: 72.35844118 | Q108: 0 | R108: 0 | S108: 0 | T108: 33.93677859 | U108: 97.97397859 | V108: 8.391322554 | W108: 31.87375274 | X108: 173.5972773 | Y108: 412.2438818 | Z108: 68.78534646 | AA108: 0 | AB108: 0 | AC108: 37.166664 | AD108: 91.71189332 | AE108: 17.20480683 | AF108: 23.27644668 | AG108: 174.0987245
A109: 0303C03C14TOTAL | B109: 03 | C109: 03C | D109: 03C14 | F109: 0.01428200491 | G109: 0.05194557997 | J109: -0.08690275261 | K109: 0.06827996942 | L109: -0.5122687143 | M109: 0.3693564646 | N109: -0.002880246367 | O109: 418.131551 | P109: 72.35844118 | Q109: 0 | R109: 0 | S109: 0 | T109: 33.93677859 | U109: 97.97397859 | V109: 8.391322554 | W109: 31.87375274 | X109: 173.5972773 | Y109: 412.2438818 | Z109: 68.78534646 | AA109: 0 | AB109: 0 | AC109: 37.166664 | AD109: 91.71189332 | AE109: 17.20480683 | AF109: 23.27644668 | AG109: 174.0987245
A110: 0303C03C1503C15J | B110: 03 | C110: 03C | D110: 03C15 | E110: 03C15J | F110: 0.04723689403 | G110: 0.04462367026 | J110: 0.1104773154 | K110: 0.07160733056 | L110: -0.2903752399 | M110: 0.3343559316 | N110: 0.001574807317 | O110: 390.9200784 | P110: 70.45065449 | Q110: 0 | R110: 0 | S110: 0 | T110: 35.06156549 | U110: 100.5969278 | V110: 9.918740135 | W110: 32.91894292 | X110: 141.9732476 | Y110: 373.2871528 | Z110: 67.44118145 | AA110: 0 | AB110: 0 | AC110: 31.57341893 | AD110: 93.8748037 | AE110: 13.9774437 | AF110: 24.67028635 | AG110: 141.7500186
A111: 0303C03C15TOTAL | B111: 03 | C111: 03C | D111: 03C15 | F111: 0.04723689403 | G111: 0.04462367026 | J111: 0.1104773154 | K111: 0.07160733056 | L111: -0.2903752399 | M111: 0.3343559316 | N111: 0.001574807317 | O111: 390.9200784 | P111: 70.45065449 | Q111: 0 | R111: 0 | S111: 0 | T111: 35.06156549 | U111: 100.5969278 | V111: 9.918740135 | W111: 32.91894292 | X111: 141.9732476 | Y111: 373.2871528 | Z111: 67.44118145 | AA111: 0 | AB111: 0 | AC111: 31.57341893 | AD111: 93.8748037 | AE111: 13.9774437 | AF111: 24.67028635 | AG111: 141.7500186
A112: 0303C03C1603C161 | B112: 03 | C112: 03C | D112: 03C16 | E112: 03C161 | F112: -0.008926617009 | G112: -0.03360679018 | H112: 0.7068432121 | J112: -0.09525288472 | K112: 0.05834481666 | L112: -0.1086411734 | M112: -0.006355959526 | N112: 0.005065254154 | O112: 1226.938815 | P112: 265.5114991 | Q112: 6.776749825 | R112: 0 | S112: 0 | T112: 135.4627311 | U112: 246.8794104 | V112: 38.86688265 | W112: 168.2142675 | X112: 365.2272747 | Y112: 1237.989877 | Z112: 274.7447896 | AA112: 3.97034114 | AB112: 0 | AC112: 149.7244133 | AD112: 233.2693528 | AE112: 43.6040812 | AF112: 169.2902696 | AG112: 363.3866291
A113: 0303C03C1603C16J | B113: 03 | C113: 03C | D113: 03C16 | E113: 03C16J | F113: -0.05251109991 | G113: 0.09496043073 | J113: -0.1044383911 | K113: -0.03202686593 | L113: -0.1792679144 | M113: -0.2420724393 | N113: 0.03998919546 | O113: 663.4616265 | P113: 78.35159264 | Q113: 0 | R113: 0 | S113: 0 | T113: 89.01615603 | U113: 126.6307976 | V113: 22.54415644 | W113: 104.5434509 | X113: 242.3754729 | Y113: 700.2315557 | Z113: 71.55655167 | AA113: 0 | AB113: 0 | AC113: 99.39702099 | AD113: 130.8205705 | AE113: 27.46835031 | AF113: 137.9333017 | AG113: 233.0557605
A114: 0303C03C16TOTAL | B114: 03 | C114: 03C | D114: 03C16 | F114: -0.03995505829 | G114: -0.02012333725 | H114: 0.6297908889 | J114: -0.1068722892 | K114: 0.004686970454 | L114: -0.1514253278 | M114: -0.142757711 | N114: 0.01420689753 | O114: 880.7781888 | P114: 150.5336584 | Q114: 2.613592892 | R114: 0 | S114: 0 | T114: 106.9292326 | U114: 173.0071473 | V114: 28.83935138 | W114: 129.0994103 | X114: 289.755796 | Y114: 917.434331 | Z114: 153.6251082 | AA114: 1.603636951 | AB114: 0 | AC114: 119.7244597 | AD114: 172.2000508 | AE114: 33.98563771 | AF114: 150.5985087 | AG114: 285.696929
A115: 0303C03C1703C171 | B115: 03 | C115: 03C | D115: 03C17 | E115: 03C171 | F115: 0.057992677 | G115: -0.003099856772 | H115: -0.6145781557 | J115: 0.03725161158 | K115: 0.005790473332 | L115: -0.054714878 | M115: 0.1393017548 | N115: 0.1224486407 | O115: 1013.40035 | P115: 182.0752236 | Q115: 2.762790022 | R115: 3.95548246 | S115: 0 | T115: 148.7827868 | U115: 168.1481228 | V115: 39.76822592 | W115: 114.6250559 | X115: 353.2826627 | Y115: 957.8519513 | Z115: 182.6413857 | AA115: 7.168223759 | AB115: 0 | AC115: 143.4394366 | AD115: 167.1800711 | AE115: 42.07008552 | AF115: 100.6099178 | AG115: 314.7428309
A116: 0303C03C1703C17J | B116: 03 | C116: 03C | D116: 03C17 | E116: 03C17J | F116: -0.009659158517 | G116: 0.08951974085 | J116: -0.07006184916 | K116: 0.009621302969 | L116: -0.08926947189 | M116: -0.004118083906 | N116: -0.008702952628 | O116: 720.3789035 | P116: 76.09610557 | Q116: 0 | R116: 0 | S116: 0 | T116: 116.6101689 | U116: 143.4771451 | V116: 32.18888098 | W116: 82.93913834 | X116: 269.0674646 | Y116: 727.405024 | Z116: 69.84371436 | AA116: 0 | AB116: 0 | AC116: 125.3956178 | AD116: 142.109863 | AE116: 35.34402327 | AF116: 83.28210102 | AG116: 271.4297045
A117: 0303C03C17TOTAL | B117: 03 | C117: 03C | D117: 03C17 | F117: -0.001331914864 | G117: 0.0346243473 | H117: -0.6530314863 | J117: -0.05301269842 | K117: 0.005812827993 | L117: -0.08583429618 | M117: 0.01936012358 | N117: 0.01249365957 | O117: 767.8671512 | P117: 93.27151258 | Q117: 0.4477489904 | R117: 0.6410415791 | S117: 0 | T117: 121.8241943 | U117: 147.4754241 | V117: 33.41722046 | W117: 88.07428704 | X117: 282.7157222 | Y117: 768.8912489 | Z117: 90.1501234 | AA117: 1.290460006 | AB117: 0 | AC117: 128.6439576 | AD117: 146.6231291 | AE117: 36.55488312 | AF117: 86.4015425 | AG117: 279.2271532
A118: 0303C03C1903C191 | B118: 03 | C118: 03C | D118: 03C19 | E118: 03C191 | F118: 0.04022548162 | G118: 0.176246933 | H118: -0.2085984969 | J118: 0.04309543322 | K118: 0.01803896208 | L118: 0.02369701592 | M118: 0.02636967363 | N118: 0.03501113863 | O118: 4392.034107 | P118: 373.3776043 | Q118: 9.719893815 | R118: 0 | S118: 0 | T118: 529.0216705 | U118: 525.7144754 | V118: 153.8629939 | W118: 1598.660624 | X118: 1201.676845 | Y118: 4222.194308 | Z118: 317.4313095 | AA118: 12.28187434 | AB118: 0 | AC118: 507.1651678 | AD118: 516.3991704 | AE118: 150.3013015 | AF118: 1557.587549 | AG118: 1161.027935
A119: 0303C03C19TOTAL | B119: 03 | C119: 03C | D119: 03C19 | F119: 0.09986491372 | G119: 0.2419407076 | H119: -0.1464948794 | J119: 0.08859744154 | K119: 0.06936998806 | L119: 0.07154414582 | M119: 0.0970348525 | N119: 0.08966342345 | O119: 4392.034107 | P119: 373.3776043 | Q119: 9.719893815 | R119: 0 | S119: 0 | T119: 529.0216705 | U119: 525.7144754 | V119: 153.8629939 | W119: 1598.660624 | X119: 1201.676845 | Y119: 3993.248673 | Z119: 300.6404428 | AA119: 11.38820797 | AB119: 0 | AC119: 485.9662996 | AD119: 491.6113986 | AE119: 143.589972 | AF119: 1457.256003 | AG119: 1102.796349
A120: 0303C03C2003C201 | B120: 03 | C120: 03C | D120: 03C20 | E120: 03C201 | F120: -0.009647333265 | G120: 0.01099190815 | H120: 0.3084247812 | J120: -0.03604746446 | K120: 0.04631881643 | L120: -0.09957012763 | M120: -0.04982183568 | N120: -0.01120645446 | O120: 1577.78335 | P120: 273.7874024 | Q120: 1.336377256 | R120: 0 | S120: 0 | T120: 195.413666 | U120: 259.0767326 | V120: 47.97759623 | W120: 196.4140237 | X120: 603.7775514 | Y120: 1593.153028 | Z120: 270.8106764 | AA120: 1.021363456 | AB120: 0.3756352778 | AC120: 202.7212531 | AD120: 247.607831 | AE120: 53.28299038 | AF120: 206.7128367 | AG120: 610.6204415
A121: 0303C03C2003C20J | B121: 03 | C121: 03C | D121: 03C20 | E121: 03C20J | F121: 0.1025151599 | G121: 0.05534998392 | J121: 0.1168130858 | K121: 0.1528770557 | L121: -0.3963636255 | M121: 0.3742986008 | N121: 0.1015441402 | O121: 810.0988444 | P121: 73.44633943 | Q121: 0 | R121: 0 | S121: 0 | T121: 95.85122399 | U121: 146.1556785 | V121: 22.14820323 | W121: 72.45006596 | X121: 400.0473333 | Y121: 734.7734289 | Z121: 69.59429625 | AA121: 0 | AB121: 0 | AC121: 85.82566341 | AD121: 126.7747309 | AE121: 36.69129986 | AF121: 52.71784888 | AG121: 363.1695896
A122: 0303C03C20TOTAL | B122: 03 | C122: 03C | D122: 03C20 | F122: -0.01143575465 | G122: -0.01073477691 | H122: 0.26104773 | J122: -0.03471572381 | K122: 0.04609592656 | L122: -0.16466358 | M122: -0.04004994306 | N122: -0.004495529796 | O122: 1380.135257 | P122: 222.2075818 | Q122: 0.9923134972 | R122: 0 | S122: 0 | T122: 169.7803144 | U122: 230.0040721 | V122: 41.32755935 | W122: 164.4982566 | X122: 551.3251587 | Y122: 1396.100722 | Z122: 224.6188147 | AA122: 0.7868960656 | AB122: 0.2894032683 | AC122: 175.8863359 | AD122: 219.8690065 | AE122: 49.47415 | AF122: 171.3612656 | AG122: 553.8148499
A123: 0303C03C2103C211 | B123: 03 | C123: 03C | D123: 03C21 | E123: 03C211 | F123: -0.05789956721 | G123: -0.04041260051 | J123: -0.1521500724 | K123: -0.03319658777 | L123: -0.3887648978 | M123: 0.001372562443 | N123: 0.02294858631 | O123: 908.0198561 | P123: 168.4801594 | Q123: 0 | R123: 0 | S123: 0 | T123: 145.4584942 | U123: 160.8256984 | V123: 37.28732525 | W123: 106.8893922 | X123: 289.0787868 | Y123: 963.8249008 | Z123: 175.575627 | AA123: 0 | AB123: 0 | AC123: 171.5616047 | AD123: 166.3478804 | AE123: 61.00324591 | AF123: 106.7428809 | AG123: 282.5936618
A124: 0303C03C2103C21J | B124: 03 | C124: 03C | D124: 03C21 | E124: 03C21J | F124: 0.0008638958244 | G124: -0.0699564324 | J124: -0.01164194496 | K124: 0.01404390628 | L124: 0.01382722926 | M124: 0.04063704341 | N124: 0.005657842616 | O124: 795.1065473 | P124: 79.39261579 | Q124: 0 | R124: 0 | S124: 0 | T124: 146.9497183 | U124: 161.4593498 | V124: 38.37376796 | W124: 106.3280499 | X124: 262.6030455 | Y124: 794.4202509 | Z124: 85.36440502 | AA124: 0 | AB124: 0 | AC124: 148.6806502 | AD124: 159.2232337 | AE124: 37.85040178 | AF124: 102.1759225 | AG124: 261.1256377
A125: 0303C03C21TOTAL | B125: 03 | C125: 03C | D125: 03C21 | F125: -0.03768075497 | G125: -0.06457972186 | J125: -0.09452842894 | K125: -0.01266099065 | L125: -0.2550451799 | M125: 0.01823340494 | N125: 0.0132674726 | O125: 855.2092807 | P125: 126.8131097 | Q125: 0 | R125: 0 | S125: 0 | T125: 146.1559532 | U125: 161.1220629 | V125: 37.79546433 | W125: 106.6268473 | X125: 276.6958432 | Y125: 888.6960175 | Z125: 135.5680572 | AA125: 0 | AB125: 0 | AC125: 161.4141822 | AD125: 163.188187 | AE125: 50.73524368 | AF125: 104.7174909 | AG125: 273.0728566
A126: 0303C03C2403C241 | B126: 03 | C126: 03C | D126: 03C24 | E126: 03C241 | F126: -0.02971749112 | G126: -0.01891705012 | H126: 1.153962061 | I126: 1.786118483 | J126: -0.2074043204 | K126: -0.01232734285 | L126: -0.2610174301 | M126: 0.02039530612 | N126: 0.04071471384 | O126: 1836.222357 | P126: 335.122947 | Q126: 13.23401021 | R126: 7.448428589 | S126: 0 | T126: 242.7660303 | U126: 291.2213412 | V126: 69.74687181 | W126: 216.5400469 | X126: 660.1426808 | Y126: 1892.461567 | Z126: 341.5847223 | AA126: 6.14403125 | AB126: 2.673406976 | AC126: 306.2923966 | AD126: 294.8561339 | AE126: 94.38229621 | AF126: 212.2119198 | AG126: 634.3166595
A127: 0303C03C2403C24J | B127: 03 | C127: 03C | D127: 03C24 | E127: 03C24J | F127: -0.003013195465 | G127: 0.007652539161 | J127: -0.09614000081 | K127: 0.02619103195 | L127: -0.343817462 | M127: 0.3304402505 | N127: -0.0138825467 | O127: 608.982878 | P127: 70.26519499 | Q127: 0 | R127: 0 | S127: 0 | T127: 81.5243435 | U127: 131.6526648 | V127: 23.29191217 | W127: 73.90587111 | X127: 228.3428914 | Y127: 610.8234083 | Z127: 69.73157141 | AA127: 0 | AB127: 0 | AC127: 90.19576436 | AD127: 128.2925505 | AE127: 35.49608656 | AF127: 55.54993626 | AG127: 231.5574992
A128: 0303C03C24TOTAL | B128: 03 | C128: 03C | D128: 03C24 | F128: -0.02437148694 | G128: -0.01438580907 | H128: 1.16033753 | I128: 1.79436506 | J128: -0.1918387098 | K128: -0.004161272168 | L128: -0.2728305739 | M128: 0.05785170624 | N128: 0.03403499218 | O128: 1431.179502 | P128: 247.7082723 | Q128: 8.866206403 | R128: 4.990120469 | S128: 0 | T128: 189.5492016 | U128: 238.5566794 | V128: 54.41469763 | W128: 169.464513 | X128: 517.6298117 | Y128: 1466.930787 | Z128: 251.323768 | AA128: 4.104083867 | AB128: 1.785779725 | AC128: 234.5437773 | AD128: 239.5535268 | AE128: 74.83083815 | AF128: 160.1968518 | AG128: 500.5921614
A129: 0303C03C2603C261 | B129: 03 | C129: 03C | D129: 03C26 | E129: 03C261 | F129: -0.1319670795 | G129: -0.08258501749 | H129: -0.3532126097 | I129: 1.049645592 | J129: -0.2548094455 | K129: -0.08690616471 | L129: -0.3758524667 | M129: -0.1629072527 | N129: -0.07325356774 | O129: 2299.870417 | P129: 392.6834783 | Q129: 66.18458529 | R129: 32.26697204 | S129: 0 | T129: 283.0860303 | U129: 346.8165006 | V129: 83.33676752 | W129: 243.1263071 | X129: 852.3697755 | Y129: 2649.519808 | Z129: 428.0325543 | AA129: 102.3281936 | AB129: 15.74270799 | AC129: 379.8840829 | AD129: 379.825695 | AE129: 133.5209435 | AF129: 290.4413016 | AG129: 919.744329
A130: 0303C03C26TOTAL | B130: 03 | C130: 03C | D130: 03C26 | F130: -0.1319670795 | G130: -0.08258501749 | H130: -0.3532126097 | I130: 1.049645592 | J130: -0.2548094455 | K130: -0.08690616471 | L130: -0.3758524667 | M130: -0.1629072527 | N130: -0.07325356774 | O130: 2299.870417 | P130: 392.6834783 | Q130: 66.18458529 | R130: 32.26697204 | S130: 0 | T130: 283.0860303 | U130: 346.8165006 | V130: 83.33676752 | W130: 243.1263071 | X130: 852.3697755 | Y130: 2649.519808 | Z130: 428.0325543 | AA130: 102.3281936 | AB130: 15.74270799 | AC130: 379.8840829 | AD130: 379.825695 | AE130: 133.5209435 | AF130: 290.4413016 | AG130: 919.744329
A131: 0303C03C2703C27J | B131: 03 | C131: 03C | D131: 03C27 | E131: 03C27J | F131: 0.002428070498 | G131: 0.08395752449 | J131: 0.04229096861 | K131: 0.00834061658 | L131: -0.03924539876 | M131: -0.02633303221 | N131: -0.02594274447 | O131: 540.0814498 | P131: 76.98438186 | Q131: 0 | R131: 0 | S131: 0 | T131: 59.37091897 | U131: 112.5832177 | V131: 15.74685513 | W131: 40.79550619 | X131: 234.6005699 | Y131: 538.7732703 | Z131: 71.02158537 | AA131: 0 | AB131: 0 | AC131: 56.96194322 | AD131: 111.6519714 | AE131: 16.39009078 | AF131: 41.89882941 | AG131: 240.8488501
A132: 0303C03C27TOTAL | B132: 03 | C132: 03C | D132: 03C27 | F132: =O132/Y132-1 -> 0.002428070498 | G132: =P132/Z132-1 -> 0.08395752449 | J132: =T132/AC132-1 -> 0.04229096861 | K132: =U132/AD132-1 -> 0.00834061658 | L132: =V132/AE132-1 -> -0.03924539876 | M132: =W132/AF132-1 -> -0.02633303221 | N132: =X132/AG132-1 -> -0.02594274447 | O132: 540.0814498 | P132: 76.98438186 | Q132: 0 | R132: 0 | S132: 0 | T132: 59.37091897 | U132: 112.5832177 | V132: 15.74685513 | W132: 40.79550619 | X132: 234.6005699 | Y132: 538.7732703 | Z132: 71.02158537 | AA132: 0 | AB132: 0 | AC132: 56.96194322 | AD132: 111.6519714 | AE132: 16.39009078 | AF132: 41.89882941 | AG132: 240.8488501
A133: 0303C03C2803C28J | B133: 03 | C133: 03C | D133: 03C28 | E133: 03C28J | F133: 0.02574056974 | G133: 0.06970686651 | J133: -0.04350441691 | K133: 0.02065798316 | L133: -0.2619425612 | M133: 0.1011906897 | N133: 0.03531350542 | O133: 415.9383072 | P133: 68.37368726 | Q133: 0 | R133: 0 | S133: 0 | T133: 29.91021419 | U133: 93.92959525 | V133: 9.910447056 | W133: 28.82975203 | X133: 184.9846114 | Y133: 405.5004934 | Z133: 63.9181531 | AA133: 0 | AB133: 0 | AC133: 31.27062447 | AD133: 92.02847261 | AE133: 13.42774496 | AF133: 26.1805265 | AG133: 178.6749718
A134: 0303C03C28TOTAL | B134: 03 | C134: 03C | D134: 03C28 | F134: 0.02574056974 | G134: 0.06970686651 | J134: -0.04350441691 | K134: 0.02065798316 | L134: -0.2619425612 | M134: 0.1011906897 | N134: 0.03531350542 | O134: 415.9383072 | P134: 68.37368726 | Q134: 0 | R134: 0 | S134: 0 | T134: 29.91021419 | U134: 93.92959525 | V134: 9.910447056 | W134: 28.82975203 | X134: 184.9846114 | Y134: 405.5004934 | Z134: 63.9181531 | AA134: 0 | AB134: 0 | AC134: 31.27062447 | AD134: 92.02847261 | AE134: 13.42774496 | AF134: 26.1805265 | AG134: 178.6749718
A135: 0303C03C3003C30J | B135: 03 | C135: 03C | D135: 03C30 | E135: 03C30J | F135: -0.002064921278 | G135: 0.140933183 | J135: 0.06292334166 | K135: 0.01101947997 | L135: -0.1679704515 | M135: 0.1079528277 | N135: -0.07556343088 | O135: 727.9646018 | P135: 78.76908199 | Q135: 0 | R135: 0 | S135: 0 | T135: 122.2267243 | U135: 152.1811062 | V135: 33.14098238 | W135: 80.84966946 | X135: 260.7970375 | Y135: 729.4709018 | Z135: 69.03917176 | AA135: 0 | AB135: 0 | AC135: 114.9911 | AD135: 150.5224273 | AE135: 39.8314969 | AF135: 72.9721225 | AG135: 282.1145833
A136: 0303C03C30TOTAL | B136: 03 | C136: 03C | D136: 03C30 | F136: -0.002064921278 | G136: 0.140933183 | J136: 0.06292334166 | K136: 0.01101947997 | L136: -0.1679704515 | M136: 0.1079528277 | N136: -0.07556343088 | O136: 727.9646018 | P136: 78.76908199 | Q136: 0 | R136: 0 | S136: 0 | T136: 122.2267243 | U136: 152.1811062 | V136: 33.14098238 | W136: 80.84966946 | X136: 260.7970375 | Y136: 729.4709018 | Z136: 69.03917176 | AA136: 0 | AB136: 0 | AC136: 114.9911 | AD136: 150.5224273 | AE136: 39.8314969 | AF136: 72.9721225 | AG136: 282.1145833
A137: 0303CTOTAL | B137: 03 | C137: 03C | F137: 0.01874736589 | G137: 0.02810800691 | H137: =Q137/AA137-1 -> 0.01409363869 | I137: =R137/AB137-1 -> -0.2366279151 | J137: -0.03598113613 | K137: 0.02501373142 | L137: -0.1524662316 | M137: 0.07303484469 | N137: 0.02991680576 | O137: 838.8810468 | P137: 139.1599855 | Q137: 1.55248313 | R137: 0.3452480859 | S137: 0 | T137: 96.39413985 | U137: 158.1268641 | V137: 26.88506818 | W137: 107.5900996 | X137: 308.8271584 | Y137: 823.4436475 | Z137: 135.3554145 | AA137: 1.530907079 | AB137: 0.452267109 | AC137: 99.99196433 | AD137: 154.2680446 | AE137: 31.72153037 | AF137: 100.267107 | AG137: 299.8564124
A138: 0303K03K0203K021 | B138: 03 | C138: 03K | D138: 03K02 | E138: 03K021 | F138: -0.01143653768 | G138: -0.0007926546372 | H138: 0.8614579705 | I138: -0.3064734725 | J138: -0.097201061 | K138: 0.03557583251 | L138: -0.07282701396 | M138: -0.04736970697 | N138: 0.02131453107 | O138: 835.9934881 | P138: 143.0990726 | Q138: 2.297869747 | R138: 0.3528098153 | S138: 0 | T138: 122.6173651 | U138: 134.4719776 | V138: 37.13740895 | W138: 102.4299435 | X138: 293.5870407 | Y138: 845.6649673 | Z138: 143.2125907 | AA138: 1.234446216 | AB138: 0.5087185584 | AC138: 135.8191285 | AD138: 129.8523714 | AE138: 40.05445533 | AF138: 107.5232902 | AG138: 287.4599664
A139: 0303K03K0203K02J | B139: 03 | C139: 03K | D139: 03K02 | E139: 03K02J | F139: -0.0005340318674 | G139: 0.0460756651 | J139: -0.0332134108 | K139: -0.001166839233 | L139: -0.02433777103 | M139: -0.004685214808 | N139: 0.009488525801 | O139: 769.6193799 | P139: 70.72153427 | Q139: 0 | R139: 0 | S139: 0 | T139: 131.0153326 | U139: 154.8079337 | V139: 41.93255594 | W139: 91.22806752 | X139: 279.9139559 | Y139: 770.0306008 | Z139: 67.60651895 | AA139: 0 | AB139: 0 | AC139: 135.5162908 | AD139: 154.9887807 | AE139: 42.97855825 | AF139: 91.65750261 | AG139: 277.2829495
A140: 0303K03K02TOTAL | B140: 03 | C140: 03K | D140: 03K02 | F140: -0.002248515337 | G140: 0.02939678587 | H140: 0.586995745 | I140: -0.4087303256 | J140: -0.03705895898 | K140: 0.002379375729 | L140: -0.0263573867 | M140: -0.009390559568 | N140: 0.009836583194 | O140: 773.5770196 | P140: 75.03713609 | Q140: 0.1370133758 | R140: 0.02103672928 | S140: 0 | T140: 130.5145932 | U140: 153.5953767 | V140: 41.64663927 | W140: 91.89599348 | X140: 280.7292308 | Y140: 775.3203393 | Z140: 72.89427859 | AA140: 0.08633506183 | AB140: 0.03557890788 | AC140: 135.5374708 | AD140: 153.2307831 | AE140: 42.77405148 | AF140: 92.76712872 | AG140: 277.9947127
A141: 0303K03K0303K03J | B141: 03 | C141: 03K | D141: 03K03 | E141: 03K03J | F141: 0.01544127472 | G141: 0.006514696079 | J141: -0.04693939845 | K141: 0.04372895439 | L141: -0.1310760889 | M141: 0.06915759858 | N141: 0.02044923311 | O141: 552.4885904 | P141: 67.41142217 | Q141: 0 | R141: 0 | S141: 0 | T141: 51.24657813 | U141: 107.2129678 | V141: 14.11493465 | W141: 41.75158583 | X141: 270.7511017 | Y141: 544.0871906 | Z141: 66.97509975 | AA141: 0 | AB141: 0 | AC141: 53.77053469 | AD141: 102.7210823 | AE141: 16.24415494 | AF141: 39.05091811 | AG141: 265.3254008
A142: 0303K03K03TOTAL | B142: 03 | C142: 03K | D142: 03K03 | F142: 0.01544127472 | G142: 0.006514696079 | J142: -0.04693939845 | K142: 0.04372895439 | L142: -0.1310760889 | M142: 0.06915759858 | N142: 0.02044923311 | O142: 552.4885904 | P142: 67.41142217 | Q142: 0 | R142: 0 | S142: 0 | T142: 51.24657813 | U142: 107.2129678 | V142: 14.11493465 | W142: 41.75158583 | X142: 270.7511017 | Y142: 544.0871906 | Z142: 66.97509975 | AA142: 0 | AB142: 0 | AC142: 53.77053469 | AD142: 102.7210823 | AE142: 16.24415494 | AF142: 39.05091811 | AG142: 265.3254008
A143: 0303K03K0403K04J | B143: 03 | C143: 03K | D143: 03K04 | E143: 03K04J | F143: 0.01730562262 | G143: -0.02879670904 | J143: 0.04337711639 | K143: 0.06743604313 | L143: -0.1854843286 | M143: 0.3096729802 | N143: -0.03040205302 | O143: 391.0918186 | P143: 66.26307319 | Q143: 0 | R143: 0 | S143: 0 | T143: 39.72129691 | U143: 101.5664309 | V143: 13.58378496 | W143: 33.50263171 | X143: 136.454601 | Y143: 384.4388647 | Z143: 68.22780957 | AA143: 0 | AB143: 0 | AC143: 38.06993299 | AD143: 95.14989821 | AE143: 16.6771315 | AF143: 25.58091387 | AG143: 140.7331786
A144: 0303K03K04TOTAL | B144: 03 | C144: 03K | D144: 03K04 | F144: 0.01730562262 | G144: -0.02879670904 | J144: 0.04337711639 | K144: 0.06743604313 | L144: -0.1854843286 | M144: 0.3096729802 | N144: -0.03040205302 | O144: 391.0918186 | P144: 66.26307319 | Q144: 0 | R144: 0 | S144: 0 | T144: 39.72129691 | U144: 101.5664309 | V144: 13.58378496 | W144: 33.50263171 | X144: 136.454601 | Y144: 384.4388647 | Z144: 68.22780957 | AA144: 0 | AB144: 0 | AC144: 38.06993299 | AD144: 95.14989821 | AE144: 16.6771315 | AF144: 25.58091387 | AG144: 140.7331786
A145: 0303KTOTAL | B145: 03 | C145: 03K | F145: 0.0002803303518 | G145: 0.02762140891 | H145: 0.5938258069 | I145: -0.4061856379 | J145: -0.0339653889 | K145: 0.005945978305 | L145: -0.02697892525 | M145: -0.003157963211 | N145: 0.01121988627 | O145: 756.1127689 | P145: 74.53102468 | Q145: 0.1283694261 | R145: 0.01970955645 | S145: 0 | T145: 125.2626174 | U145: 150.5461726 | V145: 39.89813759 | W145: 88.5527555 | X145: 277.1739821 | Y145: 755.9008669 | Z145: 72.52770722 | AA145: 0.08054169126 | AB145: 0.03319144451 | AC145: 129.6668007 | AD145: 149.6563194 | AE145: 41.00439202 | AF145: 88.83328776 | AG145: 274.0986267
A146: 0303M03M0203M021 | B146: 03 | C146: 03M | D146: 03M02 | E146: 03M021 | F146: -0.03895883054 | G146: -0.02505697764 | J146: -0.3607180574 | K146: 0.06444079765 | L146: -0.2178640402 | M146: -0.1804617964 | N146: -0.04043480613 | O146: 575.7531842 | P146: 196.192855 | Q146: 0 | R146: 0 | S146: 0 | T146: 24.04276039 | U146: 171.8647682 | V146: 9.985803237 | W146: 28.28446278 | X146: 145.3825346 | Y146: 599.0931528 | Z146: 201.2352009 | AA146: 0 | AB146: 0 | AC146: 37.60900909 | AD146: 161.4601475 | AE146: 12.7673496 | AF146: 34.51268367 | AG146: 151.508762
A147: 0303M03M0203M02T | B147: 03 | C147: 03M | D147: 03M02 | E147: 03M02T | F147: -0.0196344488 | G147: 0.03155032495 | J147: -0.1242708356 | K147: -0.03736465187 | L147: -0.09229146908 | M147: -0.00241118985 | N147: -0.01386429817 | O147: 342.2669118 | P147: 70.65065004 | Q147: 0 | R147: 0 | S147: 0 | T147: 20.6391371 | U147: 86.27349105 | V147: 7.599429676 | W147: 20.89460512 | X147: 136.2095988 | Y147: 349.1217244 | Z147: 68.48977537 | AA147: 0 | AB147: 0 | AC147: 23.56794536 | AD147: 89.6221931 | AE147: 8.372103398 | AF147: 20.94510775 | AG147: 138.1245994
A148: 0303M03M02TOTAL | B148: 03 | C148: 03M | D148: 03M02 | F148: -0.04302767681 | G148: -0.03220900122 | J148: -0.1834351994 | K148: -0.03766750469 | L148: -0.1286990964 | M148: -0.0548376457 | N148: -0.0204830932 | O148: 372.3383815 | P148: 86.81964609 | Q148: 0 | R148: 0 | S148: 0 | T148: 21.07750101 | U148: 97.2970749 | V148: 7.906778624 | W148: 21.84636934 | X148: 137.3910115 | Y148: 389.0795716 | Z148: 89.70908616 | AA148: 0 | AB148: 0 | AC148: 25.81240459 | AD148: 101.1054655 | AE148: 9.074681998 | AF148: 23.11388011 | AG148: 140.2640532
A149: 0303M03M0403M04T | B149: 03 | C149: 03M | D149: 03M04 | E149: 03M04T | F149: 0.07143829211 | G149: 0.007318064313 | J149: -0.09361656221 | K149: 0.08391977544 | L149: -0.06301207562 | M149: 0.4348721003 | N149: 0.07230986375 | O149: 483.2765532 | P149: 111.8451061 | Q149: 2.27473767 | R149: 0 | S149: 0 | T149: 39.79660008 | U149: 113.3245066 | V149: 13.6693342 | W149: 49.84191175 | X149: 152.5243568 | Y149: 451.0540241 | Z149: 111.0325626 | AA149: 0 | AB149: 0 | AC149: 43.9070248 | AD149: 104.5506403 | AE149: 14.58859164 | AF149: 34.73613553 | AG149: 142.2390691
A150: 0303M03M04TOTAL | B150: 03 | C150: 03M | D150: 03M04 | F150: 0.07143829211 | G150: 0.007318064313 | J150: -0.09361656221 | K150: 0.08391977544 | L150: -0.06301207562 | M150: 0.4348721003 | N150: 0.07230986375 | O150: 483.2765532 | P150: 111.8451061 | Q150: 2.27473767 | R150: 0 | S150: 0 | T150: 39.79660008 | U150: 113.3245066 | V150: 13.6693342 | W150: 49.84191175 | X150: 152.5243568 | Y150: 451.0540241 | Z150: 111.0325626 | AA150: 0 | AB150: 0 | AC150: 43.9070248 | AD150: 104.5506403 | AE150: 14.58859164 | AF150: 34.73613553 | AG150: 142.2390691
A151: 0303M03M0503M051 | B151: 03 | C151: 03M | D151: 03M05 | E151: 03M051 | F151: 0.08876458406 | G151: 0.1357709107 | J151: -0.2376824266 | K151: 0.0201383768 | L151: -0.1234745426 | M151: 0.09504337294 | N151: 0.1941056368 | O151: 1441.342167 | P151: 480.3670174 | Q151: 0 | R151: 0 | S151: 0 | T151: 36.48295863 | U151: 350.3649926 | V151: 17.13457132 | W151: 63.03543629 | X151: 493.9571909 | Y151: 1323.832708 | Z151: 422.9435821 | AA151: 0 | AB151: 18.80716767 | AC151: 47.85795304 | AD151: 343.4484974 | AE151: 19.54828714 | AF151: 57.56432836 | AG151: 413.6628918
A152: 0303M03M0503M05T | B152: 03 | C152: 03M | D152: 03M05 | E152: 03M05T | F152: 0.2366538306 | G152: 0.3156586195 | I152: 0.1942456975 | J152: 0.3642668311 | K152: 0.1380829877 | L152: 0.1294694829 | M152: -0.08139115727 | N152: 0.260928722 | O152: 605.485342 | P152: 189.1731898 | Q152: 0 | R152: 1.983449936 | S152: 0 | T152: 38.20255958 | U152: 115.5659019 | V152: 8.584844981 | W152: 24.32368533 | X152: 227.6517105 | Y152: 489.6158707 | Z152: 143.7859236 | AA152: 0 | AB152: 1.660839088 | AC152: 28.00226372 | AD152: 101.5443541 | AE152: 7.600776392 | AF152: 26.47882777 | AG152: 180.542886
A153: 0303M03M05TOTAL | B153: 03 | C153: 03M | D153: 03M05 | F153: 0.08801013389 | G153: 0.1364664536 | I153: -0.842481709 | J153: 0.05237823861 | K153: -0.00676912856 | L153: -0.06522094383 | M153: -0.03243377431 | N153: 0.168669743 | O153: 886.9147009 | P153: 287.2168855 | Q153: 0 | R153: 1.315630966 | S153: 0 | T153: 37.62357742 | U153: 194.6217349 | V153: 11.46350067 | W153: 37.35776357 | X153: 317.3156079 | Y153: 815.1713603 | Z153: 252.7279926 | AA153: 0 | AB153: 8.35224251 | AC153: 35.75100286 | AD153: 195.948133 | AE153: 12.26332639 | AF153: 38.61003265 | AG153: 271.5186303
A154: 0303M03M0603M06T | B154: 03 | C154: 03M | D154: 03M06 | E154: 03M06T | F154: 0.05642820845 | G154: 0.06613225458 | J154: 0.4151414964 | K154: -0.007502343656 | L154: 0.1652338867 | M154: -0.3889225098 | N154: 0.2804782928 | O154: 480.014228 | P154: 165.6661231 | Q154: 0.982969752 | R154: 0 | S154: 0 | T154: 30.13252615 | U154: 117.7970161 | V154: 7.352976017 | W154: 34.17695462 | X154: 123.9056622 | Y154: 454.3746789 | Z154: 155.3898425 | AA154: 0 | AB154: 0 | AC154: 21.29294224 | AD154: 118.6874501 | AE154: 6.310300533 | AF154: 55.92900273 | AG154: 96.76514076
A155: 0303M03M06TOTAL | B155: 03 | C155: 03M | D155: 03M06 | F155: -0.3713462603 | G155: -0.3267514565 | H155: -0.9619096215 | J155: -0.04292827545 | K155: -0.4077758965 | L155: -0.2772944796 | M155: -0.6161016907 | N155: -0.2355864683 | O155: 480.014228 | P155: 165.6661231 | Q155: 0.982969752 | R155: 0 | S155: 0 | T155: 30.13252615 | U155: 117.7970161 | V155: 7.352976017 | W155: 34.17695462 | X155: 123.9056622 | Y155: 763.5590114 | Z155: 246.0697831 | AA155: 25.80624792 | AB155: 0 | AC155: 31.48408356 | AD155: 198.9061495 | AE155: 10.1742353 | AF155: 89.02606183 | AG155: 162.0924501
A156: 0303M03M0703M071 | B156: 03 | C156: 03M | D156: 03M07 | E156: 03M071 | F156: 0.01626091331 | G156: 0.06583436995 | H156: -0.4358333963 | J156: -0.03350115542 | K156: 0.03880950979 | L156: -0.2310886221 | M156: -0.06439086418 | N156: 0.05110226278 | O156: 1000.892667 | P156: 230.9201065 | Q156: 7.669264426 | R156: 0 | S156: 0 | T156: 72.27374915 | U156: 198.7269749 | V156: 21.78694125 | W156: 70.21339913 | X156: 399.302232 | Y156: 984.877657 | Z156: 216.6566523 | AA156: 13.59397096 | AB156: 5.276005554 | AC156: 74.7789297 | AD156: 191.3026142 | AE156: 28.33478847 | AF156: 75.04565362 | AG156: 379.8890423
A157: 0303M03M07TOTAL | B157: 03 | C157: 03M | D157: 03M07 | F157: 0.01626091331 | G157: 0.06583436995 | H157: -0.4358333963 | J157: -0.03350115542 | K157: 0.03880950979 | L157: -0.2310886221 | M157: -0.06439086418 | N157: 0.05110226278 | O157: 1000.892667 | P157: 230.9201065 | Q157: 7.669264426 | R157: 0 | S157: 0 | T157: 72.27374915 | U157: 198.7269749 | V157: 21.78694125 | W157: 70.21339913 | X157: 399.302232 | Y157: 984.877657 | Z157: 216.6566523 | AA157: 13.59397096 | AB157: 5.276005554 | AC157: 74.7789297 | AD157: 191.3026142 | AE157: 28.33478847 | AF157: 75.04565362 | AG157: 379.8890423
A158: 0303M03M0903M091 | B158: 03 | C158: 03M | D158: 03M09 | E158: 03M091 | F158: 0.06575706526 | G158: 0.02102024694 | H158: 5.046054727 | J158: -0.02009666876 | K158: 0.01396203849 | L158: -0.2522532431 | M158: 0.1854311374 | N158: 0.07831801286 | O158: 1068.466939 | P158: 296.5843118 | Q158: 26.30109108 | R158: 8.601018336 | S158: 0 | T158: 67.91939991 | U158: 254.5518415 | V158: 22.91813465 | W158: 76.90710605 | X158: 314.6840357 | Y158: 1002.542675 | Z158: 290.4783844 | AA158: 4.350124546 | AB158: 0 | AC158: 69.31234719 | AD158: 251.0467175 | AE158: 30.64959418 | AF158: 64.87690733 | AG158: 291.8285997
A159: 0303M03M0903M09T | B159: 03 | C159: 03M | D159: 03M09 | E159: 03M09T | F159: 0.03357458919 | G159: 0.007577549091 | H159: 2.819061998 | J159: -0.03025290143 | K159: -0.02531153593 | L159: -0.2045226225 | M159: 0.1413167191 | N159: 0.07067026997 | O159: 536.4489943 | P159: 100.930388 | Q159: 6.721753107 | R159: 0 | S159: 0 | T159: 42.99708684 | U159: 117.0837091 | V159: 11.93344669 | W159: 38.16068153 | X159: 218.6219289 | Y159: 519.0230099 | Z159: 100.1713348 | AA159: 1.760053414 | AB159: 0 | AC159: 44.33845371 | AD159: 120.1242381 | AE159: 15.00161668 | AF159: 33.43566329 | AG159: 204.1916499
A160: 0303M03M09TOTAL | B160: 03 | C160: 03M | D160: 03M09 | F160: 0.02656315507 | G160: -0.01870856967 | H160: 3.775075071 | J160: -0.03924820123 | K160: -0.02993112732 | L160: -0.2424786223 | M160: 0.1370647281 | N160: 0.06222562985 | O160: 685.6516378 | P160: 155.800873 | Q160: 12.2127126 | R160: 2.412126669 | S160: 0 | T160: 49.98646573 | U160: 155.6361846 | V160: 15.01406549 | W160: 49.02698599 | X160: 245.5622237 | Y160: 667.909845 | Z160: 158.7712561 | AA160: 2.557595937 | AB160: 0 | AC160: 52.02849039 | AD160: 160.4382833 | AE160: 19.81998915 | AF160: 43.11714609 | AG160: 231.1770841
A161: 0303M03M1003M10T | B161: 03 | C161: 03M | D161: 03M10 | E161: 03M10T | F161: 0.07343036687 | G161: -0.04789944234 | J161: -0.003428300896 | K161: 0.01387720032 | L161: -0.05107547077 | M161: 0.09094983071 | N161: 0.2499510365 | O161: 545.6031241 | P161: 58.48605655 | Q161: 0 | R161: 0 | S161: 0 | T161: 87.32678726 | U161: 131.1604848 | V161: 28.15814713 | W161: 66.89849151 | X161: 173.5731569 | Y161: 508.2799415 | Z161: 61.4284448 | AA161: 0 | AB161: 0 | AC161: 87.62719967 | AD161: 129.3652572 | AE161: 29.67374777 | AF161: 61.32132718 | AG161: 138.8639649
A162: 0303M03M10TOTAL | B162: 03 | C162: 03M | D162: 03M10 | F162: 0.07343036687 | G162: -0.04789944234 | J162: -0.003428300896 | K162: 0.01387720032 | L162: -0.05107547077 | M162: 0.09094983071 | N162: 0.2499510365 | O162: 545.6031241 | P162: 58.48605655 | Q162: 0 | R162: 0 | S162: 0 | T162: 87.32678726 | U162: 131.1604848 | V162: 28.15814713 | W162: 66.89849151 | X162: 173.5731569 | Y162: 508.2799415 | Z162: 61.4284448 | AA162: 0 | AB162: 0 | AC162: 87.62719967 | AD162: 129.3652572 | AE162: 29.67374777 | AF162: 61.32132718 | AG162: 138.8639649
A163: 0303M03M1103M111 | B163: 03 | C163: 03M | D163: 03M11 | E163: 03M111 | F163: -0.007810390436 | G163: 0.03159368067 | J163: -0.1701058339 | K163: 0.03366552686 | L163: -0.09305256418 | M163: -0.1570452235 | N163: 0.003683532239 | O163: 679.8830318 | P163: 195.3841168 | Q163: 8.691022137 | R163: 0 | S163: 0 | T163: 57.32808013 | U163: 170.0618709 | V163: 19.12475358 | W163: 66.82094655 | X163: 162.4722417 | Y163: 685.2349846 | Z163: 189.4002653 | AA163: 0 | AB163: 0 | AC163: 69.07878435 | AD163: 164.5231136 | AE163: 21.08694818 | AF163: 79.26990678 | AG163: 161.8759664
A164: 0303M03M1103M11T | B164: 03 | C164: 03M | D164: 03M11 | E164: 03M11T | F164: -0.03379969116 | G164: -0.01421708644 | J164: -0.1392600521 | K164: -0.04402429332 | L164: -0.09288224154 | M164: -0.06056951123 | N164: 0.04860157143 | O164: 432.2826826 | P164: 69.73849384 | Q164: 0 | R164: 0 | S164: 0 | T164: 63.63043362 | U164: 101.9291296 | V164: 19.29507012 | W164: 48.61390335 | X164: 129.0756521 | Y164: 447.4048276 | Z164: 70.74427126 | AA164: 0 | AB164: 0 | AC164: 73.92527066 | AD164: 106.6231379 | AE164: 21.27074455 | AF164: 51.74827082 | AG164: 123.0931324
A165: 0303M03M11TOTAL | B165: 03 | C165: 03M | D165: 03M11 | F165: -0.03443338331 | G165: -0.01663944916 | J165: -0.1433731231 | K165: -0.03240172578 | L165: -0.09279722527 | M165: -0.08995316634 | N165: 0.03462623153 | O165: 474.2065002 | P165: 91.01287489 | Q165: 1.471568308 | R165: 0 | S165: 0 | T165: 62.56331591 | U165: 113.4654001 | V165: 19.26623204 | W165: 51.6967292 | X165: 134.7303797 | Y165: 491.1173315 | Z165: 92.55290424 | AA165: 0 | AB165: 0 | AC165: 73.03450031 | AD165: 117.2649881 | AE165: 21.2369633 | AF165: 56.80666894 | AG165: 130.2213066
A166: 0303M03M1303M131 | B166: 03 | C166: 03M | D166: 03M13 | E166: 03M131 | F166: 0.05805145982 | G166: 0.09999571298 | J166: 0.009084979812 | K166: 0.02196711219 | L166: 0.06932164344 | M166: 0.1479726668 | N166: 0.01470899806 | O166: 759.2590197 | P166: 307.167172 | Q166: 0 | R166: 0 | S166: 0 | T166: 26.21371199 | U166: 240.0085644 | V166: 11.38409742 | W166: 44.33713535 | X166: 130.1483385 | Y166: 717.6012213 | Z166: 279.243972 | AA166: 0 | AB166: 0 | AC166: 25.97770506 | AD166: 234.849597 | AE166: 10.64609277 | AF166: 38.62211761 | AG166: 128.2617369
A167: 0303M03M13TOTAL | B167: 03 | C167: 03M | D167: 03M13 | F167: 0.05805145982 | G167: 0.09999571298 | J167: 0.009084979812 | K167: 0.02196711219 | L167: 0.06932164344 | M167: 0.1479726668 | N167: 0.01470899806 | O167: 759.2590197 | P167: 307.167172 | Q167: 0 | R167: 0 | S167: 0 | T167: 26.21371199 | U167: 240.0085644 | V167: 11.38409742 | W167: 44.33713535 | X167: 130.1483385 | Y167: 717.6012213 | Z167: 279.243972 | AA167: 0 | AB167: 0 | AC167: 25.97770506 | AD167: 234.849597 | AE167: 10.64609277 | AF167: 38.62211761 | AG167: 128.2617369
A168: 0303MTOTAL | B168: 03 | C168: 03M | F168: 9.282661197e-05 | G168: -0.01156226708 | H168: 0.1219092303 | I168: -0.6472836958 | J168: -0.06331806048 | K168: -0.02656726084 | L168: -0.1006375607 | M168: -0.02697201734 | N168: 0.07300890408 | O168: 575.4214883 | P168: 124.3357979 | Q168: 2.528101188 | R168: 0.3643025231 | S168: 0 | T168: 57.01624886 | U168: 134.4641012 | V168: 17.9509833 | W168: 50.24251554 | X168: 188.5194379 | Y168: 575.3680789 | Z168: 125.7902179 | AA168: 2.253391915 | AB168: 1.032848549 | AC168: 60.87044754 | AD168: 138.1339417 | AE168: 19.95967645 | AF168: 51.63522163 | AG168: 175.6923332
A169: 03TOTAL | B169: 03 | F169: 0.00855590201 | G169: 0.01597455187 | H169: 0.03097695479 | I169: -0.3584890465 | J169: -0.03148035064 | K169: 0.01263834177 | L169: -0.07742609547 | M169: 0.03332044848 | N169: 0.02244570639 | O169: 782.045842 | P169: 107.5584466 | Q169: 0.9433047426 | R169: 0.1923434543 | S169: 0 | T169: 107.4309045 | U169: 152.9526461 | V169: 32.45024796 | W169: 94.73511443 | X169: 285.7828343 | Y169: 775.4114973 | Z169: 105.8672645 | AA169: 0.9149620059 | AB169: 0.2998287921 | AC169: 110.9227929 | AD169: 151.0437042 | AE169: 35.17360268 | AF169: 91.68028618 | AG169: 279.509056
A170: 0404C04C0204C021 | B170: 04 | C170: 04C | D170: 04C02 | E170: 04C021 | F170: -0.0363755089 | G170: -0.06860661033 | H170: 0.002051417087 | I170: -0.1293238553 | J170: -0.19812253 | K170: 0.02371184478 | L170: -0.1209426696 | M170: 0.005118910424 | N170: -0.009110991274 | O170: 5906.667547 | P170: 506.0898749 | Q170: 570.9946797 | R170: 217.4323111 | S170: 0 | T170: 529.8507974 | U170: 653.4749837 | V170: 177.6426481 | W170: 1088.1477 | X170: 2163.034552 | Y170: 6129.636182 | Z170: 543.3685492 | AA170: 569.8257295 | AB170: 249.7281135 | AC170: 660.7627938 | AD170: 638.3387934 | AE170: 202.0831202 | AF170: 1082.605937 | AG170: 2182.923146
A171: 0404C04C0204C022 | B171: 04 | C171: 04C | D171: 04C02 | E171: 04C022 | F171: -0.04597658255 | G171: -0.09724294022 | H171: -0.1209584634 | I171: 0.1417849427 | J171: -0.175812898 | K171: 0.01064122851 | L171: -0.2079930814 | M171: -0.1169146885 | N171: 0.0266050628 | O171: 7862.182415 | P171: 683.1178597 | Q171: 709.8151801 | R171: 517.9280684 | S171: 0 | T171: 671.3987109 | U171: 891.4143117 | V171: 214.1243842 | W171: 1200.628221 | X171: 2973.75568 | Y171: 8241.079067 | Z171: 756.7017641 | AA171: 807.4876448 | AB171: 453.6126279 | AC171: 814.6192889 | AD171: 882.0284454 | AE171: 270.3567093 | AF171: 1359.583502 | AG171: 2896.689085
A172: 0404C04C0204C023 | B172: 04 | C172: 04C | D172: 04C02 | E172: 04C023 | F172: -0.0373568217 | G172: -0.08080438377 | H172: -0.07287175172 | I172: 0.1177612328 | J172: -0.2739651131 | K172: 0.1261115744 | L172: -0.2424891979 | M172: -0.04201219253 | N172: -0.01165049076 | O172: 10156.30148 | P172: 886.7785806 | Q172: 1064.286378 | R172: 761.0833481 | S172: 0 | T172: 727.3489069 | U172: 1301.430817 | V172: 235.4793357 | W172: 1482.900479 | X172: 3696.993637 | Y172: 10550.43209 | Z172: 964.733257 | AA172: 1147.938681 | AB172: 680.8997537 | AC172: 1001.809858 | AD172: 1155.685499 | AE172: 310.8593765 | AF172: 1547.932518 | AG172: 3740.573149
A173: 0404C04C0204C024 | B173: 04 | C173: 04C | D173: 04C02 | E173: 04C024 | F173: 0.1343922648 | G173: -0.2387974016 | H173: 0.008601220651 | I173: 0.240148532 | J173: -0.09909701549 | K173: 0.1487655623 | L173: 0.0378147491 | M173: 0.3700836116 | N173: 0.1179327724 | O173: 19390.48871 | P173: 844.831761 | Q173: 2227.166814 | R173: 2123.508622 | S173: 431.5319268 | T173: 1144.208961 | U173: 2210.308733 | V173: 361.5502203 | W173: 2836.980898 | X173: 7210.400769 | Y173: 17093.28361 | Z173: 1109.864526 | AA173: 2208.173824 | AB173: 1712.301847 | AC173: 1270.069009 | AD173: 1924.07294 | AE173: 348.3764521 | AF173: 2070.662603 | AG173: 6449.762407
A174: 0404C04C02TOTAL | B174: 04 | C174: 04C | D174: 04C02 | F174: -0.01029554888 | G174: -0.0957701306 | H174: -0.05149357774 | I174: 0.1187519416 | J174: -0.1863497086 | K174: 0.06072266194 | L174: -0.1589530859 | M174: -0.009737881019 | N174: 0.02980878923 | O174: 8225.972154 | P174: 652.9925747 | Q174: 809.9957278 | R174: 547.9136752 | S174: 30.60067209 | T174: 657.8403073 | U174: 946.6672674 | V174: 213.3400748 | W174: 1310.015467 | X174: 3056.606388 | Y174: 8311.544063 | Z174: 722.1532895 | AA174: 853.9696821 | AB174: 489.7543905 | AC174: 808.5049735 | AD174: 892.4738778 | AE174: 253.6601363 | AF174: 1322.897687 | AG174: 2968.130026
A175: 0404C04C0304C031 | B175: 04 | C175: 04C | D175: 04C03 | E175: 04C031 | F175: 0.09227984357 | G175: -0.05694006043 | H175: 7.873218128 | I175: 2.112528428 | J175: -0.07098004217 | K175: 0.01608973282 | L175: -0.1819012064 | M175: 0.3829822295 | N175: 0.07542194477 | O175: 1736.768139 | P175: 232.2878408 | Q175: 49.86271193 | R175: 43.90980903 | S175: 0 | T175: 174.99814 | U175: 232.214113 | V175: 54.25165436 | W175: 202.5762306 | X175: 746.6676396 | Y175: 1590.039539 | Z175: 246.312913 | AA175: 5.619461982 | AB175: 14.10744032 | AC175: 188.3685475 | AD175: 228.5370135 | AE175: 66.31430676 | AF175: 146.4778262 | AG175: 694.3020302
A176: 0404C04C03TOTAL | B176: 04 | C176: 04C | D176: 04C03 | F176: 0.09227984357 | G176: -0.05694006043 | H176: 7.873218128 | I176: 2.112528428 | J176: -0.07098004217 | K176: 0.01608973282 | L176: -0.1819012064 | M176: 0.3829822295 | N176: 0.07542194477 | O176: 1736.768139 | P176: 232.2878408 | Q176: 49.86271193 | R176: 43.90980903 | S176: 0 | T176: 174.99814 | U176: 232.214113 | V176: 54.25165436 | W176: 202.5762306 | X176: 746.6676396 | Y176: 1590.039539 | Z176: 246.312913 | AA176: 5.619461982 | AB176: 14.10744032 | AC176: 188.3685475 | AD176: 228.5370135 | AE176: 66.31430676 | AF176: 146.4778262 | AG176: 694.3020302
A177: 0404C04C0404C041 | B177: 04 | C177: 04C | D177: 04C04 | E177: 04C041 | F177: -0.06303111699 | G177: -0.03957512667 | H177: -0.1084047032 | I177: -0.2444061459 | J177: -0.1738189535 | K177: 0.05467392172 | L177: -0.2673908651 | M177: -0.07218496563 | N177: -0.02059174425 | O177: 4307.727164 | P177: 537.211821 | Q177: 326.5428727 | R177: 244.2867333 | S177: 0 | T177: 310.8417777 | U177: 607.3430978 | V177: 101.6214866 | W177: 565.2926722 | X177: 1614.586703 | Y177: 4597.51358 | Z177: 559.3480926 | AA177: 366.2456205 | AB177: 323.3042884 | AC177: 376.2392989 | AD177: 575.8586472 | AE177: 138.7117383 | AF177: 609.2730245 | AG177: 1648.53287
A178: 0404C04C0404C042 | B178: 04 | C178: 04C | D178: 04C04 | E178: 04C042 | F178: -0.09142966896 | G178: -0.09977799612 | H178: -0.01837813775 | I178: -0.07966663702 | J178: -0.2861806948 | K178: 0.08067942972 | L178: -0.2119612097 | M178: -0.1931022331 | N178: -0.08440234133 | O178: 5344.73058 | P178: 686.2529747 | Q178: 519.023499 | R178: 333.1409621 | S178: 0 | T178: 345.665344 | U178: 846.1019216 | V178: 121.7924219 | W178: 579.4883575 | X178: 1913.265099 | Y178: 5882.57221 | Z178: 762.3152642 | AA178: 528.7407697 | AB178: 361.9785781 | AC178: 484.2476821 | AD178: 782.9351595 | AE178: 154.551303 | AF178: 718.1682503 | AG178: 2089.635203
A179: 0404C04C04TOTAL | B179: 04 | C179: 04C | D179: 04C04 | F179: -0.06977301386 | G179: -0.06104428256 | H179: -0.04994582222 | I179: -0.1653115699 | J179: -0.2233688458 | K179: 0.07854015913 | L179: -0.2392399603 | M179: -0.1250060943 | N179: -0.04481226434 | O179: 4757.778192 | P179: 601.8944666 | Q179: 410.0778952 | R179: 282.8487442 | S179: 0 | T179: 325.9549215 | U179: 710.9624807 | V179: 110.375508 | W179: 571.4534839 | X179: 1744.210692 | Y179: 5114.642192 | Z179: 641.0254023 | AA179: 431.6363264 | AB179: 338.8674552 | AC179: 419.703639 | AD179: 659.1896229 | AE179: 145.0858382 | AF179: 653.0942446 | AG179: 1826.039664
A180: 0404CTOTAL | B180: 04 | C180: 04C | F180: -0.01598269622 | G180: -0.08263294213 | H180: -0.0391805392 | I180: 0.06068825988 | J180: -0.1855706264 | K180: 0.0686446834 | L180: -0.1709575285 | M180: -0.01976528327 | N180: 0.02018467304 | O180: 6744.526992 | P180: 607.8849396 | Q180: 638.3206417 | R180: 434.1141646 | S180: 19.43837508 | T180: 525.9671189 | U180: 826.4042069 | V180: 171.762222 | W180: 1014.191848 | X180: 2506.443476 | Y180: 6854.073568 | Z180: 662.6409073 | AA180: 664.3502424 | AB180: 409.2759211 | AC180: 645.8105957 | AD180: 773.3199068 | AE180: 207.1814508 | AF180: 1034.641837 | AG180: 2456.852707
A181: 0404K04K0204K02J | B181: 04 | C181: 04K | D181: 04K02 | E181: 04K02J | F181: 0.08906649933 | G181: 0.0181490609 | J181: 0.09364860308 | K181: 0.1252035914 | L181: -0.3149335195 | M181: 0.8854894869 | N181: 0.01681856136 | O181: 573.5879245 | P181: 56.80904889 | Q181: 0 | R181: 0.5241178846 | S181: 0 | T181: 61.06896444 | U181: 114.9313713 | V181: 14.12513551 | W181: 62.79918966 | X181: 263.3300968 | Y181: 526.678513 | Z181: 55.79639669 | AA181: 0 | AB181: 0 | AC181: 55.83965844 | AD181: 102.1427342 | AE181: 20.61863471 | AF181: 33.3065711 | AG181: 258.9745179
A182: 0404K04K02TOTAL | B182: 04 | C182: 04K | D182: 04K02 | F182: 0.08906649933 | G182: 0.0181490609 | J182: 0.09364860308 | K182: 0.1252035914 | L182: -0.3149335195 | M182: 0.8854894869 | N182: 0.01681856136 | O182: 573.5879245 | P182: 56.80904889 | Q182: 0 | R182: 0.5241178846 | S182: 0 | T182: 61.06896444 | U182: 114.9313713 | V182: 14.12513551 | W182: 62.79918966 | X182: 263.3300968 | Y182: 526.678513 | Z182: 55.79639669 | AA182: 0 | AB182: 0 | AC182: 55.83965844 | AD182: 102.1427342 | AE182: 20.61863471 | AF182: 33.3065711 | AG182: 258.9745179
A183: 0404KTOTAL | B183: 04 | C183: 04K | F183: 0.08906649933 | G183: 0.0181490609 | J183: 0.09364860308 | K183: 0.1252035914 | L183: -0.3149335195 | M183: 0.8854894869 | N183: 0.01681856136 | O183: 573.5879245 | P183: 56.80904889 | Q183: 0 | R183: 0.5241178846 | S183: 0 | T183: 61.06896444 | U183: 114.9313713 | V183: 14.12513551 | W183: 62.79918966 | X183: 263.3300968 | Y183: 526.678513 | Z183: 55.79639669 | AA183: 0 | AB183: 0 | AC183: 55.83965844 | AD183: 102.1427342 | AE183: 20.61863471 | AF183: 33.3065711 | AG183: 258.9745179
A184: 0404M04M0304M031 | B184: 04 | C184: 04M | D184: 04M03 | E184: 04M031 | F184: -0.02877960576 | G184: 0.02671089178 | I184: -0.6984381968 | J184: -0.1746997179 | K184: 0.07031905623 | L184: 0.001253262233 | M184: -0.007971666537 | N184: -0.05108867383 | O184: 1534.611164 | P184: 483.0685118 | Q184: 19.86844896 | R184: 29.83522543 | S184: 0 | T184: 32.2319625 | U184: 375.389678 | V184: 20.56797987 | W184: 91.90275715 | X184: 481.7466004 | Y184: 1580.085399 | Z184: 470.5010102 | AA184: 0 | AB184: 98.93569118 | AC184: 39.05483034 | AD184: 350.7268938 | AE184: 20.54223507 | AF184: 92.6412624 | AG184: 507.6834759
A185: 0404M04M0304M032 | B185: 04 | C185: 04M | D185: 04M03 | E185: 04M032 | F185: -0.05691628344 | G185: -0.06226844563 | H185: 0.8500216771 | I185: -0.5795408436 | J185: -0.6291967512 | K185: 0.08024683441 | L185: -0.2181660728 | M185: -0.1183192637 | N185: -0.05597255978 | O185: 2277.970797 | P185: 791.8441419 | Q185: 56.62656897 | R185: 41.85343973 | S185: 0 | T185: 21.78842116 | U185: 592.3335727 | V185: 26.53069746 | W185: 114.3209759 | X185: 632.6729794 | Y185: 2415.449188 | Z185: 844.4251857 | AA185: 30.60859755 | AB185: 99.54222447 | AC185: 58.76006004 | AD185: 548.3316903 | AE185: 33.93392961 | AF185: 129.6625538 | AG185: 670.1849464
A186: 0404M04M0304M033 | B186: 04 | C186: 04M | D186: 04M03 | E186: 04M033 | F186: -0.0390197589 | G186: -0.02934063879 | H186: 0.01721901098 | I186: -0.3908229981 | J186: -0.6677233541 | K186: 0.09240944719 | L186: -0.2699290477 | M186: -0.01484438184 | N186: -0.06620045038 | O186: 3407.459444 | P186: 1192.241129 | Q186: 97.91309218 | R186: 57.58558217 | S186: 0 | T186: 30.25109514 | U186: 881.3269836 | V186: 38.11296589 | W186: 214.8031381 | X186: 895.2254575 | Y186: 3545.816342 | Z186: 1228.279638 | AA186: 96.25566483 | AB186: 94.53013162 | AC186: 91.0418939 | AD186: 806.7734912 | AE186: 52.20446831 | AF186: 218.0398042 | AG186: 958.69125
A187: 0404M04M0304M03T | B187: 04 | C187: 04M | D187: 04M03 | E187: 04M03T | F187: -0.0002534696913 | G187: 0.002222393387 | J187: 0.1099174963 | K187: 0.09822843545 | L187: 0.1303385086 | M187: -0.03067229736 | N187: -0.0390281821 | O187: 546.0079216 | P187: 168.807736 | Q187: 1.419047901 | R187: 0 | S187: 0 | T187: 37.14698439 | U187: 115.1020645 | V187: 8.387231654 | W187: 31.86419531 | X187: 183.2806619 | Y187: 546.1463532 | Z187: 168.4334107 | AA187: 0 | AB187: 8.420810064 | AC187: 33.46823932 | AD187: 104.8070336 | AE187: 7.420106093 | AF187: 32.87246946 | AG187: 190.724284
A188: 0404M04M03TOTAL | B188: 04 | C188: 04M | D188: 04M03 | F188: -0.04542973843 | G188: -0.0344871399 | H188: 0.2899003412 | I188: -0.5536275186 | J188: -0.4813535395 | K188: 0.07952417222 | L188: -0.2005315997 | M188: -0.04444657469 | N188: -0.06522351647 | O188: 2045.904375 | P188: 698.7952127 | Q188: 48.49239974 | R188: 33.6550066 | S188: 0 | T188: 30.46512431 | U188: 519.037691 | V188: 24.35848641 | W188: 120.6036867 | X188: 570.4967673 | Y188: 2143.272693 | Z188: 723.7554688 | AA188: 37.59391186 | AB188: 75.39668775 | AC188: 58.73967458 | AD188: 480.8022871 | AE188: 30.46835422 | AF188: 126.2134418 | AG188: 610.3028664
A189: 0404M04M0504M051 | B189: 04 | C189: 04M | D189: 04M05 | E189: 04M051 | F189: -0.008054248519 | G189: 0.02003079314 | H189: 4.1922665 | I189: -0.9581412028 | J189: -0.1356963965 | K189: 0.07737998919 | L189: -0.1248841203 | M189: 0.02682571674 | N189: -0.01898248719 | O189: 2084.081025 | P189: 703.8873882 | Q189: 23.3458487 | R189: 2.997766659 | S189: 0 | T189: 39.66402647 | U189: 537.9703258 | V189: 23.25218813 | W189: 98.98186218 | X189: 653.9816188 | Y189: 2101.003025 | Z189: 690.0648421 | AA189: 4.496273197 | AB189: 71.61616816 | AC189: 45.89131216 | AD189: 499.3320195 | AE189: 26.57041047 | AF189: 96.39597117 | AG189: 666.6360287
A190: 0404M04M0504M052 | B190: 04 | C190: 04M | D190: 04M05 | E190: 04M052 | F190: -0.04958699472 | G190: 0.00771766476 | H190: 0.2231142501 | I190: -0.6982938427 | J190: -0.5824346717 | K190: 0.0568796455 | L190: -0.2572390883 | M190: -0.08261276826 | N190: -0.03556751615 | O190: 3302.324777 | P190: 1091.412892 | Q190: 84.39435152 | R190: 48.55654121 | S190: 5.159975215 | T190: 49.90907863 | U190: 866.0080403 | V190: 40.35377901 | W190: 200.5905943 | X190: 915.9395249 | Y190: 3474.620779 | Z190: 1083.054242 | AA190: 68.99956526 | AB190: 160.9398418 | AC190: 119.5240008 | AD190: 819.4008125 | AE190: 54.32943276 | AF190: 218.6542251 | AG190: 949.7186586
A191: 0404M04M0504M053 | B191: 04 | C191: 04M | D191: 04M05 | E191: 04M053 | F191: 0.2357643026 | G191: -0.05038169371 | H191: 3.938418482 | I191: 0.703475744 | J191: 0.8896046154 | K191: 0.08827316681 | L191: 0.1242041754 | M191: 0.6167339537 | N191: 0.2842172654 | O191: 5010.590234 | P191: 1385.884889 | Q191: 478.2554585 | R191: 110.6459109 | S191: 0 | T191: 98.62618697 | U191: 1133.361851 | V191: 60.18093706 | W191: 446.1946201 | X191: 1297.44038 | Y191: 4054.648789 | Z191: 1459.412566 | AA191: 96.84384996 | AB191: 64.95302987 | AC191: 52.19408662 | AD191: 1041.431403 | AE191: 53.53203481 | AF191: 275.9851855 | AG191: 1010.296634
A192: 0404M04M0504M05T | B192: 04 | C192: 04M | D192: 04M05 | E192: 04M05T | F192: -0.1029419462 | G192: -0.2371824818 | I192: 0.006625816807 | J192: 0.01940000634 | K192: 0.009725667622 | L192: -0.2596761914 | M192: -0.502684315 | N192: -0.01245837337 | O192: 630.9060572 | P192: 165.2282315 | Q192: 8.566852313 | R192: 2.368104446 | S192: 0 | T192: 37.163612 | U192: 114.9599125 | V192: 8.731610825 | W192: 24.69701224 | X192: 269.1907213 | Y192: 703.3057164 | Z192: 216.6025656 | AA192: 0 | AB192: 2.352517099 | AC192: 36.45635842 | AD192: 113.8526198 | AE192: 11.79431314 | AF192: 49.66063404 | AG192: 272.5867083
A193: 0404M04M05TOTAL | B193: 04 | C193: 04M | D193: 04M05 | F193: 0.04247434956 | G193: -0.008812554218 | H193: 1.950736528 | I193: -0.5684956508 | J193: -0.2528541636 | K193: 0.07714509541 | L193: -0.1275871568 | M193: 0.1460059675 | N193: 0.05030058469 | O193: 2844.983934 | P193: 887.4998688 | Q193: 127.8875487 | R193: 39.85654481 | S193: 1.932820623 | T193: 53.99253268 | U193: 702.0996081 | V193: 34.12206342 | W193: 189.1351434 | X193: 808.4578031 | Y193: 2729.068523 | Z193: 895.3905466 | AA193: 43.34089048 | AB193: 92.36649614 | AC193: 72.26505195 | AD193: 651.8152579 | AE193: 39.1122892 | AF193: 165.0385328 | AG193: 769.7394583
A194: 0404M04M0704M071 | B194: 04 | C194: 04M | D194: 04M07 | E194: 04M071 | F194: 0.0239503374 | G194: 0.02087215218 | H194: -0.2093466513 | J194: -0.3279134499 | K194: 0.07704777929 | L194: -0.1598130337 | M194: 0.2629540627 | N194: 0.1229684437 | O194: 2153.4517 | P194: 628.0386625 | Q194: 160.0362673 | R194: 0 | S194: 0 | T194: 37.73856913 | U194: 486.436058 | V194: 26.04255094 | W194: 216.399108 | X194: 598.760484 | Y194: 2103.082172 | Z194: 615.198153 | AA194: 202.4101556 | AB194: 42.15003678 | AC194: 56.15135301 | AD194: 451.6383278 | AE194: 30.99613774 | AF194: 171.3436097 | AG194: 533.1943986
A195: 0404M04M0704M072 | B195: 04 | C195: 04M | D195: 04M07 | E195: 04M072 | F195: 0.06395331535 | G195: 0.06075487373 | H195: -0.1784579575 | J195: -0.3016568411 | K195: 0.1191251311 | L195: -0.126989195 | M195: 0.3122942716 | N195: 0.166839792 | O195: 4282.37006 | P195: 1248.922353 | Q195: 318.249311 | R195: 0 | S195: 0 | T195: 75.04719913 | U195: 967.3303612 | V195: 51.78841041 | W195: 430.332875 | X195: 1190.69955 | Y195: 4024.960492 | Z195: 1177.390163 | AA195: 387.3804316 | AB195: 80.66838046 | AC195: 107.4646442 | AD195: 864.363005 | AE195: 59.32161448 | AF195: 327.9240673 | AG195: 1020.448187
A196: 0404M04M0704M073 | B196: 04 | C196: 04M | D196: 04M07 | E196: 04M073 | F196: NC | G196: NC | H196: NC | I196: NC | J196: NC | K196: NC | L196: NC | M196: NC | N196: NC | O196: 5944.840132 | P196: 1598.93367 | Q196: 561.9857001 | R196: 147.6469482 | S196: 0 | T196: 79.6961049 | U196: 1301.690012 | V196: 80.00469617 | W196: 639.8115862 | X196: 1535.071414
A197: 0404M04M07TOTAL | B197: 04 | C197: 04M | D197: 04M07 | F197: =O197/Y197-1 -> 0.3708759184 | G197: =P197/Z197-1 -> 0.3110035077 | H197: =Q197/AA197-1 -> 0.2095755947 | I197: =R197/AB197-1 -> -0.10897396 | J197: =T197/AC197-1 -> -0.2111232603 | K197: =U197/AD197-1 -> 0.4187757427 | L197: =V197/AE197-1 -> 0.1914172202 | M197: =W197/AF197-1 -> 0.7538286195 | N197: =X197/AG197-1 -> 0.4472093971 | O197: 4378.856492 | P197: 1224.969286 | Q197: 371.8532977 | R197: 57.0419912 | S197: 0 | T197: 67.27840692 | U197: 973.2196482 | V197: 56.08901046 | W197: 456.4165541 | X197: 1171.988297 | Y197: 3194.20338 | Z197: 934.3752924 | AA197: 307.4246036 | AB197: 64.01832117 | AC197: 85.28380105 | AD197: 685.9573497 | AE197: 47.07755562 | AF197: 260.2401107 | AG197: 809.8263456
A198: 0404M04M0804M081 | B198: 04 | C198: 04M | D198: 04M08 | E198: 04M081 | F198: 0.0200147245 | G198: 0.07598410843 | H198: -0.466436841 | I198: -0.5465217949 | J198: -0.3407709342 | K198: 0.09099101496 | L198: 0.2970481287 | M198: 0.1880022423 | N198: 0.02083267084 | O198: 1542.632461 | P198: 469.6735597 | Q198: 1.007062801 | R198: 38.101989 | S198: 0 | T198: 34.93954201 | U198: 374.2488044 | V198: 25.72647704 | W198: 91.66441906 | X198: 507.270607 | Y198: 1512.362934 | Z198: 436.5060376 | AA198: 1.887429416 | AB198: 84.02165436 | AC198: 53.00060908 | AD198: 343.0356431 | AE198: 19.83463564 | AF198: 77.15845627 | AG198: 496.9184682
A199: 0404M04M0804M082 | B199: 04 | C199: 04M | D199: 04M08 | E199: 04M082 | F199: -0.04715236694 | G199: -0.06357403923 | H199: 1.950034273 | I199: -0.1531453062 | J199: -0.7856336707 | K199: -0.04764470083 | L199: -0.0411297388 | M199: 0.1711369298 | N199: -0.04755929416 | O199: 2962.683726 | P199: 953.3122041 | Q199: 103.4535359 | R199: 98.85545176 | S199: 0 | T199: 21.52677679 | U199: 764.2132069 | V199: 39.71490646 | W199: 180.7949708 | X199: 800.8126731 | Y199: 3109.294312 | Z199: 1018.032652 | AA199: 35.06858778 | AB199: 116.7324837 | AC199: 100.4205131 | AD199: 802.4454818 | AE199: 41.41843591 | AF199: 154.3756039 | AG199: 840.8005539
A200: 0404M04M0804M083 | B200: 04 | C200: 04M | D200: 04M08 | E200: 04M083 | F200: 0.06890921214 | G200: 0.2091141412 | H200: 1.170331788 | I200: -0.9244178781 | J200: -0.5840848235 | K200: 0.1580460906 | L200: -0.2843744269 | M200: 0.06977636653 | N200: 0.02390389067 | O200: 4332.66351 | P200: 1558.961552 | Q200: 240.6879586 | R200: 21.23602401 | S200: 0 | T200: 29.26963381 | U200: 1145.420224 | V200: 42.18790772 | W200: 261.4763753 | X200: 1033.423835 | Y200: 4053.350333 | Z200: 1289.341923 | AA200: 110.8991537 | AB200: 280.9662321 | AC200: 70.37404613 | AD200: 989.0972677 | AE200: 58.95248759 | AF200: 244.4215291 | AG200: 1009.297693
... 1081 more rows

Sheet Accueil
A1: REFERENTIEL DE COUTS Données 2012 Classification v11f
A2: Secteur ex OQN
A4: Ce référentiel fournit des données de coûts complets par GHM, hors coûts de structure
A5: (lesquels sont isolés dans une colonne spécifique).
A7: ATTENTION : les coûts complets ne sont pas directement comparables aux tarifs, compte tenu des
A8: différences de périmètre existant entre ces deux concepts.
A9: En particulier, les coûts complets incluent les activités financées en supplément
A10: (exemple : suppléments de réanimation) ou en sus du tarif (exemple : molécules onéreuses).
A12: ACCES

Sheet accueil synthèse (hidden)
A1: FICHES SYNTHETIQUES DE PRESENTATION DES COUTS
A4: Sélection par CMD | E4: Sélection par sous CMD | I4: Sélection par racine | M4: Sélection par GHM

Sheet synthèse CMD (hidden)
A1: Fiche de synthèse CMD | J1: =CONCATENATE(B4,B5,B6,B7) -> 02TOTAL
K2: 01
A3: Identification de la catégorie majeure de diagnostics (CMD) | K3: 02
A4: CMD | B4: 02 | K4: 03
A5: sous CMD | K5: 04
A6: racine | K6: 05
A7: GHM | B7: TOTAL | K7: 06
A8: Libellé | B8: =IF(B4<>"",VLOOKUP(J1,'Coûts 12 décomposés gds postes'!A:AV,6,FALSE),"") -> Affections de l'oeil | K8: 07
C9: 2012 | D9: 2011 | E9: Evolution | K9: 08
A10: Coût moyen du séjour | C10: =IF($B$4<>"",VLOOKUP($J$1,'Coûts 12 décomposés gds postes'!$A:$J,10,FALSE),"") -> 1148.165858 | D10: =IF($B$4<>"",IF(ISNA(VLOOKUP($J$1,evolutions!A:Y,25,FALSE)),"NC",VLOOKUP($J$1,evolutions!A:Y,25,FALSE)),"") -> 1116.750094 | E10: =IF($B$4<>"",VLOOKUP($J$1,evolutions!$A:$N,6,FALSE),"") -> 0.02813141787 | G10: Coût moyen | H10: Part des postes détaillés dans chaque sous poste | K10: 09
K11: 10
A12: Nombre de séjours ENC | C12: =IF($B$4<>"",VLOOKUP($J$1,'Coûts 12 décomposés gds postes'!$A:$J,8,FALSE),"") -> 32782 | D12: =IF($B$4<>"",IF(ISNA(VLOOKUP($J$1,'Coûts 11 décomposés gds postes'!$A:$M,8,FALSE)),"NC",VLOOKUP($J$1,'Coûts 11 décomposés gds postes'!$A:$M,8,FALSE)),"") -> 31360 | E12: =IF($B$4<>"",IF(D12<>"",IF(D12<>"NC",IF(C12<>"",C12/D12-1,""),""),""),"") -> 0.04534438776 | K12: 11
K13: 12
K14: 13
F15: Médico technique: anesthésie | G15: =IF($B$4<>"",VLOOKUP($J$1,'Coûts 12 décomposés gds postes'!$A:$AT,16,FALSE),"") -> 31.56276087 | H15: =IF(C10<>"",IF(B24<>0,(G15+G16+G17)/B24,""),"") -> 0.999826893 | K15: 14
F16: Médico technique: bloc | G16: =IF($B$4<>"",VLOOKUP($J$1,'Coûts 12 décomposés gds postes'!$A:$AT,17,FALSE),"") -> 114.7710109 | K16: 15
F17: Médico technique: urgences | G17: =IF($B$4<>"",VLOOKUP($J$1,'Coûts 12 décomposés gds postes'!$A:$AT,19,FALSE),"") -> 0.04543819548 | K17: 16
K18: 17
B19: Coût moyen 2012 | C19: Poids dans le coût du GHM | D19: Evolution 2012/2011 | F19: Logistique Médicale: Pharmacie | G19: =IF($B$4<>"",VLOOKUP($J$1,'Coûts 12 décomposés gds postes'!$A:$AT,28,FALSE),"") -> 11.43196771 | H19: =IF(B4<>"",IF(C10<>0,(G19+G20+G21)/B25,""),"") -> 0.9722756528 | K19: 18
A20: Activités cliniques MCO (avec hébergement, hors Réa, SI, SC) | B20: =IF($B$4<>"",VLOOKUP($J$1,'Coûts 12 décomposés gds postes'!$A:$AT,11,FALSE),"") -> 85.32939856 | C20: =IF($C$10<>"",B20/$C$10,"") -> 0.07431800726 | D20: =IF($B$4<>"",VLOOKUP($J$1,evolutions!$A:$N,7,FALSE),"") -> -0.01304878585 | F20: Logistique Médicale: Stérilisation | G20: =IF($B$4<>"",VLOOKUP($J$1,'Coûts 12 décomposés gds postes'!$A:$AT,29,FALSE),"") -> 21.72085135 | K20: 20
A21: Activité de soins intensifs | B21: =IF($B$4<>"",VLOOKUP($J$1,'Coûts 12 décomposés gds postes'!A:AT,13,FALSE),"") -> 0.01673257357 | C21: 1.457330703e-05 | D21: =IF($B$4<>"",VLOOKUP($J$1,evolutions!$A:$N,9,FALSE),"") -> -0.1326025587 | F21: Logistique Médicale: Génie Biomédical | G21: =IF($B$4<>"",VLOOKUP($J$1,'Coûts 12 décomposés gds postes'!$A:$AT,30,FALSE),"") -> 4.630110648 | K21: 21
A22: Activité de surveillance continue | B22: =IF($B$4<>"",VLOOKUP($J$1,'Coûts 12 décomposés gds postes'!A:AT,12,FALSE),"") -> 0.07109205738 | C22: 6.191793362e-05 | D22: =IF($B$4<>"",VLOOKUP($J$1,evolutions!$A:$N,8,FALSE),"") -> -0.2476948223 | K22: 23
A23: Activité de réanimation | B23: =IF($B$4<>"",VLOOKUP($J$1,'Coûts 12 décomposés gds postes'!A:AT,14,FALSE),"") -> 0 | C23: =IF($C$10<>"",B23/$C$10,"") -> 0 | F23: Logistique générale: Blanchisserie | G23: =IF($B$4<>"",VLOOKUP($J$1,'Coûts 12 décomposés gds postes'!$A:$AT,21,FALSE),"") -> 5.394423351 | H23: =IF(C10<>"",IF(B26<>0,(G23+G24+G25+G26+G27+G28)/B26,""),"") -> 0.8495730004 | K23: 28
A24: Activités Médico-techniques | B24: =IF($B$4<>"",VLOOKUP($J$1,'Coûts 12 décomposés gds postes'!A:AT,20,FALSE),"") -> 146.4045536 | C24: 0.1275116767 | D24: =IF($B$4<>"",VLOOKUP($J$1,evolutions!$A:$N,10,FALSE),"") -> 0.007175915248 | F24: Logistique générale: Restauration | G24: =IF($B$4<>"",VLOOKUP($J$1,'Coûts 12 décomposés gds postes'!$A:$AT,22,FALSE),"") -> 12.74976771 | K24: TOTAL
A25: Logistique Médicale | B25: =IF($B$4<>"",VLOOKUP($J$1,'Coûts 12 décomposés gds postes'!A:AT,31,FALSE),"") -> 38.86030634 | C25: 0.03384555121 | D25: =IF($B$4<>"",VLOOKUP($J$1,evolutions!$A:$N,12,FALSE),"") -> -0.3399002408 | F25: Logistique générale: Accueil et gestion des malades | G25: =IF($B$4<>"",VLOOKUP($J$1,'Coûts 12 décomposés gds postes'!$A:$AT,23,FALSE),"") -> 19.57192079
A26: Logistique générale | B26: =IF($B$4<>"",VLOOKUP($J$1,'Coûts 12 décomposés gds postes'!A:AT,27,FALSE),"") -> 167.8519963 | C26: 0.1461914193 | D26: =IF($B$4<>"",VLOOKUP($J$1,evolutions!$A:$N,11,FALSE),"") -> 0.0282856023 | F26: Logistique générale: Services administratifs à caractère général | G26: =IF($B$4<>"",VLOOKUP($J$1,'Coûts 12 décomposés gds postes'!$A:$AT,24,FALSE),"") -> 58.72974677
A27: Charges directes | B27: =IF($B$4<>"",VLOOKUP($J$1,'Coûts 12 décomposés gds postes'!A:AT,37,FALSE),"") -> 295.588953 | C27: 0.257444472 | D27: =IF($B$4<>"",VLOOKUP($J$1,evolutions!$A:$N,13,FALSE),"") -> 0.1365350239 | F27: Logistique générale: Entretien maintenance | G27: =IF($B$4<>"",VLOOKUP($J$1,'Coûts 12 décomposés gds postes'!$A:$AT,25,FALSE),"") -> 15.90234805
A28: Honoraires | B28: =IF($B$4<>"",VLOOKUP($J$1,'Coûts 12 décomposés gds postes'!A:AT,43,FALSE),"") -> 414.0428254 | C28: 0.3606123824 | D28: =IF($B$4<>"",VLOOKUP($J$1,evolutions!$A:$N,14,FALSE),"") -> 0.02833782615 | F28: Logistique générale: Services hôteliers | G28: =IF($B$4<>"",VLOOKUP($J$1,'Coûts 12 décomposés gds postes'!$A:$AT,26,FALSE),"") -> 30.25431747
F30: Charges directes: Autres consommables | G30: =IF($B$4<>"",VLOOKUP($J$1,'Coûts 12 décomposés gds postes'!$A:$AT,36,FALSE),"") -> 119.7324717 | H30: =IF(C10<>"",IF(B27<>0,(G30+G31+G32)/B27,""),"") -> 0.4069948395
F31: Charges directes: Spécialités pharmaceutiques facturables en sus | G31: =IF($B$4<>"",VLOOKUP($J$1,'Coûts 12 décomposés gds postes'!$A:$AT,32,FALSE),"") -> 0.4559803865
F32: Charges directes: DMI facturables en sus | G32: =IF($B$4<>"",VLOOKUP($J$1,'Coûts 12 décomposés gds postes'!$A:$AT,34,FALSE),"") -> 0.1147263521
F34: Honoraires médicaux: Laboratoires autres | G34: =IF($B$4<>"",VLOOKUP($J$1,'Coûts 12 décomposés gds postes'!$A:$AT,38,FALSE),"") -> 0.9938609482 | H34: =IF(C10<>"",IF(B28<>0,(G34+G35+G36+G37)/B28,""),"") -> 0.9698622508
F35: Honoraires médicaux: imagerie | G35: =IF($B$4<>"",VLOOKUP($J$1,'Coûts 12 décomposés gds postes'!$A:$AT,39,FALSE),"") -> 0.2162076258
A36: Données de coûts: ENCC ex OQN 2012 | F36: Honoraires médicaux: anesthésie | G36: =IF($B$4<>"",VLOOKUP($J$1,'Coûts 12 décomposés gds postes'!$A:$AT,40,FALSE),"") -> 132.3906745
F37: Honoraires médicaux: chirurgie | G37: =IF($B$4<>"",VLOOKUP($J$1,'Coûts 12 décomposés gds postes'!$A:$AT,41,FALSE),"") -> 267.9637635

Sheet synthèse CMD (2) (hidden)
A1: Fiche de synthèse CMD | J1: =CONCATENATE(B4,B5,B6,B7) -> 07TOTAL
K2: Affections du système nerveux | L2: 01
A3: Identification de la catégorie majeure de diagnostics (CMD) | K3: Affections de l'oeil | L3: 02
A4: CMD | B4: =IF(B8<>"",VLOOKUP(B8,K:L,2,FALSE),"") -> 07 | K4: Affections des oreilles, du nez, de la gorge, de la bouche et des dents | L4: 03
A5: sous CMD | B5: TOTAL | K5: Affections de l'appareil respiratoire | L5: 04
A6: racine | K6: Affections de l'appareil circulatoire | L6: 05
A7: GHM | K7: Affections du tube digestif | L7: 06
A8: Libellé | B8: Affections du système hépatobiliaire et du pancréas | K8: Affections du système hépatobiliaire et du pancréas | L8: 07
K9: Affections et traumatismes de l'appareil musculosquelettique et du tissu conjonctif | L9: 08
C10: 2012 | D10: 2011 | E10: Evolution | K10: Affections de la peau, des tissus souscutanés et des seins | L10: 09
A11: coût moyen du séjour | C11: =IF($B$4<>"",VLOOKUP($J$1,'Coûts 12 décomposés gds postes'!$A:$J,10,FALSE),"") -> 2101.276045 | D11: =IF($B$4<>"",IF(ISNA(VLOOKUP($J$1,evolutions!A:Y,25,FALSE)),"NC",VLOOKUP($J$1,evolutions!A:Y,25,FALSE)),"") -> 2146.141115 | E11: =IF($B$4<>"",VLOOKUP($J$1,evolutions!$A:$N,6,FALSE),"") -> -0.02090499549 | G11: Coût moyen | H11: Part des postes détaillés dans chaque sous poste | K11: Affections endocriniennes, métaboliques et nutritionnelles | L11: 10
K12: Affections du rein et des voies urinaires | L12: 11
A13: nombre de séjours ENC | C13: =IF($B$4<>"",VLOOKUP($J$1,'Coûts 12 décomposés gds postes'!$A:$J,8,FALSE),"") -> 7060 | D13: =IF($B$4<>"",IF(ISNA(VLOOKUP($J$1,'Coûts 11 décomposés gds postes'!$A:$M,8,FALSE)),"NC",VLOOKUP($J$1,'Coûts 11 décomposés gds postes'!$A:$M,8,FALSE)),"") -> 5998 | E13: =IF($B$4<>"",IF(D13<>"",IF(D13<>"NC",IF(C13<>"",C13/D13-1,""),""),""),"") -> 0.1770590197 | K13: Affections de l'appareil génital masculin | L13: 12
K14: Affections de l'appareil génital féminin | L14: 13
K15: Grossesses pathologiques, accouchements et affections du post-partum | L15: 14
F16: Médico technique: anesthésie | G16: =IF($B$4<>"",VLOOKUP($J$1,'Coûts 12 décomposés gds postes'!$A:$AT,16,FALSE),"") -> 36.76458896 | H16: =IF(C11<>"",IF(B26<>0,(G16+G17+G18)/B26,""),"") -> 0.9694196401 | K16: Nouveau-nés, prématurés et affections de la période périnatale | L16: 15
F17: Médico technique: bloc | G17: =IF($B$4<>"",VLOOKUP($J$1,'Coûts 12 décomposés gds postes'!$A:$AT,17,FALSE),"") -> 186.5406732 | K17: Affections du sang et des organes hématopoïétiques | L17: 16
F18: Médico technique: urgences | G18: =IF($B$4<>"",VLOOKUP($J$1,'Coûts 12 décomposés gds postes'!$A:$AT,19,FALSE),"") -> 4.381780274 | K18: Affections myéloprolifératives et tumeurs de siège imprécis ou diffus | L18: 17
K19: Maladies infectieuses et parasitaires | L19: 18
F20: Logistique Médicale: Pharmacie | G20: =IF($B$4<>"",VLOOKUP($J$1,'Coûts 12 décomposés gds postes'!$A:$AT,28,FALSE),"") -> 21.81275109 | H20: =IF(C11<>"",IF(C11<>0,(G20+G21+G22)/B27,""),"") -> 0.9297509041 | K20: Troubles mentaux organiques liés à l'absorption de drogues ou induits par celles-ci | L20: 20
B21: Coût moyen 2012 | C21: Poids dans le coût du GHM | D21: Evolution 2012/2011 | F21: Logistique Médicale: Stérilisation | G21: =IF($B$4<>"",VLOOKUP($J$1,'Coûts 12 décomposés gds postes'!$A:$AT,29,FALSE),"") -> 36.22374366 | K21: Traumatismes, allergies et empoisonnements | L21: 21
A22: activités cliniques MCO (avec hébergement, hors Réa, SI, SC) | B22: =IF($B$4<>"",VLOOKUP($J$1,'Coûts 12 décomposés gds postes'!$A:$AT,11,FALSE),"") -> 405.1676658 | C22: =IF($C$11<>"",B22/$C$11,"") -> 0.1928198186 | D22: =IF($B$4<>"",VLOOKUP($J$1,evolutions!$A:$N,7,FALSE),"") -> -0.0002150261629 | F22: Logistique Médicale: Génie Biomédical | G22: =IF($B$4<>"",VLOOKUP($J$1,'Coûts 12 décomposés gds postes'!$A:$AT,30,FALSE),"") -> 8.028217014 | K22: Facteurs influant sur l'état de santé et autres motifs de recours aux services de santé | L22: 23
A23: Activité de soins intensifs | B23: =IF($B$4<>"",VLOOKUP($J$1,'Coûts 12 décomposés gds postes'!A:AT,13,FALSE),"") -> 5.183079655 | C23: =IF($C$11<>"",B23/$C$11,"") -> 0.002466634342 | D23: =IF($B$4<>"",VLOOKUP($J$1,evolutions!$A:$N,9,FALSE),"") -> -0.2808343658 | K23: Séances | L23: 28
A24: Activité de surveillance continue | B24: =IF($B$4<>"",VLOOKUP($J$1,'Coûts 12 décomposés gds postes'!A:AT,12,FALSE),"") -> 41.03234659 | C24: 0.01952734706 | D24: =IF($B$4<>"",VLOOKUP($J$1,evolutions!$A:$N,8,FALSE),"") -> 0.1276044777 | F24: Logistique générale: Blanchisserie | G24: =IF($B$4<>"",VLOOKUP($J$1,'Coûts 12 décomposés gds postes'!$A:$AT,21,FALSE),"") -> 18.78868297 | H24: =IF(C11<>"",IF(B27<>0,(G24+G25+G26+G27+G28+G29)/B28,""),"") -> 0.848947812 | K24: TOTAL | L24: TOTAL
A25: Activité de réanimation | B25: =IF($B$4<>"",VLOOKUP($J$1,'Coûts 12 décomposés gds postes'!A:AT,14,FALSE),"") -> 0 | C25: 0 | F25: Logistique générale: Restauration | G25: =IF($B$4<>"",VLOOKUP($J$1,'Coûts 12 décomposés gds postes'!$A:$AT,22,FALSE),"") -> 61.63014108
A26: Activités Médico-techniques | B26: =IF($B$4<>"",VLOOKUP($J$1,'Coûts 12 décomposés gds postes'!A:AT,20,FALSE),"") -> 234.8694342 | C26: 0.1117746689 | D26: =IF($B$4<>"",VLOOKUP($J$1,evolutions!$A:$N,10,FALSE),"") -> -0.1322088964 | F26: Logistique générale: Accueil et gestion des malades | G26: =IF($B$4<>"",VLOOKUP($J$1,'Coûts 12 décomposés gds postes'!$A:$AT,23,FALSE),"") -> 21.68617258
A27: Logistique Médicale | B27: =IF($B$4<>"",VLOOKUP($J$1,'Coûts 12 décomposés gds postes'!A:AT,31,FALSE),"") -> 71.05635656 | C27: 0.03381581242 | D27: =IF($B$4<>"",VLOOKUP($J$1,evolutions!$A:$N,12,FALSE),"") -> -0.1560101796 | F27: Logistique générale: Services administratifs à caractère général | G27: =IF($B$4<>"",VLOOKUP($J$1,'Coûts 12 décomposés gds postes'!$A:$AT,24,FALSE),"") -> 122.9583127
A28: Logistique générale | B28: =IF($B$4<>"",VLOOKUP($J$1,'Coûts 12 décomposés gds postes'!A:AT,27,FALSE),"") -> 366.9819909 | C28: 0.1746472063 | D28: =IF($B$4<>"",VLOOKUP($J$1,evolutions!$A:$N,11,FALSE),"") -> 0.02649659273 | F28: Logistique générale: Entretien maintenance | G28: =IF($B$4<>"",VLOOKUP($J$1,'Coûts 12 décomposés gds postes'!$A:$AT,25,FALSE),"") -> 30.72337209
A29: Charges directes | B29: =IF($B$4<>"",VLOOKUP($J$1,'Coûts 12 décomposés gds postes'!A:AT,37,FALSE),"") -> 295.2959545 | C29: 0.1405317284 | D29: =IF($B$4<>"",VLOOKUP($J$1,evolutions!$A:$N,13,FALSE),"") -> -0.0229779747 | F29: Logistique générale: Services hôteliers | G29: =IF($B$4<>"",VLOOKUP($J$1,'Coûts 12 décomposés gds postes'!$A:$AT,26,FALSE),"") -> 55.76187689
A30: Honoraires | B30: =IF($B$4<>"",VLOOKUP($J$1,'Coûts 12 décomposés gds postes'!A:AT,43,FALSE),"") -> 681.6892165 | C30: 0.3244167839 | D30: =IF($B$4<>"",VLOOKUP($J$1,evolutions!$A:$N,14,FALSE),"") -> -0.001476438738
F31: Charges directes: Autres consommables | G31: =IF($B$4<>"",VLOOKUP($J$1,'Coûts 12 décomposés gds postes'!$A:$AT,36,FALSE),"") -> 169.1930226 | H31: =IF(C11<>"",IF(B28<>0,(G31+G32+G33)/B29,""),"") -> 0.6712605681
F32: Charges directes: Spécialités pharmaceutiques facturables en sus | G32: =IF($B$4<>"",VLOOKUP($J$1,'Coûts 12 décomposés gds postes'!$A:$AT,32,FALSE),"") -> 3.319223873
F33: Charges directes: DMI facturables en sus | G33: =IF($B$4<>"",VLOOKUP($J$1,'Coûts 12 décomposés gds postes'!$A:$AT,34,FALSE),"") -> 25.70828373
F35: Honoraires médicaux: Laboratoires autres | G35: =IF($B$4<>"",VLOOKUP($J$1,'Coûts 12 décomposés gds postes'!$A:$AT,38,FALSE),"") -> 87.19587419 | H35: =IF(C11<>"",IF(B29<>0,(G35+G36+G37+G38)/B30,""),"") -> 0.7457989434
F36: Honoraires médicaux: imagerie | G36: =IF($B$4<>"",VLOOKUP($J$1,'Coûts 12 décomposés gds postes'!$A:$AT,39,FALSE),"") -> 70.28486437
F37: Honoraires médicaux: anesthésie | G37: =IF($B$4<>"",VLOOKUP($J$1,'Coûts 12 décomposés gds postes'!$A:$AT,40,FALSE),"") -> 133.1853816
F38: Honoraires médicaux: chirurgie | G38: =IF($B$4<>"",VLOOKUP($J$1,'Coûts 12 décomposés gds postes'!$A:$AT,41,FALSE),"") -> 217.7369773
A39: Données de coûts: ENCC ex OQN 2012

Sheet synthèse sous CMD (hidden)
A1: Fiche de synthèse sous CMD | J1: =CONCATENATE(B4,B5,B6,B7) -> 0101CTOTAL
K2: 01C
A3: Identification de la sous catégorie majeure de diagnostics | K3: 01K
A4: CMD | B4: =LEFT(B5,2) -> 01 | K4: 01M
A5: Sous CMD | B5: 01C | K5: 02C
A6: racine | B6: TOTAL | K6: 02M
A7: GHM | K7: 03C
A8: Libellé | B8: =IF(B4<>"",VLOOKUP(J1,'Coûts 12 décomposés gds postes'!A:AV,6,FALSE),"") -> Affections du système nerveux - Groupes chirurgicaux | K8: 03K
C9: 2012 | D9: 2011 | E9: Evolution | G9: Coût moyen | H9: Part des postes détaillés dans chaque sous poste | K9: 03M
A10: Coût moyen du séjour | C10: =IF($B$4<>"",VLOOKUP($J$1,'Coûts 12 décomposés gds postes'!$A:$J,10,FALSE),"") -> 1182.973874 | D10: =IF($B$4<>"",IF(ISNA(VLOOKUP($J$1,evolutions!A:Y,25,FALSE)),"NC",VLOOKUP($J$1,evolutions!A:Y,25,FALSE)),"") -> 1184.676044 | E10: =IF($B$4<>"",VLOOKUP($J$1,evolutions!$A:$N,6,FALSE),"") -> -0.001436823187 | K10: 04C
K11: 04K
A12: Nombre de séjours ENC | C12: =IF($B$4<>"",VLOOKUP($J$1,'Coûts 12 décomposés gds postes'!$A:$J,8,FALSE),"") -> 8414 | D12: =IF($B$4<>"",IF(ISNA(VLOOKUP($J$1,'Coûts 11 décomposés gds postes'!$A:$M,8,FALSE)),"NC",VLOOKUP($J$1,'Coûts 11 décomposés gds postes'!$A:$M,8,FALSE)),"") -> 7323 | E12: =IF($B$4<>"",IF(D12<>"",IF(D12<>"NC",IF(C12<>"",C12/D12-1,""),""),""),"") -> 0.1489826574 | K12: 04M
K13: 05C
K14: 05K
F15: Médico technique: anesthésie | G15: =IF($B$4<>"",VLOOKUP($J$1,'Coûts 12 décomposés gds postes'!$A:$AT,16,FALSE),"") -> 21.72797774 | H15: =IF(C10<>"",IF(B24<>0,(G15+G16+G17)/B24,""),"") -> 0.9976231279 | K15: 05M
F16: Médico technique: bloc | G16: =IF($B$4<>"",VLOOKUP($J$1,'Coûts 12 décomposés gds postes'!$A:$AT,17,FALSE),"") -> 136.4108988 | K16: 06C
F17: Médico technique: urgences | G17: =IF($B$4<>"",VLOOKUP($J$1,'Coûts 12 décomposés gds postes'!$A:$AT,19,FALSE),"") -> 0.2008679809 | K17: 06K
K18: 06M
B19: Coût moyen 2012 | C19: Poids dans le coût du GHM | D19: Evolution 2012/2011 | F19: Logistique Médicale: Pharmacie | G19: =IF($B$4<>"",VLOOKUP($J$1,'Coûts 12 décomposés gds postes'!$A:$AT,28,FALSE),"") -> 14.64659676 | H19: =IF(B4<>"",IF(C10<>0,(G19+G20+G21)/B25,""),"") -> 0.9545718362 | K19: 07C
A20: activités cliniques MCO (avec hébergement, hors Réa, SI, SC) | B20: =IF($B$4<>"",VLOOKUP($J$1,'Coûts 12 décomposés gds postes'!$A:$AT,11,FALSE),"") -> 151.8697622 | C20: =IF($C$10<>"",B20/$C$10,"") -> 0.1283796418 | D20: =IF($B$4<>"",VLOOKUP($J$1,evolutions!$A:$N,7,FALSE),"") -> 0.06292819333 | F20: Logistique Médicale: Stérilisation | G20: =IF($B$4<>"",VLOOKUP($J$1,'Coûts 12 décomposés gds postes'!$A:$AT,29,FALSE),"") -> 27.09553539 | K20: 07K
A21: Activité de soins intensifs | B21: =IF($B$4<>"",VLOOKUP($J$1,'Coûts 12 décomposés gds postes'!A:AT,13,FALSE),"") -> 8.606618629 | C21: 0.007275408881 | D21: =IF($B$4<>"",VLOOKUP($J$1,evolutions!$A:$N,9,FALSE),"") -> 0.2782237119 | F21: Logistique Médicale: Génie Biomédical | G21: =IF($B$4<>"",VLOOKUP($J$1,'Coûts 12 décomposés gds postes'!$A:$AT,30,FALSE),"") -> 4.617271827 | K21: 07M
A22: Activité de surveillance continue | B22: =IF($B$4<>"",VLOOKUP($J$1,'Coûts 12 décomposés gds postes'!A:AT,12,FALSE),"") -> 18.70343953 | C22: 0.01581052628 | D22: =IF($B$4<>"",VLOOKUP($J$1,evolutions!$A:$N,8,FALSE),"") -> -0.1722826552 | K22: 08C
A23: Activité de réanimation | B23: =IF($B$4<>"",VLOOKUP($J$1,'Coûts 12 décomposés gds postes'!A:AT,14,FALSE),"") -> 0.1838139434 | C23: 0.0001553829272 | F23: Logistique générale: Blanchisserie | G23: =IF($B$4<>"",VLOOKUP($J$1,'Coûts 12 décomposés gds postes'!$A:$AT,21,FALSE),"") -> 8.760837257 | H23: =IF(C10<>"",IF(B26<>0,(G23+G24+G25+G26+G27+G28)/B26,""),"") -> 0.8358302602 | K23: 08K
A24: Activités Médico-techniques | B24: =IF($B$4<>"",VLOOKUP($J$1,'Coûts 12 décomposés gds postes'!A:AT,20,FALSE),"") -> 158.7169945 | C24: 0.1341677935 | D24: =IF($B$4<>"",VLOOKUP($J$1,evolutions!$A:$N,10,FALSE),"") -> -0.07311523558 | F24: Logistique générale: Restauration | G24: =IF($B$4<>"",VLOOKUP($J$1,'Coûts 12 décomposés gds postes'!$A:$AT,22,FALSE),"") -> 23.16092803 | K24: 08M
A25: Logistique Médicale | B25: =IF($B$4<>"",VLOOKUP($J$1,'Coûts 12 décomposés gds postes'!A:AT,31,FALSE),"") -> 48.56565238 | C25: 0.04105386724 | D25: =IF($B$4<>"",VLOOKUP($J$1,evolutions!$A:$N,12,FALSE),"") -> -0.1362060454 | F25: Logistique générale: Accueil et gestion des malades | G25: =IF($B$4<>"",VLOOKUP($J$1,'Coûts 12 décomposés gds postes'!$A:$AT,23,FALSE),"") -> 23.43637541 | K25: 09C
A26: Logistique générale | B26: =IF($B$4<>"",VLOOKUP($J$1,'Coûts 12 décomposés gds postes'!A:AT,27,FALSE),"") -> 206.6033096 | C26: 0.1746473985 | D26: =IF($B$4<>"",VLOOKUP($J$1,evolutions!$A:$N,11,FALSE),"") -> 0.09966295282 | F26: Logistique générale: Services administratifs à caractère général | G26: =IF($B$4<>"",VLOOKUP($J$1,'Coûts 12 décomposés gds postes'!$A:$AT,24,FALSE),"") -> 70.1319751 | K26: 09K
A27: Charges directes | B27: =IF($B$4<>"",VLOOKUP($J$1,'Coûts 12 décomposés gds postes'!A:AT,37,FALSE),"") -> 201.1624235 | C27: 0.1700480694 | D27: =IF($B$4<>"",VLOOKUP($J$1,evolutions!$A:$N,13,FALSE),"") -> -0.1125416769 | F27: Logistique générale: Entretien maintenance | G27: =IF($B$4<>"",VLOOKUP($J$1,'Coûts 12 décomposés gds postes'!$A:$AT,25,FALSE),"") -> 18.46873584 | K27: 09M
A28: Honoraires | B28: =IF($B$4<>"",VLOOKUP($J$1,'Coûts 12 décomposés gds postes'!A:AT,43,FALSE),"") -> 388.5618599 | C28: 0.3284619114 | D28: =IF($B$4<>"",VLOOKUP($J$1,evolutions!$A:$N,14,FALSE),"") -> 0.04887527927 | F28: Logistique générale: Services hôteliers | G28: =IF($B$4<>"",VLOOKUP($J$1,'Coûts 12 décomposés gds postes'!$A:$AT,26,FALSE),"") -> 28.72644639 | K28: 09Z
K29: 10C
F30: Charges directes: Autres consommables | G30: =IF($B$4<>"",VLOOKUP($J$1,'Coûts 12 décomposés gds postes'!$A:$AT,36,FALSE),"") -> 104.6767736 | H30: =IF(C10<>"",IF(B27<>0,(G30+G31+G32)/B27,""),"") -> 0.8305121608 | K30: 10M
F31: Charges directes: Spécialités pharmaceutiques facturables en sus | G31: =IF($B$4<>"",VLOOKUP($J$1,'Coûts 12 décomposés gds postes'!$A:$AT,32,FALSE),"") -> 0.2219081456 | K31: 11C
F32: Charges directes: DMI facturables en sus | G32: =IF($B$4<>"",VLOOKUP($J$1,'Coûts 12 décomposés gds postes'!$A:$AT,34,FALSE),"") -> 62.16915725 | K32: 11K
K33: 11M
F34: Honoraires médicaux: Laboratoires autres | G34: =IF($B$4<>"",VLOOKUP($J$1,'Coûts 12 décomposés gds postes'!$A:$AT,38,FALSE),"") -> 12.75559576 | H34: =IF(C10<>"",IF(B28<>0,(G34+G35+G36+G37)/B28,""),"") -> 0.9266343218 | K34: 12C
F35: Honoraires médicaux: imagerie | G35: =IF($B$4<>"",VLOOKUP($J$1,'Coûts 12 décomposés gds postes'!$A:$AT,39,FALSE),"") -> 27.06738083 | K35: 12K
F36: Honoraires médicaux: anesthésie | G36: =IF($B$4<>"",VLOOKUP($J$1,'Coûts 12 décomposés gds postes'!$A:$AT,40,FALSE),"") -> 102.8514804 | K36: 12M
F37: Honoraires médicaux: chirurgie | G37: =IF($B$4<>"",VLOOKUP($J$1,'Coûts 12 décomposés gds postes'!$A:$AT,41,FALSE),"") -> 217.3802985 | K37: 13C
K38: 13K
A39: Données de coûts: ENCC ex OQN 2011 | K39: 13M
K40: 14C
K41: 14M
K42: 14Z
K43: 15M
K44: 15Z
K45: 16C
K46: 16M
K47: 17C
K48: 17K
K49: 17M
K50: 18M
K51: 19M
K52: 20Z
K53: 21C
K54: 21K
K55: 21M
K56: 23C
K57: 23K
K58: 23M
K59: 23Z
K60: 28Z

Sheet synthèse sous CMD (2) (hidden)
A1: Fiche de synthèse sous CMD | J1: =CONCATENATE(B4,B5,B6,B7) -> 0101CTOTAL
K2: Affections du système nerveux - Groupes chirurgicaux | L2: 01C
A3: Identification de la sous catégorie majeure de diagnostics | K3: Affections du système nerveux - Avec acte classant non opératoire | L3: 01K
A4: CMD | B4: =LEFT(B5,2) -> 01 | K4: Affections du système nerveux - Groupes 'médicaux' | L4: 01M
A5: Sous CMD | B5: =IF(B8<>"",VLOOKUP(B8,K:L,2,FALSE),"") -> 01C | K5: Affections de l'oeil - Groupes chirurgicaux | L5: 02C
A6: racine | B6: TOTAL | K6: Affections de l'oeil - Groupes 'médicaux' | L6: 02M
A7: GHM | K7: Affections des oreilles, du nez, de la gorge, de la bouche et des dents - Groupes chirurgicaux | L7: 03C
A8: Libellé | B8: Affections du système nerveux - Groupes chirurgicaux | K8: Affections des oreilles, du nez, de la gorge, de la bouche et des dents - Avec acte classant non opératoire | L8: 03K
K9: Affections des oreilles, du nez, de la gorge, de la bouche et des dents - Groupes 'médicaux' | L9: 03M
C10: 2012 | D10: 2011 | E10: Evolution | G10: Coût moyen | H10: Part des postes détaillés dans chaque sous poste | K10: Affections de l'appareil respiratoire - Groupes chirurgicaux | L10: 04C
A11: Coût moyen du séjour | C11: =IF($B$4<>"",VLOOKUP($J$1,'Coûts 12 décomposés gds postes'!$A:$J,10,FALSE),"") -> 1182.973874 | D11: =IF($B$4<>"",IF(ISNA(VLOOKUP($J$1,evolutions!A:Y,25,FALSE)),"NC",VLOOKUP($J$1,evolutions!A:Y,25,FALSE)),"") -> 1184.676044 | E11: =IF($B$4<>"",VLOOKUP($J$1,evolutions!$A:$N,6,FALSE),"") -> -0.001436823187 | K11: Affections de l'appareil respiratoire - Avec acte classant non opératoire | L11: 04K
K12: Affections de l'appareil respiratoire - Groupes 'médicaux' | L12: 04M
A13: Nombre de séjours ENC | C13: =IF($B$4<>"",VLOOKUP($J$1,'Coûts 12 décomposés gds postes'!$A:$J,8,FALSE),"") -> 8414 | D13: =IF($B$4<>"",IF(ISNA(VLOOKUP($J$1,'Coûts 11 décomposés gds postes'!$A:$M,8,FALSE)),"NC",VLOOKUP($J$1,'Coûts 11 décomposés gds postes'!$A:$M,8,FALSE)),"") -> 7323 | E13: =IF($B$4<>"",IF(D13<>"",IF(D13<>"NC",IF(C13<>"",C13/D13-1,""),""),""),"") -> 0.1489826574 | K13: Affections de l'appareil circulatoire - Groupes chirurgicaux | L13: 05C
K14: Affections de l'appareil circulatoire - Avec acte classant non opératoire | L14: 05K
K15: Affections de l'appareil circulatoire - Groupes 'médicaux' | L15: 05M
F16: Médico technique: anesthésie | G16: =IF($B$4<>"",VLOOKUP($J$1,'Coûts 12 décomposés gds postes'!$A:$AT,16,FALSE),"") -> 21.72797774 | H16: =IF(C11<>"",IF(B24<>0,(G16+G17+G18)/B24,""),"") -> 0.9976231279 | K16: Affections du tube digestif - Groupes chirurgicaux | L16: 06C
F17: Médico technique: bloc | G17: =IF($B$4<>"",VLOOKUP($J$1,'Coûts 12 décomposés gds postes'!$A:$AT,17,FALSE),"") -> 136.4108988 | K17: Affections du tube digestif - Avec acte classant non opératoire | L17: 06K
F18: Médico technique: urgences | G18: =IF($B$4<>"",VLOOKUP($J$1,'Coûts 12 décomposés gds postes'!$A:$AT,19,FALSE),"") -> 0.2008679809 | K18: Affections du tube digestif - Groupes 'médicaux' | L18: 06M
B19: Coût moyen 2012 | C19: Poids dans le coût du GHM | D19: Evolution 2012/2011 | K19: Affections du système hépatobiliaire et du pancréas - Groupes chirurgicaux | L19: 07C
A20: activités cliniques MCO (avec hébergement, hors Réa, SI, SC) | B20: =IF($B$4<>"",VLOOKUP($J$1,'Coûts 12 décomposés gds postes'!$A:$AT,11,FALSE),"") -> 151.8697622 | C20: =IF($C$11<>"",B20/$C$11,"") -> 0.1283796418 | D20: =IF($B$4<>"",VLOOKUP($J$1,evolutions!$A:$N,7,FALSE),"") -> 0.06292819333 | F20: Logistique Médicale: Pharmacie | G20: =IF($B$4<>"",VLOOKUP($J$1,'Coûts 12 décomposés gds postes'!$A:$AT,28,FALSE),"") -> 14.64659676 | H20: =IF(B25<>"",IF(C11<>0,(G20+G21+G22)/B25,""),"") -> 0.9545718362 | K20: Affections du système hépatobiliaire et du pancréas - Avec acte classant non opératoire | L20: 07K
A21: Activité de soins intensifs | B21: =IF($B$4<>"",VLOOKUP($J$1,'Coûts 12 décomposés gds postes'!A:AT,13,FALSE),"") -> 8.606618629 | C21: =IF($C$11<>"",B21/$C$11,"") -> 0.007275408881 | D21: =IF($B$4<>"",VLOOKUP($J$1,evolutions!$A:$N,9,FALSE),"") -> 0.2782237119 | F21: Logistique Médicale: Stérilisation | G21: =IF($B$4<>"",VLOOKUP($J$1,'Coûts 12 décomposés gds postes'!$A:$AT,29,FALSE),"") -> 27.09553539 | K21: Affections du système hépatobiliaire et du pancréas - Groupes 'médicaux' | L21: 07M
A22: Activité de surveillance continue | B22: =IF($B$4<>"",VLOOKUP($J$1,'Coûts 12 décomposés gds postes'!A:AT,12,FALSE),"") -> 18.70343953 | C22: 0.01581052628 | D22: =IF($B$4<>"",VLOOKUP($J$1,evolutions!$A:$N,8,FALSE),"") -> -0.1722826552 | F22: Logistique Médicale: Génie Biomédical | G22: =IF($B$4<>"",VLOOKUP($J$1,'Coûts 12 décomposés gds postes'!$A:$AT,30,FALSE),"") -> 4.617271827 | K22: Affections et traumatismes de l'appareil musculosquelettique et du tissu conjonctif - Groupes chirurgicaux | L22: 08C
A23: Activité de réanimation | B23: =IF($B$4<>"",VLOOKUP($J$1,'Coûts 12 décomposés gds postes'!A:AT,14,FALSE),"") -> 0.1838139434 | C23: 0.0001553829272 | K23: Affections et traumatismes de l'appareil musculosquelettique et du tissu conjonctif - Avec acte classant non opératoire | L23: 08K
A24: Activités Médico-techniques | B24: =IF($B$4<>"",VLOOKUP($J$1,'Coûts 12 décomposés gds postes'!A:AT,20,FALSE),"") -> 158.7169945 | C24: 0.1341677935 | D24: =IF($B$4<>"",VLOOKUP($J$1,evolutions!$A:$N,10,FALSE),"") -> -0.07311523558 | F24: Logistique générale: Blanchisserie | G24: =IF($B$4<>"",VLOOKUP($J$1,'Coûts 12 décomposés gds postes'!$A:$AT,21,FALSE),"") -> 8.760837257 | H24: =IF(C11<>"",IF(B26<>0,(G24+G25+G26+G27+G28+G29)/B26,""),"") -> 0.8358302602 | K24: Affections et traumatismes de l'appareil musculosquelettique et du tissu conjonctif - Groupes 'médicaux' | L24: 08M
A25: Logistique Médicale | B25: =IF($B$4<>"",VLOOKUP($J$1,'Coûts 12 décomposés gds postes'!A:AT,31,FALSE),"") -> 48.56565238 | C25: 0.04105386724 | D25: =IF($B$4<>"",VLOOKUP($J$1,evolutions!$A:$N,12,FALSE),"") -> -0.1362060454 | F25: Logistique générale: Restauration | G25: =IF($B$4<>"",VLOOKUP($J$1,'Coûts 12 décomposés gds postes'!$A:$AT,22,FALSE),"") -> 23.16092803 | K25: Affections de la peau, des tissus souscutanés et des seins - Groupes chirurgicaux | L25: 09C
A26: Logistique générale | B26: =IF($B$4<>"",VLOOKUP($J$1,'Coûts 12 décomposés gds postes'!A:AT,27,FALSE),"") -> 206.6033096 | C26: 0.1746473985 | D26: =IF($B$4<>"",VLOOKUP($J$1,evolutions!$A:$N,11,FALSE),"") -> 0.09966295282 | F26: Logistique générale: Accueil et gestion des malades | G26: =IF($B$4<>"",VLOOKUP($J$1,'Coûts 12 décomposés gds postes'!$A:$AT,23,FALSE),"") -> 23.43637541 | K26: Affections de la peau, des tissus souscutanés et des seins - Avec acte classant non opératoire | L26: 09K
A27: Charges directes | B27: =IF($B$4<>"",VLOOKUP($J$1,'Coûts 12 décomposés gds postes'!A:AT,37,FALSE),"") -> 201.1624235 | C27: 0.1700480694 | D27: =IF($B$4<>"",VLOOKUP($J$1,evolutions!$A:$N,13,FALSE),"") -> -0.1125416769 | F27: Logistique générale: Services administratifs à caractère général | G27: =IF($B$4<>"",VLOOKUP($J$1,'Coûts 12 décomposés gds postes'!$A:$AT,24,FALSE),"") -> 70.1319751 | K27: Affections de la peau, des tissus souscutanés et des seins - Groupes 'médicaux' | L27: 09M
A28: Honoraires | B28: =IF($B$4<>"",VLOOKUP($J$1,'Coûts 12 décomposés gds postes'!A:AT,43,FALSE),"") -> 388.5618599 | C28: 0.3284619114 | D28: =IF($B$4<>"",VLOOKUP($J$1,evolutions!$A:$N,14,FALSE),"") -> 0.04887527927 | F28: Logistique générale: Entretien maintenance | G28: =IF($B$4<>"",VLOOKUP($J$1,'Coûts 12 décomposés gds postes'!$A:$AT,25,FALSE),"") -> 18.46873584 | K28: Affections de la peau, des tissus souscutanés et des seins - Groupes indifférenciés | L28: 09Z
F29: Logistique générale: Services hôteliers | G29: =IF($B$4<>"",VLOOKUP($J$1,'Coûts 12 décomposés gds postes'!$A:$AT,26,FALSE),"") -> 28.72644639 | K29: Affections endocriniennes, métaboliques et nutritionnelles - Groupes chirurgicaux | L29: 10C
K30: Affections endocriniennes, métaboliques et nutritionnelles - Groupes 'médicaux' | L30: 10M
F31: Charges directes: Autres consommables | G31: =IF($B$4<>"",VLOOKUP($J$1,'Coûts 12 décomposés gds postes'!$A:$AT,36,FALSE),"") -> 104.6767736 | H31: =IF(C11<>"",IF(B27<>0,(G31+G32+G33)/B27,""),"") -> 0.8305121608 | K31: Affections du rein et des voies urinaires - Groupes chirurgicaux | L31: 11C
F32: Charges directes: Spécialités pharmaceutiques facturables en sus | G32: =IF($B$4<>"",VLOOKUP($J$1,'Coûts 12 décomposés gds postes'!$A:$AT,32,FALSE),"") -> 0.2219081456 | K32: Affections du rein et des voies urinaires - Avec acte classant non opératoire | L32: 11K
A33: Données de coûts: ENCC ex OQN 2012 | F33: Charges directes: DMI facturables en sus | G33: =IF($B$4<>"",VLOOKUP($J$1,'Coûts 12 décomposés gds postes'!$A:$AT,34,FALSE),"") -> 62.16915725 | K33: Affections du rein et des voies urinaires - Groupes 'médicaux' | L33: 11M
K34: Affections de l'appareil génital masculin - Groupes chirurgicaux | L34: 12C
F35: Honoraires médicaux: Laboratoires autres | G35: =IF($B$4<>"",VLOOKUP($J$1,'Coûts 12 décomposés gds postes'!$A:$AT,38,FALSE),"") -> 12.75559576 | H35: =IF(C11<>"",IF(B28<>0,(G35+G36+G37+G38)/B28,""),"") -> 0.9266343218 | K35: Affections de l'appareil génital masculin - Avec acte classant non opératoire | L35: 12K
F36: Honoraires médicaux: imagerie | G36: =IF($B$4<>"",VLOOKUP($J$1,'Coûts 12 décomposés gds postes'!$A:$AT,39,FALSE),"") -> 27.06738083 | K36: Affections de l'appareil génital masculin - Groupes 'médicaux' | L36: 12M
F37: Honoraires médicaux: anesthésie | G37: =IF($B$4<>"",VLOOKUP($J$1,'Coûts 12 décomposés gds postes'!$A:$AT,40,FALSE),"") -> 102.8514804 | K37: Affections de l'appareil génital féminin - Groupes chirurgicaux | L37: 13C
F38: Honoraires médicaux: chirurgie | G38: =IF($B$4<>"",VLOOKUP($J$1,'Coûts 12 décomposés gds postes'!$A:$AT,41,FALSE),"") -> 217.3802985 | K38: Affections de l'appareil génital féminin - Avec acte classant non opératoire | L38: 13K
K39: Affections de l'appareil génital féminin - Groupes 'médicaux' | L39: 13M
K40: Grossesses pathologiques, accouchements et affections du post-partum - Groupes chirurgicaux | L40: 14C
K41: Grossesses pathologiques, accouchements et affections du post-partum - Groupes 'médicaux' | L41: 14M
K42: Grossesses pathologiques, accouchements et affections du post-partum - Groupes indifférenciés | L42: 14Z
K43: Nouveau-nés, prématurés et affections de la période périnatale - Groupes 'médicaux' | L43: 15M
K44: Nouveau-nés, prématurés et affections de la période périnatale - Groupes indifférenciés | L44: 15Z
K45: Affections du sang et des organes hématopoïétiques - Groupes chirurgicaux | L45: 16C
K46: Affections du sang et des organes hématopoïétiques - Groupes 'médicaux' | L46: 16M
K47: Affections myéloprolifératives et tumeurs de siège imprécis ou diffus - Groupes chirurgicaux | L47: 17C
K48: Affections myéloprolifératives et tumeurs de siège imprécis ou diffus - Avec acte classant non opératoire | L48: 17K
K49: Affections myéloprolifératives et tumeurs de siège imprécis ou diffus - Groupes 'médicaux' | L49: 17M
K50: Maladies infectieuses et parasitaires - Groupes 'médicaux' | L50: 18M
K51: Maladies et troubles mentaux - Groupes 'médicaux' | L51: 19M
K52: Troubles mentaux organiques liés à l'absorption de drogues ou induits par celles-ci - Groupes indifférenciés | L52: 20Z
K53: Traumatismes, allergies et empoisonnements - Groupes chirurgicaux | L53: 21C
K54: Traumatismes, allergies et empoisonnements - Avec acte classant non opératoire | L54: 21K
K55: Traumatismes, allergies et empoisonnements - Groupes 'médicaux' | L55: 21M
K56: Facteurs influant sur l'état de santé et autres motifs de recours aux services de santé - Groupes chirurgicaux | L56: 23C
K57: Facteurs influant sur l'état de santé et autres motifs de recours aux services de santé - Avec acte classant non opératoire | L57: 23K
K58: Facteurs influant sur l'état de santé et autres motifs de recours aux services de santé - Groupes 'médicaux' | L58: 23M
K59: Facteurs influant sur l'état de santé et autres motifs de recours aux services de santé - Groupes indifférenciés | L59: 23Z
K60: Séances - Groupes indifférenciés | L60: 28Z

Sheet synthèse racine (hidden)
A1: Fiche de synthèse Racine | J1: =CONCATENATE(B4,B5,B6,B7) -> 0101C01C05TOTAL
K2: 01C04
A3: Identification de la racine | K3: 01C05
A4: CMD | B4: =LEFT(B5,2) -> 01 | K4: 01C06
A5: Sous CMD | B5: =LEFT(B6,3) -> 01C | K5: 01C08
A6: Racine | B6: 01C05 | K6: 01C10
A7: GHM | B7: TOTAL | K7: 01C14
A8: Libellé | B8: =IF(B4<>"",VLOOKUP(J1,'Coûts 12 décomposés gds postes'!A:AV,6,FALSE),"") -> Interventions sur le rachis et la moelle pour des affections neurologiques | K8: 01C15
C9: 2012 | D9: 2011 | E9: Evolution | G9: Coût moyen | H9: Part des postes détaillés dans chaque sous poste | K9: 01K04
A10: Coût moyen du séjour | C10: =IF($B$4<>"",VLOOKUP($J$1,'Coûts 12 décomposés gds postes'!$A:$J,10,FALSE),"") -> 3569.569007 | D10: =IF($B$4<>"",IF(ISNA(VLOOKUP($J$1,evolutions!A:Y,25,FALSE)),"NC",VLOOKUP($J$1,evolutions!A:Y,25,FALSE)),"") -> 3963.001853 | E10: =IF($B$4<>"",IF(ISNA(VLOOKUP($J$1,evolutions!A:N,6,FALSE)),"NC",VLOOKUP($J$1,evolutions!A:N,6,FALSE)),"") -> -0.09927647288 | K10: 01K05
K11: 01K06
A12: Nombre de séjours ENC | C12: =IF($B$4<>"",VLOOKUP($J$1,'Coûts 12 décomposés gds postes'!$A:$J,8,FALSE),"") -> 644 | D12: =IF($B$4<>"",IF(ISNA(VLOOKUP($J$1,'Coûts 11 décomposés gds postes'!$A:$M,8,FALSE)),"NC",VLOOKUP($J$1,'Coûts 11 décomposés gds postes'!$A:$M,8,FALSE)),"") -> 382 | E12: =IF($B$4<>"",IF(D12<>"",IF(D12<>"NC",IF(C12<>"",C12/D12-1,""),""),""),"") -> 0.6858638743 | K12: 01M08
K13: 01M11
K14: 01M15
F15: Médico technique: anesthésie | G15: =IF($B$4<>"",VLOOKUP($J$1,'Coûts 12 décomposés gds postes'!$A:$AT,16,FALSE),"") -> 63.25045688 | H15: =IF(C10<>"",IF(B24<>0,(G15+G16+G17)/B24,""),"") -> 0.9997566239 | K15: 01M16
F16: Médico technique: bloc | G16: =IF($B$4<>"",VLOOKUP($J$1,'Coûts 12 décomposés gds postes'!$A:$AT,17,FALSE),"") -> 349.9146214 | K16: 01M17
F17: Médico technique: urgences | G17: =IF($B$4<>"",VLOOKUP($J$1,'Coûts 12 décomposés gds postes'!$A:$AT,19,FALSE),"") -> 0.5984039294 | K17: 01M20
K18: 01M21
B19: Coût moyen 2012 | C19: Poids dans le coût du GHM | D19: Evolution 2012/2011 | F19: Logistique Médicale: Pharmacie | G19: =IF($B$4<>"",VLOOKUP($J$1,'Coûts 12 décomposés gds postes'!$A:$AT,28,FALSE),"") -> 57.84571652 | H19: =IF(B25<>"",IF(C10<>0,(G19+G20+G21)/B25,""),"") -> 0.9211659383 | K19: 01M22
A20: activités cliniques MCO (avec hébergement, hors Réa, SI, SC) | B20: =IF($B$4<>"",VLOOKUP($J$1,'Coûts 12 décomposés gds postes'!$A:$AT,11,FALSE),"") -> 640.5936026 | C20: =IF($C$10<>"",B20/$C$10,"") -> 0.1794596494 | D20: =IF($B$4<>"",IF(ISNA(VLOOKUP($J$1,evolutions!A:N,7,FALSE)),"NC",VLOOKUP($J$1,evolutions!A:N,7,FALSE)),"") -> -0.05882630449 | F20: Logistique Médicale: Stérilisation | G20: =IF($B$4<>"",VLOOKUP($J$1,'Coûts 12 décomposés gds postes'!$A:$AT,29,FALSE),"") -> 55.43398002 | K20: 01M25
A21: Activité de soins intensifs | B21: =IF($B$4<>"",VLOOKUP($J$1,'Coûts 12 décomposés gds postes'!A:AT,13,FALSE),"") -> 16.79640147 | C21: 0.004705442432 | D21: =IF($B$4<>"",IF(ISNA(VLOOKUP($J$1,evolutions!A:N,9,FALSE)),"NC",VLOOKUP($J$1,evolutions!A:N,9,FALSE)),"") -> 0.3488606093 | F21: Logistique Médicale: Génie Biomédical | G21: =IF($B$4<>"",VLOOKUP($J$1,'Coûts 12 décomposés gds postes'!$A:$AT,30,FALSE),"") -> 8.870478981 | K21: 01M30
A22: Activité de surveillance continue | B22: =IF($B$4<>"",VLOOKUP($J$1,'Coûts 12 décomposés gds postes'!A:AT,12,FALSE),"") -> 24.01447372 | C22: 0.006727555531 | D22: =IF($B$4<>"",IF(ISNA(VLOOKUP($J$1,evolutions!A:N,8,FALSE)),"NC",VLOOKUP($J$1,evolutions!A:N,8,FALSE)),"") -> 0.3759275348 | K22: 01M34
A23: Activité de réanimation | B23: =IF($B$4<>"",VLOOKUP($J$1,'Coûts 12 décomposés gds postes'!A:AT,14,FALSE),"") -> 0 | C23: 0 | F23: Logistique générale: Blanchisserie | G23: =IF($B$4<>"",VLOOKUP($J$1,'Coûts 12 décomposés gds postes'!$A:$AT,21,FALSE),"") -> 32.94617712 | H23: =IF(C10<>"",IF(B26<>0,(G23+G24+G25+G26+G27+G28)/B26,""),"") -> 0.8746297333 | K23: 01M35
A24: Activités Médico-techniques | B24: =IF($B$4<>"",VLOOKUP($J$1,'Coûts 12 décomposés gds postes'!A:AT,20,FALSE),"") -> 413.8642069 | C24: 0.1159423466 | D24: =IF($B$4<>"",VLOOKUP($J$1,evolutions!$A:$N,10,FALSE),"") -> -0.219494605 | F24: Logistique générale: Restauration | G24: =IF($B$4<>"",VLOOKUP($J$1,'Coûts 12 décomposés gds postes'!$A:$AT,22,FALSE),"") -> 105.618147 | K24: 02C02
A25: Logistique Médicale | B25: =IF($B$4<>"",VLOOKUP($J$1,'Coûts 12 décomposés gds postes'!A:AT,31,FALSE),"") -> 132.6038778 | C25: 0.03714842816 | D25: =IF($B$4<>"",VLOOKUP($J$1,evolutions!$A:$N,12,FALSE),"") -> -0.006878702326 | F25: Logistique générale: Accueil et gestion des malades | G25: =IF($B$4<>"",VLOOKUP($J$1,'Coûts 12 décomposés gds postes'!$A:$AT,23,FALSE),"") -> 19.58923436 | K25: 02C05
A26: Logistique générale | B26: =IF($B$4<>"",VLOOKUP($J$1,'Coûts 12 décomposés gds postes'!A:AT,27,FALSE),"") -> 545.5824754 | C26: 0.1528426749 | D26: =IF($B$4<>"",VLOOKUP($J$1,evolutions!$A:$N,11,FALSE),"") -> 0.1249222209 | F26: Logistique générale: Services administratifs à caractère général | G26: =IF($B$4<>"",VLOOKUP($J$1,'Coûts 12 décomposés gds postes'!$A:$AT,24,FALSE),"") -> 199.6373012 | K26: 02C07
A27: Charges directes | B27: =IF($B$4<>"",VLOOKUP($J$1,'Coûts 12 décomposés gds postes'!A:AT,37,FALSE),"") -> 698.3482829 | C27: 0.1956393843 | D27: =IF($B$4<>"",VLOOKUP($J$1,evolutions!$A:$N,13,FALSE),"") -> -0.3415141956 | F27: Logistique générale: Entretien maintenance | G27: =IF($B$4<>"",VLOOKUP($J$1,'Coûts 12 décomposés gds postes'!$A:$AT,25,FALSE),"") -> 51.42798112 | K27: 02C08
A28: Honoraires | B28: =IF($B$4<>"",VLOOKUP($J$1,'Coûts 12 décomposés gds postes'!A:AT,43,FALSE),"") -> 1097.765686 | C28: 0.3075345186 | D28: =IF($B$4<>"",VLOOKUP($J$1,evolutions!$A:$N,14,FALSE),"") -> 0.05234909603 | F28: Logistique générale: Services hôteliers | G28: =IF($B$4<>"",VLOOKUP($J$1,'Coûts 12 décomposés gds postes'!$A:$AT,26,FALSE),"") -> 67.96381422 | K28: 02C09
K29: 02C11
F30: Charges directes: Autres consommables | G30: =IF($B$4<>"",VLOOKUP($J$1,'Coûts 12 décomposés gds postes'!$A:$AT,36,FALSE),"") -> 257.9734806 | H30: =IF(C10<>"",IF(B27<>0,(G30+G31+G32)/B27,""),"") -> 0.8274085961 | K30: 02C12
F31: Charges directes: Spécialités pharmaceutiques facturables en sus | G31: =IF($B$4<>"",VLOOKUP($J$1,'Coûts 12 décomposés gds postes'!$A:$AT,32,FALSE),"") -> 3.372496099 | K31: 02C13
F32: Charges directes: DMI facturables en sus | G32: =IF($B$4<>"",VLOOKUP($J$1,'Coûts 12 décomposés gds postes'!$A:$AT,34,FALSE),"") -> 316.4733956 | K32: 02M08
K33: 03C06
F34: Honoraires médicaux: Laboratoires autres | G34: =IF($B$4<>"",VLOOKUP($J$1,'Coûts 12 décomposés gds postes'!$A:$AT,38,FALSE),"") -> 57.33573756 | H34: =IF(C10<>"",IF(B28<>0,(G34+G35+G36+G37)/B28,""),"") -> 0.8969401293 | K34: 03C07
F35: Honoraires médicaux: imagerie | G35: =IF($B$4<>"",VLOOKUP($J$1,'Coûts 12 décomposés gds postes'!$A:$AT,39,FALSE),"") -> 77.71328878 | K35: 03C09
F36: Honoraires médicaux: anesthésie | G36: =IF($B$4<>"",VLOOKUP($J$1,'Coûts 12 décomposés gds postes'!$A:$AT,40,FALSE),"") -> 272.5375595 | K36: 03C10
F37: Honoraires médicaux: chirurgie | G37: =IF($B$4<>"",VLOOKUP($J$1,'Coûts 12 décomposés gds postes'!$A:$AT,41,FALSE),"") -> 577.0435107 | K37: 03C11
A38: Données de coûts: ENCC ex OQN 2012 | K38: 03C12
K39: 03C13
K40: 03C14
K41: 03C15
K42: 03C16
K43: 03C17
K44: 03C19
K45: 03C20
K46: 03C21
K47: 03C24
K48: 03C26
K49: 03C27
K50: 03C28
K51: 03C30
K52: 03K02
K53: 03K03
K54: 03K04
K55: 03M02
K56: 03M04
K57: 03M05
K58: 03M06
K59: 03M07
K60: 03M09
K61: 03M10
K62: 03M11
K63: 03M13
K64: 04C02
K65: 04C03
K66: 04C04
K67: 04K02
K68: 04M03
K69: 04M05
K70: 04M07
K71: 04M08
K72: 04M09
K73: 04M10
K74: 04M11
K75: 04M12
K76: 04M13
K77: 04M14
K78: 04M16
K79: 04M17
K80: 04M20
K81: 04M23
K82: 04M24
K83: 05C02
K84: 05C03
K85: 05C05
K86: 05C06
K87: 05C10
K88: 05C11
K89: 05C12
K90: 05C13
K91: 05C14
K92: 05C15
K93: 05C17
K94: 05C18
K95: 05C19
K96: 05C21
K97: 05C22
K98: 05K05
K99: 05K06
K100: 05K10
K101: 05K14
K102: 05K17
K103: 05K19
K104: 05K20
K105: 05K23
K106: 05K24
K107: 05K25
K108: 05K26
K109: 05M04
K110: 05M05
K111: 05M06
K112: 05M07
K113: 05M08
K114: 05M09
K115: 05M12
K116: 05M13
K117: 05M15
K118: 05M16
K119: 05M17
K120: 05M22
K121: 05M23
K122: 06C03
K123: 06C04
K124: 06C07
K125: 06C08
K126: 06C09
K127: 06C10
K128: 06C12
K129: 06C13
K130: 06C14
K131: 06C15
K132: 06C16
K133: 06C19
K134: 06C21
K135: 06C22
K136: 06C24
K137: 06C25
K138: 06K02
K139: 06K03
K140: 06K04
K141: 06K05
K142: 06K06
K143: 06M03
K144: 06M04
K145: 06M05
K146: 06M06
K147: 06M07
K148: 06M08
K149: 06M09
K150: 06M11
K151: 06M12
K152: 06M13
K153: 06M16
K154: 06M17
K155: 06M18
K156: 06M19
K157: 06M20
K158: 07C09
K159: 07C10
K160: 07C12
K161: 07C13
K162: 07C14
K163: 07K02
K164: 07K04
K165: 07M02
K166: 07M04
K167: 07M06
K168: 07M07
K169: 07M08
K170: 07M10
K171: 07M11
K172: 07M14
K173: 08C13
K174: 08C14
K175: 08C20
K176: 08C21
K177: 08C22
K178: 08C24
K179: 08C25
K180: 08C27
K181: 08C28
K182: 08C31
K183: 08C32
K184: 08C33
K185: 08C34
K186: 08C35
K187: 08C36
K188: 08C37
K189: 08C38
K190: 08C39
K191: 08C40
K192: 08C42
K193: 08C43
K194: 08C44
K195: 08C45
K196: 08C46
K197: 08C47
K198: 08C48
K199: 08C49
K200: 08C50
... 192 more rows

Sheet synthèse racine (2) (hidden)
A1: Fiche de synthèse Racine | J1: =CONCATENATE(B4,B5,B6,B7) -> 0101C01C08TOTAL
K2: Craniotomies en dehors de tout traumatisme, âge supérieur à 17 ans | L2: 01C04
A3: Identification de la racine | K3: Interventions sur le rachis et la moelle pour des affections neurologiques | L3: 01C05
A4: CMD | B4: =LEFT(B5,2) -> 01 | K4: Interventions sur le système vasculaire précérébral | L4: 01C06
A5: Sous CMD | B5: =LEFT(B6,3) -> 01C | K5: Interventions sur les nerfs crâniens ou périphériques et autres interventions sur le système nerveux | L5: 01C08
A6: Racine | B6: =IF(B8<>"",VLOOKUP(B8,K:L,2,FALSE),"") -> 01C08 | K6: Pose d'un stimulateur médullaire | L6: 01C10
A7: GHM | B7: TOTAL | K7: Libérations de nerfs superficiels à l'exception du médian au canal carpien | L7: 01C14
A8: Libellé | B8: Interventions sur les nerfs crâniens ou périphériques et autres interventions sur le système nerveux | K8: Libérations du médian au canal carpien | L8: 01C15
K9: Injections de toxine botulique, en ambulatoire | L9: 01K04
C10: 2012 | D10: 2011 | E10: Evolution | G10: Coût moyen | H10: Part des postes détaillés dans chaque sous poste | K10: Séjours pour douleurs chroniques rebelles comprenant un bloc ou une infiltration, en ambulatoire | L10: 01K05
A11: Coût moyen du séjour | C11: =IF($B$4<>"",VLOOKUP($J$1,'Coûts 12 décomposés gds postes'!$A:$J,10,FALSE),"") -> 1649.515469 | D11: =IF($B$4<>"",IF(ISNA(VLOOKUP($J$1,evolutions!A:Y,25,FALSE)),"NC",VLOOKUP($J$1,evolutions!A:Y,25,FALSE)),"") -> 1392.670553 | E11: =IF($B$4<>"",VLOOKUP($J$1,evolutions!$A:$N,6,FALSE),"") -> 0.1844261845 | K11: Affections du système nerveux sans acte opératoire avec anesthésie, en ambulatoire | L11: 01K06
K12: Maladies dégénératives du système nerveux, âge inférieur à 80 ans | L12: 01M08
A13: Nombre de séjours ENC | C13: =IF($B$4<>"",VLOOKUP($J$1,'Coûts 12 décomposés gds postes'!$A:$J,8,FALSE),"") -> 441 | D13: =IF($B$4<>"",IF(ISNA(VLOOKUP($J$1,'Coûts 11 décomposés gds postes'!$A:$M,8,FALSE)),"NC",VLOOKUP($J$1,'Coûts 11 décomposés gds postes'!$A:$M,8,FALSE)),"") -> 289 | E13: =IF($B$4<>"",IF(D13<>"",IF(D13<>"NC",IF(C13<>"",C13/D13-1,""),""),""),"") -> 0.5259515571 | K13: Affections des nerfs crâniens et rachidiens | L13: 01M11
K14: Accidents ischémiques transitoires et occlusions des artères précérébrales, âge supérieur à 79 ans | L14: 01M15
K15: Accidents ischémiques transitoires et occlusions des artères précérébrales, âge inférieur à 80 ans | L15: 01M16
F16: Médico technique: anesthésie | G16: =IF($B$4<>"",VLOOKUP($J$1,'Coûts 12 décomposés gds postes'!$A:$AT,16,FALSE),"") -> 38.3805882 | H16: =IF(C11<>"",IF(B24<>0,(G16+G17+G18)/B24,""),"") -> 0.999759541 | K16: Sclérose en plaques et ataxie cérébelleuse | L16: 01M17
F17: Médico technique: bloc | G17: =IF($B$4<>"",VLOOKUP($J$1,'Coûts 12 décomposés gds postes'!$A:$AT,17,FALSE),"") -> 240.6087327 | K17: Commotions cérébrales | L17: 01M20
F18: Médico technique: urgences | G18: =IF($B$4<>"",VLOOKUP($J$1,'Coûts 12 décomposés gds postes'!$A:$AT,19,FALSE),"") -> 1.824479512 | K18: Douleurs chroniques rebelles | L18: 01M21
B19: Coût moyen 2012 | C19: Poids dans le coût du GHM | D19: Evolution 2012/2011 | K19: Migraines et céphalées | L19: 01M22
A20: activités cliniques MCO (avec hébergement, hors Réa, SI, SC) | B20: =IF($B$4<>"",VLOOKUP($J$1,'Coûts 12 décomposés gds postes'!$A:$AT,11,FALSE),"") -> 133.9313913 | C20: =IF($C$11<>"",B20/$C$11,"") -> 0.08119438335 | D20: =IF($B$4<>"",VLOOKUP($J$1,evolutions!$A:$N,7,FALSE),"") -> 0.02886612741 | F20: Logistique Médicale: Pharmacie | G20: =IF($B$4<>"",VLOOKUP($J$1,'Coûts 12 décomposés gds postes'!$A:$AT,28,FALSE),"") -> 15.0737418 | H20: =IF(B25<>"",IF(C11<>0,(G20+G21+G22)/B25,""),"") -> 0.9880156691 | K20: Epilepsie, âge supérieur à 17 ans | L20: 01M25
A21: Activité de soins intensifs | B21: =IF($B$4<>"",VLOOKUP($J$1,'Coûts 12 décomposés gds postes'!A:AT,13,FALSE),"") -> 0.4423593499 | C21: =IF($C$11<>"",B21/$C$11,"") -> 0.0002681753268 | D21: =IF($B$4<>"",VLOOKUP($J$1,evolutions!$A:$N,9,FALSE),"") -> 0 | F21: Logistique Médicale: Stérilisation | G21: =IF($B$4<>"",VLOOKUP($J$1,'Coûts 12 décomposés gds postes'!$A:$AT,29,FALSE),"") -> 46.38748492 | K21: Accidents vasculaires intracérébraux non transitoires | L21: 01M30
A22: Activité de surveillance continue | B22: =IF($B$4<>"",VLOOKUP($J$1,'Coûts 12 décomposés gds postes'!A:AT,12,FALSE),"") -> 0.368496597 | C22: 0.0002233968725 | D22: =IF($B$4<>"",VLOOKUP($J$1,evolutions!$A:$N,8,FALSE),"") -> -0.9444464827 | F22: Logistique Médicale: Génie Biomédical | G22: =IF($B$4<>"",VLOOKUP($J$1,'Coûts 12 décomposés gds postes'!$A:$AT,30,FALSE),"") -> 9.515605824 | K22: Anomalies de la démarche d'origine neurologique | L22: 01M34
A23: Activité de réanimation | B23: =IF($B$4<>"",VLOOKUP($J$1,'Coûts 12 décomposés gds postes'!A:AT,14,FALSE),"") -> 0 | C23: 0 | K23: Symptômes et autres recours aux soins de la CMD 01 | L23: 01M35
A24: Activités Médico-techniques | B24: =IF($B$4<>"",VLOOKUP($J$1,'Coûts 12 décomposés gds postes'!A:AT,20,FALSE),"") -> 280.8813409 | C24: 0.1702811196 | D24: =IF($B$4<>"",VLOOKUP($J$1,evolutions!$A:$N,10,FALSE),"") -> 0.162921265 | F24: Logistique générale: Blanchisserie | G24: =IF($B$4<>"",VLOOKUP($J$1,'Coûts 12 décomposés gds postes'!$A:$AT,21,FALSE),"") -> 7.322791438 | H24: =IF(C11<>"",IF(B26<>0,(G24+G25+G26+G27+G28+G29)/B26,""),"") -> 0.8271537677 | K24: Interventions sur la rétine | L24: 02C02
A25: Logistique Médicale | B25: =IF($B$4<>"",VLOOKUP($J$1,'Coûts 12 décomposés gds postes'!A:AT,31,FALSE),"") -> 71.83776002 | C25: 0.0435508253 | D25: =IF($B$4<>"",VLOOKUP($J$1,evolutions!$A:$N,12,FALSE),"") -> 0.06257043334 | F25: Logistique générale: Restauration | G25: =IF($B$4<>"",VLOOKUP($J$1,'Coûts 12 décomposés gds postes'!$A:$AT,22,FALSE),"") -> 17.20806468 | K25: Interventions sur le cristallin avec ou sans vitrectomie | L25: 02C05
A26: Logistique générale | B26: =IF($B$4<>"",VLOOKUP($J$1,'Coûts 12 décomposés gds postes'!A:AT,27,FALSE),"") -> 278.8271123 | C26: 0.1690357669 | D26: =IF($B$4<>"",VLOOKUP($J$1,evolutions!$A:$N,11,FALSE),"") -> 0.3261232455 | F26: Logistique générale: Accueil et gestion des malades | G26: =IF($B$4<>"",VLOOKUP($J$1,'Coûts 12 décomposés gds postes'!$A:$AT,23,FALSE),"") -> 28.61353912 | K26: Autres interventions extraoculaires, âge inférieur à 18 ans | L26: 02C07
A27: Charges directes | B27: =IF($B$4<>"",VLOOKUP($J$1,'Coûts 12 décomposés gds postes'!A:AT,37,FALSE),"") -> 198.0655249 | C27: 0.1200749727 | D27: =IF($B$4<>"",VLOOKUP($J$1,evolutions!$A:$N,13,FALSE),"") -> 0.2400900726 | F27: Logistique générale: Services administratifs à caractère général | G27: =IF($B$4<>"",VLOOKUP($J$1,'Coûts 12 décomposés gds postes'!$A:$AT,24,FALSE),"") -> 103.5093843 | K27: Autres interventions extraoculaires, âge supérieur à 17 ans | L27: 02C08
A28: Honoraires | B28: =IF($B$4<>"",VLOOKUP($J$1,'Coûts 12 décomposés gds postes'!A:AT,43,FALSE),"") -> 685.1614836 | C28: 0.4153713599 | D28: =IF($B$4<>"",VLOOKUP($J$1,evolutions!$A:$N,14,FALSE),"") -> 0.1879711583 | F28: Logistique générale: Entretien maintenance | G28: =IF($B$4<>"",VLOOKUP($J$1,'Coûts 12 décomposés gds postes'!$A:$AT,25,FALSE),"") -> 28.77047058 | K28: Allogreffes de cornée | L28: 02C09
F29: Logistique générale: Services hôteliers | G29: =IF($B$4<>"",VLOOKUP($J$1,'Coûts 12 décomposés gds postes'!$A:$AT,26,FALSE),"") -> 45.20864639 | K29: Autres interventions intraoculaires en dehors des affections sévères | L29: 02C11
K30: Interventions sur le cristallin avec trabéculectomie | L30: 02C12
F31: Charges directes: Autres consommables | G31: =IF($B$4<>"",VLOOKUP($J$1,'Coûts 12 décomposés gds postes'!$A:$AT,36,FALSE),"") -> 148.8238627 | H31: =IF(C11<>"",IF(B27<>0,(G31+G32+G33)/B27,""),"") -> 0.7676893096 | K31: Interventions sur les muscles oculomoteurs, âge inférieur à 18 ans | L31: 02C13
F32: Charges directes: Spécialités pharmaceutiques facturables en sus | G32: =IF($B$4<>"",VLOOKUP($J$1,'Coûts 12 décomposés gds postes'!$A:$AT,32,FALSE),"") -> 0.0320013367 | K32: Autres affections oculaires d'origine non diabétique, âge supérieur à 17 ans | L32: 02M08
A33: Données de coûts: ENCC ex OQN 2012 | F33: Charges directes: DMI facturables en sus | G33: =IF($B$4<>"",VLOOKUP($J$1,'Coûts 12 décomposés gds postes'!$A:$AT,34,FALSE),"") -> 3.196922095 | K33: Interventions sur les sinus et l'apophyse mastoïde, âge inférieur à 18 ans | L33: 03C06
K34: Interventions sur les sinus et l'apophyse mastoïde, âge supérieur à 17 ans | L34: 03C07
F35: Honoraires médicaux: Laboratoires autres | G35: =IF($B$4<>"",VLOOKUP($J$1,'Coûts 12 décomposés gds postes'!$A:$AT,38,FALSE),"") -> 7.352982034 | H35: =IF(C11<>"",IF(B28<>0,(G35+G36+G37+G38)/B28,""),"") -> 0.9238150301 | K35: Rhinoplasties | L35: 03C09
F36: Honoraires médicaux: imagerie | G36: =IF($B$4<>"",VLOOKUP($J$1,'Coûts 12 décomposés gds postes'!$A:$AT,39,FALSE),"") -> 24.16265053 | K36: Amygdalectomies et/ou adénoïdectomies isolées, âge inférieur à 18 ans | L36: 03C10
F37: Honoraires médicaux: anesthésie | G37: =IF($B$4<>"",VLOOKUP($J$1,'Coûts 12 décomposés gds postes'!$A:$AT,40,FALSE),"") -> 168.995192 | K37: Amygdalectomies et/ou adénoïdectomies isolées, âge supérieur à 17 ans | L37: 03C11
F38: Honoraires médicaux: chirurgie | G38: =IF($B$4<>"",VLOOKUP($J$1,'Coûts 12 décomposés gds postes'!$A:$AT,41,FALSE),"") -> 432.4516521 | K38: Interventions sur les amygdales et les végétations adénoïdes autres que les amygdalectomies et/ou les adénoïdectomies isolées, âge inférieur à 18 ans | L38: 03C12
K39: Interventions sur les amygdales et les végétations adénoïdes autres que les amygdalectomies et/ou les adénoïdectomies isolées, âge supérieur à 17 ans | L39: 03C13
K40: Drains transtympaniques, âge inférieur à 18 ans | L40: 03C14
K41: Drains transtympaniques, âge supérieur à 17 ans | L41: 03C15
K42: Autres interventions chirurgicales portant sur les oreilles, le nez, la gorge ou le cou | L42: 03C16
K43: Interventions sur la bouche | L43: 03C17
K44: Ostéotomies de la face | L44: 03C19
K45: Interventions de reconstruction de l'oreille moyenne | L45: 03C20
K46: Interventions pour oreilles décollées | L46: 03C21
K47: Interventions sur les glandes salivaires | L47: 03C24
K48: Autres interventions sur la tête et le cou | L48: 03C26
K49: Interventions sur les amygdales, en ambulatoire | L49: 03C27
K50: Interventions sur les végétations adénoïdes, en ambulatoire | L50: 03C28
K51: Interventions sur l'oreille externe | L51: 03C30
K52: Affections de la bouche et des dents avec certaines extractions, réparations et prothèses dentaires | L52: 03K02
K53: Séjours comprenant une endoscopie oto-rhino-laryngologique, en ambulatoire | L53: 03K03
K54: Séjours comprenant certains actes non opératoires de la CMD 03, en ambulatoire | L54: 03K04
K55: Traumatismes et déformations du nez | L55: 03M02
K56: Otites moyennes et autres infections des voies aériennes supérieures, âge supérieur à 17 ans | L56: 03M04
K57: Troubles de l'équilibre | L57: 03M05
K58: Epistaxis | L58: 03M06
K59: Tumeurs malignes des oreilles, du nez, de la gorge ou de la bouche | L59: 03M07
K60: Autres diagnostics portant sur les oreilles, le nez, la gorge ou la bouche, âge supérieur à 17 ans | L60: 03M09
K61: Affections de la bouche et des dents sans certaines extractions, réparations ou prothèses dentaires, âge inférieur à 18 ans | L61: 03M10
K62: Affections de la bouche et des dents sans certaines extractions, réparations ou prothèses dentaires, âge supérieur à 17 ans | L62: 03M11
K63: Infections aigües sévères des voies aériennes supérieures, âge supérieur à 17 ans | L63: 03M13
K64: Interventions majeures sur le thorax | L64: 04C02
K65: Autres interventions chirurgicales sur le système respiratoire | L65: 04C03
K66: Interventions sous thoracoscopie | L66: 04C04
K67: Séjours comprenant une endoscopie bronchique, en ambulatoire | L67: 04K02
K68: Bronchites et asthme, âge supérieur à 17 ans | L68: 04M03
K69: Pneumonies et pleurésies banales, âge supérieur à 17 ans | L69: 04M05
K70: Infections et inflammations respiratoires, âge supérieur à 17 ans | L70: 04M07
K71: Bronchopneumopathies chroniques | L71: 04M08
K72: Tumeurs de l'appareil respiratoire | L72: 04M09
K73: Embolies pulmonaires | L73: 04M10
K74: Signes et symptômes respiratoires | L74: 04M11
K75: Pneumothorax | L75: 04M12
K76: Oedème pulmonaire et détresse respiratoire | L76: 04M13
K77: Maladies pulmonaires interstitielles | L77: 04M14
K78: Traumatismes thoraciques | L78: 04M16
K79: Epanchements pleuraux | L79: 04M17
K80: Bronchopneumopathies chroniques surinfectées | L80: 04M20
K81: Autres symptômes et recours aux soins de la CMD 04 | L81: 04M23
K82: Affections de la CMD 04 avec décès : séjours de moins de 2 jours | L82: 04M24
K83: Chirurgie de remplacement valvulaire avec circulation extracorporelle et avec cathétérisme cardiaque ou coronarographie | L83: 05C02
K84: Chirurgie de remplacement valvulaire avec circulation extracorporelle, sans cathétérisme cardiaque, ni coronarographie | L84: 05C03
K85: Pontages aortocoronariens sans cathétérisme cardiaque, ni coronarographie | L85: 05C05
K86: Autres interventions cardiothoraciques, âge supérieur à 1 an, ou vasculaires quel que soit l'âge, avec circulation extracorporelle | L86: 05C06
K87: Chirurgie majeure de revascularisation | L87: 05C10
K88: Autres interventions de chirurgie vasculaire | L88: 05C11
K89: Amputations du membre inférieur, sauf des orteils, pour troubles circulatoires | L89: 05C12
K90: Amputations pour troubles circulatoires portant sur le membre supérieur ou les orteils | L90: 05C13
K91: Poses d'un stimulateur cardiaque permanent avec infarctus aigu du myocarde ou insuffisance cardiaque congestive ou état de choc | L91: 05C14
K92: Poses d'un stimulateur cardiaque permanent sans infarctus aigu du myocarde, ni insuffisance cardiaque congestive, ni état de choc | L92: 05C15
K93: Ligatures de veines et éveinages | L93: 05C17
K94: Autres interventions sur le système circulatoire | L94: 05C18
K95: Poses d'un défibrillateur cardiaque | L95: 05C19
K96: Créations et réfections de fistules artérioveineuses pour affections de la CMD 05 | L96: 05C21
K97: Remplacements de stimulateurs cardiaques permanents | L97: 05C22
K98: Endoprothèses vasculaires avec infarctus du myocarde | L98: 05K05
K99: Endoprothèses vasculaires sans infarctus du myocarde | L99: 05K06
K100: Actes diagnostiques par voie vasculaire | L100: 05K10
K101: Mise en place de certains accès vasculaires pour des affections de la CMD 05, séjours de moins de 2 jours | L101: 05K14
K102: Affections cardiovasculaires sans acte opératoire de la CMD 05, avec anesthésie, en ambulatoire | L102: 05K17
K103: Traitements majeurs de troubles du rythme par voie vasculaire | L103: 05K19
K104: Autres traitements de troubles du rythme par voie vasculaire | L104: 05K20
K105: Ablations, repositionnements et poses de sondes cardiaques supplémentaires par voie vasculaire, âge supérieur à 17 ans | L105: 05K23
K106: Dilatations coronaires et autres actes thérapeutiques sur le coeur par voie vasculaire, âge supérieur à 17 ans | L106: 05K24
K107: Actes thérapeutiques sur les artères par voie vasculaire, âge supérieur à 17 ans | L107: 05K25
K108: Actes thérapeutiques sur les accès vasculaires ou les veines par voie vasculaire, âge supérieur à 17 ans | L108: 05K26
K109: Infarctus aigu du myocarde | L109: 05M04
K110: Syncopes et lipothymies | L110: 05M05
K111: Angine de poitrine | L111: 05M06
K112: Thrombophlébites veineuses profondes | L112: 05M07
K113: Arythmies et troubles de la conduction cardiaque | L113: 05M08
K114: Insuffisances cardiaques et états de choc circulatoire | L114: 05M09
K115: Troubles vasculaires périphériques | L115: 05M12
K116: Douleurs thoraciques | L116: 05M13
K117: Hypertension artérielle | L117: 05M15
K118: Athérosclérose coronarienne | L118: 05M16
K119: Autres affections de l'appareil circulatoire | L119: 05M17
K120: Autres affections de la CMD 05 avec décès : séjours de moins de 2 jours | L120: 05M22
K121: Symptômes et autres recours aux soins de la CMD 05 | L121: 05M23
K122: Résections rectales | L122: 06C03
K123: Interventions majeures sur l'intestin grêle et le côlon | L123: 06C04
K124: Interventions mineures sur l'intestin grêle et le côlon | L124: 06C07
K125: Appendicectomies compliquées | L125: 06C08
K126: Appendicectomies non compliquées | L126: 06C09
K127: Interventions réparatrices pour hernies et éventrations, âge inférieur à 18 ans | L127: 06C10
K128: Interventions réparatrices pour hernies inguinales et crurales, âge supérieur à 17 ans | L128: 06C12
K129: Libérations d'adhérences péritonéales | L129: 06C13
K130: Interventions sur le rectum et l'anus autres que les résections rectales | L130: 06C14
K131: Autres interventions sur le tube digestif en dehors des laparotomies | L131: 06C15
K132: Interventions sur l'oesophage, l'estomac et le duodénum pour tumeurs malignes, âge supérieur à 17 ans | L132: 06C16
K133: Hémorroïdectomies | L133: 06C19
K134: Autres interventions sur le tube digestif par laparotomie | L134: 06C21
K135: Interventions sur l'oesophage, l'estomac et le duodénum pour affections autres que malignes ou ulcères, âge supérieur à 17 ans | L135: 06C22
K136: Cures d'éventrations postopératoires, âge supérieur à 17 ans | L136: 06C24
K137: Interventions réparatrices pour hernies à l'exception des hernies inguinales, crurales, âge supérieur à 17 ans | L137: 06C25
K138: Endoscopies digestives thérapeutiques et anesthésie : séjours de moins de 2 jours | L138: 06K02
K139: Séjours comprenant une endoscopie digestive thérapeutique sans anesthésie, en ambulatoire | L139: 06K03
K140: Endoscopie digestive diagnostique et anesthésie, en ambulatoire | L140: 06K04
K141: Séjours comprenant une endoscopie digestive diagnostique sans anesthésie, en ambulatoire | L141: 06K05
K142: Affections digestives sans acte opératoire de la CMD 06, avec anesthésie, en ambulatoire | L142: 06K06
K143: Autres gastroentérites et maladies diverses du tube digestif, âge supérieur à 17 ans | L143: 06M03
K144: Hémorragies digestives | L144: 06M04
K145: Autres tumeurs malignes du tube digestif | L145: 06M05
K146: Occlusions intestinales non dues à une hernie | L146: 06M06
K147: Maladies inflammatoires de l'intestin | L147: 06M07
K148: Autres affections digestives, âge inférieur à 18 ans | L148: 06M08
K149: Autres affections digestives, âge supérieur à 17 ans | L149: 06M09
K150: Ulcères gastroduodénaux non compliqués | L150: 06M11
K151: Douleurs abdominales | L151: 06M12
K152: Tumeurs malignes de l'oesophage et de l'estomac | L152: 06M13
K153: Explorations et surveillance pour affections de l'appareil digestif | L153: 06M16
K154: Soins de stomies digestives | L154: 06M17
K155: Symptômes et autres recours aux soins de la CMD 06 | L155: 06M18
K156: Affections sévères du tube digestif | L156: 06M19
K157: Tumeurs bénignes de l'appareil digestif | L157: 06M20
K158: Interventions sur le foie, le pancréas et les veines porte ou cave pour tumeurs malignes | L158: 07C09
K159: Interventions sur le foie, le pancréas et les veines porte ou cave pour affections non malignes | L159: 07C10
K160: Autres interventions sur les voies biliaires sauf cholécystectomies isolées | L160: 07C12
K161: Cholécystectomies sans exploration de la voie biliaire principale pour affections aigües | L161: 07C13
K162: Cholécystectomies sans exploration de la voie biliaire principale à l'exception des affections aigües | L162: 07C14
K163: Endoscopies biliaires thérapeutiques et anesthésie : séjours de moins de 2 jours | L163: 07K02
K164: Endoscopie biliaire diagnostique et anesthésie, en ambulatoire | L164: 07K04
K165: Affections des voies biliaires | L165: 07M02
K166: Autres affections hépatiques | L166: 07M04
K167: Affections malignes du système hépato-biliaire ou du pancréas | L167: 07M06
K168: Cirrhoses alcooliques | L168: 07M07
K169: Autres cirrhoses et fibrose hépatique | L169: 07M08
K170: Pancréatites aigües | L170: 07M10
K171: Autres affections non malignes du pancréas | L171: 07M11
K172: Symptômes et autres recours aux soins de la CMD 07 | L172: 07M14
K173: Résections osseuses localisées et/ou ablation de matériel de fixation interne au niveau de la hanche et du fémur | L173: 08C13
K174: Résections osseuses localisées et/ou ablation de matériel de fixation interne au niveau d'une localisation autre que la hanche et le fémur | L174: 08C14
K175: Greffes de peau pour maladie de l'appareil musculosquelettique ou du tissu conjonctif | L175: 08C20
K176: Autres interventions portant sur l'appareil musculosquelettique et le tissu conjonctif | L176: 08C21
K177: Interventions pour reprise de prothèses articulaires | L177: 08C22
K178: Prothèses de genou | L178: 08C24
K179: Prothèses d'épaule | L179: 08C25
K180: Autres interventions sur le rachis | L180: 08C27
K181: Interventions maxillofaciales | L181: 08C28
K182: Interventions sur la jambe, âge inférieur à 18 ans | L182: 08C31
K183: Interventions sur la jambe, âge supérieur à 17 ans | L183: 08C32
K184: Interventions sur la cheville et l'arrière-pied à l'exception des fractures | L184: 08C33
K185: Interventions sur les ligaments croisés sous arthroscopie | L185: 08C34
K186: Interventions sur le bras, coude et épaule | L186: 08C35
K187: Interventions sur le pied, âge inférieur à 18 ans | L187: 08C36
K188: Interventions sur le pied, âge supérieur à 17 ans | L188: 08C37
K189: Autres arthroscopies du genou | L189: 08C38
K190: Interventions sur l'avant-bras | L190: 08C39
K191: Arthroscopies d'autres localisations | L191: 08C40
K192: Interventions non mineures sur les tissus mous | L192: 08C42
K193: Interventions non mineures sur la main | L193: 08C43
K194: Autres interventions sur la main | L194: 08C44
K195: Ménisectomie sous arthroscopie | L195: 08C45
K196: Autres interventions sur les tissus mous | L196: 08C46
K197: Prothèses de hanche pour traumatismes récents | L197: 08C47
K198: Prothèses de hanche pour des affections autres que des traumatismes récents | L198: 08C48
K199: Interventions sur la hanche et le fémur pour traumatismes récents, âge supérieur à 17 ans | L199: 08C49
K200: Interventions sur la hanche et le fémur sauf traumatismes récents, âge supérieur à 17 ans | L200: 08C50
... 192 more rows

Sheet synthèse GHM (hidden)
A1: Fiche de synthèse GHM | K1: 01C041 | L1: Craniotomies en dehors de tout traumatisme, âge supérieur à 17 ans, niveau 1
K2: 01C051 | L2: Interventions sur le rachis et la moelle pour des affections neurologiques, niveau 1
A3: Identification du GHM | K3: 01C052 | L3: Interventions sur le rachis et la moelle pour des affections neurologiques, niveau 2
A4: GHM | B4: 01M11T | K4: 01C053 | L4: Interventions sur le rachis et la moelle pour des affections neurologiques, niveau 3
A5: Libellé | B5: =IF(B4<>"",VLOOKUP(B4,K:L,2,FALSE),"") -> Affections des nerfs crâniens et rachidiens, très courte durée | K5: 01C061 | L5: Interventions sur le système vasculaire précérébral, niveau 1
K6: 01C062 | L6: Interventions sur le système vasculaire précérébral, niveau 2
C7: 2012 | D7: 2011 | E7: Evolution | H7: Part des postes détaillés dans chaque sous poste | K7: 01C063 | L7: Interventions sur le système vasculaire précérébral, niveau 3
A8: Coût moyen du séjour | C8: =IF($B$4<>"",VLOOKUP($B$4,'Coûts décomposés'!A:E,5,FALSE),"") -> 507.5174519 | D8: =IF($B$4<>"",IF(ISNA(VLOOKUP($B$4,'Coûts 11 décomposés gds postes'!E:M,9,FALSE)),"NC",VLOOKUP($B$4,'Coûts 11 décomposés gds postes'!E:M,9,FALSE)),"") -> 558.0063858 | E8: =IF(B4<>"",VLOOKUP($B$4,evolutions!$E:$N,2,FALSE),"") -> -0.09048092497 | K8: 01C081 | L8: Interventions sur les nerfs crâniens ou périphériques et autres interventions sur le système nerveux, niveau 1
H9: Part des postes détaillés dans chaque sous poste | K9: 01C08J | L9: Interventions sur les nerfs crâniens ou périphériques et autres interventions sur le système nerveux, en ambulatoire
A10: Nombre de séjours ENC | C10: =IF($B$4<>"",VLOOKUP($B$4,'Coûts décomposés'!A:E,4,FALSE),"") -> 168 | D10: =IF($B$4<>"",IF(ISNA(VLOOKUP($B$4,'Coûts 11 décomposés gds postes'!E:M,4,FALSE)),"NC",VLOOKUP($B$4,'Coûts 11 décomposés gds postes'!E:M,4,FALSE)),"") -> 119 | E10: =IF($B$4<>"",IF(D10<>"",IF(D10<>"NC",IF(C10<>"",C10/D10-1,""),""),""),"") -> 0.4117647059 | G10: Coût moyen | K10: 01C101 | L10: Pose d'un stimulateur médullaire, niveau 1
K11: 01C141 | L11: Libérations de nerfs superficiels à l'exception du médian au canal carpien, niveau 1
A12: Intervalle de confiance | B12: Borne Basse | C12: =IF($B$4<>"",VLOOKUP($B$4,'Intervalle de confiance'!A:M,12,FALSE),"") -> 360.8106555 | D12: =IF($B$4<>"",IF(ISNA(VLOOKUP($B$4,'Coûts 11 décomposés gds postes'!E:M,7,FALSE)),"NC",VLOOKUP($B$4,'Coûts 11 décomposés gds postes'!E:M,7,FALSE)),"") -> 405.3928874 | K12: 01C14J | L12: Libérations de nerfs superficiels à l'exception du médian au canal carpien, en ambulatoire
B13: Borne Haute | C13: =IF($B$4<>"",VLOOKUP($B$4,'Intervalle de confiance'!A:M,13,FALSE),"") -> 654.2242482 | D13: =IF($B$4<>"",IF(ISNA(VLOOKUP($B$4,'Coûts 11 décomposés gds postes'!E:M,8,FALSE)),"NC",VLOOKUP($B$4,'Coûts 11 décomposés gds postes'!E:M,8,FALSE)),"") -> 710.6198843 | K13: 01C151 | L13: Libérations du médian au canal carpien, niveau 1
F14: Cliniques: Personnel soignant | G14: =IF($B$4<>"",VLOOKUP($B$4,'Coûts décomposés'!$A:$DW,10,FALSE),"") -> 80.09095442 | H14: =IF(C10<>"",IF(B23<>0,(G14+G15)/B23,""),"") -> 0.9638676984 | K14: 01C15J | L14: Libérations du médian au canal carpien, en ambulatoire
F15: Cliniques: Personnel autre | G15: =IF($B$4<>"",VLOOKUP($B$4,'Coûts décomposés'!$A:$DW,8,FALSE),"") -> 17.35692126 | K15: 01K04J | L15: Injections de toxine botulique, en ambulatoire
K16: 01K05J | L16: Séjours pour douleurs chroniques rebelles comprenant un bloc ou une infiltration, en ambulatoire
K17: 01K06J | L17: Affections du système nerveux sans acte opératoire avec anesthésie, en ambulatoire
F18: Soins intensifs: Personnel soignant | G18: =IF($B$4<>"",VLOOKUP($B$4,'Coûts décomposés'!$A:$DW,22,FALSE),"") -> 0 | H18: =IF(C10<>"",IF(B24<>0,(G18+G19)/B24,""),"") ->  | K18: 01M081 | L18: Maladies dégénératives du système nerveux, âge inférieur à 80 ans, niveau 1
F19: Soins intensifs: Personnel autre | G19: =IF($B$4<>"",VLOOKUP($B$4,'Coûts décomposés'!$A:$DW,20,FALSE),"") -> 0 | K19: 01M111 | L19: Affections des nerfs crâniens et rachidiens, niveau 1
K20: 01M11T | L20: Affections des nerfs crâniens et rachidiens, très courte durée
F21: Surveillance continue: Personnel soignant | G21: =IF($B$4<>"",VLOOKUP($B$4,'Coûts décomposés'!$A:$DW,16,FALSE),"") -> 0.4796356993 | H21: =IF(C10<>"",IF(B25<>0,(G21+G22)/B25,""),"") -> 0.7223311781 | K21: 01M15T | L21: Accidents ischémiques transitoires et occlusions des artères précérébrales, âge supérieur à 79 ans, très courte durée
B22: Coût moyen 2012 | C22: Poids dans le coût du GHM | D22: Evolution 2012/2011 | F22: Surveillance continue: Personnel autre | G22: =IF($B$4<>"",VLOOKUP($B$4,'Coûts décomposés'!$A:$DW,14,FALSE),"") -> 0.03627237252 | K22: 01M16T | L22: Accidents ischémiques transitoires et occlusions des artères précérébrales, âge inférieur à 80 ans, très courte durée
A23: Activités cliniques MCO (avec hébergement, hors Réa, SI, SC) | B23: =IF($B$4<>"",VLOOKUP($B$4,'Coûts décomposés'!$A:$DW,11,FALSE),"") -> 101.1008833 | C23: =IF($C$10<>"",B23/$C$8,"") -> 0.1992067128 | D23: =IF($B$4<>"",VLOOKUP($B$4,evolutions!$E:$N,3,FALSE),"") -> -0.1520086508 | K23: 01M171 | L23: Sclérose en plaques et ataxie cérébelleuse, niveau 1
A24: Activité de soins intensifs | B24: =IF($B$4<>"",VLOOKUP($B$4,'Coûts décomposés'!$A:$DW,23,FALSE),"") -> 0 | C24: =IF($C$10<>"",B24/$C$8,"") -> 0 | D24: =IF($B$4<>"",VLOOKUP($B$4,evolutions!$E:$N,5,FALSE),"") -> 0 | F24: Médico technique: anesthésie | G24: =IF($B$4<>"",VLOOKUP($B$4,'Coûts décomposés'!$A:$DW,35,FALSE),"") -> 0.3680368392 | H24: =IF(C10<>"",IF(B27<>0,(G24+G25+G26)/B27,""),"") -> 1 | K24: 01M201 | L24: Commotions cérébrales, niveau 1
A25: Activité de surveillance continue | B25: =IF($B$4<>"",VLOOKUP($B$4,'Coûts décomposés'!$A:$DW,17,FALSE),"") -> 0.7142265036 | C25: 0.00140729447 | D25: =IF($B$4<>"",VLOOKUP($B$4,evolutions!$E:$N,4,FALSE),"") -> 0 | F25: Médico technique: bloc | G25: =IF($B$4<>"",VLOOKUP($B$4,'Coûts décomposés'!$A:$DW,41,FALSE),"") -> 42.7651303 | K25: 01M211 | L25: Douleurs chroniques rebelles, niveau 1
A26: Activité de réanimation | B26: =IF($B$4<>"",VLOOKUP($B$4,'Coûts décomposés'!$A:$DW,28,FALSE),"") -> 0 | C26: =IF($C$10<>"",B26/$C$8,"") -> 0 | F26: Médico technique: urgences | G26: =IF($B$4<>"",VLOOKUP($B$4,'Coûts décomposés'!$A:$DW,72,FALSE),"") -> 6.840168444 | K26: 01M21T | L26: Douleurs chroniques rebelles, très courte durée
A27: Activités Médico-techniques | B27: =IF($B$4<>"",VLOOKUP($B$4,'Coûts décomposés'!$A:$DW,73,FALSE),"") -> 49.97333558 | C27: 0.09846624072 | D27: =IF($B$4<>"",VLOOKUP($B$4,evolutions!$E:$N,6,FALSE),"") -> -0.0588800994 | K27: 01M221 | L27: Migraines et céphalées, niveau 1
A28: Logistique Médicale | B28: =IF($B$4<>"",VLOOKUP($B$4,'Coûts décomposés'!$A:$DW,91,FALSE),"") -> 13.43118333 | C28: 0.02646447581 | D28: =IF($B$4<>"",VLOOKUP($B$4,evolutions!$E:$N,8,FALSE),"") -> -0.1403748296 | F28: Logistique générale: Blanchisserie | G28: =IF($B$4<>"",VLOOKUP($B$4,'Coûts décomposés'!$A:$DW,74,FALSE),"") -> 6.390869453 | H28: =IF(C10<>"",IF(B29<>0,(G28+G29)/B29,""),"") -> 0.1665685522 | K28: 01M22T | L28: Migraines et céphalées, très courte durée
A29: Logistique générale | B29: =IF($B$4<>"",VLOOKUP($B$4,'Coûts décomposés'!$A:$DW,85,FALSE),"") -> 100.0553367 | C29: 0.1971465933 | D29: =IF($B$4<>"",VLOOKUP($B$4,evolutions!$E:$N,7,FALSE),"") -> -0.05232217801 | F29: Logistique générale: Restauration | G29: =IF($B$4<>"",VLOOKUP($B$4,'Coûts décomposés'!$A:$DW,75,FALSE),"") -> 10.27520312 | K29: 01M25T | L29: Epilepsie, âge supérieur à 17 ans, très courte durée
A30: Charges directes | B30: =IF($B$4<>"",VLOOKUP($B$4,'Coûts décomposés'!$A:$DW,104,FALSE),"") -> 54.52438721 | C30: 0.1074335218 | D30: =IF($B$4<>"",VLOOKUP($B$4,evolutions!$E:$N,9,FALSE),"") -> 0.04308470444 | K30: 01M301 | L30: Accidents vasculaires intracérébraux non transitoires, niveau 1
A31: Honoraires | B31: =IF($B$4<>"",VLOOKUP($B$4,'Coûts décomposés'!$A:$DW,113,FALSE),"") -> 187.7180993 | C31: 0.3698751611 | D31: =IF($B$4<>"",VLOOKUP($B$4,evolutions!$E:$N,10,FALSE),"") -> -0.1153983616 | F31: Charges directes: Spécialités pharmaceutiques facturables en sus | G31: =IF($B$4<>"",VLOOKUP($B$4,'Coûts décomposés'!$A:$DW,92,FALSE),"") -> 9.120083532 | H31: =IF(C10<>"",IF(B30<>0,(G31+G32)/B30,""),"") -> 0.1767351341 | K31: 01M302 | L31: Accidents vasculaires intracérébraux non transitoires, niveau 2
F32: Charges directes: DMI facturables en sus | G32: =IF($B$4<>"",VLOOKUP($B$4,'Coûts décomposés'!$A:$DW,96,FALSE),"") -> 0.5162913546 | K32: 01M34Z | L32: Anomalies de la démarche d'origine neurologique
K33: 01M35T | L33: Symptômes et autres recours aux soins de la CMD 01, très courte durée
F34: Honoraires médicaux: Laboratoires autres | G34: =IF($B$4<>"",VLOOKUP($B$4,'Coûts décomposés'!$A:$DW,105,FALSE),"") -> 40.38867151 | H34: =IF(C10<>"",IF(B31<>0,(G34+G35+G36+G37)/B31,""),"") -> 0.7758670993 | K34: 02C021 | L34: Interventions sur la rétine, niveau 1
F35: Honoraires médicaux: imagerie | G35: =IF($B$4<>"",VLOOKUP($B$4,'Coûts décomposés'!$A:$DW,106,FALSE),"") -> 102.8609989 | K35: 02C02J | L35: Interventions sur la rétine, en ambulatoire
F36: Honoraires médicaux: anesthésie | G36: =IF($B$4<>"",VLOOKUP($B$4,'Coûts décomposés'!$A:$DW,107,FALSE),"") -> 0.917013053 | K36: 02C051 | L36: Interventions sur le cristallin avec ou sans vitrectomie, niveau 1
A37: Données de coûts: ENCC ex OQN 2012 | F37: Honoraires médicaux: chirurgie | G37: =IF($B$4<>"",VLOOKUP($B$4,'Coûts décomposés'!$A:$DW,109,FALSE),"") -> 1.477613699 | K37: 02C05J | L37: Interventions sur le cristallin avec ou sans vitrectomie, en ambulatoire
K38: 02C07J | L38: Autres interventions extraoculaires, âge inférieur à 18 ans, en ambulatoire
K39: 02C081 | L39: Autres interventions extraoculaires, âge supérieur à 17 ans, niveau 1
K40: 02C08J | L40: Autres interventions extraoculaires, âge supérieur à 17 ans, en ambulatoire
K41: 02C091 | L41: Allogreffes de cornée, niveau 1
K42: 02C09J | L42: Allogreffes de cornée, en ambulatoire
K43: 02C111 | L43: Autres interventions intraoculaires en dehors des affections sévères, niveau 1
K44: 02C11J | L44: Autres interventions intraoculaires en dehors des affections sévères, en ambulatoire
K45: 02C121 | L45: Interventions sur le cristallin avec trabéculectomie, niveau 1
K46: 02C12J | L46: Interventions sur le cristallin avec trabéculectomie, en ambulatoire
K47: 02C131 | L47: Interventions sur les muscles oculomoteurs, âge inférieur à 18 ans, niveau 1
K48: 02C13J | L48: Interventions sur les muscles oculomoteurs, âge inférieur à 18 ans, en ambulatoire
K49: 02M081 | L49: Autres affections oculaires d'origine non diabétique, âge supérieur à 17 ans, niveau 1
K50: 02M08T | L50: Autres affections oculaires d'origine non diabétique, âge supérieur à 17 ans, très courte durée
K51: 03C061 | L51: Interventions sur les sinus et l'apophyse mastoïde, âge inférieur à 18 ans, niveau 1
K52: 03C071 | L52: Interventions sur les sinus et l'apophyse mastoïde, âge supérieur à 17 ans, niveau 1
K53: 03C072 | L53: Interventions sur les sinus et l'apophyse mastoïde, âge supérieur à 17 ans, niveau 2
K54: 03C07J | L54: Interventions sur les sinus et l'apophyse mastoïde, âge supérieur à 17 ans, en ambulatoire
K55: 03C091 | L55: Rhinoplasties, niveau 1
K56: 03C09J | L56: Rhinoplasties, en ambulatoire
K57: 03C101 | L57: Amygdalectomies et/ou adénoïdectomies isolées, âge inférieur à 18 ans, niveau 1
K58: 03C111 | L58: Amygdalectomies et/ou adénoïdectomies isolées, âge supérieur à 17 ans, niveau 1
K59: 03C121 | L59: Interventions sur les amygdales et les végétations adénoïdes autres que les amygdalectomies et/ou les adénoïdectomies isolées, âge inférieur à 18 ans, niveau 1
K60: 03C131 | L60: Interventions sur les amygdales et les végétations adénoïdes autres que les amygdalectomies et/ou les adénoïdectomies isolées, âge supérieur à 17 ans, niveau 1
K61: 03C14J | L61: Drains transtympaniques, âge inférieur à 18 ans, en ambulatoire
K62: 03C15J | L62: Drains transtympaniques, âge supérieur à 17 ans, en ambulatoire
K63: 03C161 | L63: Autres interventions chirurgicales portant sur les oreilles, le nez, la gorge ou le cou, niveau 1
K64: 03C16J | L64: Autres interventions chirurgicales portant sur les oreilles, le nez, la gorge ou le cou, en ambulatoire
K65: 03C171 | L65: Interventions sur la bouche, niveau 1
K66: 03C17J | L66: Interventions sur la bouche, en ambulatoire
K67: 03C191 | L67: Ostéotomies de la face, niveau 1
K68: 03C201 | L68: Interventions de reconstruction de l'oreille moyenne, niveau 1
K69: 03C20J | L69: Interventions de reconstruction de l'oreille moyenne, en ambulatoire
K70: 03C211 | L70: Interventions pour oreilles décollées, niveau 1
K71: 03C21J | L71: Interventions pour oreilles décollées, en ambulatoire
K72: 03C241 | L72: Interventions sur les glandes salivaires, niveau 1
K73: 03C24J | L73: Interventions sur les glandes salivaires, en ambulatoire
K74: 03C261 | L74: Autres interventions sur la tête et le cou, niveau 1
K75: 03C27J | L75: Interventions sur les amygdales, en ambulatoire
K76: 03C28J | L76: Interventions sur les végétations adénoïdes, en ambulatoire
K77: 03C30J | L77: Interventions sur l'oreille externe, en ambulatoire
K78: 03K021 | L78: Affections de la bouche et des dents avec certaines extractions, réparations et prothèses dentaires, niveau 1
K79: 03K02J | L79: Affections de la bouche et des dents avec certaines extractions, réparations et prothèses dentaires, en ambulatoire
K80: 03K03J | L80: Séjours comprenant une endoscopie oto-rhino-laryngologique, en ambulatoire
K81: 03K04J | L81: Séjours comprenant certains actes non opératoires de la CMD 03, en ambulatoire
K82: 03M021 | L82: Traumatismes et déformations du nez, niveau 1
K83: 03M02T | L83: Traumatismes et déformations du nez, très courte durée
K84: 03M04T | L84: Otites moyennes et autres infections des voies aériennes supérieures, âge supérieur à 17 ans, très courte durée
K85: 03M051 | L85: Troubles de l'équilibre, niveau 1
K86: 03M05T | L86: Troubles de l'équilibre, très courte durée
K87: 03M06T | L87: Epistaxis, très courte durée
K88: 03M071 | L88: Tumeurs malignes des oreilles, du nez, de la gorge ou de la bouche, niveau 1
K89: 03M091 | L89: Autres diagnostics portant sur les oreilles, le nez, la gorge ou la bouche, âge supérieur à 17 ans, niveau 1
K90: 03M09T | L90: Autres diagnostics portant sur les oreilles, le nez, la gorge ou la bouche, âge supérieur à 17 ans, très courte durée
K91: 03M10T | L91: Affections de la bouche et des dents sans certaines extractions, réparations ou prothèses dentaires, âge inférieur à 18 ans, très courte durée
K92: 03M111 | L92: Affections de la bouche et des dents sans certaines extractions, réparations ou prothèses dentaires, âge supérieur à 17 ans, niveau 1
K93: 03M11T | L93: Affections de la bouche et des dents sans certaines extractions, réparations ou prothèses dentaires, âge supérieur à 17 ans, très courte durée
K94: 03M131 | L94: Infections aigües sévères des voies aériennes supérieures, âge supérieur à 17 ans, niveau 1
K95: 04C021 | L95: Interventions majeures sur le thorax, niveau 1
K96: 04C022 | L96: Interventions majeures sur le thorax, niveau 2
K97: 04C023 | L97: Interventions majeures sur le thorax, niveau 3
K98: 04C024 | L98: Interventions majeures sur le thorax, niveau 4
K99: 04C031 | L99: Autres interventions chirurgicales sur le système respiratoire, niveau 1
K100: 04C041 | L100: Interventions sous thoracoscopie, niveau 1
K101: 04C042 | L101: Interventions sous thoracoscopie, niveau 2
K102: 04K02J | L102: Séjours comprenant une endoscopie bronchique, en ambulatoire
K103: 04M031 | L103: Bronchites et asthme, âge supérieur à 17 ans, niveau 1
K104: 04M032 | L104: Bronchites et asthme, âge supérieur à 17 ans, niveau 2
K105: 04M033 | L105: Bronchites et asthme, âge supérieur à 17 ans, niveau 3
K106: 04M03T | L106: Bronchites et asthme, âge supérieur à 17 ans, très courte durée
K107: 04M051 | L107: Pneumonies et pleurésies banales, âge supérieur à 17 ans, niveau 1
K108: 04M052 | L108: Pneumonies et pleurésies banales, âge supérieur à 17 ans, niveau 2
K109: 04M053 | L109: Pneumonies et pleurésies banales, âge supérieur à 17 ans, niveau 3
K110: 04M05T | L110: Transferts et autres séjours pour pneumonies et pleurésies banales, âge supérieur à 17 ans
K111: 04M071 | L111: Infections et inflammations respiratoires, âge supérieur à 17 ans, niveau 1
K112: 04M072 | L112: Infections et inflammations respiratoires, âge supérieur à 17 ans, niveau 2
K113: 04M073 | L113: Infections et inflammations respiratoires, âge supérieur à 17 ans, niveau 3
K114: 04M081 | L114: Bronchopneumopathies chroniques, niveau 1
K115: 04M082 | L115: Bronchopneumopathies chroniques, niveau 2
K116: 04M083 | L116: Bronchopneumopathies chroniques, niveau 3
K117: 04M091 | L117: Tumeurs de l'appareil respiratoire, niveau 1
K118: 04M092 | L118: Tumeurs de l'appareil respiratoire, niveau 2
K119: 04M093 | L119: Tumeurs de l'appareil respiratoire, niveau 3
K120: 04M09T | L120: Tumeurs de l'appareil respiratoire, très courte durée
K121: 04M101 | L121: Embolies pulmonaires, niveau 1
K122: 04M102 | L122: Embolies pulmonaires, niveau 2
K123: 04M103 | L123: Embolies pulmonaires, niveau 3
K124: 04M10T | L124: Embolies pulmonaires, très courte durée
K125: 04M111 | L125: Signes et symptômes respiratoires, niveau 1
K126: 04M112 | L126: Signes et symptômes respiratoires, niveau 2
K127: 04M121 | L127: Pneumothorax, niveau 1
K128: 04M131 | L128: Oedème pulmonaire et détresse respiratoire, niveau 1
K129: 04M132 | L129: Oedème pulmonaire et détresse respiratoire, niveau 2
K130: 04M133 | L130: Oedème pulmonaire et détresse respiratoire, niveau 3
K131: 04M141 | L131: Maladies pulmonaires interstitielles, niveau 1
K132: 04M142 | L132: Maladies pulmonaires interstitielles, niveau 2
K133: 04M143 | L133: Maladies pulmonaires interstitielles, niveau 3
K134: 04M16T | L134: Traumatismes thoraciques, très courte durée
K135: 04M171 | L135: Epanchements pleuraux, niveau 1
K136: 04M172 | L136: Epanchements pleuraux, niveau 2
K137: 04M173 | L137: Epanchements pleuraux, niveau 3
K138: 04M174 | L138: Epanchements pleuraux, niveau 4
K139: 04M201 | L139: Bronchopneumopathies chroniques surinfectées, niveau 1
K140: 04M202 | L140: Bronchopneumopathies chroniques surinfectées, niveau 2
K141: 04M203 | L141: Bronchopneumopathies chroniques surinfectées, niveau 3
K142: 04M204 | L142: Bronchopneumopathies chroniques surinfectées, niveau 4
K143: 04M23Z | L143: Autres symptômes et recours aux soins de la CMD 04
K144: 04M24E | L144: Affections de la CMD 04 avec décès : séjours de moins de 2 jours
K145: 05C021 | L145: Chirurgie de remplacement valvulaire avec circulation extracorporelle et avec cathétérisme cardiaque ou coronarographie, niveau 1
K146: 05C022 | L146: Chirurgie de remplacement valvulaire avec circulation extracorporelle et avec cathétérisme cardiaque ou coronarographie, niveau 2
K147: 05C031 | L147: Chirurgie de remplacement valvulaire avec circulation extracorporelle, sans cathétérisme cardiaque, ni coronarographie, niveau 1
K148: 05C032 | L148: Chirurgie de remplacement valvulaire avec circulation extracorporelle, sans cathétérisme cardiaque, ni coronarographie, niveau 2
K149: 05C033 | L149: Chirurgie de remplacement valvulaire avec circulation extracorporelle, sans cathétérisme cardiaque, ni coronarographie, niveau 3
K150: 05C051 | L150: Pontages aortocoronariens sans cathétérisme cardiaque, ni coronarographie, niveau 1
K151: 05C052 | L151: Pontages aortocoronariens sans cathétérisme cardiaque, ni coronarographie, niveau 2
K152: 05C061 | L152: Autres interventions cardiothoraciques, âge supérieur à 1 an, ou vasculaires quel que soit l'âge, avec circulation extracorporelle, niveau 1
K153: 05C062 | L153: Autres interventions cardiothoraciques, âge supérieur à 1 an, ou vasculaires quel que soit l'âge, avec circulation extracorporelle, niveau 2
K154: 05C101 | L154: Chirurgie majeure de revascularisation, niveau 1
K155: 05C102 | L155: Chirurgie majeure de revascularisation, niveau 2
K156: 05C103 | L156: Chirurgie majeure de revascularisation, niveau 3
K157: 05C104 | L157: Chirurgie majeure de revascularisation, niveau 4
K158: 05C111 | L158: Autres interventions de chirurgie vasculaire, niveau 1
K159: 05C112 | L159: Autres interventions de chirurgie vasculaire, niveau 2
K160: 05C113 | L160: Autres interventions de chirurgie vasculaire, niveau 3
K161: 05C114 | L161: Autres interventions de chirurgie vasculaire, niveau 4
K162: 05C121 | L162: Amputations du membre inférieur, sauf des orteils, pour troubles circulatoires, niveau 1
K163: 05C122 | L163: Amputations du membre inférieur, sauf des orteils, pour troubles circulatoires, niveau 2
K164: 05C123 | L164: Amputations du membre inférieur, sauf des orteils, pour troubles circulatoires, niveau 3
K165: 05C124 | L165: Amputations du membre inférieur, sauf des orteils, pour troubles circulatoires, niveau 4
K166: 05C131 | L166: Amputations pour troubles circulatoires portant sur le membre supérieur ou les orteils, niveau 1
K167: 05C133 | L167: Amputations pour troubles circulatoires portant sur le membre supérieur ou les orteils, niveau 3
K168: 05C141 | L168: Poses d'un stimulateur cardiaque permanent avec infarctus aigu du myocarde ou insuffisance cardiaque congestive ou état de choc, niveau 1
K169: 05C142 | L169: Poses d'un stimulateur cardiaque permanent avec infarctus aigu du myocarde ou insuffisance cardiaque congestive ou état de choc, niveau 2
K170: 05C151 | L170: Poses d'un stimulateur cardiaque permanent sans infarctus aigu du myocarde, ni insuffisance cardiaque congestive, ni état de choc, niveau 1
K171: 05C152 | L171: Poses d'un stimulateur cardiaque permanent sans infarctus aigu du myocarde, ni insuffisance cardiaque congestive, ni état de choc, niveau 2
K172: 05C171 | L172: Ligatures de veines et éveinages, niveau 1
K173: 05C172 | L173: Ligatures de veines et éveinages, niveau 2
K174: 05C17J | L174: Ligatures de veines et éveinages, en ambulatoire
K175: 05C181 | L175: Autres interventions sur le système circulatoire, niveau 1
K176: 05C18J | L176: Autres interventions sur le système circulatoire, en ambulatoire
K177: 05C191 | L177: Poses d'un défibrillateur cardiaque, niveau 1
K178: 05C192 | L178: Poses d'un défibrillateur cardiaque, niveau 2
K179: 05C211 | L179: Créations et réfections de fistules artérioveineuses pour affections de la CMD 05, niveau 1
K180: 05C21J | L180: Créations et réfections de fistules artérioveineuses pour affections de la CMD 05, en ambulatoire
K181: 05C221 | L181: Remplacements de stimulateurs cardiaques permanents, niveau 1
K182: 05C22T | L182: Remplacements de stimulateurs cardiaques permanents, très courte durée
K183: 05K051 | L183: Endoprothèses vasculaires avec infarctus du myocarde, niveau 1
K184: 05K052 | L184: Endoprothèses vasculaires avec infarctus du myocarde, niveau 2
K185: 05K061 | L185: Endoprothèses vasculaires sans infarctus du myocarde, niveau 1
K186: 05K062 | L186: Endoprothèses vasculaires sans infarctus du myocarde, niveau 2
K187: 05K063 | L187: Endoprothèses vasculaires sans infarctus du myocarde, niveau 3
K188: 05K06T | L188: Endoprothèses vasculaires sans infarctus du myocarde, très courte durée
K189: 05K101 | L189: Actes diagnostiques par voie vasculaire, niveau 1
K190: 05K102 | L190: Actes diagnostiques par voie vasculaire, niveau 2
K191: 05K10J | L191: Actes diagnostiques par voie vasculaire, en ambulatoire
K192: 05K14Z | L192: Mise en place de certains accès vasculaires pour des affections de la CMD 05, séjours de moins de 2 jours
K193: 05K17J | L193: Affections cardiovasculaires sans acte opératoire de la CMD 05, avec anesthésie, en ambulatoire
K194: 05K191 | L194: Traitements majeurs de troubles du rythme par voie vasculaire, niveau 1
K195: 05K192 | L195: Traitements majeurs de troubles du rythme par voie vasculaire, niveau 2
K196: 05K201 | L196: Autres traitements de troubles du rythme par voie vasculaire, niveau 1
K197: 05K202 | L197: Autres traitements de troubles du rythme par voie vasculaire, niveau 2
K198: 05K20T | L198: Autres traitements de troubles du rythme par voie vasculaire, très courte durée
K199: 05K231 | L199: Ablations, repositionnements et poses de sondes cardiaques supplémentaires par voie vasculaire, âge supérieur à 17 ans, niveau 1
K200: 05K241 | L200: Dilatations coronaires et autres actes thérapeutiques sur le coeur par voie vasculaire, âge supérieur à 17 ans, niveau 1
... 605 more rows

Sheet synthèse GHM (2) (hidden)
A1: Fiche de synthèse GHM | K1: Craniotomies en dehors de tout traumatisme, âge supérieur à 17 ans, niveau 1 | L1: 01C041
K2: Interventions sur le rachis et la moelle pour des affections neurologiques, niveau 1 | L2: 01C051
A3: Identification du GHM | K3: Interventions sur le rachis et la moelle pour des affections neurologiques, niveau 2 | L3: 01C052
A4: GHM | B4: =IF(B5<>"",VLOOKUP(B5,K:L,2,FALSE),"") -> 07M071 | K4: Interventions sur le rachis et la moelle pour des affections neurologiques, niveau 3 | L4: 01C053
A5: Libellé | B5: Cirrhoses alcooliques, niveau 1 | K5: Interventions sur le système vasculaire précérébral, niveau 1 | L5: 01C061
K6: Interventions sur le système vasculaire précérébral, niveau 2 | L6: 01C062
K7: Interventions sur le système vasculaire précérébral, niveau 3 | L7: 01C063
C8: 2011 | D8: 2010 | E8: Evolution | G8: Coût moyen | H8: Part des postes détaillés dans chaque sous poste | K8: Interventions sur les nerfs crâniens ou périphériques et autres interventions sur le système nerveux, niveau 1 | L8: 01C081
A9: Coût moyen du séjour | C9: =IF($B$4<>"",VLOOKUP($B$4,'Coûts décomposés'!A:E,5,FALSE),"") -> 1569.328909 | D9: =IF($B$4<>"",IF(ISNA(VLOOKUP($B$4,'Coûts 11 décomposés gds postes'!E:M,9,FALSE)),"NC",VLOOKUP($B$4,'Coûts 11 décomposés gds postes'!E:M,9,FALSE)),"") -> 1618.032563 | E9: =IF(B5<>"",VLOOKUP($B$4,evolutions!$E:$N,2,FALSE),"") -> -0.0301005401 | K9: Interventions sur les nerfs crâniens ou périphériques et autres interventions sur le système nerveux, en ambulatoire | L9: 01C08J
K10: Pose d'un stimulateur médullaire, niveau 1 | L10: 01C101
A11: Nombre de séjours ENC | C11: =IF($B$4<>"",VLOOKUP($B$4,'Coûts décomposés'!A:E,4,FALSE),"") -> 34 | D11: =IF($B$4<>"",IF(ISNA(VLOOKUP($B$4,'Coûts 11 décomposés gds postes'!E:M,4,FALSE)),"NC",VLOOKUP($B$4,'Coûts 11 décomposés gds postes'!E:M,4,FALSE)),"") -> 18 | E11: =IF($B$4<>"",IF(D11<>"",IF(D11<>"NC",IF(C11<>"",C11/D11-1,""),""),""),"") -> 0.8888888889 | K11: Libérations de nerfs superficiels à l'exception du médian au canal carpien, niveau 1 | L11: 01C141
K12: Libérations de nerfs superficiels à l'exception du médian au canal carpien, en ambulatoire | L12: 01C14J
A13: Intervalle de confiance | B13: Borne Basse | C13: =IF($B$4<>"",VLOOKUP($B$4,'Intervalle de confiance'!A:M,12,FALSE),"") -> 1336.202689 | D13: =IF($B$4<>"",IF(ISNA(VLOOKUP($B$4,'Coûts 11 décomposés gds postes'!E:M,7,FALSE)),"NC",VLOOKUP($B$4,'Coûts 11 décomposés gds postes'!E:M,7,FALSE)),"") -> NC | K13: Libérations du médian au canal carpien, niveau 1 | L13: 01C151
B14: Borne Haute | C14: =IF($B$4<>"",VLOOKUP($B$4,'Intervalle de confiance'!A:M,13,FALSE),"") -> 1802.455128 | D14: =IF($B$4<>"",IF(ISNA(VLOOKUP($B$4,'Coûts 11 décomposés gds postes'!E:M,8,FALSE)),"NC",VLOOKUP($B$4,'Coûts 11 décomposés gds postes'!E:M,8,FALSE)),"") -> NC | F14: Cliniques: Personnel soignant | G14: =IF($B$4<>"",VLOOKUP($B$4,'Coûts décomposés'!$A:$DW,10,FALSE),"") -> 350.3928035 | H14: =IF(C9<>"",IF(B24<>0,(G14+G15)/B24,""),"") -> 0.9755923424 | K14: Libérations du médian au canal carpien, en ambulatoire | L14: 01C15J
F15: Cliniques: Personnel autre | G15: =IF($B$4<>"",VLOOKUP($B$4,'Coûts décomposés'!$A:$DW,8,FALSE),"") -> 89.98824763 | K15: Injections de toxine botulique, en ambulatoire | L15: 01K04J
K16: Séjours pour douleurs chroniques rebelles comprenant un bloc ou une infiltration, en ambulatoire | L16: 01K05J
K17: Affections du système nerveux sans acte opératoire avec anesthésie, en ambulatoire | L17: 01K06J
F18: Soins intensifs: Personnel soignant | G18: =IF($B$4<>"",VLOOKUP($B$4,'Coûts décomposés'!$A:$DW,22,FALSE),"") -> 0 | H18: =IF(C9<>"",IF(B25<>0,(G18+G19)/B25,""),"") ->  | K18: Maladies dégénératives du système nerveux, âge inférieur à 80 ans, niveau 1 | L18: 01M081
F19: Soins intensifs: Personnel autre | G19: =IF($B$4<>"",VLOOKUP($B$4,'Coûts décomposés'!$A:$DW,20,FALSE),"") -> 0 | K19: Affections des nerfs crâniens et rachidiens, niveau 1 | L19: 01M111
K20: Affections des nerfs crâniens et rachidiens, très courte durée | L20: 01M11T
F21: Surveillance continue: Personnel soignant | G21: =IF($B$4<>"",VLOOKUP($B$4,'Coûts décomposés'!$A:$DW,16,FALSE),"") -> 0 | H21: =IF(C9<>"",IF(B26<>0,(G21+G22)/B26,""),"") ->  | K21: Accidents ischémiques transitoires et occlusions des artères précérébrales, âge supérieur à 79 ans, très courte durée | L21: 01M15T
F22: Surveillance continue: Personnel autre | G22: =IF($B$4<>"",VLOOKUP($B$4,'Coûts décomposés'!$A:$DW,14,FALSE),"") -> 0 | K22: Accidents ischémiques transitoires et occlusions des artères précérébrales, âge inférieur à 80 ans, très courte durée | L22: 01M16T
B23: Coût moyen 2011 | C23: Poids dans le coût du GHM | D23: Evolution 2011/2010 | K23: Sclérose en plaques et ataxie cérébelleuse, niveau 1 | L23: 01M171
A24: activités cliniques MCO (avec hébergement, hors Réa, SI, SC) | B24: =IF($B$4<>"",VLOOKUP($B$4,'Coûts décomposés'!$A:$DW,11,FALSE),"") -> 451.3986345 | C24: =IF($C$11<>"",B24/$C$9,"") -> 0.2876380038 | D24: =IF($B$4<>"",VLOOKUP($B$4,evolutions!$E:$N,3,FALSE),"") -> -0.2065377599 | F24: Médico technique: anesthésie | G24: =IF($B$4<>"",VLOOKUP($B$4,'Coûts décomposés'!$A:$DW,35,FALSE),"") -> 4.07158307 | H24: =IF(C9<>"",IF(B28<>0,(G24+G25+G26)/B28,""),"") -> 1 | K24: Commotions cérébrales, niveau 1 | L24: 01M201
A25: Activité de soins intensifs | B25: =IF($B$4<>"",VLOOKUP($B$4,'Coûts décomposés'!$A:$DW,23,FALSE),"") -> 0 | C25: =IF($C$11<>"",B25/$C$9,"") -> 0 | D25: =IF($B$4<>"",VLOOKUP($B$4,evolutions!$E:$N,5,FALSE),"") -> 0 | F25: Médico technique: bloc | G25: =IF($B$4<>"",VLOOKUP($B$4,'Coûts décomposés'!$A:$DW,41,FALSE),"") -> 44.21509556 | K25: Douleurs chroniques rebelles, niveau 1 | L25: 01M211
A26: Activité de surveillance continue | B26: =IF($B$4<>"",VLOOKUP($B$4,'Coûts décomposés'!$A:$DW,17,FALSE),"") -> 0 | C26: 0 | D26: =IF($B$4<>"",VLOOKUP($B$4,evolutions!$E:$N,4,FALSE),"") -> 0 | F26: Médico technique: urgences | G26: =IF($B$4<>"",VLOOKUP($B$4,'Coûts décomposés'!$A:$DW,72,FALSE),"") -> 6.911769478 | K26: Douleurs chroniques rebelles, très courte durée | L26: 01M21T
A27: Activité de réanimation | B27: =IF($B$4<>"",VLOOKUP($B$4,'Coûts décomposés'!$A:$DW,28,FALSE),"") -> 0 | C27: 0 | K27: Migraines et céphalées, niveau 1 | L27: 01M221
A28: Activités Médico-techniques | B28: =IF($B$4<>"",VLOOKUP($B$4,'Coûts décomposés'!$A:$DW,73,FALSE),"") -> 55.19844811 | C28: 0.03517328191 | D28: =IF($B$4<>"",VLOOKUP($B$4,evolutions!$E:$N,6,FALSE),"") -> 0.201592415 | F28: Logistique générale: Blanchisserie | G28: =IF($B$4<>"",VLOOKUP($B$4,'Coûts décomposés'!$A:$DW,74,FALSE),"") -> 25.72664143 | H28: =IF(C9<>"",IF(B30<>0,(G28+G29)/B30,""),"") -> 0.1995258599 | K28: Migraines et céphalées, très courte durée | L28: 01M22T
A29: Logistique Médicale | B29: =IF($B$4<>"",VLOOKUP($B$4,'Coûts décomposés'!$A:$DW,91,FALSE),"") -> 29.47467343 | C29: 0.01878170552 | D29: =IF($B$4<>"",VLOOKUP($B$4,evolutions!$E:$N,8,FALSE),"") -> 0.3704311285 | F29: Logistique générale: Restauration | G29: =IF($B$4<>"",VLOOKUP($B$4,'Coûts décomposés'!$A:$DW,75,FALSE),"") -> 59.85760775 | K29: Epilepsie, âge supérieur à 17 ans, très courte durée | L29: 01M25T
A30: Logistique générale | B30: =IF($B$4<>"",VLOOKUP($B$4,'Coûts décomposés'!$A:$DW,85,FALSE),"") -> 428.9381298 | C30: 0.2733258321 | D30: =IF($B$4<>"",VLOOKUP($B$4,evolutions!$E:$N,7,FALSE),"") -> -0.06363437433 | K30: Accidents vasculaires intracérébraux non transitoires, niveau 1 | L30: 01M301
A31: Charges directes | B31: =IF($B$4<>"",VLOOKUP($B$4,'Coûts décomposés'!$A:$DW,104,FALSE),"") -> 117.527708 | C31: 0.07489042443 | D31: =IF($B$4<>"",VLOOKUP($B$4,evolutions!$E:$N,9,FALSE),"") -> -0.008499590254 | F31: Charges directes: Spécialités pharmaceutiques facturables en sus | G31: =IF($B$4<>"",VLOOKUP($B$4,'Coûts décomposés'!$A:$DW,92,FALSE),"") -> 0.1167715909 | H31: =IF(C9<>"",IF(B31<>0,(G31+G32)/B31,""),"") -> 0.001049866101 | K31: Accidents vasculaires intracérébraux non transitoires, niveau 2 | L31: 01M302
A32: Honoraires | B32: =IF($B$4<>"",VLOOKUP($B$4,'Coûts décomposés'!$A:$DW,113,FALSE),"") -> 486.7913147 | C32: 0.3101907523 | D32: =IF($B$4<>"",VLOOKUP($B$4,evolutions!$E:$N,10,FALSE),"") -> 0.24320021 | F32: Charges directes: DMI facturables en sus | G32: =IF($B$4<>"",VLOOKUP($B$4,'Coûts décomposés'!$A:$DW,96,FALSE),"") -> 0.00661676574 | K32: Anomalies de la démarche d'origine neurologique | L32: 01M34Z
K33: Symptômes et autres recours aux soins de la CMD 01, très courte durée | L33: 01M35T
F34: Honoraires médicaux: Laboratoires autres | G34: =IF($B$4<>"",VLOOKUP($B$4,'Coûts décomposés'!$A:$DW,105,FALSE),"") -> 173.4458867 | H34: =IF(C9<>"",IF(B32<>0,(G34+G35+G36+G37)/B32,""),"") -> 0.5964873917 | K34: Interventions sur la rétine, niveau 1 | L34: 02C021
F35: Honoraires médicaux: imagerie | G35: =IF($B$4<>"",VLOOKUP($B$4,'Coûts décomposés'!$A:$DW,106,FALSE),"") -> 90.37946764 | K35: Interventions sur la rétine, en ambulatoire | L35: 02C02J
F36: Honoraires médicaux: anesthésie | G36: =IF($B$4<>"",VLOOKUP($B$4,'Coûts décomposés'!$A:$DW,107,FALSE),"") -> 16.0924717 | K36: Interventions sur le cristallin avec ou sans vitrectomie, niveau 1 | L36: 02C051
F37: Honoraires médicaux: chirurgie | G37: =IF($B$4<>"",VLOOKUP($B$4,'Coûts décomposés'!$A:$DW,109,FALSE),"") -> 10.44705558 | K37: Interventions sur le cristallin avec ou sans vitrectomie, en ambulatoire | L37: 02C05J
A38: Données de coûts: ENCC ex OQN 2011 | K38: Autres interventions extraoculaires, âge inférieur à 18 ans, en ambulatoire | L38: 02C07J
K39: Autres interventions extraoculaires, âge supérieur à 17 ans, niveau 1 | L39: 02C081
K40: Autres interventions extraoculaires, âge supérieur à 17 ans, en ambulatoire | L40: 02C08J
K41: Allogreffes de cornée, niveau 1 | L41: 02C091
K42: Allogreffes de cornée, en ambulatoire | L42: 02C09J
K43: Autres interventions intraoculaires en dehors des affections sévères, niveau 1 | L43: 02C111
K44: Autres interventions intraoculaires en dehors des affections sévères, en ambulatoire | L44: 02C11J
K45: Interventions sur le cristallin avec trabéculectomie, niveau 1 | L45: 02C121
K46: Interventions sur le cristallin avec trabéculectomie, en ambulatoire | L46: 02C12J
K47: Interventions sur les muscles oculomoteurs, âge inférieur à 18 ans, niveau 1 | L47: 02C131
K48: Interventions sur les muscles oculomoteurs, âge inférieur à 18 ans, en ambulatoire | L48: 02C13J
K49: Autres affections oculaires d'origine non diabétique, âge supérieur à 17 ans, niveau 1 | L49: 02M081
K50: Autres affections oculaires d'origine non diabétique, âge supérieur à 17 ans, très courte durée | L50: 02M08T
K51: Interventions sur les sinus et l'apophyse mastoïde, âge inférieur à 18 ans, niveau 1 | L51: 03C061
K52: Interventions sur les sinus et l'apophyse mastoïde, âge supérieur à 17 ans, niveau 1 | L52: 03C071
K53: Interventions sur les sinus et l'apophyse mastoïde, âge supérieur à 17 ans, niveau 2 | L53: 03C072
K54: Interventions sur les sinus et l'apophyse mastoïde, âge supérieur à 17 ans, en ambulatoire | L54: 03C07J
K55: Rhinoplasties, niveau 1 | L55: 03C091
K56: Rhinoplasties, en ambulatoire | L56: 03C09J
K57: Amygdalectomies et/ou adénoïdectomies isolées, âge inférieur à 18 ans, niveau 1 | L57: 03C101
K58: Amygdalectomies et/ou adénoïdectomies isolées, âge supérieur à 17 ans, niveau 1 | L58: 03C111
K59: Interventions sur les amygdales et les végétations adénoïdes autres que les amygdalectomies et/ou les adénoïdectomies isolées, âge inférieur à 18 ans, niveau 1 | L59: 03C121
K60: Interventions sur les amygdales et les végétations adénoïdes autres que les amygdalectomies et/ou les adénoïdectomies isolées, âge supérieur à 17 ans, niveau 1 | L60: 03C131
K61: Drains transtympaniques, âge inférieur à 18 ans, en ambulatoire | L61: 03C14J
K62: Drains transtympaniques, âge supérieur à 17 ans, en ambulatoire | L62: 03C15J
K63: Autres interventions chirurgicales portant sur les oreilles, le nez, la gorge ou le cou, niveau 1 | L63: 03C161
K64: Autres interventions chirurgicales portant sur les oreilles, le nez, la gorge ou le cou, en ambulatoire | L64: 03C16J
K65: Interventions sur la bouche, niveau 1 | L65: 03C171
K66: Interventions sur la bouche, en ambulatoire | L66: 03C17J
K67: Ostéotomies de la face, niveau 1 | L67: 03C191
K68: Interventions de reconstruction de l'oreille moyenne, niveau 1 | L68: 03C201
K69: Interventions de reconstruction de l'oreille moyenne, en ambulatoire | L69: 03C20J
K70: Interventions pour oreilles décollées, niveau 1 | L70: 03C211
K71: Interventions pour oreilles décollées, en ambulatoire | L71: 03C21J
K72: Interventions sur les glandes salivaires, niveau 1 | L72: 03C241
K73: Interventions sur les glandes salivaires, en ambulatoire | L73: 03C24J
K74: Autres interventions sur la tête et le cou, niveau 1 | L74: 03C261
K75: Interventions sur les amygdales, en ambulatoire | L75: 03C27J
K76: Interventions sur les végétations adénoïdes, en ambulatoire | L76: 03C28J
K77: Interventions sur l'oreille externe, en ambulatoire | L77: 03C30J
K78: Affections de la bouche et des dents avec certaines extractions, réparations et prothèses dentaires, niveau 1 | L78: 03K021
K79: Affections de la bouche et des dents avec certaines extractions, réparations et prothèses dentaires, en ambulatoire | L79: 03K02J
K80: Séjours comprenant une endoscopie oto-rhino-laryngologique, en ambulatoire | L80: 03K03J
K81: Séjours comprenant certains actes non opératoires de la CMD 03, en ambulatoire | L81: 03K04J
K82: Traumatismes et déformations du nez, niveau 1 | L82: 03M021
K83: Traumatismes et déformations du nez, très courte durée | L83: 03M02T
K84: Otites moyennes et autres infections des voies aériennes supérieures, âge supérieur à 17 ans, très courte durée | L84: 03M04T
K85: Troubles de l'équilibre, niveau 1 | L85: 03M051
K86: Troubles de l'équilibre, très courte durée | L86: 03M05T
K87: Epistaxis, très courte durée | L87: 03M06T
K88: Tumeurs malignes des oreilles, du nez, de la gorge ou de la bouche, niveau 1 | L88: 03M071
K89: Autres diagnostics portant sur les oreilles, le nez, la gorge ou la bouche, âge supérieur à 17 ans, niveau 1 | L89: 03M091
K90: Autres diagnostics portant sur les oreilles, le nez, la gorge ou la bouche, âge supérieur à 17 ans, très courte durée | L90: 03M09T
K91: Affections de la bouche et des dents sans certaines extractions, réparations ou prothèses dentaires, âge inférieur à 18 ans, très courte durée | L91: 03M10T
K92: Affections de la bouche et des dents sans certaines extractions, réparations ou prothèses dentaires, âge supérieur à 17 ans, niveau 1 | L92: 03M111
K93: Affections de la bouche et des dents sans certaines extractions, réparations ou prothèses dentaires, âge supérieur à 17 ans, très courte durée | L93: 03M11T
K94: Infections aigües sévères des voies aériennes supérieures, âge supérieur à 17 ans, niveau 1 | L94: 03M131
K95: Interventions majeures sur le thorax, niveau 1 | L95: 04C021
K96: Interventions majeures sur le thorax, niveau 2 | L96: 04C022
K97: Interventions majeures sur le thorax, niveau 3 | L97: 04C023
K98: Interventions majeures sur le thorax, niveau 4 | L98: 04C024
K99: Autres interventions chirurgicales sur le système respiratoire, niveau 1 | L99: 04C031
K100: Interventions sous thoracoscopie, niveau 1 | L100: 04C041
K101: Interventions sous thoracoscopie, niveau 2 | L101: 04C042
K102: Séjours comprenant une endoscopie bronchique, en ambulatoire | L102: 04K02J
K103: Bronchites et asthme, âge supérieur à 17 ans, niveau 1 | L103: 04M031
K104: Bronchites et asthme, âge supérieur à 17 ans, niveau 2 | L104: 04M032
K105: Bronchites et asthme, âge supérieur à 17 ans, niveau 3 | L105: 04M033
K106: Bronchites et asthme, âge supérieur à 17 ans, très courte durée | L106: 04M03T
K107: Pneumonies et pleurésies banales, âge supérieur à 17 ans, niveau 1 | L107: 04M051
K108: Pneumonies et pleurésies banales, âge supérieur à 17 ans, niveau 2 | L108: 04M052
K109: Pneumonies et pleurésies banales, âge supérieur à 17 ans, niveau 3 | L109: 04M053
K110: Transferts et autres séjours pour pneumonies et pleurésies banales, âge supérieur à 17 ans | L110: 04M05T
K111: Infections et inflammations respiratoires, âge supérieur à 17 ans, niveau 1 | L111: 04M071
K112: Infections et inflammations respiratoires, âge supérieur à 17 ans, niveau 2 | L112: 04M072
K113: Infections et inflammations respiratoires, âge supérieur à 17 ans, niveau 3 | L113: 04M073
K114: Bronchopneumopathies chroniques, niveau 1 | L114: 04M081
K115: Bronchopneumopathies chroniques, niveau 2 | L115: 04M082
K116: Bronchopneumopathies chroniques, niveau 3 | L116: 04M083
K117: Tumeurs de l'appareil respiratoire, niveau 1 | L117: 04M091
K118: Tumeurs de l'appareil respiratoire, niveau 2 | L118: 04M092
K119: Tumeurs de l'appareil respiratoire, niveau 3 | L119: 04M093
K120: Tumeurs de l'appareil respiratoire, très courte durée | L120: 04M09T
K121: Embolies pulmonaires, niveau 1 | L121: 04M101
K122: Embolies pulmonaires, niveau 2 | L122: 04M102
K123: Embolies pulmonaires, niveau 3 | L123: 04M103
K124: Embolies pulmonaires, très courte durée | L124: 04M10T
K125: Signes et symptômes respiratoires, niveau 1 | L125: 04M111
K126: Signes et symptômes respiratoires, niveau 2 | L126: 04M112
K127: Pneumothorax, niveau 1 | L127: 04M121
K128: Oedème pulmonaire et détresse respiratoire, niveau 1 | L128: 04M131
K129: Oedème pulmonaire et détresse respiratoire, niveau 2 | L129: 04M132
K130: Oedème pulmonaire et détresse respiratoire, niveau 3 | L130: 04M133
K131: Maladies pulmonaires interstitielles, niveau 1 | L131: 04M141
K132: Maladies pulmonaires interstitielles, niveau 2 | L132: 04M142
K133: Maladies pulmonaires interstitielles, niveau 3 | L133: 04M143
K134: Traumatismes thoraciques, très courte durée | L134: 04M16T
K135: Epanchements pleuraux, niveau 1 | L135: 04M171
K136: Epanchements pleuraux, niveau 2 | L136: 04M172
K137: Epanchements pleuraux, niveau 3 | L137: 04M173
K138: Epanchements pleuraux, niveau 4 | L138: 04M174
K139: Bronchopneumopathies chroniques surinfectées, niveau 1 | L139: 04M201
K140: Bronchopneumopathies chroniques surinfectées, niveau 2 | L140: 04M202
K141: Bronchopneumopathies chroniques surinfectées, niveau 3 | L141: 04M203
K142: Bronchopneumopathies chroniques surinfectées, niveau 4 | L142: 04M204
K143: Autres symptômes et recours aux soins de la CMD 04 | L143: 04M23Z
K144: Affections de la CMD 04 avec décès : séjours de moins de 2 jours | L144: 04M24E
K145: Chirurgie de remplacement valvulaire avec circulation extracorporelle et avec cathétérisme cardiaque ou coronarographie, niveau 1 | L145: 05C021
K146: Chirurgie de remplacement valvulaire avec circulation extracorporelle et avec cathétérisme cardiaque ou coronarographie, niveau 2 | L146: 05C022
K147: Chirurgie de remplacement valvulaire avec circulation extracorporelle, sans cathétérisme cardiaque, ni coronarographie, niveau 1 | L147: 05C031
K148: Chirurgie de remplacement valvulaire avec circulation extracorporelle, sans cathétérisme cardiaque, ni coronarographie, niveau 2 | L148: 05C032
K149: Chirurgie de remplacement valvulaire avec circulation extracorporelle, sans cathétérisme cardiaque, ni coronarographie, niveau 3 | L149: 05C033
K150: Pontages aortocoronariens sans cathétérisme cardiaque, ni coronarographie, niveau 1 | L150: 05C051
K151: Pontages aortocoronariens sans cathétérisme cardiaque, ni coronarographie, niveau 2 | L151: 05C052
K152: Autres interventions cardiothoraciques, âge supérieur à 1 an, ou vasculaires quel que soit l'âge, avec circulation extracorporelle, niveau 1 | L152: 05C061
K153: Autres interventions cardiothoraciques, âge supérieur à 1 an, ou vasculaires quel que soit l'âge, avec circulation extracorporelle, niveau 2 | L153: 05C062
K154: Chirurgie majeure de revascularisation, niveau 1 | L154: 05C101
K155: Chirurgie majeure de revascularisation, niveau 2 | L155: 05C102
K156: Chirurgie majeure de revascularisation, niveau 3 | L156: 05C103
K157: Chirurgie majeure de revascularisation, niveau 4 | L157: 05C104
K158: Autres interventions de chirurgie vasculaire, niveau 1 | L158: 05C111
K159: Autres interventions de chirurgie vasculaire, niveau 2 | L159: 05C112
K160: Autres interventions de chirurgie vasculaire, niveau 3 | L160: 05C113
K161: Autres interventions de chirurgie vasculaire, niveau 4 | L161: 05C114
K162: Amputations du membre inférieur, sauf des orteils, pour troubles circulatoires, niveau 1 | L162: 05C121
K163: Amputations du membre inférieur, sauf des orteils, pour troubles circulatoires, niveau 2 | L163: 05C122
K164: Amputations du membre inférieur, sauf des orteils, pour troubles circulatoires, niveau 3 | L164: 05C123
K165: Amputations du membre inférieur, sauf des orteils, pour troubles circulatoires, niveau 4 | L165: 05C124
K166: Amputations pour troubles circulatoires portant sur le membre supérieur ou les orteils, niveau 1 | L166: 05C131
K167: Amputations pour troubles circulatoires portant sur le membre supérieur ou les orteils, niveau 3 | L167: 05C133
K168: Poses d'un stimulateur cardiaque permanent avec infarctus aigu du myocarde ou insuffisance cardiaque congestive ou état de choc, niveau 1 | L168: 05C141
K169: Poses d'un stimulateur cardiaque permanent avec infarctus aigu du myocarde ou insuffisance cardiaque congestive ou état de choc, niveau 2 | L169: 05C142
K170: Poses d'un stimulateur cardiaque permanent sans infarctus aigu du myocarde, ni insuffisance cardiaque congestive, ni état de choc, niveau 1 | L170: 05C151
K171: Poses d'un stimulateur cardiaque permanent sans infarctus aigu du myocarde, ni insuffisance cardiaque congestive, ni état de choc, niveau 2 | L171: 05C152
K172: Ligatures de veines et éveinages, niveau 1 | L172: 05C171
K173: Ligatures de veines et éveinages, niveau 2 | L173: 05C172
K174: Ligatures de veines et éveinages, en ambulatoire | L174: 05C17J
K175: Autres interventions sur le système circulatoire, niveau 1 | L175: 05C181
K176: Autres interventions sur le système circulatoire, en ambulatoire | L176: 05C18J
K177: Poses d'un défibrillateur cardiaque, niveau 1 | L177: 05C191
K178: Poses d'un défibrillateur cardiaque, niveau 2 | L178: 05C192
K179: Créations et réfections de fistules artérioveineuses pour affections de la CMD 05, niveau 1 | L179: 05C211
K180: Créations et réfections de fistules artérioveineuses pour affections de la CMD 05, en ambulatoire | L180: 05C21J
K181: Remplacements de stimulateurs cardiaques permanents, niveau 1 | L181: 05C221
K182: Remplacements de stimulateurs cardiaques permanents, très courte durée | L182: 05C22T
K183: Endoprothèses vasculaires avec infarctus du myocarde, niveau 1 | L183: 05K051
K184: Endoprothèses vasculaires avec infarctus du myocarde, niveau 2 | L184: 05K052
K185: Endoprothèses vasculaires sans infarctus du myocarde, niveau 1 | L185: 05K061
K186: Endoprothèses vasculaires sans infarctus du myocarde, niveau 2 | L186: 05K062
K187: Endoprothèses vasculaires sans infarctus du myocarde, niveau 3 | L187: 05K063
K188: Endoprothèses vasculaires sans infarctus du myocarde, très courte durée | L188: 05K06T
K189: Actes diagnostiques par voie vasculaire, niveau 1 | L189: 05K101
K190: Actes diagnostiques par voie vasculaire, niveau 2 | L190: 05K102
K191: Actes diagnostiques par voie vasculaire, en ambulatoire | L191: 05K10J
K192: Mise en place de certains accès vasculaires pour des affections de la CMD 05, séjours de moins de 2 jours | L192: 05K14Z
K193: Affections cardiovasculaires sans acte opératoire de la CMD 05, avec anesthésie, en ambulatoire | L193: 05K17J
K194: Traitements majeurs de troubles du rythme par voie vasculaire, niveau 1 | L194: 05K191
K195: Traitements majeurs de troubles du rythme par voie vasculaire, niveau 2 | L195: 05K192
K196: Autres traitements de troubles du rythme par voie vasculaire, niveau 1 | L196: 05K201
K197: Autres traitements de troubles du rythme par voie vasculaire, niveau 2 | L197: 05K202
K198: Autres traitements de troubles du rythme par voie vasculaire, très courte durée | L198: 05K20T
K199: Ablations, repositionnements et poses de sondes cardiaques supplémentaires par voie vasculaire, âge supérieur à 17 ans, niveau 1 | L199: 05K231
K200: Dilatations coronaires et autres actes thérapeutiques sur le coeur par voie vasculaire, âge supérieur à 17 ans, niveau 1 | L200: 05K241
... 605 more rows

Sheet accueil données détaillées
A1: DONNEES DE COUTS DETAILLEES
E4: Données de coûts par GHM 2012
E12: Données de coûts par GHM 2011
E18: Données de coûts par GHS 2012
E24: Données sur les UO 2012

Sheet Coûts décomposés (hidden)
A2: Informations sur le GHM | F2: Dépenses cliniques (clinique + SI + SC + REA) | AD2: Dépenses Médico-Techniques | BV2: Logistique et Gestion Générale | CH2: Logistique Médicale | CN2: Charges directes (hors honoraires) | CZ2: Honoraires | DJ2: Structure
A3: GHM V11 | B3: Libellé GHM | C3: Coût modifié (*) | D3: Nombre de séjours ENCC 2012 | E3: Coût complet hors structure | F3: Amortissement location clinique (hors SI SC réa) | G3: Entretien maintenance clinique (hors SI SC réa) | H3: Personnel autre clinique (hors SI SC réa) | I3: Personnel médical clinique (hors SI SC réa) | J3: Personnel soignant clinique (hors SI SC réa) | K3: Dépenses cliniques | L3: Amortissement location surveillance continue | M3: Entretien maintenance surveillance continue | N3: Personnel autre surveillance continue | O3: Personnel médical surveillance continue | P3: Personnel soignant surveillance continue | Q3: Dépenses SC | R3: Amortissement location soins intensifs | S3: Entretien maintenance soins intensifs | T3: Personnel autre soins intensifs | U3: Personnel médical soins intensifs | V3: Personnel soignant soins intensifs | W3: Dépenses SI | X3: Amortissement location réanimation | Y3: Entretien maintenance réanimation | Z3: Personnel autre réanimation | AA3: Personnel soignant réanimation | AB3: Dépenses REA | AC3: Dépenses cliniques totales (clinique + SI + SC + REA) | AD3: Amortissement Anesthésie | AE3: Entretien Anesthésie | AF3: Personnel autre Anesthésie | AG3: Personnel médical Anesthésie | AH3: Personnel soignant Anesthésie | AI3: Dépenses totales Anesthésie | AJ3: Amortissement Bloc | AK3: Entretien Bloc | AL3: Personnel autre Bloc | AM3: Personnel médical Bloc | AN3: Personnel soignant Bloc | AO3: Dépenses totales Bloc | AP3: Amortissement Bloc Obstétrique | AQ3: Entretien Bloc Obstétrique | AR3: Personnel autre Bloc Obstétrique | AS3: Personnel soignant Bloc Obstétrique | AT3: Dépenses totales Bloc Obstétrique | AU3: Amortissement Dialyse | AV3: Entretien Dialyse | AW3: Personnel autre Dialyse | AX3: Personnel soignant Dialyse | AY3: Dialyse en sus | AZ3: Dépenses totales Dialyse | BA3: Amortissement Exploration fonctionnelle | BB3: Entretien Exploration fonctionnelle | BC3: Personnel autre Exploration fonctionnelle | BD3: Personnel soignant Exploration fonctionnelle | BE3: Dépenses totales Exploration fonctionnelle | BF3: Amortissement Imagerie | BG3: Entretien Imagerie | BH3: Personnel autre Imagerie | BI3: Dépenses totales Imagerie | BJ3: Amortissement Imagerie interventionnelle | BK3: Entretien Imagerie interventionnelle | BL3: Personnel autre Imagerie interventionnelle | BM3: Personnel soignant Imagerie interventionnelle | BN3: Dépenses totales Imagerie interventionnelle | BO3: Amortissement Urgences | BP3: Entretien Urgences | BQ3: Personnel autre Urgences | BR3: Personnel médical Urgences | BS3: Personnel soignant Urgences | BT3: Dépenses totales Urgences | BU3: TOTAL Dépenses MT | BV3: LGG Blanchisserie | BW3: LGG Restauration | BX3: LGG Accueil et gestion des malades | BY3: LGG Services administratifs à caractère général | BZ3: LGG Services administratifs liés au personnel | CA3: LGG Brancardage et transport pédestre des patients | CB3: LGG DIM | CC3: LGG DSIO | CD3: LGG Entretien maintenance | CE3: LGG Services hôteliers | CF3: LGG Transport motorisé des patients (hors SMUR) | CG3: TOTAL Dépenses LGG | CH3: LM Pharmacie | CI3: LM Stérilisation | CJ3: LM Génie Biomédical | CK3: LM Hygiène et Vigilance | CL3: Autre LM | CM3: TOTAL Dépenses LM | CN3: CD Spécialités pharmaceutiques facturables en sus | CO3: CD Spécialités pharmaceutiques non facturables en sus | CP3: CD Sang | CQ3: CD Médicaments ATU | CR3: CD DMI facturables en sus | CS3: CD DMI non facturables en sus | CT3: CD Autres consommables | CU3: CD Sous-traitance SMUR | CV3: CD Sous-traitance Laboratoire | CW3: CD Sous-traitance Laboratoire HN | CX3: CD Sous-traitance Hospitalisation à l'extérieur | CY3: CD Sous-traitance Autre | CZ3: TOTAL Charges directes hors honoraires | DA3: Honoraires médicaux - Laboratoires autres | DB3: Honoraires médicaux - Imagerie | DC3: Honoraires médicaux - Anesthésie | DD3: Honoraires médicaux - Obstétrique | DE3: Honoraires médicaux - Chirurgie | DF3: Honoraires médicaux - Autres actes médicaux | DG3: Honoraires soignants | DH3: Honoraires autres | DI3: TOTAL Honoraires | DJ3: Structure - Financier | DK3: Structure - Immobilier | DL3: TOTAL Structure
A4: 01C041 | B4: Craniotomies en dehors de tout traumatisme, âge supérieur à 17 ans, niveau 1 | D4: 33 | E4: 4512.482263 | F4: 9.957546312 | G4: 4.181014487 | H4: 134.2984563 | I4: 1.893510156 | J4: 558.3515373 | K4: 708.6820645 | L4: 0.5848778215 | M4: 0 | N4: 20.15556138 | O4: 0 | P4: 335.1415986 | Q4: 355.8820378 | R4: 0 | S4: 0 | T4: 0 | U4: 0 | V4: 0 | W4: 0 | X4: 0 | Y4: 0 | Z4: 0 | AA4: 0 | AB4: 0 | AC4: 1064.564102 | AD4: 5.316048288 | AE4: 5.475744053 | AF4: 4.472273939 | AG4: 0 | AH4: 60.34569483 | AI4: 75.60976111 | AJ4: 98.11346479 | AK4: 37.79048417 | AL4: 59.99576159 | AM4: 0.9171721972 | AN4: 334.4205983 | AO4: 531.2374811 | AP4: 0 | AQ4: 0 | AR4: 0 | AS4: 0 | AT4: 0 | AU4: 0 | AV4: 0 | AW4: 0 | AX4: 0 | AY4: 0 | AZ4: 0 | BA4: 0 | BB4: 0 | BC4: 0 | BD4: 0 | BE4: 0 | BF4: 0 | BG4: 0 | BH4: 0 | BI4: 0 | BJ4: 0 | BK4: 0 | BL4: 0 | BM4: 0 | BN4: 0 | BO4: 0 | BP4: 0 | BQ4: 0 | BR4: 0 | BS4: 0 | BT4: 0 | BU4: 606.8472422 | BV4: 42.26393712 | BW4: 138.8703093 | BX4: 25.70882528 | BY4: 284.6483585 | BZ4: 37.83933093 | CA4: 16.17838105 | CB4: 4.067029492 | CC4: 17.85139759 | CD4: 70.23913173 | CE4: 80.2427631 | CF4: 0.1180455203 | CG4: 718.0275096 | CH4: 26.80618135 | CI4: 95.7779382 | CJ4: 0 | CK4: 0 | CL4: 0 | CM4: 122.5841196 | CN4: 0 | CO4: 18.77474068 | CP4: 0.4321929 | CQ4: 0 | CR4: 0 | CS4: 64.39169209 | CT4: 548.1263471 | CU4: 0 | CV4: 0 | CW4: 0 | CX4: 0 | CY4: 0 | CZ4: 631.7249728 | DA4: 49.31400892 | DB4: 6.186518388 | DC4: 302.5105161 | DD4: 0 | DE4: 927.4516738 | DF4: 83.27159908 | DG4: 0 | DH4: 0 | DI4: 1368.734316 | DJ4: 17.24906728 | DK4: 287.1760715 | DL4: 304.4251387
A5: 01C051 | B5: Interventions sur le rachis et la moelle pour des affections neurologiques, niveau 1 | D5: 408 | E5: 3200.914564 | F5: 12.28418567 | G5: 1.953863455 | H5: 87.34556062 | I5: 0.03632697295 | J5: 441.6584004 | K5: 543.2783371 | L5: 0.07877709188 | M5: 0.09718857543 | N5: 1.210926078 | O5: 0 | P5: 9.660664356 | Q5: 11.0475561 | R5: 0.007780254976 | S5: 0.03150328542 | T5: 0.4390050578 | U5: 0 | V5: 4.700053995 | W5: 5.178342593 | X5: 0 | Y5: 0 | Z5: 0 | AA5: 0 | AB5: 0 | AC5: 559.5042358 | AD5: 6.661564424 | AE5: 3.769607417 | AF5: 0.4571148864 | AG5: 0 | AH5: 48.89649774 | AI5: 59.78478446 | AJ5: 55.00041603 | AK5: 29.48820656 | AL5: 55.27242567 | AM5: 0 | AN5: 194.1170789 | AO5: 333.8781271 | AP5: 0 | AQ5: 0 | AR5: 0 | AS5: 0 | AT5: 0 | AU5: 0 | AV5: 0 | AW5: 0 | AX5: 0 | AY5: 0 | AZ5: 0 | BA5: 0 | BB5: 0 | BC5: 0 | BD5: 0 | BE5: 0 | BF5: 0 | BG5: 0 | BH5: 0 | BI5: 0 | BJ5: 0 | BK5: 0 | BL5: 0 | BM5: 0 | BN5: 0 | BO5: 0.002162342691 | BP5: 0.0009456389057 | BQ5: 0.01884837296 | BR5: 0.01542381396 | BS5: 0.1364460018 | BT5: 0.1738261703 | BU5: 393.8367378 | BV5: 26.69775181 | BW5: 91.51558556 | BX5: 19.40858106 | BY5: 169.2049863 | BZ5: 15.06391547 | CA5: 11.25842297 | CB5: 7.72981441 | CC5: 22.50834439 | CD5: 44.12877658 | CE5: 57.77725426 | CF5: 0.03337871424 | CG5: 465.3268116 | CH5: 53.54684421 | CI5: 53.91110485 | CJ5: 8.808898299 | CK5: 9.653622415 | CL5: 0 | CM5: 125.9204698 | CN5: 4.805379923 | CO5: 51.67535643 | CP5: 7.831707364 | CQ5: 0 | CR5: 315.1131319 | CS5: 27.56352371 | CT5: 241.972139 | CU5: 2.313637603 | CV5: 0.1112010851 | CW5: 0.001063914764 | CX5: 0.009268841118 | CY5: 0 | CZ5: 651.3964098 | DA5: 35.44553227 | DB5: 66.91270903 | DC5: 262.0144597 | DD5: 0 | DE5: 557.2085554 | DF5: 26.04793638 | DG5: 4.487194688 | DH5: 52.81351178 | DI5: 1004.929899 | DJ5: 9.896439551 | DK5: 199.6815573 | DL5: 209.5779968
A6: 01C052 | B6: Interventions sur le rachis et la moelle pour des affections neurologiques, niveau 2 | D6: 199 | E6: 4049.861419 | F6: 13.84570451 | G6: 2.537151068 | H6: 124.7551335 | I6: 0.00583429225 | J6: 620.230392 | K6: 761.3742154 | L6: 0.2898158255 | M6: 0.2863225283 | N6: 4.032100126 | O6: 0 | P6: 29.06918095 | Q6: 33.67741943 | R6: 0.04174915983 | S6: 0.1765522813 | T6: 2.296044884 | U6: 0 | V6: 24.77139846 | W6: 27.28574478 | X6: 0 | Y6: 0 | Z6: 0 | AA6: 0 | AB6: 0 | AC6: 822.3373797 | AD6: 6.771846783 | AE6: 4.490909792 | AF6: 0.4983189368 | AG6: 0 | AH6: 58.62698644 | AI6: 70.38806195 | AJ6: 63.68258042 | AK6: 34.94407381 | AL6: 65.96243631 | AM6: 0 | AN6: 231.910539 | AO6: 396.4996296 | AP6: 0 | AQ6: 0 | AR6: 0 | AS6: 0 | AT6: 0 | AU6: 0 | AV6: 0 | AW6: 0 | AX6: 0 | AY6: 0 | AZ6: 0 | BA6: 0 | BB6: 0 | BC6: 0 | BD6: 0 | BE6: 0 | BF6: 0 | BG6: 0 | BH6: 0 | BI6: 0 | BJ6: 0.0322736033 | BK6: 0.01827931859 | BL6: 0.0763008263 | BM6: 0.2905519414 | BN6: 0.4174056896 | BO6: 0.01253791439 | BP6: 0.005888058537 | BQ6: 0.1167335309 | BR6: 0.096888544 | BS6: 0.820949071 | BT6: 1.052997119 | BU6: 468.3580943 | BV6: 40.35487098 | BW6: 126.5838855 | BX6: 19.41458193 | BY6: 240.4927862 | BZ6: 24.73611885 | CA6: 19.77681975 | CB6: 8.269247292 | CC6: 28.39007514 | CD6: 60.97003921 | CE6: 77.56120627 | CF6: 0.03975712706 | CG6: 646.5893882 | CH6: 67.46893191 | CI6: 56.84327891 | CJ6: 9.035731031 | CK6: 11.4865838 | CL6: 0.005216539448 | CM6: 144.8397422 | CN6: 0 | CO6: 74.03018321 | CP6: 34.44732105 | CQ6: 0 | CR6: 316.7882173 | CS6: 33.32409954 | CT6: 289.5377546 | CU6: 0.12984276 | CV6: 1.900005729 | CW6: 0.007111316016 | CX6: 0.01608078256 | CY6: 0 | CZ6: 750.1806163 | DA6: 72.72638305 | DB6: 85.09635817 | DC6: 295.5785478 | DD6: 0 | DE6: 619.3546434 | DF6: 61.30505194 | DG6: 8.505131464 | DH6: 74.99008212 | DI6: 1217.556198 | DJ6: 17.79366023 | DK6: 291.382091 | DL6: 309.1757513
A7: 01C053 | B7: Interventions sur le rachis et la moelle pour des affections neurologiques, niveau 3 | D7: 37 | E7: 6080.959852 | F7: 14.39493579 | G7: 3.441611197 | H7: 226.4541307 | I7: 0 | J7: 1084.721483 | K7: 1329.012161 | L7: 1.286453175 | M7: 1.24560991 | N7: 18.23857739 | O7: 0 | P7: 122.258783 | Q7: 143.0294235 | R7: 0.1737739887 | S7: 0.7036339529 | T7: 9.805290467 | U7: 0 | V7: 104.9769104 | W7: 115.6596088 | X7: 0 | Y7: 0 | Z7: 0 | AA7: 0 | AB7: 0 | AC7: 1587.701193 | AD7: 6.819797488 | AE7: 5.735674759 | AF7: 1.351547539 | AG7: 0 | AH7: 61.82554263 | AI7: 75.73256241 | AJ7: 50.81060241 | AK7: 28.52199891 | AL7: 57.23596181 | AM7: 0 | AN7: 213.578075 | AO7: 350.1466381 | AP7: 0 | AQ7: 0 | AR7: 0 | AS7: 0 | AT7: 0 | AU7: 0 | AV7: 0 | AW7: 0 | AX7: 0 | AY7: 0 | AZ7: 0 | BA7: 0 | BB7: 0 | BC7: 0 | BD7: 0 | BE7: 0 | BF7: 0 | BG7: 0 | BH7: 0 | BI7: 0 | BJ7: 0 | BK7: 0 | BL7: 0 | BM7: 0 | BN7: 0 | BO7: 0.03562073783 | BP7: 0.02496501988 | BQ7: 0.4830745296 | BR7: 0.4269308087 | BS7: 2.938356161 | BT7: 3.908947257 | BU7: 429.7881478 | BV7: 78.61798145 | BW7: 190.6888789 | BX7: 22.55960624 | BY7: 401.8284268 | BZ7: 53.02685302 | CA7: 41.61812003 | CB7: 7.168862361 | CC7: 57.86553479 | CD7: 101.0147102 | CE7: 152.9465261 | CF7: 0.04621829812 | CG7: 1107.381718 | CH7: 70.06315746 | CI7: 68.2469492 | CJ7: 8.929228072 | CK7: 15.92220235 | CL7: 0 | CM7: 163.1615371 | CN7: 0 | CO7: 115.0649201 | CP7: 232.4844599 | CQ7: 0 | CR7: 331.9236219 | CS7: 50.57987465 | CT7: 321.5055124 | CU7: 0.1572843847 | CV7: 6.014902676 | CW7: 0.02705637528 | CX7: 0.0623367056 | CY7: 0 | CZ7: 1057.819969 | DA7: 262.1635876 | DB7: 179.6686695 | DC7: 304.6313395 | DD7: 0 | DE7: 642.283882 | DF7: 216.590298 | DG7: 19.15569594 | DH7: 110.6138146 | DI7: 1735.107287 | DJ7: 19.41530392 | DK7: 497.8709668 | DL7: 517.2862707
A8: 01C061 | B8: Interventions sur le système vasculaire précérébral, niveau 1 | D8: 410 | E8: 4131.770271 | F8: 5.996780232 | G8: 1.853972727 | H8: 64.60039192 | I8: 3.644603936 | J8: 417.7708147 | K8: 493.8665635 | L8: 2.338901348 | M8: 1.475709756 | N8: 16.16510166 | O8: 0.01014270204 | P8: 187.6506719 | Q8: 207.6405274 | R8: 0.07226626852 | S8: 0.7730459583 | T8: 7.264402018 | U8: 0.06886733049 | V8: 71.11042271 | W8: 79.28900429 | X8: 0 | Y8: 0 | Z8: 0 | AA8: 0 | AB8: 0 | AC8: 780.7960951 | AD8: 2.993771134 | AE8: 2.876394961 | AF8: 2.332870348 | AG8: 3.478999109 | AH8: 54.29867169 | AI8: 65.98070724 | AJ8: 82.28342956 | AK8: 34.1098285 | AL8: 81.76456187 | AM8: 0 | AN8: 266.5374146 | AO8: 464.6952346 | AP8: 0 | AQ8: 0 | AR8: 0 | AS8: 0 | AT8: 0 | AU8: 0 | AV8: 0 | AW8: 0 | AX8: 0 | AY8: 0 | AZ8: 0 | BA8: 0.01917946059 | BB8: 0.03414659351 | BC8: 0 | BD8: 0.04382314012 | BE8: 0.09714919421 | BF8: 0 | BG8: 0 | BH8: 0 | BI8: 0 | BJ8: 0.4151087914 | BK8: 0.3354340975 | BL8: 0.7885087352 | BM8: 1.470721862 | BN8: 3.009773486 | BO8: 0.00675541756 | BP8: 0.004645018665 | BQ8: 0.09613532281 | BR8: 0.07943520911 | BS8: 0.6152160626 | BT8: 0.8021870308 | BU8: 534.5850515 | BV8: 25.49523143 | BW8: 87.89436171 | BX8: 24.22576126 | BY8: 158.5451403 | BZ8: 19.08980065 | CA8: 22.48697032 | CB8: 6.971690016 | CC8: 29.25544096 | CD8: 50.57723657 | CE8: 74.5520068 | CF8: 0.0173898122 | CG8: 499.1110298 | CH8: 47.05916726 | CI8: 95.07052329 | CJ8: 17.85240947 | CK8: 12.30434329 | CL8: 0.01586725879 | CM8: 172.3023106 | CN8: 0.06360671206 | CO8: 73.00494366 | CP8: 1.241670171 | CQ8: 0 | CR8: 76.5439371 | CS8: 56.125822 | CT8: 420.6675125 | CU8: 0.04130562646 | CV8: 19.56893314 | CW8: 0.03848819494 | CX8: 0.01514761989 | CY8: 0 | CZ8: 647.3113667 | DA8: 110.3789118 | DB8: 111.1263645 | DC8: 388.0459717 | DD8: 0 | DE8: 730.0359116 | DF8: 144.700021 | DG8: 6.47949124 | DH8: 6.897745252 | DI8: 1497.664417 | DJ8: 18.27181192 | DK8: 160.005839 | DL8: 178.2776509
A9: 01C062 | B9: Interventions sur le système vasculaire précérébral, niveau 2 | D9: 152 | E9: 5142.436445 | F9: 6.734627908 | G9: 2.977141043 | H9: 86.66913015 | I9: 1.724682275 | J9: 589.8606038 | K9: 687.9661852 | L9: 3.00353493 | M9: 1.568490883 | N9: 16.03135007 | O9: 0.0139545205 | P9: 251.9348375 | Q9: 272.5521679 | R9: 0.1809496115 | S9: 1.655216473 | T9: 16.40332459 | U9: 0.1334193473 | V9: 162.4991104 | W9: 180.8720204 | X9: 0 | Y9: 0 | Z9: 0 | AA9: 0 | AB9: 0 | AC9: 1141.390373 | AD9: 3.039165694 | AE9: 2.865263692 | AF9: 1.865546589 | AG9: 0.7832951779 | AH9: 45.70098807 | AI9: 54.25425922 | AJ9: 98.35796735 | AK9: 39.05470493 | AL9: 76.37360574 | AM9: 0 | AN9: 274.3614009 | AO9: 488.1476789 | AP9: 0 | AQ9: 0 | AR9: 0 | AS9: 0 | AT9: 0 | AU9: 0 | AV9: 0 | AW9: 0 | AX9: 0 | AY9: 7.105948885 | AZ9: 7.105948885 | BA9: 0.1115768738 | BB9: 0.1986484519 | BC9: 0 | BD9: 0.2549419444 | BE9: 0.5651672702 | BF9: 0 | BG9: 0 | BH9: 0 | BI9: 0 | BJ9: 0.01334196894 | BK9: 0.009708965595 | BL9: 0.01920513488 | BM9: 0.07339512441 | BN9: 0.1156511938 | BO9: 0.0006430212219 | BP9: 0 | BQ9: 0.03147036697 | BR9: 0 | BS9: 0.3447089795 | BT9: 0.3768223677 | BU9: 550.5655278 | BV9: 33.44801164 | BW9: 123.8471446 | BX9: 25.62695482 | BY9: 224.6395638 | BZ9: 25.69390118 | CA9: 31.07432055 | CB9: 7.966048153 | CC9: 34.07822036 | CD9: 63.40751601 | CE9: 90.05324587 | CF9: 0.0289527678 | CG9: 659.8638798 | CH9: 57.94376785 | CI9: 115.3473538 | CJ9: 21.43170134 | CK9: 13.95979848 | CL9: 0 | CM9: 208.6826215 | CN9: 0.7124643565 | CO9: 87.79081039 | CP9: 41.80656216 | CQ9: 0 | CR9: 122.8899643 | CS9: 61.21589724 | CT9: 476.115432 | CU9: 0.02616371125 | CV9: 24.92871676 | CW9: 0.05910240354 | CX9: 0.00346837173 | CY9: 0 | CZ9: 815.5485817 | DA9: 154.0703632 | DB9: 171.0306503 | DC9: 418.6380113 | DD9: 0 | DE9: 775.1727741 | DF9: 220.7320588 | DG9: 9.256485176 | DH9: 17.48511816 | DI9: 1766.385461 | DJ9: 30.08888659 | DK9: 188.6513663 | DL9: 218.7402529
A10: 01C063 | B10: Interventions sur le système vasculaire précérébral, niveau 3 | D10: 37 | E10: 7813.482549 | F10: 12.66607294 | G10: 4.18142538 | H10: 136.656397 | I10: 0.8597534522 | J10: 899.9952286 | K10: 1054.358877 | L10: 4.26428284 | M10: 6.10153493 | N10: 37.18212966 | O10: 0.02605945161 | P10: 500.0911783 | Q10: 547.6651852 | R10: 8.758497716 | S10: 5.636631026 | T10: 41.08881804 | U10: 0 | V10: 449.5886237 | W10: 505.0725705 | X10: 1.897995752 | Y10: 0.7797738738 | Z10: 2.443208093 | AA10: 69.60745229 | AB10: 74.72843001 | AC10: 2181.825063 | AD10: 4.031104601 | AE10: 3.147173595 | AF10: 1.922601685 | AG10: 0 | AH10: 46.92187936 | AI10: 56.02275924 | AJ10: 120.9970973 | AK10: 51.55053197 | AL10: 101.4508724 | AM10: 0 | AN10: 311.9087173 | AO10: 585.907219 | AP10: 0 | AQ10: 0 | AR10: 0 | AS10: 0 | AT10: 0 | AU10: 0 | AV10: 0 | AW10: 0 | AX10: 0 | AY10: 0 | AZ10: 0 | BA10: 0.1140963411 | BB10: 0.2031340434 | BC10: 0 | BD10: 0.2606986739 | BE10: 0.5779290584 | BF10: 0 | BG10: 0 | BH10: 0 | BI10: 0 | BJ10: 0 | BK10: 0 | BL10: 0 | BM10: 0 | BN10: 0 | BO10: 0 | BP10: 0 | BQ10: 0 | BR10: 0 | BS10: 0 | BT10: 0 | BU10: 642.5079073 | BV10: 56.41408589 | BW10: 207.4945356 | BX10: 20.98690226 | BY10: 370.315408 | BZ10: 43.11007865 | CA10: 45.85492109 | CB10: 7.302718453 | CC10: 48.60367924 | CD10: 82.49405652 | CE10: 128.8068597 | CF10: 0.01211811665 | CG10: 1011.395363 | CH10: 75.80310515 | CI10: 144.5984267 | CJ10: 13.96165343 | CK10: 21.34379681 | CL10: 0 | CM10: 255.706982 | CN10: 0.1242248137 | CO10: 189.7395035 | CP10: 103.8356678 | CQ10: 0 | CR10: 66.15899176 | CS10: 50.08394224 | CT10: 601.6305164 | CU10: 62.24242952 | CV10: 69.40620828 | CW10: 0.1520689205 | CX10: 0.002081979228 | CY10: 0 | CZ10: 1143.375635 | DA10: 318.9072537 | DB10: 285.9923675 | DC10: 448.9205825 | DD10: 0 | DE10: 853.6220728 | DF10: 507.0054094 | DG10: 32.3077129 | DH10: 131.9161996 | DI10: 2578.671598 | DJ10: 17.86368997 | DK10: 353.2100392 | DL10: 371.0737292
A11: 01C081 | B11: Interventions sur les nerfs crâniens ou périphériques et autres interventions sur le système nerveux, niveau 1 | D11: 143 | E11: 1947.664871 | F11: 3.185228297 | G11: 1.782778962 | H11: 49.68189596 | I11: 0.263667553 | J11: 203.4679667 | K11: 258.3815375 | L11: 0.01111255529 | M11: 0.01124777891 | N11: 0.164006512 | O11: 0 | P11: 1.011976535 | Q11: 1.198343382 | R11: 0.002161354784 | S11: 0.008751612493 | T11: 0.1219556023 | U11: 0 | V11: 1.305674971 | W11: 1.43854354 | X11: 0 | Y11: 0 | Z11: 0 | AA11: 0 | AB11: 0 | AC11: 261.0184244 | AD11: 3.954508252 | AE11: 2.135114096 | AF11: 3.250151795 | AG11: 1.215041699 | AH11: 36.11874989 | AI11: 46.67356573 | AJ11: 59.23409956 | AK11: 17.75189592 | AL11: 52.42188412 | AM11: 0.05237664237 | AN11: 157.2196734 | AO11: 286.6799297 | AP11: 0 | AQ11: 0 | AR11: 0 | AS11: 0 | AT11: 0 | AU11: 0 | AV11: 0 | AW11: 0 | AX11: 0 | AY11: 0 | AZ11: 0 | BA11: 0.02320866341 | BB11: 0.04132007738 | BC11: 0 | BD11: 0.05302946369 | BE11: 0.1175582045 | BF11: 0 | BG11: 0 | BH11: 0 | BI11: 0 | BJ11: 0 | BK11: 0 | BL11: 0 | BM11: 0 | BN11: 0 | BO11: 0.02447834552 | BP11: 0.002407529599 | BQ11: 0.2335080089 | BR11: 0.03677651703 | BS11: 2.720572064 | BT11: 3.017742465 | BU11: 336.4887961 | BV11: 11.46190509 | BW11: 35.84866655 | BX11: 27.66444417 | BY11: 77.83370102 | BZ11: 8.854834061 | CA11: 7.406877035 | CB11: 6.852876357 | CC11: 11.65042814 | CD11: 14.59837527 | CE11: 33.09971595 | CF11: 0.00747219091 | CG11: 235.2792958 | CH11: 19.39380842 | CI11: 55.91620269 | CJ11: 9.711840302 | CK11: 1.707878051 | CL11: 0 | CM11: 86.72972947 | CN11: 0.04154401197 | CO11: 48.26850413 | CP11: 1.568448639 | CQ11: 0 | CR11: 2.603182284 | CS11: 16.95171923 | CT11: 177.3648059 | CU11: 0.008181467551 | CV11: 0.6574878065 | CW11: 0.003829150468 | CX11: 0.002139447736 | CY11: 0 | CZ11: 247.4698421 | DA11: 20.04126672 | DB11: 26.05733742 | DC11: 181.2340515 | DD11: 0 | DE11: 490.1142011 | DF11: 58.07150978 | DG11: 0.3821011481 | DH11: 4.77831523 | DI11: 780.6787829 | DJ11: 8.666801632 | DK11: 58.41216699 | DL11: 67.07896863
A12: 01C08J | B12: Interventions sur les nerfs crâniens ou périphériques et autres interventions sur le système nerveux, en ambulatoire | D12: 298 | E12: 1517.121102 | F12: 1.556880231 | G12: 1.085085358 | H12: 14.20355173 | I12: 0.05529318311 | J12: 61.7680237 | K12: 78.6688342 | L12: 0 | M12: 0 | N12: 0 | O12: 0 | P12: 0 | Q12: 0 | R12: 0 | S12: 0 | T12: 0 | U12: 0 | V12: 0 | W12: 0 | X12: 0 | Y12: 0 | Z12: 0 | AA12: 0 | AB12: 0 | AC12: 78.6688342 | AD12: 3.2850892 | AE12: 1.949149424 | AF12: 1.858010803 | AG12: 0.3277251575 | AH12: 27.27808564 | AI12: 34.69806022 | AJ12: 49.91109907 | AK12: 11.06147277 | AL12: 41.79516962 | AM12: 0.02070942189 | AN12: 117.3621929 | AO12: 220.1506438 | AP12: 0 | AQ12: 0 | AR12: 0 | AS12: 0 | AT12: 0 | AU12: 0 | AV12: 0 | AW12: 0 | AX12: 0 | AY12: 0 | AZ12: 0 | BA12: 0.008949146542 | BB12: 0.01593281875 | BC12: 0 | BD12: 0.02044790056 | BE12: 0.04532986585 | BF12: 0 | BG12: 0 | BH12: 0 | BI12: 0 | BJ12: 0 | BK12: 0 | BL12: 0 | BM12: 0 | BN12: 0 | BO12: 0.008490048309 | BP12: 0.001064605054 | BQ12: 0.1046302805 | BR12: 0.01820598175 | BS12: 1.162215678 | BT12: 1.294606594 | BU12: 256.1886405 | BV12: 5.484802399 | BW12: 8.930635059 | BX12: 29.03498831 | BY12: 114.9107683 | BZ12: 17.36928136 | CA12: 11.00954064 | CB12: 7.158738272 | CC12: 18.6097771 | CD12: 35.063643 | CE12: 50.58566266 | CF12: 0.006847455699 | CG12: 298.1646846 | CH12: 13.1553999 | CI12: 42.15622182 | CJ12: 9.428467164 | CK12: 0.4848358877 | CL12: 0 | CM12: 65.22492477 | CN12: 0.02776387573 | CO12: 24.38208824 | CP12: 0.005689010881 | CQ12: 0 | CR12: 3.4605745 | CS12: 12.09861906 | CT12: 136.1501491 | CU12: 0 | CV12: 4.313779585e-07 | CW12: 0.002106351449 | CX12: 0.0003608680378 | CY12: 0 | CZ12: 176.1273514 | DA12: 1.718701328 | DB12: 23.32130766 | DC12: 163.5604803 | DD12: 0 | DE12: 406.8463795 | DF12: 47.09505559 | DG12: 0.03645382465 | DH12: 0.1682881493 | DI12: 642.7466663 | DJ12: 13.34154327 | DK12: 96.60007376 | DL12: 109.941617
A13: 01C101 | B13: Pose d'un stimulateur médullaire, niveau 1 | D13: 110 | E13: 5420.594204 | F13: 4.93069126 | G13: 0.332236201 | H13: 46.65636777 | I13: 2.726049735 | J13: 267.4517277 | K13: 322.0970726 | L13: 0.2863665353 | M13: 0.3334605471 | N13: 4.191453051 | O13: 0 | P13: 27.96279131 | Q13: 32.77407144 | R13: 0 | S13: 0 | T13: 0 | U13: 0 | V13: 0 | W13: 0 | X13: 0 | Y13: 0 | Z13: 0 | AA13: 0 | AB13: 0 | AC13: 354.8711441 | AD13: 7.292047257 | AE13: 3.974025541 | AF13: 2.184972436 | AG13: 0 | AH13: 54.30739677 | AI13: 67.758442 | AJ13: 20.03579836 | AK13: 11.64060184 | AL13: 24.16707566 | AM13: 0 | AN13: 87.74050846 | AO13: 143.5839843 | AP13: 0 | AQ13: 0 | AR13: 0 | AS13: 0 | AT13: 0 | AU13: 0 | AV13: 0 | AW13: 0 | AX13: 0 | AY13: 0 | AZ13: 0 | BA13: 0 | BB13: 0 | BC13: 0 | BD13: 0 | BE13: 0 | BF13: 0 | BG13: 0 | BH13: 0 | BI13: 0 | BJ13: 0 | BK13: 0 | BL13: 0 | BM13: 0 | BN13: 0 | BO13: 0 | BP13: 0 | BQ13: 0 | BR13: 0 | BS13: 0 | BT13: 0 | BU13: 211.3424263 | BV13: 16.52882236 | BW13: 38.63280728 | BX13: 21.70951809 | BY13: 73.22168193 | BZ13: 12.67170976 | CA13: 12.93229991 | CB13: 4.693809156 | CC13: 23.1137769 | CD13: 18.52252089 | CE13: 43.85466171 | CF13: 0.005658557969 | CG13: 265.8872666 | CH13: 16.53257375 | CI13: 42.79213094 | CJ13: 8.620715481 | CK13: 5.161837269 | CL13: 0 | CM13: 73.10725744 | CN13: 0.001349342721 | CO13: 26.93871065 | CP13: 0.07481366829 | CQ13: 0 | CR13: 3835.609088 | CS13: 68.29120753 | CT13: 122.7797204 | CU13: 0 | CV13: 0 | CW13: 0 | CX13: 0.01844298198 | CY13: 0 | CZ13: 4053.713333 | DA13: 6.750639186 | DB13: 46.04292186 | DC13: 119.4683381 | DD13: 0 | DE13: 200.9763846 | DF13: 84.12553788 | DG13: 0.9091629029 | DH13: 3.39979211 | DI13: 461.6727766 | DJ13: 1.949511676 | DK13: 91.71370817 | DL13: 93.66321985
A14: 01C141 | B14: Libérations de nerfs superficiels à l'exception du médian au canal carpien, niveau 1 | D14: 247 | E14: 1046.024846 | F14: 1.908975146 | G14: 0.8817118153 | H14: 29.04875138 | I14: 0.6623092869 | J14: 164.6688186 | K14: 197.1705662 | L14: 0.06512775304 | M14: 0 | N14: 0.1350048306 | O14: 0 | P14: 1.130035344 | Q14: 1.330167928 | R14: 0 | S14: 0 | T14: 0 | U14: 0 | V14: 0 | W14: 0 | X14: 0 | Y14: 0 | Z14: 0 | AA14: 0 | AB14: 0 | AC14: 198.5007341 | AD14: 1.662798058 | AE14: 1.804991746 | AF14: 1.467684966 | AG14: 1.312078108 | AH14: 16.9723498 | AI14: 23.21990268 | AJ14: 27.96607849 | AK14: 9.723192696 | AL14: 26.41393904 | AM14: 0.005268936792 | AN14: 82.0203458 | AO14: 146.128825 | AP14: 0 | AQ14: 0 | AR14: 0 | AS14: 0 | AT14: 0 | AU14: 0 | AV14: 0 | AW14: 0 | AX14: 0 | AY14: 0 | AZ14: 0 | BA14: 0.003213377155 | BB14: 0.00572100988 | BC14: 0 | BD14: 0.00734224389 | BE14: 0.01627663093 | BF14: 0 | BG14: 0 | BH14: 0 | BI14: 0 | BJ14: 0 | BK14: 0 | BL14: 0 | BM14: 0 | BN14: 0 | BO14: 0.002531024142 | BP14: 0 | BQ14: 0.02733598849 | BR14: 0.02143250374 | BS14: 0.1853215298 | BT14: 0.2366210462 | BU14: 169.6016253 | BV14: 8.187976342 | BW14: 31.88715406 | BX14: 20.3830069 | BY14: 57.71223802 | BZ14: 5.489361449 | CA14: 4.804029533 | CB14: 7.573291374 | CC14: 7.394197795 | CD14: 10.89860261 | CE14: 20.77105002 | CF14: 0.009638179171 | CG14: 175.1105463 | CH14: 15.00421842 | CI14: 28.91081355 | CJ14: 4.98206793 | CK14: 0.808656204 | CL14: 0 | CM14: 49.7057561 | CN14: 0.04091979268 | CO14: 25.07591296 | CP14: 0.4479063536 | CQ14: 0 | CR14: 1.017375984 | CS14: 16.58717944 | CT14: 104.5294615 | CU14: 0.04638561455 | CV14: 0 | CW14: 0.001486339571 | CX14: 0.0018836759 | CY14: 0 | CZ14: 147.7485116 | DA14: 5.428464845 | DB14: 24.05654942 | DC14: 82.77722519 | DD14: 0 | DE14: 174.4656331 | DF14: 14.68987787 | DG14: 0.1553341345 | DH14: 3.784588387 | DI14: 305.357673 | DJ14: 6.693098036 | DK14: 47.81642987 | DL14: 54.5095279
A15: 01C14J | B15: Libérations de nerfs superficiels à l'exception du médian au canal carpien, en ambulatoire | D15: 819 | E15: 850.4496265 | F15: 1.753336746 | G15: 1.029101243 | H15: 15.82398785 | I15: 0.04822752969 | J15: 56.68147826 | K15: 75.33613164 | L15: 0 | M15: 0 | N15: 0 | O15: 0 | P15: 0 | Q15: 0 | R15: 0 | S15: 0 | T15: 0 | U15: 0 | V15: 0 | W15: 0 | X15: 0 | Y15: 0 | Z15: 0 | AA15: 0 | AB15: 0 | AC15: 75.33613164 | AD15: 1.446966771 | AE15: 1.425948228 | AF15: 1.38988029 | AG15: 0.2997565259 | AH15: 16.86729623 | AI15: 21.42984805 | AJ15: 27.94214148 | AK15: 8.263467594 | AL15: 24.96569936 | AM15: 0.01218300783 | AN15: 75.86368364 | AO15: 137.0471751 | AP15: 0 | AQ15: 0 | AR15: 0 | AS15: 0 | AT15: 0 | AU15: 0 | AV15: 0 | AW15: 0 | AX15: 0 | AY15: 0 | AZ15: 0 | BA15: 0.009013412673 | BB15: 0.01604723643 | BC15: 0 | BD15: 0.02059474221 | BE15: 0.04565539132 | BF15: 0 | BG15: 0 | BH15: 0 | BI15: 0 | BJ15: 0 | BK15: 0 | BL15: 0 | BM15: 0 | BN15: 0 | BO15: 0.0003910921237 | BP15: 0 | BQ15: 0.02260553252 | BR15: 0 | BS15: 0.05906844085 | BT15: 0.08206506549 | BU15: 158.6047436 | BV15: 5.176848535 | BW15: 8.989541171 | BX15: 24.18305664 | BY15: 66.83711568 | BZ15: 7.557129536 | CA15: 7.1355272 | CB15: 6.799846456 | CC15: 11.62289919 | CD15: 17.73968979 | CE15: 30.41467007 | CF15: 0.009801302488 | CG15: 186.4661256 | CH15: 11.04712896 | CI15: 26.0349367 | CJ15: 4.756789174 | CK15: 1.031156515 | CL15: 0 | CM15: 42.87001135 | CN15: 0.02483018004 | CO15: 13.52892234 | CP15: 0.0188987055 | CQ15: 0 | CR15: 0.04717463387 | CS15: 7.390095521 | CT15: 90.35509672 | CU15: 0.002269885167 | CV15: 6.240681271e-07 | CW15: 0.001631655813 | CX15: 0.0007608577129 | CY15: 0 | CZ15: 111.3696811 | DA15: 0.6656775065 | DB15: 18.15194019 | DC15: 77.96044944 | DD15: 0 | DE15: 169.1486458 | DF15: 9.633049873 | DG15: 0.009344600383 | DH15: 0.233825831 | DI15: 275.8029333 | DJ15: 8.260573036 | DK15: 65.6873063 | DL15: 73.94787933
A16: 01C151 | B16: Libérations du médian au canal carpien, niveau 1 | D16: 313 | E16: 804.086622 | F16: 2.560938222 | G16: 0.7209226379 | H16: 23.39570732 | I16: 0.8579820452 | J16: 145.5306428 | K16: 173.066193 | L16: 0 | M16: 0 | N16: 0 | O16: 0 | P16: 0 | Q16: 0 | R16: 0 | S16: 0 | T16: 0 | U16: 0 | V16: 0 | W16: 0 | X16: 0 | Y16: 0 | Z16: 0 | AA16: 0 | AB16: 0 | AC16: 173.066193 | AD16: 1.344226594 | AE16: 1.496157375 | AF16: 0.6582462056 | AG16: 0.6708050439 | AH16: 11.8057635 | AI16: 15.97519872 | AJ16: 16.77674052 | AK16: 5.559760227 | AL16: 13.97320718 | AM16: 0.01958171062 | AN16: 48.64792721 | AO16: 84.97721685 | AP16: 0 | AQ16: 0 | AR16: 0 | AS16: 0 | AT16: 0 | AU16: 0 | AV16: 0 | AW16: 0 | AX16: 0 | AY16: 1.038312232 | AZ16: 1.038312232 | BA16: 0.05916894292 | BB16: 0.1053427876 | BC16: 0 | BD16: 0.1351950888 | BE16: 0.2997068192 | BF16: 0 | BG16: 0 | BH16: 0 | BI16: 0 | BJ16: 0 | BK16: 0 | BL16: 0 | BM16: 0 | BN16: 0 | BO16: 0.002157870362 | BP16: 0.0002713770325 | BQ16: 0.006449358691 | BR16: 0.003012561456 | BS16: 0.08670026112 | BT16: 0.09859142866 | BU16: 102.389026 | BV16: 7.054944698 | BW16: 26.48905576 | BX16: 23.18872948 | BY16: 45.17188392 | BZ16: 5.479725043 | CA16: 5.39104614 | CB16: 7.2461741 | CC16: 7.39337864 | CD16: 10.46257552 | CE16: 18.51733089 | CF16: 0.004098720471 | CG16: 156.3989429 | CH16: 10.06498636 | CI16: 18.96199578 | CJ16: 3.004305118 | CK16: 0.8704158425 | CL16: 0 | CM16: 32.90170311 | CN16: 0.05772890739 | CO16: 12.55245652 | CP16: 0.0457791722 | CQ16: 0 | CR16: 0.9300819899 | CS16: 7.863558942 | CT16: 62.74352563 | CU16: 0.06294844047 | CV16: 0.09051562668 | CW16: 0.003402219905 | CX16: 0.0009781032106 | CY16: 0 | CZ16: 84.35097555 | DA16: 3.248012921 | DB16: 18.43361616 | DC16: 74.26425316 | DD16: 0 | DE16: 146.482388 | DF16: 11.03492325 | DG16: 0.1925654349 | DH16: 1.324022391 | DI16: 254.9797813 | DJ16: 5.244367861 | DK16: 39.7238181 | DL16: 44.96818596
A17: 01C15J | B17: Libérations du médian au canal carpien, en ambulatoire | D17: 5208 | E17: 600.6077244 | F17: 1.032263878 | G17: 0.985972968 | H17: 14.51584389 | I17: 0.0413936943 | J17: 56.54900838 | K17: 73.12448281 | L17: 0 | M17: 0 | N17: 0 | O17: 0 | P17: 0 | Q17: 0 | R17: 0 | S17: 0 | T17: 0 | U17: 0 | V17: 0 | W17: 0 | X17: 0 | Y17: 0 | Z17: 0 | AA17: 0 | AB17: 0 | AC17: 73.12448281 | AD17: 0.9529130004 | AE17: 0.9645128181 | AF17: 0.5038566213 | AG17: 0.2032859454 | AH17: 9.323009542 | AI17: 11.94757793 | AJ17: 14.94339969 | AK17: 5.12203364 | AL17: 12.86116886 | AM17: 0.007040645108 | AN17: 42.61584393 | AO17: 75.54948676 | AP17: 0 | AQ17: 0 | AR17: 0 | AS17: 0 | AT17: 0 | AU17: 0 | AV17: 0 | AW17: 0 | AX17: 0 | AY17: 0 | AZ17: 0 | BA17: 0.01588793223 | BB17: 0.02828644534 | BC17: 0 | BD17: 0.03630232858 | BE17: 0.08047670614 | BF17: 0 | BG17: 0 | BH17: 0 | BI17: 0 | BJ17: 0 | BK17: 0 | BL17: 0 | BM17: 0 | BN17: 0 | BO17: 7.872242415e-05 | BP17: 0 | BQ17: 0.001617675924 | BR17: 0 | BS17: 0.01873170031 | BT17: 0.02042809866 | BU17: 87.59796949 | BV17: 5.168399367 | BW17: 9.436859626 | BX17: 23.31065527 | BY17: 46.3091528 | BZ17: 5.425243773 | CA17: 4.957939094 | CB17: 7.172092474 | CC17: 7.579176461 | CD17: 11.77993514 | CE17: 19.02938913 | CF17: 0.003397390126 | CG17: 140.1722405 | CH17: 8.036073611 | CI17: 15.50721236 | CJ17: 2.502292229 | CK17: 0.8177834383 | CL17: 0 | CM17: 26.86336164 | CN17: 0.02578108762 | CO17: 7.23770321 | CP17: 0.02159822297 | CQ17: 0 | CR17: 0.06221808288 | CS17: 5.341113647 | CT17: 55.60797594 | CU17: 0.002576100074 | CV17: 0.01374243576 | CW17: 0.001485770278 | CX17: 0.001234918916 | CY17: 0 | CZ17: 68.31542942 | DA17: 0.4093195091 | DB17: 14.43730807 | DC17: 58.44933032 | DD17: 0 | DE17: 125.7604535 | DF17: 4.8856992 | DG17: 0.02034803772 | DH17: 0.5717818177 | DI17: 204.5342405 | DJ17: 5.409678056 | DK17: 42.75606203 | DL17: 48.16574008
A18: 01K04J | B18: Injections de toxine botulique, en ambulatoire | D18: 274 | E18: 288.0619475 | F18: 0.4717902781 | G18: 0.06051297201 | H18: 11.51833919 | I18: 0.0004567368212 | J18: 46.52477854 | K18: 58.57587772 | L18: 0 | M18: 0 | N18: 0 | O18: 0 | P18: 0 | Q18: 0 | R18: 0 | S18: 0 | T18: 0 | U18: 0 | V18: 0 | W18: 0 | X18: 0 | Y18: 0 | Z18: 0 | AA18: 0 | AB18: 0 | AC18: 58.57587772 | AD18: 0 | AE18: 0 | AF18: 0 | AG18: 0 | AH18: 0 | AI18: 0 | AJ18: 2.703500887 | AK18: 1.188553804 | AL18: 2.553804735 | AM18: 0 | AN18: 8.661251956 | AO18: 15.10711138 | AP18: 0 | AQ18: 0 | AR18: 0 | AS18: 0 | AT18: 0 | AU18: 0 | AV18: 0 | AW18: 0 | AX18: 0 | AY18: 0 | AZ18: 0 | BA18: 0 | BB18: 0 | BC18: 0 | BD18: 0 | BE18: 0 | BF18: 0 | BG18: 0 | BH18: 0 | BI18: 0 | BJ18: 0 | BK18: 0 | BL18: 0 | BM18: 0 | BN18: 0 | BO18: 0 | BP18: 0 | BQ18: 0 | BR18: 0 | BS18: 0 | BT18: 0 | BU18: 15.10711138 | BV18: 6.121805944 | BW18: 6.927720989 | BX18: 33.49778004 | BY18: 9.190620582 | BZ18: 1.756368657 | CA18: 1.955264333 | CB18: 6.825333064 | CC18: 2.249584329 | CD18: 3.580679261 | CE18: 5.661988541 | CF18: 7.937812559e-05 | CG18: 77.76722511 | CH18: 2.516858644 | CI18: 2.616280581 | CJ18: 1.254718226 | CK18: 0.6398545861 | CL18: 0 | CM18: 7.027712036 | CN18: 0.0009234456256 | CO18: 59.79361466 | CP18: 6.069563363e-07 | CQ18: 0 | CR18: 0 | CS18: 0.0987431334 | CT18: 13.4157449 | CU18: 0 | CV18: 0 | CW18: 0 | CX18: 0.008560259611 | CY18: 0 | CZ18: 73.317587 | DA18: 0 | DB18: 0.3194139368 | DC18: 0 | DD18: 0 | DE18: 0 | DF18: 55.94702035 | DG18: 0 | DH18: 0 | DI18: 56.26643429 | DJ18: 1.77913305 | DK18: 10.19487641 | DL18: 11.97400946
A19: 01K05J | B19: Séjours pour douleurs chroniques rebelles comprenant un bloc ou une infiltration, en ambulatoire | D19: 49 | E19: 489.7363474 | F19: 0.4393959048 | G19: 1.5150214 | H19: 31.96395329 | I19: 1.735046585 | J19: 115.9786716 | K19: 151.6320888 | L19: 0 | M19: 0 | N19: 0 | O19: 0 | P19: 0 | Q19: 0 | R19: 0 | S19: 0 | T19: 0 | U19: 0 | V19: 0 | W19: 0 | X19: 0 | Y19: 0 | Z19: 0 | AA19: 0 | AB19: 0 | AC19: 151.6320888 | AD19: 0 | AE19: 0 | AF19: 0 | AG19: 0 | AH19: 0 | AI19: 0 | AJ19: 8.069825087 | AK19: 4.599055181 | AL19: 11.33811937 | AM19: 0.4857506904 | AN19: 37.06545946 | AO19: 61.55820979 | AP19: 0 | AQ19: 0 | AR19: 0 | AS19: 0 | AT19: 0 | AU19: 0 | AV19: 0 | AW19: 0 | AX19: 0 | AY19: 0 | AZ19: 0 | BA19: 0 | BB19: 0 | BC19: 0 | BD19: 0 | BE19: 0 | BF19: 0 | BG19: 0 | BH19: 0 | BI19: 0 | BJ19: 0 | BK19: 0 | BL19: 0 | BM19: 0 | BN19: 0 | BO19: 0 | BP19: 0 | BQ19: 0 | BR19: 0 | BS19: 0 | BT19: 0 | BU19: 61.55820979 | BV19: 8.072019602 | BW19: 7.661939815 | BX19: 31.84794283 | BY19: 60.21644174 | BZ19: 6.444793885 | CA19: 4.978197564 | CB19: 6.990657069 | CC19: 8.477238078 | CD19: 9.317283331 | CE19: 24.88629717 | CF19: 0.04867290598 | CG19: 168.941484 | CH19: 7.175919133 | CI19: 12.4391297 | CJ19: 0.0238664308 | CK19: 0.001016109389 | CL19: 0 | CM19: 19.63993138 | CN19: 0.000837440894 | CO19: 10.86470712 | CP19: 1.947997282e-05 | CQ19: 0 | CR19: 0 | CS19: 0.05767652326 | CT19: 25.89280152 | CU19: 0 | CV19: 0 | CW19: 0 | CX19: 0 | CY19: 0 | CZ19: 36.81604208 | DA19: 0 | DB19: 22.11959667 | DC19: 0 | DD19: 0 | DE19: 0 | DF19: 29.02899467 | DG19: 0 | DH19: 0 | DI19: 51.14859134 | DJ19: 9.712731596 | DK19: 8.447081937 | DL19: 18.15981353
A20: 01K06J | B20: Affections du système nerveux sans acte opératoire avec anesthésie, en ambulatoire | D20: 44 | E20: 809.9787109 | F20: 0.870985298 | G20: 0.3653997794 | H20: 12.01920246 | I20: 0.01279069383 | J20: 64.49035572 | K20: 77.75873395 | L20: 0 | M20: 0 | N20: 0 | O20: 0 | P20: 0 | Q20: 0 | R20: 0 | S20: 0 | T20: 0 | U20: 0 | V20: 0 | W20: 0 | X20: 0 | Y20: 0 | Z20: 0 | AA20: 0 | AB20: 0 | AC20: 77.75873395 | AD20: 0.4619143962 | AE20: 0.4530207995 | AF20: 0.1695440034 | AG20: 0 | AH20: 11.60902211 | AI20: 12.69350131 | AJ20: 11.34798889 | AK20: 4.40128603 | AL20: 8.372167776 | AM20: 0 | AN20: 26.8175178 | AO20: 50.9389605 | AP20: 0 | AQ20: 0 | AR20: 0 | AS20: 0 | AT20: 0 | AU20: 0 | AV20: 0 | AW20: 0 | AX20: 0 | AY20: 0 | AZ20: 0 | BA20: 0 | BB20: 0 | BC20: 0 | BD20: 0 | BE20: 0 | BF20: 0 | BG20: 0 | BH20: 0 | BI20: 0 | BJ20: 1.374784197 | BK20: 1.223826364 | BL20: 8.380859505 | BM20: 5.519680069 | BN20: 16.49915013 | BO20: 0 | BP20: 0 | BQ20: 0 | BR20: 0 | BS20: 0 | BT20: 0 | BU20: 80.13161195 | BV20: 5.255587376 | BW20: 9.345590476 | BX20: 30.22700902 | BY20: 40.37423201 | BZ20: 4.963935478 | CA20: 5.313820983 | CB20: 8.334355978 | CC20: 6.914530087 | CD20: 16.0509107 | CE20: 18.82381265 | CF20: 0.003232706474 | CG20: 145.6070175 | CH20: 11.03566258 | CI20: 11.20091923 | CJ20: 1.463288414 | CK20: 2.81590961 | CL20: 0 | CM20: 26.51577983 | CN20: 0.02769658567 | CO20: 5.633292347 | CP20: 0.02137724254 | CQ20: 0 | CR20: 4.407405099 | CS20: 5.021128071 | CT20: 95.6130683 | CU20: 0.00231559551 | CV20: 8.801592215e-06 | CW20: 0.0001520336025 | CX20: 0.00218100017 | CY20: 0 | CZ20: 110.7286251 | DA20: 1.556350174 | DB20: 244.8725727 | DC20: 62.04364129 | DD20: 0 | DE20: 29.6456344 | DF20: 28.17607501 | DG20: 0.09267454941 | DH20: 2.849994545 | DI20: 369.2369427 | DJ20: 7.706051389 | DK20: 38.52636449 | DL20: 46.23241588
A21: 01M081 | B21: Maladies dégénératives du système nerveux, âge inférieur à 80 ans, niveau 1 | D21: 47 | E21: 2019.759517 | F21: 7.190309775 | G21: 0.6736582373 | H21: 71.13882613 | I21: 6.473740639 | J21: 410.9323224 | K21: 496.4088571 | L21: 0.01344919 | M21: 0.006151444369 | N21: 0.122847169 | O21: 0 | P21: 0.9526967384 | Q21: 1.095144542 | R21: 0 | S21: 0 | T21: 0 | U21: 0 | V21: 0 | W21: 0 | X21: 0 | Y21: 0 | Z21: 0 | AA21: 0 | AB21: 0 | AC21: 497.5040017 | AD21: 0 | AE21: 0 | AF21: 0 | AG21: 0 | AH21: 0 | AI21: 0 | AJ21: 2.94967027 | AK21: 0.5990694343 | AL21: 3.9668425 | AM21: 0 | AN21: 9.575355612 | AO21: 17.09093782 | AP21: 0 | AQ21: 0 | AR21: 0 | AS21: 0 | AT21: 0 | AU21: 0 | AV21: 0 | AW21: 0 | AX21: 0 | AY21: 0 | AZ21: 0 | BA21: 0.1605984387 | BB21: 0.2859251219 | BC21: 0 | BD21: 0.3669512941 | BE21: 0.8134748547 | BF21: 0 | BG21: 0 | BH21: 0 | BI21: 0 | BJ21: 0 | BK21: 0 | BL21: 0 | BM21: 0 | BN21: 0 | BO21: 0.03149400878 | BP21: 0.0196991767 | BQ21: 0.417757907 | BR21: 0.3655571827 | BS21: 2.566547063 | BT21: 3.401055338 | BU21: 21.30546801 | BV21: 26.61208317 | BW21: 60.76970313 | BX21: 23.50328331 | BY21: 134.758972 | BZ21: 21.83590864 | CA21: 22.50597081 | CB21: 6.705253181 | CC21: 23.61575903 | CD21: 26.09782654 | CE21: 58.72714938 | CF21: 0.00206094809 | CG21: 405.1339701 | CH21: 16.01810177 | CI21: 3.102930234 | CJ21: 2.026656897 | CK21: 3.644325801 | CL21: 0 | CM21: 24.79201471 | CN21: 622.8913727 | CO21: 26.32491693 | CP21: 0.004995327419 | CQ21: 0 | CR21: 0 | CS21: 0.4064061878 | CT21: 30.31135742 | CU21: 0.02436863422 | CV21: 0.7960657678 | CW21: 0.5132240782 | CX21: 0.1626573009 | CY21: 0 | CZ21: 681.4353643 | DA21: 92.67790351 | DB21: 87.71661895 | DC21: 0 | DD21: 0 | DE21: 0.2670394389 | DF21: 202.3186426 | DG21: 1.01479801 | DH21: 5.593695292 | DI21: 389.5886978 | DJ21: 4.043319946 | DK21: 140.7915629 | DL21: 144.8348829
A22: 01M111 | B22: Affections des nerfs crâniens et rachidiens, niveau 1 | D22: 112 | E22: 3241.32421 | F22: 6.162738609 | G22: 0.5680554923 | H22: 67.30589689 | I22: 10.28967829 | J22: 396.9707428 | K22: 481.2971121 | L22: 0 | M22: 0 | N22: 0 | O22: 0 | P22: 0 | Q22: 0 | R22: 0.004180651281 | S22: 0.01692801212 | T22: 0.2358954897 | U22: 0 | V22: 2.525532495 | W22: 2.782536648 | X22: 0 | Y22: 0 | Z22: 0 | AA22: 0 | AB22: 0 | AC22: 484.0796488 | AD22: 0.1949992166 | AE22: 0.1808020009 | AF22: 0.01264369778 | AG22: 0 | AH22: 1.624289021 | AI22: 2.012733937 | AJ22: 7.706109333 | AK22: 3.118248161 | AL22: 7.338950209 | AM22: 0 | AN22: 21.66637976 | AO22: 39.82968746 | AP22: 0 | AQ22: 0 | AR22: 0 | AS22: 0 | AT22: 0 | AU22: 0 | AV22: 0 | AW22: 0 | AX22: 0 | AY22: 0 | AZ22: 0 | BA22: 0.05802635674 | BB22: 0.103308558 | BC22: 0 | BD22: 0.1325843941 | BE22: 0.2939193089 | BF22: 0 | BG22: 0 | BH22: 0 | BI22: 0 | BJ22: 0.2395439478 | BK22: 0.1356743496 | BL22: 0.5663266348 | BM22: 2.156559912 | BN22: 3.098104844 | BO22: 0.08895215401 | BP22: 0.03485067443 | BQ22: 0.9844949364 | BR22: 0.7996376918 | BS22: 6.660691642 | BT22: 8.568627099 | BU22: 53.80307265 | BV22: 23.4512796 | BW22: 62.77935019 | BX22: 23.64610125 | BY22: 129.8699855 | BZ22: 18.29495209 | CA22: 20.65062141 | CB22: 7.09935422 | CC22: 23.04044567 | CD22: 27.04164118 | CE22: 56.20701774 | CF22: 0.0131253017 | CG22: 392.0938741 | CH22: 15.61159726 | CI22: 8.756395681 | CJ22: 2.413847301 | CK22: 3.267768573 | CL22: 0.07145897314 | CM22: 30.12106778 | CN22: 1675.58957 | CO22: 33.90903987 | CP22: 0.06329030558 | CQ22: 0 | CR22: 47.6116137 | CS22: 2.524454844 | CT22: 54.26585669 | CU22: 0.01522650155 | CV22: 13.41351757 | CW22: 0.2249006502 | CX22: 0.09422741278 | CY22: 0 | CZ22: 1827.711697 | DA22: 120.2973801 | DB22: 133.0478012 | DC22: 9.993860744 | DD22: 0 | DE22: 13.73379656 | DF22: 169.1314153 | DG22: 2.146552336 | DH22: 5.164043181 | DI22: 453.5148494 | DJ22: 5.934689994 | DK22: 122.7714703 | DL22: 128.7061603
A23: 01M11T | B23: Affections des nerfs crâniens et rachidiens, très courte durée | D23: 168 | E23: 507.5174519 | F23: 1.374902295 | G23: 0.2003433677 | H23: 17.35692126 | I23: 2.077761939 | J23: 80.09095442 | K23: 101.1008833 | L23: 0.01503290448 | M23: 0.003109806144 | N23: 0.03627237252 | O23: 0.1801757212 | P23: 0.4796356993 | Q23: 0.7142265036 | R23: 0 | S23: 0 | T23: 0 | U23: 0 | V23: 0 | W23: 0 | X23: 0 | Y23: 0 | Z23: 0 | AA23: 0 | AB23: 0 | AC23: 101.8151098 | AD23: 0.02685807268 | AE23: 0.110587321 | AF23: 0.003513233217 | AG23: 0 | AH23: 0.2270782124 | AI23: 0.3680368392 | AJ23: 8.098606887 | AK23: 3.589817711 | AL23: 8.213737625 | AM23: 0 | AN23: 22.86296808 | AO23: 42.7651303 | AP23: 0 | AQ23: 0 | AR23: 0 | AS23: 0 | AT23: 0 | AU23: 0 | AV23: 0 | AW23: 0 | AX23: 0 | AY23: 0 | AZ23: 0 | BA23: 0 | BB23: 0 | BC23: 0 | BD23: 0 | BE23: 0 | BF23: 0 | BG23: 0 | BH23: 0 | BI23: 0 | BJ23: 0 | BK23: 0 | BL23: 0 | BM23: 0 | BN23: 0 | BO23: 0.06615590809 | BP23: 0.03487459003 | BQ23: 0.8129814639 | BR23: 0.6852066049 | BS23: 5.240949877 | BT23: 6.840168444 | BU23: 49.97333558 | BV23: 6.390869453 | BW23: 10.27520312 | BX23: 23.51582871 | BY23: 24.43718108 | BZ23: 3.718650214 | CA23: 2.824967537 | CB23: 7.005963658 | CC23: 4.456992969 | CD23: 6.731727301 | CE23: 10.69610522 | CF23: 0.001847429227 | CG23: 100.0553367 | CH23: 4.651587382 | CI23: 7.040410738 | CJ23: 1.355798965 | CK23: 0.3833862452 | CL23: 0 | CM23: 13.43118333 | CN23: 9.120083532 | CO23: 9.527950693 | CP23: 0.05437084893 | CQ23: 0 | CR23: 0.5162913546 | CS23: 3.869234197 | CT23: 31.4120934 | CU23: 0.01494993072 | CV23: 0 | CW23: 0.0001074109458 | CX23: 0.009305834773 | CY23: 0 | CZ23: 54.52438721 | DA23: 40.38867151 | DB23: 102.8609989 | DC23: 0.917013053 | DD23: 0 | DE23: 1.477613699 | DF23: 41.53920422 | DG23: 0.3005761564 | DH23: 0.2340217311 | DI23: 187.7180993 | DJ23: 1.73703496 | DK23: 28.78946747 | DL23: 30.52650243
A24: 01M15T | B24: Accidents ischémiques transitoires et occlusions des artères précérébrales, âge supérieur à 79 ans, très courte durée | D24: 30 | E24: 1117.540749 | F24: 2.381579064 | G24: 0.7226966845 | H24: 26.54637532 | I24: 6.345142564 | J24: 173.1487882 | K24: 209.1445818 | L24: 0.114695568 | M24: 0.1160912461 | N24: 1.692753786 | O24: 0 | P24: 10.44487253 | Q24: 12.36841313 | R24: 0 | S24: 0 | T24: 0 | U24: 0 | V24: 0 | W24: 0 | X24: 0 | Y24: 0 | Z24: 0 | AA24: 0 | AB24: 0 | AC24: 221.5129949 | AD24: 0.00193743714 | AE24: 0.0005542245386 | AF24: 0.0009881255606 | AG24: 0 | AH24: 4.985931717 | AI24: 4.989411504 | AJ24: 4.121343777 | AK24: 1.816442941 | AL24: 4.185400209 | AM24: 0 | AN24: 10.30699379 | AO24: 20.43018072 | AP24: 0 | AQ24: 0 | AR24: 0 | AS24: 0 | AT24: 0 | AU24: 0 | AV24: 0 | AW24: 0 | AX24: 0 | AY24: 5.508788727 | AZ24: 5.508788727 | BA24: 0 | BB24: 0 | BC24: 0 | BD24: 0 | BE24: 0 | BF24: 0 | BG24: 0 | BH24: 0 | BI24: 0 | BJ24: 0.05829100717 | BK24: 0 | BL24: 5.677041903 | BM24: 0 | BN24: 5.73533291 | BO24: 0.1238449341 | BP24: 0.09821299446 | BQ24: 1.585146242 | BR24: 1.258798873 | BS24: 10.43924069 | BT24: 13.50524373 | BU24: 50.16895759 | BV24: 8.494419094 | BW24: 25.93419897 | BX24: 28.09751127 | BY24: 47.4874602 | BZ24: 6.303756516 | CA24: 7.319624913 | CB24: 7.453997335 | CC24: 9.982712457 | CD24: 19.32704608 | CE24: 24.35275569 | CF24: 0.002412571122 | CG24: 184.7558951 | CH24: 8.612854356 | CI24: 5.341841347 | CJ24: 0.6358412955 | CK24: 4.157596332 | CL24: 0 | CM24: 18.74813333 | CN24: 1.801713681 | CO24: 13.84789445 | CP24: 0.1840474947 | CQ24: 0 | CR24: 0 | CS24: 2.230801753 | CT24: 54.367086 | CU24: 0.003698636048 | CV24: 26.9660354 | CW24: 0.01843942921 | CX24: 0.003887737363 | CY24: 0 | CZ24: 99.42360458 | DA24: 73.04693732 | DB24: 378.1147332 | DC24: 22.92454601 | DD24: 0 | DE24: 0 | DF24: 65.04961284 | DG24: 2.230803854 | DH24: 1.564530672 | DI24: 542.9311639 | DJ24: 6.851371696 | DK24: 52.74339865 | DL24: 59.59477034
A25: 01M16T | B25: Accidents ischémiques transitoires et occlusions des artères précérébrales, âge inférieur à 80 ans, très courte durée | D25: 70 | E25: 1007.205854 | F25: 1.772848577 | G25: 0.5907889114 | H25: 24.39760299 | I25: 5.899004018 | J25: 166.0971772 | K25: 198.7574217 | L25: 0.02074739658 | M25: 0.01341831854 | N25: 0.6793427073 | O25: 0 | P25: 12.76164875 | Q25: 13.47515718 | R25: 0 | S25: 0 | T25: 0 | U25: 0 | V25: 0 | W25: 0 | X25: 0 | Y25: 0 | Z25: 0 | AA25: 0 | AB25: 0 | AC25: 212.2325789 | AD25: 0.2082130049 | AE25: 0.1951458697 | AF25: 0 | AG25: 0 | AH25: 5.455717816 | AI25: 5.85907669 | AJ25: 1.897115527 | AK25: 0.4069652766 | AL25: 2.407929296 | AM25: 0 | AN25: 5.777557271 | AO25: 10.48956737 | AP25: 0 | AQ25: 0 | AR25: 0 | AS25: 0 | AT25: 0 | AU25: 0 | AV25: 0 | AW25: 0 | AX25: 0 | AY25: 0 | AZ25: 0 | BA25: 0.08260992707 | BB25: 0.1470764825 | BC25: 0 | BD25: 0.188755382 | BE25: 0.4184417916 | BF25: 0 | BG25: 0 | BH25: 0 | BI25: 0 | BJ25: 0.08421173956 | BK25: 0.01559622311 | BL25: 6.179045317 | BM25: 0.1100087818 | BN25: 6.388862061 | BO25: 0.1386916411 | BP25: 0.08726703869 | BQ25: 1.904600858 | BR25: 1.598458401 | BS25: 12.07214616 | BT25: 15.8011641 | BU25: 38.95711202 | BV25: 7.352912532 | BW25: 21.97564284 | BX25: 27.33646227 | BY25: 45.37770339 | BZ25: 6.002757987 | CA25: 8.33784344 | CB25: 6.285417799 | CC25: 9.614101506 | CD25: 18.59022412 | CE25: 25.89898663 | CF25: 0.002756674583 | CG25: 176.7748092 | CH25: 7.872625963 | CI25: 3.760449193 | CJ25: 0.8920121324 | CK25: 2.31161782 | CL25: 0 | CM25: 14.83670511 | CN25: 0.024720189 | CO25: 10.02681931 | CP25: 0.01923535572 | CQ25: 0 | CR25: 31.91109249 | CS25: 2.138481074 | CT25: 45.43915753 | CU25: 0.0001838449643 | CV25: 10.24514867 | CW25: 0.006686786205 | CX25: 0.006191340063 | CY25: 0 | CZ25: 99.81771659 | DA25: 62.08365251 | DB25: 302.7013409 | DC25: 14.49142472 | DD25: 0 | DE25: 0 | DF25: 83.300081 | DG25: 1.770891126 | DH25: 0.2395424171 | DI25: 464.5869327 | DJ25: 8.686632207 | DK25: 44.40765491 | DL25: 53.09428712
A26: 01M171 | B26: Sclérose en plaques et ataxie cérébelleuse, niveau 1 | D26: 70 | E26: 1024.162611 | F26: 4.005139785 | G26: 0.5951821589 | H26: 48.40522083 | I26: 2.758109656 | J26: 283.1590318 | K26: 338.9226843 | L26: 0 | M26: 0 | N26: 0 | O26: 0 | P26: 0 | Q26: 0 | R26: 0 | S26: 0 | T26: 0 | U26: 0 | V26: 0 | W26: 0 | X26: 0 | Y26: 0 | Z26: 0 | AA26: 0 | AB26: 0 | AC26: 338.9226843 | AD26: 0 | AE26: 0 | AF26: 0 | AG26: 0 | AH26: 0 | AI26: 0 | AJ26: 0.9062240665 | AK26: 0.3964487196 | AL26: 0.9236298809 | AM26: 0 | AN26: 2.273486739 | AO26: 4.499789406 | AP26: 0 | AQ26: 0 | AR26: 0 | AS26: 0 | AT26: 0 | AU26: 0 | AV26: 0 | AW26: 0 | AX26: 0 | AY26: 0 | AZ26: 0 | BA26: 0.1970872696 | BB26: 0.3508888506 | BC26: 0 | BD26: 0.4503246059 | BE26: 0.998300726 | BF26: 0 | BG26: 0 | BH26: 0 | BI26: 0 | BJ26: 0 | BK26: 0 | BL26: 0 | BM26: 0 | BN26: 0 | BO26: 0.006210651634 | BP26: 0.004352774563 | BQ26: 0.08422643099 | BR26: 0.07443749586 | BS26: 0.5123169145 | BT26: 0.6815442675 | BU26: 6.1796344 | BV26: 16.99020247 | BW26: 43.15381891 | BX26: 22.58847963 | BY26: 100.378906 | BZ26: 14.12159359 | CA26: 14.89064637 | CB26: 7.740874836 | CC26: 12.68062848 | CD26: 15.84920673 | CE26: 36.97091889 | CF26: 0.002895258576 | CG26: 285.3681712 | CH26: 10.70748051 | CI26: 0.9769760126 | CJ26: 0.5651000956 | CK26: 1.439076158 | CL26: 0 | CM26: 13.68863278 | CN26: 0.03424396976 | CO26: 16.86876581 | CP26: 0.005913751015 | CQ26: 0 | CR26: 0 | CS26: 0.6638340968 | CT26: 19.47957241 | CU26: 0.03386632014 | CV26: 0.3936551807 | CW26: 0 | CX26: 0.07428855964 | CY26: 0 | CZ26: 37.5541401 | DA26: 109.987566 | DB26: 62.54951376 | DC26: 0 | DD26: 0 | DE26: 0 | DF26: 164.3402964 | DG26: 1.546247009 | DH26: 4.025724721 | DI26: 342.4493479 | DJ26: 3.609211525 | DK26: 90.39748249 | DL26: 94.00669402
A27: 01M201 | B27: Commotions cérébrales, niveau 1 | D27: 36 | E27: 507.1067022 | F27: 0.8877923011 | G27: 0.1828842772 | H27: 34.23615037 | I27: 5.711476069 | J27: 125.2826595 | K27: 166.3009625 | L27: 0.03564394393 | M27: 0.006411354772 | N27: 1.419693162 | O27: 0 | P27: 3.699488585 | Q27: 5.161237046 | R27: 0 | S27: 0 | T27: 0 | U27: 0 | V27: 0 | W27: 0 | X27: 0 | Y27: 0 | Z27: 0 | AA27: 0 | AB27: 0 | AC27: 171.4621996 | AD27: 0 | AE27: 0 | AF27: 0 | AG27: 0 | AH27: 0 | AI27: 0 | AJ27: 1.512232254 | AK27: 0.3288304075 | AL27: 1.956819664 | AM27: 0 | AN27: 4.88034075 | AO27: 8.678223076 | AP27: 0 | AQ27: 0 | AR27: 0 | AS27: 0 | AT27: 0 | AU27: 0 | AV27: 0 | AW27: 0 | AX27: 0 | AY27: 0 | AZ27: 0 | BA27: 0 | BB27: 0 | BC27: 0 | BD27: 0 | BE27: 0 | BF27: 0 | BG27: 0 | BH27: 0 | BI27: 0 | BJ27: 0 | BK27: 0 | BL27: 0 | BM27: 0 | BN27: 0 | BO27: 0.2029655948 | BP27: 0.05528224901 | BQ27: 4.813197508 | BR27: 1.294763347 | BS27: 30.44554171 | BT27: 36.81175041 | BU27: 45.48997348 | BV27: 7.25488203 | BW27: 17.21521813 | BX27: 23.38882776 | BY27: 37.58970981 | BZ27: 3.315662488 | CA27: 3.447679997 | CB27: 6.758553116 | CC27: 4.913070328 | CD27: 10.3837834 | CE27: 16.43733694 | CF27: 0.02961425791 | CG27: 130.7343383 | CH27: 3.10164139 | CI27: 3.136568703 | CJ27: 1.062808328 | CK27: 0.426826145 | CL27: 0 | CM27: 7.727844567 | CN27: 0.1343593492 | CO27: 5.451478393 | CP27: 0.1895912845 | CQ27: 0 | CR27: 3.576619063e-06 | CS27: 0.3863372765 | CT27: 13.69368214 | CU27: 0 | CV27: 0 | CW27: 0 | CX27: 0.0006787174917 | CY27: 0 | CZ27: 19.85613073 | DA27: 20.81567751 | DB27: 56.36558642 | DC27: 0 | DD27: 0 | DE27: 10.84030489 | DF27: 41.35313686 | DG27: 0.2687699176 | DH27: 2.192740023 | DI27: 131.8362156 | DJ27: 5.294262224 | DK27: 27.04761048 | DL27: 32.3418727
A28: 01M211 | B28: Douleurs chroniques rebelles, niveau 1 | D28: 61 | E28: 1479.224071 | F28: 1.449725318 | G28: 1.778018948 | H28: 52.39490829 | I28: 4.290303181 | J28: 221.4568467 | K28: 281.3698024 | L28: 3.682610793 | M28: 1.664088733 | N28: 34.74336238 | O28: 0.03805024007 | P28: 266.6383403 | Q28: 306.7664525 | R28: 0 | S28: 0 | T28: 0 | U28: 0 | V28: 0 | W28: 0 | X28: 0 | Y28: 0 | Z28: 0 | AA28: 0 | AB28: 0 | AC28: 588.1362549 | AD28: 0.003661848715 | AE28: 0.001047510844 | AF28: 0.001867604497 | AG28: 0 | AH28: 0.4524011812 | AI28: 0.4589781452 | AJ28: 7.132317731 | AK28: 2.787984451 | AL28: 7.401004574 | AM28: 0.02715468002 | AN28: 18.99124978 | AO28: 36.33971121 | AP28: 0 | AQ28: 0 | AR28: 0 | AS28: 0 | AT28: 0 | AU28: 0 | AV28: 0 | AW28: 0 | AX28: 0 | AY28: 0 | AZ28: 0 | BA28: 0 | BB28: 0 | BC28: 0 | BD28: 0 | BE28: 0 | BF28: 0 | BG28: 0 | BH28: 0 | BI28: 0 | BJ28: 0 | BK28: 0 | BL28: 0 | BM28: 0 | BN28: 0 | BO28: 0.007982866388 | BP28: 0.004868985414 | BQ28: 0.1449023771 | BR28: 0.0832653004 | BS28: 1.128274319 | BT28: 1.369293848 | BU28: 38.16798321 | BV28: 23.99897671 | BW28: 59.55512044 | BX28: 19.72123306 | BY28: 147.7818349 | BZ28: 14.87200511 | CA28: 7.252850835 | CB28: 9.642487627 | CC28: 14.58158741 | CD28: 33.40818692 | CE28: 48.66946642 | CF28: 0.05590209916 | CG28: 379.5396515 | CH28: 11.41855317 | CI28: 6.003871358 | CJ28: 1.122023817 | CK28: 0.1879557266 | CL28: 0 | CM28: 18.73240408 | CN28: 3.492828227e-05 | CO28: 24.13119399 | CP28: 0.05425736787 | CQ28: 0 | CR28: 4.12520615e-06 | CS28: 2.862646554 | CT28: 46.88261986 | CU28: 0.01628057178 | CV28: 0.6502972027 | CW28: 0 | CX28: 0.1019824008 | CY28: 0 | CZ28: 74.699317 | DA28: 29.45502745 | DB28: 39.31004829 | DC28: 6.456937794 | DD28: 0 | DE28: 5.657349091 | DF28: 262.6429347 | DG28: 1.703338036 | DH28: 34.72282519 | DI28: 379.9484605 | DJ28: 16.57695576 | DK28: 125.356892 | DL28: 141.9338477
A29: 01M21T | B29: Douleurs chroniques rebelles, très courte durée | D29: 298 | E29: 546.3376807 | F29: 3.528975442 | G29: 0.171019933 | H29: 20.79540772 | I29: 0.0002708290473 | J29: 82.1885163 | K29: 106.6841902 | L29: 0 | M29: 0 | N29: 0 | O29: 0 | P29: 0 | Q29: 0 | R29: 0 | S29: 0 | T29: 0 | U29: 0 | V29: 0 | W29: 0 | X29: 0 | Y29: 0 | Z29: 0 | AA29: 0 | AB29: 0 | AC29: 106.6841902 | AD29: 0 | AE29: 0 | AF29: 0 | AG29: 0 | AH29: 0 | AI29: 0 | AJ29: 19.75800635 | AK29: 3.383184696 | AL29: 16.65788177 | AM29: 1.157120208e-05 | AN29: 35.12471756 | AO29: 74.92380195 | AP29: 0 | AQ29: 0 | AR29: 0 | AS29: 0 | AT29: 0 | AU29: 0 | AV29: 0 | AW29: 0 | AX29: 0 | AY29: 0 | AZ29: 0 | BA29: 0 | BB29: 0 | BC29: 0 | BD29: 0 | BE29: 0 | BF29: 0 | BG29: 0 | BH29: 0 | BI29: 0 | BJ29: 0 | BK29: 0 | BL29: 0 | BM29: 0 | BN29: 0 | BO29: 0 | BP29: 0 | BQ29: 0 | BR29: 0 | BS29: 0 | BT29: 0 | BU29: 74.92380195 | BV29: 6.162609517 | BW29: 9.820617557 | BX29: 30.25375496 | BY29: 70.24848912 | BZ29: 11.70422294 | CA29: 4.641473746 | CB29: 8.26432962 | CC29: 10.84295981 | CD29: 27.23298542 | CE29: 32.53227811 | CF29: 0.002519578261 | CG29: 211.7062404 | CH29: 6.097157176 | CI29: 13.81996599 | CJ29: 4.30233937 | CK29: 1.315395763e-05 | CL29: 0 | CM29: 24.2194757 | CN29: 2.003580704e-05 | CO29: 11.62516514 | CP29: 0.04375096079 | CQ29: 0 | CR29: 0 | CS29: 0.001381743705 | CT29: 44.14752344 | CU29: 0 | CV29: 0 | CW29: 0 | CX29: 0 | CY29: 0 | CZ29: 55.81784132 | DA29: 2.433972443 | DB29: 0.00609899152 | DC29: 0 | DD29: 0 | DE29: 0 | DF29: 70.54605973 | DG29: 0 | DH29: 0 | DI29: 72.98613116 | DJ29: 0.8683084229 | DK29: 56.14464299 | DL29: 57.01295141
A30: 01M221 | B30: Migraines et céphalées, niveau 1 | D30: 88 | E30: 868.7934043 | F30: 3.584476045 | G30: 0.4072806997 | H30: 46.98734882 | I30: 9.242338197 | J30: 226.0212399 | K30: 286.2426836 | L30: 0.1357512125 | M30: 0.0563009329 | N30: 1.084643976 | O30: 0.2769852073 | P30: 8.7164705 | Q30: 10.27015183 | R30: 0 | S30: 0 | T30: 0 | U30: 0 | V30: 0 | W30: 0 | X30: 0 | Y30: 0 | Z30: 0 | AA30: 0 | AB30: 0 | AC30: 296.5128355 | AD30: 0.0899052317 | AE30: 0.1181011361 | AF30: 0.05570690276 | AG30: 0 | AH30: 1.191536346 | AI30: 1.455249617 | AJ30: 1.712264898 | AK30: 0.7548188728 | AL30: 2.119628325 | AM30: 0 | AN30: 5.675159976 | AO30: 10.26187207 | AP30: 0 | AQ30: 0 | AR30: 0 | AS30: 0 | AT30: 0 | AU30: 0 | AV30: 0 | AW30: 0 | AX30: 0 | AY30: 0 | AZ30: 0 | BA30: 0.01234629395 | BB30: 0.02198100823 | BC30: 0 | BD30: 0.02821004102 | BE30: 0.0625373432 | BF30: 0 | BG30: 0 | BH30: 0 | BI30: 0 | BJ30: 0 | BK30: 0 | BL30: 0 | BM30: 0 | BN30: 0 | BO30: 0.2125506832 | BP30: 0.1082884096 | BQ30: 2.632742731 | BR30: 2.117699277 | BS30: 16.92505479 | BT30: 21.99633589 | BU30: 33.77599492 | BV30: 13.44042779 | BW30: 30.39665059 | BX30: 21.05471583 | BY30: 64.19732083 | BZ30: 9.579608058 | CA30: 8.819940039 | CB30: 6.359580913 | CC30: 13.08381565 | CD30: 15.68927448 | CE30: 30.09205891 | CF30: 0.005358568081 | CG30: 212.7187517 | CH30: 6.039709125 | CI30: 4.104280847 | CJ30: 1.137383324 | CK30: 1.264468108 | CL30: 0 | CM30: 12.5458414 | CN30: 0.06911825444 | CO30: 21.46413221 | CP30: 0.1285946389 | CQ30: 0 | CR30: 0 | CS30: 0.4756007605 | CT30: 21.36462547 | CU30: 0.01056254433 | CV30: 4.320877282 | CW30: 0.2369118994 | CX30: 0.04297041858 | CY30: 0 | CZ30: 48.11339348 | DA30: 69.49353799 | DB30: 76.7570469 | DC30: 1.182621683 | DD30: 0 | DE30: 4.887230489 | DF30: 110.489067 | DG30: 0.8861014575 | DH30: 1.430981899 | DI30: 265.1265874 | DJ30: 3.552200138 | DK30: 71.14576475 | DL30: 74.69796489
A31: 01M22T | B31: Migraines et céphalées, très courte durée | D31: 46 | E31: 416.1762241 | F31: 1.673993386 | G31: 0.1613166721 | H31: 32.45970925 | I31: 3.620664151 | J31: 132.2973943 | K31: 170.2130778 | L31: 0 | M31: 0 | N31: 0 | O31: 0 | P31: 0 | Q31: 0 | R31: 0 | S31: 0 | T31: 0 | U31: 0 | V31: 0 | W31: 0 | X31: 0 | Y31: 0 | Z31: 0 | AA31: 0 | AB31: 0 | AC31: 170.2130778 | AD31: 0.03680440075 | AE31: 0.003321970816 | AF31: 0.02676284778 | AG31: 0 | AH31: 0.2843770023 | AI31: 0.3512662217 | AJ31: 1.298817196 | AK31: 0.4870908059 | AL31: 1.199420196 | AM31: 0 | AN31: 3.390741304 | AO31: 6.376069503 | AP31: 0 | AQ31: 0 | AR31: 0 | AS31: 0 | AT31: 0 | AU31: 0 | AV31: 0 | AW31: 0 | AX31: 0 | AY31: 0 | AZ31: 0 | BA31: 0.005080293439 | BB31: 0.009044817198 | BC31: 0 | BD31: 0.01160796 | BE31: 0.02573307063 | BF31: 0 | BG31: 0 | BH31: 0 | BI31: 0 | BJ31: 0 | BK31: 0 | BL31: 0 | BM31: 0 | BN31: 0 | BO31: 0.1493622387 | BP31: 0.08908923699 | BQ31: 2.985023051 | BR31: 0.8708197637 | BS31: 15.85680104 | BT31: 19.95109533 | BU31: 26.70416412 | BV31: 6.377725687 | BW31: 8.49972479 | BX31: 22.40522343 | BY31: 32.60859424 | BZ31: 4.302432965 | CA31: 3.154399992 | CB31: 5.999430761 | CC31: 5.981955873 | CD31: 9.904565843 | CE31: 15.73472774 | CF31: 0.01388259398 | CG31: 114.9826639 | CH31: 2.353690483 | CI31: 4.089652975 | CJ31: 0.4052030532 | CK31: 0.5345830446 | CL31: 0 | CM31: 7.383129556 | CN31: 0.01528569275 | CO31: 5.327544475 | CP31: 0.07015569992 | CQ31: 0 | CR31: 1.424880446e-06 | CS31: 2.119567156 | CT31: 9.6589817 | CU31: 0 | CV31: 9.590398879e-07 | CW31: 0 | CX31: 0.0007537216296 | CY31: 0 | CZ31: 17.19229083 | DA31: 8.716805286 | DB31: 19.90558929 | DC31: 0 | DD31: 0 | DE31: 5.554125129 | DF31: 42.96904432 | DG31: 0 | DH31: 2.555333919 | DI31: 79.70089795 | DJ31: 3.261479021 | DK31: 41.47598434 | DL31: 44.73746336
A32: 01M25T | B32: Epilepsie, âge supérieur à 17 ans, très courte durée | D32: 60 | E32: 619.534333 | F32: 1.147047211 | G32: 0.2063083489 | H32: 25.35487056 | I32: 11.32730085 | J32: 132.000359 | K32: 170.035886 | L32: 0.2604982061 | M32: 0.02706114656 | N32: 1.039267289 | O32: 1.578590906 | P32: 8.432388067 | Q32: 11.33780562 | R32: 0 | S32: 0 | T32: 0 | U32: 0 | V32: 0 | W32: 0 | X32: 0 | Y32: 0 | Z32: 0 | AA32: 0 | AB32: 0 | AC32: 181.3736916 | AD32: 0 | AE32: 0 | AF32: 0 | AG32: 0 | AH32: 0 | AI32: 0 | AJ32: 0.04393446565 | AK32: 0.02984747464 | AL32: 0.04475505945 | AM32: 0 | AN32: 0.1648100458 | AO32: 0.2833470456 | AP32: 0 | AQ32: 0 | AR32: 0 | AS32: 0 | AT32: 0 | AU32: 0 | AV32: 0 | AW32: 0 | AX32: 0 | AY32: 0 | AZ32: 0 | BA32: 0 | BB32: 0 | BC32: 0 | BD32: 0 | BE32: 0 | BF32: 0 | BG32: 0 | BH32: 0 | BI32: 0 | BJ32: 0 | BK32: 0 | BL32: 0 | BM32: 0 | BN32: 0 | BO32: 0.3669415674 | BP32: 0.2411895409 | BQ32: 5.125107976 | BR32: 4.183625162 | BS32: 33.23052315 | BT32: 43.14738739 | BU32: 43.43073444 | BV32: 7.478481107 | BW32: 8.828130855 | BX32: 25.25392785 | BY32: 28.44974908 | BZ32: 5.610530008 | CA32: 5.040408949 | CB32: 5.272770454 | CC32: 6.403045272 | CD32: 6.982592239 | CE32: 14.84688257 | CF32: 0.004529712568 | CG32: 114.1710481 | CH32: 2.953095108 | CI32: 4.550847925 | CJ32: 0.2986190638 | CK32: 0.7350098401 | CL32: 0 | CM32: 8.537571936 | CN32: 0.001920575913 | CO32: 17.57264985 | CP32: 0.06383516606 | CQ32: 0 | CR32: 0.02555982099 | CS32: 0.01651728768 | CT32: 11.22070131 | CU32: 0 | CV32: 0 | CW32: 0 | CX32: 0.003908738326 | CY32: 0 | CZ32: 28.90509275 | DA32: 70.74580233 | DB32: 73.42974591 | DC32: 0 | DD32: 0 | DE32: 0 | DF32: 86.69891774 | DG32: 0.06946296296 | DH32: 12.17226529 | DI32: 243.1161942 | DJ32: 1.748336927 | DK32: 33.08723783 | DL32: 34.83557476
A33: 01M301 | B33: Accidents vasculaires intracérébraux non transitoires, niveau 1 | D33: 105 | E33: 2633.28791 | F33: 11.50998976 | G33: 0.6560672411 | H33: 144.2302563 | I33: 35.44664354 | J33: 739.3921953 | K33: 931.2351522 | L33: 0.06087522777 | M33: 0.01259305263 | N33: 0.1468837204 | O33: 0.7296153634 | P33: 1.942268207 | Q33: 2.892235571 | R33: 0.708896421 | S33: 0.1286349084 | T33: 0.5536554651 | U33: 0 | V33: 12.49267068 | W33: 13.88385747 | X33: 0 | Y33: 0 | Z33: 0 | AA33: 0 | AB33: 0 | AC33: 948.0112452 | AD33: 0.01295433933 | AE33: 0.0170170541 | AF33: 0.009945603054 | AG33: 0 | AH33: 0.2075496299 | AI33: 0.2474666264 | AJ33: 0.6401918161 | AK33: 0.159353496 | AL33: 0.84896709 | AM33: 0 | AN33: 2.089119833 | AO33: 3.737632235 | AP33: 0 | AQ33: 0 | AR33: 0 | AS33: 0 | AT33: 0 | AU33: 0 | AV33: 0 | AW33: 0 | AX33: 0 | AY33: 0 | AZ33: 0 | BA33: 0.01528005084 | BB33: 0.02720418974 | BC33: 0 | BD33: 0.03491338071 | BE33: 0.07739762129 | BF33: 0 | BG33: 0 | BH33: 0 | BI33: 0 | BJ33: 0.2066611978 | BK33: 0.1170500188 | BL33: 0.488585672 | BM33: 1.860523961 | BN33: 2.67282085 | BO33: 0.3538300802 | BP33: 0.2401798392 | BQ33: 4.993299535 | BR33: 4.151572618 | BS33: 31.82127029 | BT33: 41.56015237 | BU33: 48.2954697 | BV33: 56.80026512 | BW33: 86.09886901 | BX33: 25.45118235 | BY33: 223.3195869 | BZ33: 44.63621285 | CA33: 40.93052045 | CB33: 5.266975422 | CC33: 47.2465712 | CD33: 52.73777683 | CE33: 115.0492523 | CF33: 0.04387079773 | CG33: 697.5810832 | CH33: 14.76678524 | CI33: 3.949196133 | CJ33: 1.938349637 | CK33: 3.861595107 | CL33: 0 | CM33: 24.51592612 | CN33: 0.01696882342 | CO33: 51.73436237 | CP33: 0.04455284141 | CQ33: 0 | CR33: 2.804795719e-05 | CS33: 0.07377064975 | CT33: 42.38721579 | CU33: 0 | CV33: 2.949421469 | CW33: 0.001315037538 | CX33: 0.3635253735 | CY33: 0 | CZ33: 97.57116041 | DA33: 116.4051437 | DB33: 381.4528315 | DC33: 2.056781823 | DD33: 0 | DE33: 0.2324970565 | DF33: 281.8262785 | DG33: 5.244635687 | DH33: 30.09485724 | DI33: 817.3130255 | DJ33: 14.20391567 | DK33: 246.5915934 | DL33: 260.7955091
A34: 01M302 | B34: Accidents vasculaires intracérébraux non transitoires, niveau 2 | D34: 50 | E34: 3862.862893 | F34: 18.60260994 | G34: 1.139733491 | H34: 207.6772723 | I34: 51.85761909 | J34: 1086.060614 | K34: 1365.337849 | L34: 0.03804398221 | M34: 0.1032322176 | N34: 1.08164007 | O34: 0.2215367072 | P34: 5.117058221 | Q34: 6.561511198 | R34: 1.104729152 | S34: 0.2004619138 | T34: 4.013338389 | U34: 0.05026327569 | V34: 39.46451807 | W34: 44.8333108 | X34: 0 | Y34: 0 | Z34: 0 | AA34: 0 | AB34: 0 | AC34: 1416.732671 | AD34: 0.0247340413 | AE34: 0.03249108336 | AF34: 0.015325658 | AG34: 0 | AH34: 0.3278063872 | AI34: 0.4003571698 | AJ34: 0.7346571168 | AK34: 0.8044041994 | AL34: 1.140856788 | AM34: 0 | AN34: 4.03765545 | AO34: 6.717573554 | AP34: 0 | AQ34: 0 | AR34: 0 | AS34: 0 | AT34: 0 | AU34: 0 | AV34: 0 | AW34: 0 | AX34: 0 | AY34: 0 | AZ34: 0 | BA34: 0 | BB34: 0 | BC34: 0 | BD34: 0 | BE34: 0 | BF34: 1.207072681 | BG34: 0.06643995252 | BH34: 1.918855813 | BI34: 3.192368446 | BJ34: 0.1830083579 | BK34: 0.1036533804 | BL34: 0.4326659406 | BM34: 1.6475828 | BN34: 2.366910479 | BO34: 0.3013771903 | BP34: 0.203536898 | BQ34: 4.475115726 | BR34: 3.480717134 | BS34: 29.83441087 | BT34: 38.29515782 | BU34: 50.97236747 | BV34: 85.08917856 | BW34: 133.5339559 | BX34: 26.52167867 | BY34: 340.984099 | BZ34: 65.85934509 | CA34: 61.29904635 | CB34: 5.993372885 | CC34: 72.65548946 | CD34: 89.63308356 | CE34: 178.179051 | CF34: 0.07292659999 | CG34: 1059.821227 | CH34: 22.02080197 | CI34: 3.653564687 | CJ34: 3.110000592 | CK34: 6.617935871 | CL34: 0.07150484517 | CM34: 35.47380797 | CN34: 0.0007411679593 | CO34: 69.90887488 | CP34: 20.88454072 | CQ34: 0 | CR34: 0.01040480511 | CS34: 1.048777948 | CT34: 58.54557516 | CU34: 0 | CV34: 9.039264952 | CW34: 0.004089554982 | CX34: 0.589883961 | CY34: 0 | CZ34: 160.0321532 | DA34: 239.2939427 | DB34: 402.729433 | DC34: 5.575139812 | DD34: 0 | DE34: 3.239473381 | DF34: 424.0185908 | DG34: 9.264915805 | DH34: 55.70917114 | DI34: 1139.830667 | DJ34: 28.09931035 | DK34: 371.9406258 | DL34: 400.0399362
A35: 01M34Z | B35: Anomalies de la démarche d'origine neurologique | D35: 82 | E35: 2835.948 | F35: 13.06654602 | G35: 1.290919279 | H35: 171.0976681 | I35: 48.82571015 | J35: 860.2722663 | K35: 1094.55311 | L35: 0 | M35: 0 | N35: 0 | O35: 0 | P35: 0 | Q35: 0 | R35: 0 | S35: 0 | T35: 0 | U35: 0 | V35: 0 | W35: 0 | X35: 0 | Y35: 0 | Z35: 0 | AA35: 0 | AB35: 0 | AC35: 1094.55311 | AD35: 0.007117992489 | AE35: 0.009350323489 | AF35: 0.0044104365 | AG35: 0 | AH35: 0.09433652082 | AI35: 0.1152152733 | AJ35: 0.2935867505 | AK35: 0.1964588471 | AL35: 0.4444301824 | AM35: 0 | AN35: 1.384061975 | AO35: 2.318537755 | AP35: 0 | AQ35: 0 | AR35: 0 | AS35: 0 | AT35: 0 | AU35: 0 | AV35: 0 | AW35: 0 | AX35: 0 | AY35: 0 | AZ35: 0 | BA35: 0.01165017366 | BB35: 0.02074165446 | BC35: 0 | BD35: 0.02661947609 | BE35: 0.0590113042 | BF35: 0 | BG35: 0 | BH35: 0 | BI35: 0 | BJ35: 0.0125370154 | BK35: 0.007100790589 | BL35: 0.02963984608 | BM35: 0.1128679103 | BN35: 0.1621455624 | BO35: 0.2501013829 | BP35: 0.1643268868 | BQ35: 3.739196921 | BR35: 2.806260012 | BS35: 25.56938537 | BT35: 32.52927057 | BU35: 35.18418047 | BV35: 61.52491215 | BW35: 110.0666592 | BX35: 25.09694335 | BY35: 263.1795769 | BZ35: 47.60197765 | CA35: 43.49183879 | CB35: 5.519654761 | CC35: 49.58272191 | CD35: 64.46964308 | CE35: 128.3342114 | CF35: 0.06527099485 | CG35: 798.9334102 | CH35: 18.79153624 | CI35: 4.231637513 | CJ35: 1.762349177 | CK35: 3.764133998 | CL35: 0 | CM35: 28.54965693 | CN35: 112.6104106 | CO35: 52.98125334 | CP35: 5.915244633 | CQ35: 0 | CR35: 0.06183022614 | CS35: 5.105131314 | CT35: 46.81054911 | CU35: 0 | CV35: 3.492310463 | CW35: 0 | CX35: 0.3578909941 | CY35: 0 | CZ35: 227.3346206 | DA35: 132.0628898 | DB35: 192.7581239 | DC35: 0.8730086708 | DD35: 0 | DE35: 1.609213167 | DF35: 279.0832985 | DG35: 4.533135303 | DH35: 40.47335283 | DI35: 651.3930221 | DJ35: 18.29802119 | DK35: 257.879045 | DL35: 276.1770662
A36: 01M35T | B36: Symptômes et autres recours aux soins de la CMD 01, très courte durée | D36: 40 | E36: 571.3506501 | F36: 1.188056433 | G36: 0.1828313348 | H36: 28.81208556 | I36: 8.874314331 | J36: 124.8273592 | K36: 163.8846469 | L36: 0 | M36: 0 | N36: 0 | O36: 0 | P36: 0 | Q36: 0 | R36: 0 | S36: 0 | T36: 0 | U36: 0 | V36: 0 | W36: 0 | X36: 0 | Y36: 0 | Z36: 0 | AA36: 0 | AB36: 0 | AC36: 163.8846469 | AD36: 0.03193063188 | AE36: 0.01377940793 | AF36: 0.01711171205 | AG36: 0 | AH36: 0.1885204262 | AI36: 0.251342178 | AJ36: 0.4760132882 | AK36: 0.2270040102 | AL36: 0.4898286334 | AM36: 0 | AN36: 1.550062842 | AO36: 2.742908773 | AP36: 0 | AQ36: 0 | AR36: 0 | AS36: 0 | AT36: 0 | AU36: 0 | AV36: 0 | AW36: 0 | AX36: 0 | AY36: 0 | AZ36: 0 | BA36: 0 | BB36: 0 | BC36: 0 | BD36: 0 | BE36: 0 | BF36: 0 | BG36: 0 | BH36: 0 | BI36: 0 | BJ36: 0 | BK36: 0 | BL36: 0 | BM36: 0 | BN36: 0 | BO36: 0.2336651446 | BP36: 0.1469759284 | BQ36: 3.975899304 | BR36: 2.588081841 | BS36: 22.97040999 | BT36: 29.91503221 | BU36: 32.90928316 | BV36: 7.101728616 | BW36: 9.719311097 | BX36: 25.01771463 | BY36: 25.83790551 | BZ36: 4.51247981 | CA36: 3.906313966 | CB36: 5.631385644 | CC36: 5.021772495 | CD36: 6.371996706 | CE36: 13.31528129 | CF36: 0.006621208943 | CG36: 106.442511 | CH36: 2.762145704 | CI36: 3.829816135 | CJ36: 0.2829867497 | CK36: 0.9295778409 | CL36: 0 | CM36: 7.804526429 | CN36: 0.001176151232 | CO36: 11.72495829 | CP36: 0.0300452729 | CQ36: 0 | CR36: 0 | CS36: 0.1762614729 | CT36: 10.02991101 | CU36: 0.0008619114171 | CV36: 2.712185695e-06 | CW36: 0 | CX36: 0.007933961162 | CY36: 0 | CZ36: 21.97115078 | DA36: 53.12075359 | DB36: 121.9708891 | DC36: 2.46825462 | DD36: 0 | DE36: 0 | DF36: 54.62419713 | DG36: 0.473 | DH36: 5.681437372 | DI36: 238.3385318 | DJ36: 1.479928253 | DK36: 29.82548502 | DL36: 31.30541327
A37: 02C021 | B37: Interventions sur la rétine, niveau 1 | D37: 1349 | E37: 1921.850745 | F37: 1.615574342 | G37: 0.4306943275 | H37: 40.39436073 | I37: 0.9072608126 | J37: 185.2729203 | K37: 228.6208105 | L37: 0.001005012162 | M37: 0 | N37: 0.001018390245 | O37: 0 | P37: 0.1653333679 | Q37: 0.1673567703 | R37: 0.0007620534078 | S37: 0.003085655429 | T37: 0.04299927206 | U37: 0 | V37: 0.460356656 | W37: 0.5072036369 | X37: 0 | Y37: 0 | Z37: 0 | AA37: 0 | AB37: 0 | AC37: 229.2953709 | AD37: 3.761607155 | AE37: 4.521107834 | AF37: 4.566482492 | AG37: 0 | AH37: 34.18659308 | AI37: 47.03579056 | AJ37: 40.45259102 | AK37: 16.0438237 | AL37: 76.07693895 | AM37: 0 | AN37: 195.4516206 | AO37: 328.0249742 | AP37: 0 | AQ37: 0 | AR37: 0 | AS37: 0 | AT37: 0 | AU37: 0 | AV37: 0 | AW37: 0 | AX37: 0 | AY37: 0 | AZ37: 0 | BA37: 0 | BB37: 0 | BC37: 0 | BD37: 0 | BE37: 0 | BF37: 0 | BG37: 0 | BH37: 0 | BI37: 0 | BJ37: 0 | BK37: 0 | BL37: 0 | BM37: 0 | BN37: 0 | BO37: 0 | BP37: 0 | BQ37: 0 | BR37: 0 | BS37: 0 | BT37: 0 | BU37: 375.0607648 | BV37: 7.93839793 | BW37: 31.02654739 | BX37: 18.19269977 | BY37: 47.57334936 | BZ37: 3.416345561 | CA37: 1.912014636 | CB37: 7.103214175 | CC37: 3.478796662 | CD37: 12.16641764 | CE37: 23.1604441 | CF37: 0.02561434909 | CG37: 155.9938416 | CH37: 23.12408689 | CI37: 62.5970539 | CJ37: 19.60944314 | CK37: 0.4735807836 | CL37: 0 | CM37: 105.8041647 | CN37: 7.995621681 | CO37: 40.43429217 | CP37: 0.2470451891 | CQ37: 0 | CR37: 0 | CS37: 73.2313543 | CT37: 265.2068257 | CU37: 0.1116773243 | CV37: 0 | CW37: 0 | CX37: 0.001702594277 | CY37: 0 | CZ37: 387.2285189 | DA37: 8.342857958 | DB37: 0.07528745863 | DC37: 177.8955233 | DD37: 0 | DE37: 470.4755092 | DF37: 10.77589616 | DG37: 0.4826035233 | DH37: 0.4204068362 | DI37: 668.4680845 | DJ37: 3.726787121 | DK37: 60.37017415 | DL37: 64.09696127
A38: 02C02J | B38: Interventions sur la rétine, en ambulatoire | D38: 81 | E38: 1505.40578 | F38: 3.234822397 | G38: 1.130938127 | H38: 16.86192724 | I38: 0.01357685168 | J38: 45.13560335 | K38: 66.37686796 | L38: 0 | M38: 0 | N38: 0 | O38: 0 | P38: 0 | Q38: 0 | R38: 0 | S38: 0 | T38: 0 | U38: 0 | V38: 0 | W38: 0 | X38: 0 | Y38: 0 | Z38: 0 | AA38: 0 | AB38: 0 | AC38: 66.37686796 | AD38: 5.649054307 | AE38: 5.24753307 | AF38: 2.385461033 | AG38: 0 | AH38: 37.87057676 | AI38: 51.15262517 | AJ38: 27.1339738 | AK38: 13.27204025 | AL38: 47.58962937 | AM38: 0 | AN38: 135.7001199 | AO38: 223.6957633 | AP38: 0 | AQ38: 0 | AR38: 0 | AS38: 0 | AT38: 0 | AU38: 0 | AV38: 0 | AW38: 0 | AX38: 0 | AY38: 0 | AZ38: 0 | BA38: 0 | BB38: 0 | BC38: 0 | BD38: 0 | BE38: 0 | BF38: 0 | BG38: 0 | BH38: 0 | BI38: 0 | BJ38: 0 | BK38: 0 | BL38: 0 | BM38: 0 | BN38: 0 | BO38: 0 | BP38: 0 | BQ38: 0 | BR38: 0 | BS38: 0 | BT38: 0 | BU38: 274.8483885 | BV38: 4.56953017 | BW38: 9.895956997 | BX38: 18.65896628 | BY38: 116.407119 | BZ38: 7.796695069 | CA38: 9.445694991 | CB38: 5.577867266 | CC38: 11.63819749 | CD38: 24.89358446 | CE38: 56.24849629 | CF38: 0.03626882957 | CG38: 265.1683768 | CH38: 17.10829537 | CI38: 50.07733706 | CJ38: 15.10761053 | CK38: 1.357896469 | CL38: 0 | CM38: 83.65113944 | CN38: 6.593905625e-06 | CO38: 26.24478146 | CP38: 0.0039400916 | CQ38: 0 | CR38: 0 | CS38: 52.07039966 | CT38: 188.4418565 | CU38: 0.0003067849991 | CV38: 0 | CW38: 0 | CX38: 0.000482311855 | CY38: 0 | CZ38: 266.7617735 | DA38: 1.185883583 | DB38: 0 | DC38: 152.2181833 | DD38: 0 | DE38: 384.8563723 | DF38: 10.14464376 | DG38: 0.0905836231 | DH38: 0.1035673232 | DI38: 548.5992339 | DJ38: 14.17878059 | DK38: 112.0336026 | DL38: 126.2123832
A39: 02C051 | B39: Interventions sur le cristallin avec ou sans vitrectomie, niveau 1 | D39: 4645 | E39: 1226.501162 | F39: 2.288486976 | G39: 0.3607583905 | H39: 23.65491664 | I39: 0.7306963902 | J39: 129.8449322 | K39: 156.8797906 | L39: 0 | M39: 0 | N39: 0 | O39: 0 | P39: 0 | Q39: 0 | R39: 0 | S39: 0 | T39: 0 | U39: 0 | V39: 0 | W39: 0 | X39: 0 | Y39: 0 | Z39: 0 | AA39: 0 | AB39: 0 | AC39: 156.8797906 | AD39: 2.990806597 | AE39: 3.74374975 | AF39: 1.414425118 | AG39: 3.873876124 | AH39: 21.91404007 | AI39: 33.93689766 | AJ39: 15.91020651 | AK39: 6.83198707 | AL39: 21.61640924 | AM39: 0.0135871988 | AN39: 70.43627568 | AO39: 114.8084657 | AP39: 0 | AQ39: 0 | AR39: 0 | AS39: 0 | AT39: 0 | AU39: 0 | AV39: 0 | AW39: 0 | AX39: 0 | AY39: 0 | AZ39: 0 | BA39: 0.00241154837 | BB39: 0.004293455571 | BC39: 0 | BD39: 0.005510145691 | BE39: 0.01221514963 | BF39: 0 | BG39: 0 | BH39: 0 | BI39: 0 | BJ39: 0 | BK39: 0 | BL39: 0 | BM39: 0 | BN39: 0 | BO39: 0 | BP39: 0 | BQ39: 0 | BR39: 0 | BS39: 0 | BT39: 0 | BU39: 148.7575785 | BV39: 6.178155292 | BW39: 23.61327177 | BX39: 19.45552259 | BY39: 41.13318351 | BZ39: 3.922205013 | CA39: 4.089571839 | CB39: 6.179574379 | CC39: 6.910796175 | CD39: 9.685169762 | CE39: 19.7825523 | CF39: 0.009794475949 | CG39: 140.9597971 | CH39: 12.70165802 | CI39: 21.44514679 | CJ39: 4.016073615 | CK39: 1.638912629 | CL39: 0.02870321413 | CM39: 39.83049427 | CN39: 0.3020769142 | CO39: 17.57133046 | CP39: 0.183472945 | CQ39: 0 | CR39: 0.009209700254 | CS39: 158.1674389 | CT39: 130.1122576 | CU39: 0.07193151397 | CV39: 0.00377229132 | CW39: 5.403807566e-05 | CX39: 0.001841198133 | CY39: 0 | CZ39: 306.4233856 | DA39: 1.653800418 | DB39: 1.134803453 | DC39: 144.6518872 | DD39: 0 | DE39: 272.4787223 | DF39: 13.55626476 | DG39: 0.1410757188 | DH39: 0.03356171163 | DI39: 433.6501156 | DJ39: 3.290804121 | DK39: 40.82756771 | DL39: 44.11837183
